Workbook

Sheet Gradiente (hidden)
A1: PMT | F1: Q | G1: PV / n
A2: PV | C2: 500000 | F2: SD | G2: PV - k * Q
A3: n | C3: 8 | F3: INTk | G3: Q * i ^ k
A4: i | C4: 0.06 | F4: PMTk | G4: Q * (1 + i) ^ k
A5: i (diário) | C5: =((1+C4)^(1/30))-1 -> 0.001944184418
A6: Dt Parcela | C6: 2015-01-01
A7: Dt Juros | C7: 2015-01-01
A9: Dt Ini. Correção | C9: 2009-04-01
A10: Dt. Fim Correção | C10: 2011-10-01
A11: % Multa | C11: 0
A12: % Juros Atraso | C12: 0.00033
A13: Data de recebimento | C13: 2015-02-01
A15: Parcela | B15: k | C15: Vencimento | D15: Prestação | E15: Juros | F15: Amort. (Q) | G15: Saldo Dev | H15: Dias de Antecipação (ANO 360) | I15: Desconto Antecipação | J15: Valor do juros com desconto | K15: Valor da Parcela com Desconto | M15: Dias Atraso | N15: Dias Atraso (360) | O15: Vlr. Reajuste | P15: Multa Atraso | Q15: Juros Atraso | R15: Corr. Atraso | S15: Valor final
A16: 0 | B16: 0 | G16: =C2 -> 500000 | O16: 0 | R16: 0
A17: 1 | B17: =DAYS360(C7,C6)/30 -> 0 | C17: =C6 -> 2015-01-01 | D17: =F17*(1+$C$4)^B17 -> 62500 | E17: =D17-F17 -> 0 | F17: =IF(A17<=$C$3,$C$2/$C$3,0) -> 62500 | G17: =G16-F17 -> 437500 | H17: =IF(C17<=$C$13,0,DAYS360($C$13,C17)) -> 0 | I17: =D17*((((1+$C$5)^H17) - 1)/((1+$C$5)^H17)) -> 0 | J17: =E17-I17 -> 0 | K17: =F17+J17 -> 62500 | M17: =IF(C17>$C$13,0, $C$13-C17) -> 31 | N17: =IF(C17>$C$13,0,DAYS360(C17,$C$13)) -> 30 | O17: -3.004205681 | P17: =IF(N17>0,(D17 + O17)*$C$11,0) -> 0 | Q17: =IF(M17>0,((D17 + O17)*(1+$C$12)^M17)-(D17 + O17),0) -> 642.51914 | R17: 0 | S17: =K17+O17+P17+Q17+R17 -> 63139.51493
A18: 2 | B18: =B17+1 -> 1 | C18: =DATE(YEAR(C17),MONTH(C17)+1,DAY(C17)) -> 2015-02-01 | D18: 66250 | E18: 3750 | F18: 62500 | G18: =G17-F18 -> 375000 | H18: 0 | I18: 0 | J18: 3750 | K18: 66250 | M18: 0 | N18: 0 | O18: -3.004205681 | P18: =IF(N18>0,(D18 + O18)*$C$11,0) -> 0 | Q18: 0 | R18: 0 | S18: 66246.99579
A19: 3 | B19: =B18+1 -> 2 | C19: 2015-03-01 | D19: 70225 | E19: 7725 | F19: 62500 | G19: 312500 | H19: 30 | I19: 3975 | J19: 3750 | K19: 66250 | M19: 0 | N19: 0 | O19: -3.004205681 | P19: 0 | Q19: 0 | R19: 0 | S19: 66246.99579
A20: 4 | B20: 3 | C20: 2015-04-01 | D20: 74438.5 | E20: 11938.5 | F20: 62500 | G20: 250000 | H20: 60 | I20: 8188.5 | J20: 3750 | K20: 66250 | M20: 0 | N20: 0 | O20: -3.004205681 | P20: 0 | Q20: 0 | R20: 0 | S20: 66246.99579
A21: 5 | B21: 4 | C21: 2015-05-01 | D21: 78904.81 | E21: 16404.81 | F21: 62500 | G21: 187500 | H21: 90 | I21: 12654.81 | J21: 3750 | K21: 66250 | M21: 0 | N21: 0 | O21: -3.004205681 | P21: 0 | Q21: 0 | R21: 0 | S21: 66246.99579
A22: 6 | B22: 5 | C22: 2015-06-01 | D22: 83639.0986 | E22: 21139.0986 | F22: 62500 | G22: 125000 | H22: 120 | I22: 17389.0986 | J22: 3750 | K22: 66250 | M22: 0 | N22: 0 | O22: -3.004205681 | P22: 0 | Q22: 0 | R22: 0 | S22: 66246.99579
A23: 7 | B23: 6 | C23: 2015-07-01 | D23: 88657.44452 | E23: 26157.44452 | F23: 62500 | G23: 62500 | H23: 150 | I23: 22407.44452 | J23: 3750 | K23: 66250 | M23: 0 | N23: 0 | O23: -3.004205681 | P23: 0 | Q23: 0 | R23: 0 | S23: 66246.99579
A24: 8 | B24: 7 | C24: 2015-08-01 | D24: 93976.89119 | E24: 31476.89119 | F24: 62500 | G24: 0 | H24: 180 | I24: 27726.89119 | J24: 3750 | K24: 66250 | M24: 0 | N24: 0 | O24: -3.004205681 | P24: 0 | Q24: 0 | R24: 0 | S24: 66246.99579
A25: 9 | B25: 8 | C25: 2015-09-01 | D25: 0 | E25: 0 | F25: 0 | G25: 0 | H25: 210 | I25: 0 | J25: 0 | K25: 0 | M25: 0 | N25: 0 | O25: -3.004205681 | P25: 0 | Q25: 0 | R25: 0 | S25: -3.004205681
A26: 10 | B26: 9 | C26: 2015-10-01 | D26: 0 | E26: 0 | F26: 0 | G26: 0 | H26: 240 | I26: 0 | J26: 0 | K26: 0 | M26: 0 | N26: 0 | O26: -3.004205681 | P26: 0 | Q26: 0 | R26: 0 | S26: -3.004205681
A27: 11 | B27: 10 | C27: 2015-11-01 | D27: 0 | E27: 0 | F27: 0 | G27: 0 | H27: 270 | I27: 0 | J27: 0 | K27: 0 | M27: 0 | N27: 0 | O27: -3.004205681 | P27: 0 | Q27: 0 | R27: 0 | S27: -3.004205681
A28: 12 | B28: 11 | C28: 2015-12-01 | D28: 0 | E28: 0 | F28: 0 | G28: 0 | H28: 300 | I28: 0 | J28: 0 | K28: 0 | M28: 0 | N28: 0 | O28: -3.004205681 | P28: 0 | Q28: 0 | R28: 0 | S28: -3.004205681
A29: 13 | B29: 12 | C29: 2016-01-01 | D29: 0 | E29: 0 | F29: 0 | G29: 0 | H29: 330 | I29: 0 | J29: 0 | K29: 0 | M29: 0 | N29: 0 | O29: -3.004205681 | P29: 0 | Q29: 0 | R29: 0 | S29: -3.004205681
A30: 14 | B30: 13 | C30: 2016-02-01 | D30: 0 | E30: 0 | F30: 0 | G30: 0 | H30: 360 | I30: 0 | J30: 0 | K30: 0 | M30: 0 | N30: 0 | O30: -3.004205681 | P30: 0 | Q30: 0 | R30: 0 | S30: -3.004205681
A31: 15 | B31: 14 | C31: 2016-03-01 | D31: 0 | E31: 0 | F31: 0 | G31: 0 | H31: 390 | I31: 0 | J31: 0 | K31: 0 | M31: 0 | N31: 0 | O31: -3.004205681 | P31: 0 | Q31: 0 | R31: 0 | S31: -3.004205681
A32: 16 | B32: 15 | C32: 2016-04-01 | D32: 0 | E32: 0 | F32: 0 | G32: 0 | H32: 420 | I32: 0 | J32: 0 | K32: 0 | M32: 0 | N32: 0 | O32: -3.004205681 | P32: 0 | Q32: 0 | R32: 0 | S32: -3.004205681
A33: 17 | B33: 16 | C33: 2016-05-01 | D33: 0 | E33: 0 | F33: 0 | G33: 0 | H33: 450 | I33: 0 | J33: 0 | K33: 0 | M33: 0 | N33: 0 | O33: -3.004205681 | P33: 0 | Q33: 0 | R33: 0 | S33: -3.004205681
A34: 18 | B34: 17 | C34: 2016-06-01 | D34: 0 | E34: 0 | F34: 0 | G34: 0 | H34: 480 | I34: 0 | J34: 0 | K34: 0 | M34: 0 | N34: 0 | O34: -3.004205681 | P34: 0 | Q34: 0 | R34: 0 | S34: -3.004205681
A35: 19 | B35: 18 | C35: 2016-07-01 | D35: 0 | E35: 0 | F35: 0 | G35: 0 | H35: 510 | I35: 0 | J35: 0 | K35: 0 | M35: 0 | N35: 0 | O35: -3.004205681 | P35: 0 | Q35: 0 | R35: 0 | S35: -3.004205681
A36: 20 | B36: 19 | C36: 2016-08-01 | D36: 0 | E36: 0 | F36: 0 | G36: 0 | H36: 540 | I36: 0 | J36: 0 | K36: 0 | M36: 0 | N36: 0 | O36: -3.004205681 | P36: 0 | Q36: 0 | R36: 0 | S36: -3.004205681
A37: 21 | B37: 20 | C37: 2016-09-01 | D37: 0 | E37: 0 | F37: 0 | G37: 0 | H37: 570 | I37: 0 | J37: 0 | K37: 0 | M37: 0 | N37: 0 | O37: -3.004205681 | P37: 0 | Q37: 0 | R37: 0 | S37: -3.004205681
A38: 22 | B38: 21 | C38: 2016-10-01 | D38: 0 | E38: 0 | F38: 0 | G38: 0 | H38: 600 | I38: 0 | J38: 0 | K38: 0 | M38: 0 | N38: 0 | O38: -3.004205681 | P38: 0 | Q38: 0 | R38: 0 | S38: -3.004205681
A39: 23 | B39: 22 | C39: 2016-11-01 | D39: 0 | E39: 0 | F39: 0 | G39: 0 | H39: 630 | I39: 0 | J39: 0 | K39: 0 | M39: 0 | N39: 0 | O39: -3.004205681 | P39: 0 | Q39: 0 | R39: 0 | S39: -3.004205681
A40: 24 | B40: 23 | C40: 2016-12-01 | D40: 0 | E40: 0 | F40: 0 | G40: 0 | H40: 660 | I40: 0 | J40: 0 | K40: 0 | M40: 0 | N40: 0 | O40: -3.004205681 | P40: 0 | Q40: 0 | R40: 0 | S40: -3.004205681
A41: 25 | B41: 24 | C41: 2017-01-01 | D41: 0 | E41: 0 | F41: 0 | G41: 0 | H41: 690 | I41: 0 | J41: 0 | K41: 0 | M41: 0 | N41: 0 | O41: 0 | P41: 0 | Q41: 0 | R41: 0 | S41: 0
A42: 26 | B42: 25 | C42: 2017-02-01 | D42: 0 | E42: 0 | F42: 0 | G42: 0 | H42: 720 | I42: 0 | J42: 0 | K42: 0 | M42: 0 | N42: 0 | O42: 0 | P42: 0 | Q42: 0 | R42: 0 | S42: 0
A43: 27 | B43: 26 | C43: 2017-03-01 | D43: 0 | E43: 0 | F43: 0 | G43: 0 | H43: 750 | I43: 0 | J43: 0 | K43: 0 | M43: 0 | N43: 0 | O43: 0 | P43: 0 | Q43: 0 | R43: 0 | S43: 0
A44: 28 | B44: 27 | C44: 2017-04-01 | D44: 0 | E44: 0 | F44: 0 | G44: 0 | H44: 780 | I44: 0 | J44: 0 | K44: 0 | M44: 0 | N44: 0 | O44: 0 | P44: 0 | Q44: 0 | R44: 0 | S44: 0
A45: 29 | B45: 28 | C45: 2017-05-01 | D45: 0 | E45: 0 | F45: 0 | G45: 0 | H45: 810 | I45: 0 | J45: 0 | K45: 0 | M45: 0 | N45: 0 | O45: 0 | P45: 0 | Q45: 0 | R45: 0 | S45: 0
A46: 30 | B46: 29 | C46: 2017-06-01 | D46: 0 | E46: 0 | F46: 0 | G46: 0 | H46: 840 | I46: 0 | J46: 0 | K46: 0 | M46: 0 | N46: 0 | O46: 0 | P46: 0 | Q46: 0 | R46: 0 | S46: 0
A47: 31 | B47: 30 | C47: 2017-07-01 | D47: 0 | E47: 0 | F47: 0 | G47: 0 | H47: 870 | I47: 0 | J47: 0 | K47: 0 | M47: 0 | N47: 0 | O47: 0 | P47: 0 | Q47: 0 | R47: 0 | S47: 0
A48: 32 | B48: 31 | C48: 2017-08-01 | D48: 0 | E48: 0 | F48: 0 | G48: 0 | H48: 900 | I48: 0 | J48: 0 | K48: 0 | M48: 0 | N48: 0 | O48: 0 | P48: 0 | Q48: 0 | R48: 0 | S48: 0
A49: 33 | B49: 32 | C49: 2017-09-01 | D49: =F49*(1+$C$4)^B49 -> 0 | E49: =D49-F49 -> 0 | F49: =IF(A49<=$C$3,$C$2/$C$3,0) -> 0 | G49: 0 | H49: =IF(C49<=$C$13,0,DAYS360($C$13,C49)) -> 930 | I49: =D49*((((1+$C$5)^H49) - 1)/((1+$C$5)^H49)) -> 0 | J49: =E49-I49 -> 0 | K49: =F49+J49 -> 0 | M49: =IF(C49>$C$13,0, $C$13-C49) -> 0 | N49: =IF(C49>$C$13,0,DAYS360(C49,$C$13)) -> 0 | O49: 0 | P49: =IF(N49>0,(D49 + O49)*$C$11,0) -> 0 | Q49: =IF(M49>0,((D49 + O49)*(1+$C$12)^M49)-(D49 + O49),0) -> 0 | R49: 0 | S49: =K49+O49+P49+Q49+R49 -> 0
A50: 34 | B50: 33 | C50: =DATE(YEAR(C49),MONTH(C49)+1,DAY(C49)) -> 2017-10-01 | D50: 0 | E50: 0 | F50: 0 | G50: 0 | H50: 960 | I50: 0 | J50: 0 | K50: 0 | M50: 0 | N50: 0 | O50: 0 | P50: 0 | Q50: 0 | R50: 0 | S50: 0
A51: 35 | B51: 34 | C51: 2017-11-01 | D51: 0 | E51: 0 | F51: 0 | G51: 0 | H51: 990 | I51: 0 | J51: 0 | K51: 0 | M51: 0 | N51: 0 | O51: 0 | P51: 0 | Q51: 0 | R51: 0 | S51: 0
A52: 36 | B52: 35 | C52: 2017-12-01 | D52: 0 | E52: 0 | F52: 0 | G52: 0 | H52: 1020 | I52: 0 | J52: 0 | K52: 0 | M52: 0 | N52: 0 | O52: 0 | P52: 0 | Q52: 0 | R52: 0 | S52: 0
A53: 37 | B53: 36 | C53: 2018-01-01 | D53: 0 | E53: 0 | F53: 0 | G53: 0 | H53: 1050 | I53: 0 | J53: 0 | K53: 0 | M53: 0 | N53: 0 | O53: 0 | P53: 0 | Q53: 0 | R53: 0 | S53: 0
A54: 38 | B54: 37 | C54: 2018-02-01 | D54: 0 | E54: 0 | F54: 0 | G54: 0 | H54: 1080 | I54: 0 | J54: 0 | K54: 0 | M54: 0 | N54: 0 | O54: 0 | P54: 0 | Q54: 0 | R54: 0 | S54: 0
A55: 39 | B55: 38 | C55: 2018-03-01 | D55: 0 | E55: 0 | F55: 0 | G55: 0 | H55: 1110 | I55: 0 | J55: 0 | K55: 0 | M55: 0 | N55: 0 | O55: 0 | P55: 0 | Q55: 0 | R55: 0 | S55: 0
A56: 40 | B56: 39 | C56: 2018-04-01 | D56: 0 | E56: 0 | F56: 0 | G56: 0 | H56: 1140 | I56: 0 | J56: 0 | K56: 0 | M56: 0 | N56: 0 | O56: 0 | P56: 0 | Q56: 0 | R56: 0 | S56: 0
A57: 41 | B57: 40 | C57: 2018-05-01 | D57: 0 | E57: 0 | F57: 0 | G57: 0 | H57: 1170 | I57: 0 | J57: 0 | K57: 0 | M57: 0 | N57: 0 | O57: 0 | P57: 0 | Q57: 0 | R57: 0 | S57: 0
A58: 42 | B58: 41 | C58: 2018-06-01 | D58: 0 | E58: 0 | F58: 0 | G58: 0 | H58: 1200 | I58: 0 | J58: 0 | K58: 0 | M58: 0 | N58: 0 | O58: 0 | P58: 0 | Q58: 0 | R58: 0 | S58: 0
A59: 43 | B59: 42 | C59: 2018-07-01 | D59: 0 | E59: 0 | F59: 0 | G59: 0 | H59: 1230 | I59: 0 | J59: 0 | K59: 0 | M59: 0 | N59: 0 | O59: 0 | P59: 0 | Q59: 0 | R59: 0 | S59: 0
A60: 44 | B60: 43 | C60: 2018-08-01 | D60: 0 | E60: 0 | F60: 0 | G60: 0 | H60: 1260 | I60: 0 | J60: 0 | K60: 0 | M60: 0 | N60: 0 | O60: 0 | P60: 0 | Q60: 0 | R60: 0 | S60: 0
A61: 45 | B61: 44 | C61: 2018-09-01 | D61: 0 | E61: 0 | F61: 0 | G61: 0 | H61: 1290 | I61: 0 | J61: 0 | K61: 0 | M61: 0 | N61: 0 | O61: 0 | P61: 0 | Q61: 0 | R61: 0 | S61: 0
A62: 46 | B62: 45 | C62: 2018-10-01 | D62: 0 | E62: 0 | F62: 0 | G62: 0 | H62: 1320 | I62: 0 | J62: 0 | K62: 0 | M62: 0 | N62: 0 | O62: 0 | P62: 0 | Q62: 0 | R62: 0 | S62: 0
A63: 47 | B63: 46 | C63: 2018-11-01 | D63: 0 | E63: 0 | F63: 0 | G63: 0 | H63: 1350 | I63: 0 | J63: 0 | K63: 0 | M63: 0 | N63: 0 | O63: 0 | P63: 0 | Q63: 0 | R63: 0 | S63: 0
A64: 48 | B64: 47 | C64: 2018-12-01 | D64: 0 | E64: 0 | F64: 0 | G64: 0 | H64: 1380 | I64: 0 | J64: 0 | K64: 0 | M64: 0 | N64: 0 | O64: 0 | P64: 0 | Q64: 0 | R64: 0 | S64: 0
A65: 49 | B65: 48 | C65: 2019-01-01 | D65: 0 | E65: 0 | F65: 0 | G65: 0 | H65: 1410 | I65: 0 | J65: 0 | K65: 0 | M65: 0 | N65: 0 | O65: 0 | P65: 0 | Q65: 0 | R65: 0 | S65: 0
A66: 50 | B66: 49 | C66: 2019-02-01 | D66: 0 | E66: 0 | F66: 0 | G66: 0 | H66: 1440 | I66: 0 | J66: 0 | K66: 0 | M66: 0 | N66: 0 | O66: 0 | P66: 0 | Q66: 0 | R66: 0 | S66: 0
A67: 51 | B67: 50 | C67: 2019-03-01 | D67: 0 | E67: 0 | F67: 0 | G67: 0 | H67: 1470 | I67: 0 | J67: 0 | K67: 0 | M67: 0 | N67: 0 | O67: 0 | P67: 0 | Q67: 0 | R67: 0 | S67: 0
A68: 52 | B68: 51 | C68: 2019-04-01 | D68: 0 | E68: 0 | F68: 0 | G68: 0 | H68: 1500 | I68: 0 | J68: 0 | K68: 0 | M68: 0 | N68: 0 | O68: 0 | P68: 0 | Q68: 0 | R68: 0 | S68: 0
A69: 53 | B69: 52 | C69: 2019-05-01 | D69: 0 | E69: 0 | F69: 0 | G69: 0 | H69: 1530 | I69: 0 | J69: 0 | K69: 0 | M69: 0 | N69: 0 | O69: 0 | P69: 0 | Q69: 0 | R69: 0 | S69: 0
A70: 54 | B70: 53 | C70: 2019-06-01 | D70: 0 | E70: 0 | F70: 0 | G70: 0 | H70: 1560 | I70: 0 | J70: 0 | K70: 0 | M70: 0 | N70: 0 | O70: 0 | P70: 0 | Q70: 0 | R70: 0 | S70: 0
A71: 55 | B71: 54 | C71: 2019-07-01 | D71: 0 | E71: 0 | F71: 0 | G71: 0 | H71: 1590 | I71: 0 | J71: 0 | K71: 0 | M71: 0 | N71: 0 | O71: 0 | P71: 0 | Q71: 0 | R71: 0 | S71: 0
A72: 56 | B72: 55 | C72: 2019-08-01 | D72: 0 | E72: 0 | F72: 0 | G72: 0 | H72: 1620 | I72: 0 | J72: 0 | K72: 0 | M72: 0 | N72: 0 | O72: 0 | P72: 0 | Q72: 0 | R72: 0 | S72: 0
A73: 57 | B73: 56 | C73: 2019-09-01 | D73: 0 | E73: 0 | F73: 0 | G73: 0 | H73: 1650 | I73: 0 | J73: 0 | K73: 0 | M73: 0 | N73: 0 | O73: 0 | P73: 0 | Q73: 0 | R73: 0 | S73: 0
A74: 58 | B74: 57 | C74: 2019-10-01 | D74: 0 | E74: 0 | F74: 0 | G74: 0 | H74: 1680 | I74: 0 | J74: 0 | K74: 0 | M74: 0 | N74: 0 | O74: 0 | P74: 0 | Q74: 0 | R74: 0 | S74: 0
A75: 59 | B75: 58 | C75: 2019-11-01 | D75: 0 | E75: 0 | F75: 0 | G75: 0 | H75: 1710 | I75: 0 | J75: 0 | K75: 0 | M75: 0 | N75: 0 | O75: 0 | P75: 0 | Q75: 0 | R75: 0 | S75: 0
A76: 60 | B76: 59 | C76: 2019-12-01 | D76: 0 | E76: 0 | F76: 0 | G76: 0 | H76: 1740 | I76: 0 | J76: 0 | K76: 0 | M76: 0 | N76: 0 | O76: 0 | P76: 0 | Q76: 0 | R76: 0 | S76: 0
A77: 61 | B77: 60 | C77: 2020-01-01 | D77: 0 | E77: 0 | F77: 0 | G77: 0 | H77: 1770 | I77: 0 | J77: 0 | K77: 0 | M77: 0 | N77: 0 | O77: 0 | P77: 0 | Q77: 0 | R77: 0 | S77: 0
A78: 62 | B78: 61 | C78: 2020-02-01 | D78: 0 | E78: 0 | F78: 0 | G78: 0 | H78: 1800 | I78: 0 | J78: 0 | K78: 0 | M78: 0 | N78: 0 | O78: 0 | P78: 0 | Q78: 0 | R78: 0 | S78: 0
A79: 63 | B79: 62 | C79: 2020-03-01 | D79: 0 | E79: 0 | F79: 0 | G79: 0 | H79: 1830 | I79: 0 | J79: 0 | K79: 0 | M79: 0 | N79: 0 | O79: 0 | P79: 0 | Q79: 0 | R79: 0 | S79: 0
A80: 64 | B80: 63 | C80: 2020-04-01 | D80: 0 | E80: 0 | F80: 0 | G80: 0 | H80: 1860 | I80: 0 | J80: 0 | K80: 0 | M80: 0 | N80: 0 | O80: 0 | P80: 0 | Q80: 0 | R80: 0 | S80: 0
A81: 65 | B81: 64 | C81: 2020-05-01 | D81: =F81*(1+$C$4)^B81 -> 0 | E81: =D81-F81 -> 0 | F81: =IF(A81<=$C$3,$C$2/$C$3,0) -> 0 | G81: 0 | H81: =IF(C81<=$C$13,0,DAYS360($C$13,C81)) -> 1890 | I81: =D81*((((1+$C$5)^H81) - 1)/((1+$C$5)^H81)) -> 0 | J81: =E81-I81 -> 0 | K81: =F81+J81 -> 0 | M81: =IF(C81>$C$13,0, $C$13-C81) -> 0 | N81: =IF(C81>$C$13,0,DAYS360(C81,$C$13)) -> 0 | O81: 0 | P81: =IF(N81>0,(D81 + O81)*$C$11,0) -> 0 | Q81: =IF(M81>0,((D81 + O81)*(1+$C$12)^M81)-(D81 + O81),0) -> 0 | R81: 0 | S81: =K81+O81+P81+Q81+R81 -> 0
A82: 66 | B82: 65 | C82: =DATE(YEAR(C81),MONTH(C81)+1,DAY(C81)) -> 2020-06-01 | D82: 0 | E82: 0 | F82: 0 | G82: =G81-F82 -> 0 | H82: 1920 | I82: 0 | J82: 0 | K82: 0 | M82: 0 | N82: 0 | O82: 0 | P82: 0 | Q82: 0 | R82: 0 | S82: 0
A83: 67 | B83: =B82+1 -> 66 | C83: 2020-07-01 | D83: 0 | E83: 0 | F83: 0 | G83: 0 | H83: 1950 | I83: 0 | J83: 0 | K83: 0 | M83: 0 | N83: 0 | O83: 0 | P83: 0 | Q83: 0 | R83: 0 | S83: 0
A84: 68 | B84: 67 | C84: 2020-08-01 | D84: 0 | E84: 0 | F84: 0 | G84: 0 | H84: 1980 | I84: 0 | J84: 0 | K84: 0 | M84: 0 | N84: 0 | O84: 0 | P84: 0 | Q84: 0 | R84: 0 | S84: 0
A85: 69 | B85: 68 | C85: 2020-09-01 | D85: 0 | E85: 0 | F85: 0 | G85: 0 | H85: 2010 | I85: 0 | J85: 0 | K85: 0 | M85: 0 | N85: 0 | O85: 0 | P85: 0 | Q85: 0 | R85: 0 | S85: 0
A86: 70 | B86: 69 | C86: 2020-10-01 | D86: 0 | E86: 0 | F86: 0 | G86: 0 | H86: 2040 | I86: 0 | J86: 0 | K86: 0 | M86: 0 | N86: 0 | O86: 0 | P86: 0 | Q86: 0 | R86: 0 | S86: 0
A87: 71 | B87: 70 | C87: 2020-11-01 | D87: 0 | E87: 0 | F87: 0 | G87: 0 | H87: 2070 | I87: 0 | J87: 0 | K87: 0 | M87: 0 | N87: 0 | O87: 0 | P87: 0 | Q87: 0 | R87: 0 | S87: 0
A88: 72 | B88: 71 | C88: 2020-12-01 | D88: 0 | E88: 0 | F88: 0 | G88: 0 | H88: 2100 | I88: 0 | J88: 0 | K88: 0 | M88: 0 | N88: 0 | O88: 0 | P88: 0 | Q88: 0 | R88: 0 | S88: 0
D89: =SUM(D17:D88) -> 618591.7443 | E89: =SUM(E17:E88) -> 118591.7443 | F89: =SUM(F17:F88) -> 500000 | G89: 0

Sheet Gradiente_2_Juros
B1: Parcelamento | H1: Data base de resíduo
B2: Montante (PV) | C2: 4541.93 | D2: =1250*D3 -> 131250 | E2: Dt. Parcela | F2: 2004-11-01 | H2: 1999-08-01 | O2: Q | P2: PV / n
B3: Parcelas (n) | C3: 1 | D3: 105 | E3: Principal | F3: =(C2 + H15) /C3 -> 4541.93 | O3: SD | P3: PV - k * Q
B4: Juros | K4: Diferença de datas | O4: INTk | P4: Q * i ^ k
C5: Data 1° juros | D5: (i) Taxa | E5: A cada X meses | F5: (i) Taxa AM | H5: (i) Taxa AD | I5: Juros Anuais | K5: 1° juros | L5: 2°juros | M5: =INT(DAYS360(DATE(YEAR($C$6),MONTH($C$6),1),DATE(YEAR($C$7),MONTH($C$7),1))/30) -> 0 | O5: PMTk | P5: Q * (1 + i) ^ k
B6: 1° juros | C6: 1999-11-01 | D6: 0.12808 | E6: 12 | F6: =((1+D6)^(1/IF(E6>0,E6,1)))-1 -> 0.01009369046 | G6: =(DATE(YEAR(C6),MONTH(C6)+1,1))-1 -> 1999-11-30 | H6: =((1+F6)^(1/30))-1 -> 0.0003348256876 | I6: N | K6: 1° juros | L6: Vencimento | M6: =INT(DAYS360(DATE(YEAR($C$6),MONTH($C$6),1),DATE(YEAR($F$2),MONTH($F$2),1))/30) -> 60
B7: 2° juros | C7: 1999-11-01 | D7: 0.12808 | E7: =E6 -> 12 | F7: =((1+D7)^(1/IF(E7>0,E7,1)))-1 -> 0.01009369046 | H7: =((1+F7)^(1/30))-1 -> 0.0003348256876 | K7: 2°juros | L7: Vencimento | M7: =INT(DAYS360(DATE(YEAR($C$7),MONTH($C$7),1),DATE(YEAR($F$2),MONTH($F$2),1))/30) -> 60 | O7: Juros no Mês antes da 1ª parcela | R7: =C6<F2 -> TRUE
B8: Dt. Parcela >= 1° juros | F8: =F2>=C6 -> TRUE | O8: Ano/mês vencimento | R8: =YEAR(F2)*100 + MONTH(F2) -> 200411
B9: Dt. Parcela >= 2° juros | F9: =F2>=C7 -> TRUE | K9: Dt Ini. Correção | M9: 2009-04-01 | O9: Ano/mês juros | R9: =YEAR(C6)*100 + MONTH(C6) -> 199911
B10: Recalculando o montante pela 1ª taxa de juros: | E10: =F6 -> 0.01009369046 | H10: Pro rata - do PV¹ | K10: Dt. Fim Correção | M10: 2011-10-01 | O10: Juros em mês anterior da 1ª Parcela | R10: =R9<R8 -> TRUE
B11: Qtde meses com o 1° juros | E11: =IF(AND(F8,F9),M5,IF(F8,M6,0)) -> 0 | H11: n | K11: % Multa | M11: 0 | O11: Dias pro rata | P11: ínicio juros | R11: =IF(R7,C6,0) -> 1999-11-01
B12: Novo montante (PV¹) | E12: =C2*(1+E10)^E11 -> 4541.93 | H12: Dias pro-rata | K12: % Juros Atraso | M12: 0.00033 | P12: fim juros | R12: =IF(R7,IF(R10,G6,F2),0) -> 1999-11-30
B13: Recalculando o montante pela 2ª taxa de juros: | E13: =F7 -> 0.01009369046 | H13: =IF(H11="S",R13,0) -> 0 | K13: Data de recebimento | M13: 2017-03-16 | P13: dias pro-rata | R13: =R12-R11 -> 29
B14: Qtde meses com o 1° juros | E14: =IF(F9,M7,0) -> 60 | H14: PV com juros pro rata
B15: Novo montante (PV¹) | E15: =(E12*(1+E13)^E14)+H15 -> 8297.360022 | H15: =IF(H11="S",C2*(1+H6)^H13,C2)-C2 -> 0
A17: Ano | B17: Ano | C17: Parcela | D17: 1° juros | E17: 2° juros | F17: Vencimento | G17: Vencimento sempre no dia 01 | H17: Prestação | I17: Juros | J17: Amort. (Q) | K17: Saldo Dev | L17: Antecipando | M17: Dias Adiant. 2º juros | N17: R$ desc. 2º Juros | O17: Dias adiant. 1º juros | P17: R$ desc. 1º Juros | Q17: Tot. desc Antec. | R17: Valor do juros com desconto | S17: Valor da Parcela com Desconto | U17: Dias Atraso | V17: Dias Atraso (360) | W17: Multa Atraso | X17: Juros Atraso | Y17: Valor final
D18: 0 | E18: 0 | K18: =C2+H15 -> 4541.93
A19: =INT(DAYS360(DATE(YEAR($H$2),MONTH($H$2)+1,DAY($H$2)),DATE(YEAR($F19),MONTH($F19),DAY($F19)))/360) -> 5 | B19: =IF(A19<=0,0,A19) -> 5 | C19: 1 | D19: =IF($I$6="N",IF(G19>=$C$7,DAYS360($C$6,$C$7)/30,DAYS360($C$6,G19)/30),IF(B19=0,0,IF(B19=B18,D18,IF(G19>=$C$7,DAYS360($C$6,$C$7)/30,DAYS360($C$6,G19)/30)))) -> 0 | E19: =IF($I$6="N",IF(G19>=$C$7,DAYS360($C$7,G19)/30,0),IF(B19=0,0,IF(B19=B18,E18,IF(G19>=$C$7,DAYS360($C$7,G19)/30,0)))) -> 60 | F19: =F2 -> 2004-11-01 | G19: =DATE(YEAR(F19),MONTH(F19),1) -> 2004-11-01 | H19: =(J19*(1+$D$6)^D19)*(1+$D$7)^E19 -> 6275298.827 | I19: =H19-J19 -> 6270756.897 | J19: =IF(C19<=$C$3,$F$3,0) -> 4541.93 | K19: =K18-J19 -> 0 | L19: =IF($M$13<F19,TRUE,FALSE) -> FALSE | M19: =IF(L19,IF(F19>$C$7,DAYS360(IF($M$13>=$C$7,$M$13,$C$7),F19,FALSE),0),0) -> 0 | N19: =H19*((((1+$H$7)^M19) - 1)/((1+$H$7)^M19)) -> 0 | O19: =IF(AND(L19,$M$13<=$C$7),DAYS360($M$13,IF(F19>=$C$7,$C$7,F19)),0) -> 0 | P19: =(H19-N19)*((((1+$H$6)^O19) - 1)/((1+$H$6)^O19)) -> 0 | Q19: =N19+P19 -> 0 | R19: =I19-Q19 -> 6270756.897 | S19: =J19+R19 -> 6275298.827 | U19: =IF(F19>$M$13,0, $M$13-F19) -> 4518 | V19: =IF(F19>$M$13,0,DAYS360(F19,$M$13)) -> 4455 | W19: =IF(V19>0,H19*$M$11,0) -> 0 | X19: =IF(U19>0,(H19*(1+$M$12)^U19)-H19,0) -> 21588133.36 | Y19: =S19+W19+X19 -> 27863432.18
A20: =INT(DAYS360(DATE(YEAR($H$2),MONTH($H$2)+1,DAY($H$2)),DATE(YEAR($F20),MONTH($F20),DAY($F20)))/360) -> 6 | B20: 6 | C20: 2 | D20: 0 | E20: 72 | F20: =DATE(YEAR(F19),MONTH(F19)+$E$6,DAY(F19)) -> 2005-11-01 | G20: 2005-11-01 | H20: 0 | I20: 0 | J20: 0 | K20: =K19-J20 -> 0 | L20: FALSE | M20: 0 | N20: 0 | O20: 0 | P20: 0 | Q20: 0 | R20: 0 | S20: 0 | U20: 4153 | V20: 4095 | W20: 0 | X20: 0 | Y20: 0
A21: 7 | B21: 7 | C21: 3 | D21: 0 | E21: 84 | F21: =DATE(YEAR(F20),MONTH(F20)+$E$6,DAY(F20)) -> 2006-11-01 | G21: 2006-11-01 | H21: 0 | I21: 0 | J21: 0 | K21: 0 | L21: FALSE | M21: 0 | N21: 0 | O21: 0 | P21: 0 | Q21: 0 | R21: 0 | S21: 0 | U21: 3788 | V21: 3735 | W21: 0 | X21: 0 | Y21: 0
A22: 8 | B22: 8 | C22: 4 | D22: 0 | E22: 96 | F22: =DATE(YEAR(F21),MONTH(F21)+$E$6,DAY(F21)) -> 2007-11-01 | G22: 2007-11-01 | H22: 0 | I22: 0 | J22: 0 | K22: 0 | L22: FALSE | M22: 0 | N22: 0 | O22: 0 | P22: 0 | Q22: 0 | R22: 0 | S22: 0 | U22: 3423 | V22: 3375 | W22: 0 | X22: 0 | Y22: 0
A23: 9 | B23: 9 | C23: 5 | D23: 0 | E23: 108 | F23: 2008-11-01 | G23: 2008-11-01 | H23: 0 | I23: 0 | J23: 0 | K23: 0 | L23: FALSE | M23: 0 | N23: 0 | O23: 0 | P23: 0 | Q23: 0 | R23: 0 | S23: 0 | U23: 3057 | V23: 3015 | W23: 0 | X23: 0 | Y23: 0
A24: 10 | B24: 10 | C24: 6 | D24: 0 | E24: 120 | F24: 2009-11-01 | G24: 2009-11-01 | H24: 0 | I24: 0 | J24: 0 | K24: 0 | L24: FALSE | M24: 0 | N24: 0 | O24: 0 | P24: 0 | Q24: 0 | R24: 0 | S24: 0 | U24: 2692 | V24: 2655 | W24: 0 | X24: 0 | Y24: 0
A25: 11 | B25: 11 | C25: 7 | D25: 0 | E25: 132 | F25: 2010-11-01 | G25: 2010-11-01 | H25: 0 | I25: 0 | J25: 0 | K25: 0 | L25: FALSE | M25: 0 | N25: 0 | O25: 0 | P25: 0 | Q25: 0 | R25: 0 | S25: 0 | U25: 2327 | V25: 2295 | W25: 0 | X25: 0 | Y25: 0
A26: 12 | B26: 12 | C26: 8 | D26: 0 | E26: 144 | F26: 2011-11-01 | G26: 2011-11-01 | H26: 0 | I26: 0 | J26: 0 | K26: 0 | L26: FALSE | M26: 0 | N26: 0 | O26: 0 | P26: 0 | Q26: 0 | R26: 0 | S26: 0 | U26: 1962 | V26: 1935 | W26: 0 | X26: 0 | Y26: 0
A27: 13 | B27: 13 | C27: 9 | D27: 0 | E27: 156 | F27: 2012-11-01 | G27: 2012-11-01 | H27: 0 | I27: 0 | J27: 0 | K27: 0 | L27: FALSE | M27: 0 | N27: 0 | O27: 0 | P27: 0 | Q27: 0 | R27: 0 | S27: 0 | U27: 1596 | V27: 1575 | W27: 0 | X27: 0 | Y27: 0
A28: 14 | B28: 14 | C28: 10 | D28: 0 | E28: 168 | F28: 2013-11-01 | G28: 2013-11-01 | H28: 0 | I28: 0 | J28: 0 | K28: 0 | L28: FALSE | M28: 0 | N28: 0 | O28: 0 | P28: 0 | Q28: 0 | R28: 0 | S28: 0 | U28: 1231 | V28: 1215 | W28: 0 | X28: 0 | Y28: 0
A29: 15 | B29: 15 | C29: 11 | D29: 0 | E29: 180 | F29: 2014-11-01 | G29: 2014-11-01 | H29: 0 | I29: 0 | J29: 0 | K29: 0 | L29: FALSE | M29: 0 | N29: 0 | O29: 0 | P29: 0 | Q29: 0 | R29: 0 | S29: 0 | U29: 866 | V29: 855 | W29: 0 | X29: 0 | Y29: 0
A30: 16 | B30: 16 | C30: 12 | D30: 0 | E30: 192 | F30: 2015-11-01 | G30: 2015-11-01 | H30: 0 | I30: 0 | J30: 0 | K30: 0 | L30: FALSE | M30: 0 | N30: 0 | O30: 0 | P30: 0 | Q30: 0 | R30: 0 | S30: 0 | U30: 501 | V30: 495 | W30: 0 | X30: 0 | Y30: 0
A31: 17 | B31: 17 | C31: 13 | D31: 0 | E31: 204 | F31: 2016-11-01 | G31: 2016-11-01 | H31: 0 | I31: 0 | J31: 0 | K31: 0 | L31: FALSE | M31: 0 | N31: 0 | O31: 0 | P31: 0 | Q31: 0 | R31: 0 | S31: 0 | U31: 135 | V31: 135 | W31: 0 | X31: 0 | Y31: 0
A32: 18 | B32: 18 | C32: 14 | D32: 0 | E32: 216 | F32: 2017-11-01 | G32: 2017-11-01 | H32: 0 | I32: 0 | J32: 0 | K32: 0 | L32: TRUE | M32: 225 | N32: 0 | O32: 0 | P32: 0 | Q32: 0 | R32: 0 | S32: 0 | U32: 0 | V32: 0 | W32: 0 | X32: 0 | Y32: 0
A33: 19 | B33: 19 | C33: 15 | D33: 0 | E33: 228 | F33: 2018-11-01 | G33: 2018-11-01 | H33: 0 | I33: 0 | J33: 0 | K33: 0 | L33: TRUE | M33: 585 | N33: 0 | O33: 0 | P33: 0 | Q33: 0 | R33: 0 | S33: 0 | U33: 0 | V33: 0 | W33: 0 | X33: 0 | Y33: 0
A34: 20 | B34: 20 | C34: 16 | D34: 0 | E34: 240 | F34: 2019-11-01 | G34: 2019-11-01 | H34: 0 | I34: 0 | J34: 0 | K34: 0 | L34: TRUE | M34: 945 | N34: 0 | O34: 0 | P34: 0 | Q34: 0 | R34: 0 | S34: 0 | U34: 0 | V34: 0 | W34: 0 | X34: 0 | Y34: 0
A35: 21 | B35: 21 | C35: 17 | D35: 0 | E35: 252 | F35: 2020-11-01 | G35: 2020-11-01 | H35: 0 | I35: 0 | J35: 0 | K35: 0 | L35: TRUE | M35: 1305 | N35: 0 | O35: 0 | P35: 0 | Q35: 0 | R35: 0 | S35: 0 | U35: 0 | V35: 0 | W35: 0 | X35: 0 | Y35: 0
A36: 22 | B36: 22 | C36: 18 | D36: 0 | E36: 264 | F36: 2021-11-01 | G36: 2021-11-01 | H36: 0 | I36: 0 | J36: 0 | K36: 0 | L36: TRUE | M36: 1665 | N36: 0 | O36: 0 | P36: 0 | Q36: 0 | R36: 0 | S36: 0 | U36: 0 | V36: 0 | W36: 0 | X36: 0 | Y36: 0
A37: 23 | B37: 23 | C37: 19 | D37: 0 | E37: 276 | F37: 2022-11-01 | G37: 2022-11-01 | H37: 0 | I37: 0 | J37: 0 | K37: 0 | L37: TRUE | M37: 2025 | N37: 0 | O37: 0 | P37: 0 | Q37: 0 | R37: 0 | S37: 0 | U37: 0 | V37: 0 | W37: 0 | X37: 0 | Y37: 0
A38: 24 | B38: 24 | C38: 20 | D38: 0 | E38: 288 | F38: 2023-11-01 | G38: 2023-11-01 | H38: 0 | I38: 0 | J38: 0 | K38: 0 | L38: TRUE | M38: 2385 | N38: 0 | O38: 0 | P38: 0 | Q38: 0 | R38: 0 | S38: 0 | U38: 0 | V38: 0 | W38: 0 | X38: 0 | Y38: 0
A39: 25 | B39: 25 | C39: 21 | D39: 0 | E39: 300 | F39: 2024-11-01 | G39: 2024-11-01 | H39: 0 | I39: 0 | J39: 0 | K39: 0 | L39: TRUE | M39: 2745 | N39: 0 | O39: 0 | P39: 0 | Q39: 0 | R39: 0 | S39: 0 | U39: 0 | V39: 0 | W39: 0 | X39: 0 | Y39: 0
A40: 26 | B40: 26 | C40: 22 | D40: 0 | E40: 312 | F40: 2025-11-01 | G40: 2025-11-01 | H40: 0 | I40: 0 | J40: 0 | K40: 0 | L40: TRUE | M40: 3105 | N40: 0 | O40: 0 | P40: 0 | Q40: 0 | R40: 0 | S40: 0 | U40: 0 | V40: 0 | W40: 0 | X40: 0 | Y40: 0
A41: 27 | B41: 27 | C41: 23 | D41: 0 | E41: 324 | F41: 2026-11-01 | G41: 2026-11-01 | H41: 0 | I41: 0 | J41: 0 | K41: 0 | L41: TRUE | M41: 3465 | N41: 0 | O41: 0 | P41: 0 | Q41: 0 | R41: 0 | S41: 0 | U41: 0 | V41: 0 | W41: 0 | X41: 0 | Y41: 0
A42: 28 | B42: 28 | C42: 24 | D42: 0 | E42: 336 | F42: 2027-11-01 | G42: 2027-11-01 | H42: 0 | I42: 0 | J42: 0 | K42: 0 | L42: TRUE | M42: 3825 | N42: 0 | O42: 0 | P42: 0 | Q42: 0 | R42: 0 | S42: 0 | U42: 0 | V42: 0 | W42: 0 | X42: 0 | Y42: 0
A43: 29 | B43: 29 | C43: 25 | D43: 0 | E43: 348 | F43: 2028-11-01 | G43: 2028-11-01 | H43: 0 | I43: 0 | J43: 0 | K43: 0 | L43: TRUE | M43: 4185 | N43: 0 | O43: 0 | P43: 0 | Q43: 0 | R43: 0 | S43: 0 | U43: 0 | V43: 0 | W43: 0 | X43: 0 | Y43: 0
A44: 30 | B44: 30 | C44: 26 | D44: 0 | E44: 360 | F44: 2029-11-01 | G44: 2029-11-01 | H44: 0 | I44: 0 | J44: 0 | K44: 0 | L44: TRUE | M44: 4545 | N44: 0 | O44: 0 | P44: 0 | Q44: 0 | R44: 0 | S44: 0 | U44: 0 | V44: 0 | W44: 0 | X44: 0 | Y44: 0
A45: 31 | B45: 31 | C45: 27 | D45: 0 | E45: 372 | F45: 2030-11-01 | G45: 2030-11-01 | H45: 0 | I45: 0 | J45: 0 | K45: 0 | L45: TRUE | M45: 4905 | N45: 0 | O45: 0 | P45: 0 | Q45: 0 | R45: 0 | S45: 0 | U45: 0 | V45: 0 | W45: 0 | X45: 0 | Y45: 0
A46: 32 | B46: 32 | C46: 28 | D46: 0 | E46: 384 | F46: 2031-11-01 | G46: 2031-11-01 | H46: 0 | I46: 0 | J46: 0 | K46: 0 | L46: TRUE | M46: 5265 | N46: 0 | O46: 0 | P46: 0 | Q46: 0 | R46: 0 | S46: 0 | U46: 0 | V46: 0 | W46: 0 | X46: 0 | Y46: 0
A47: 33 | B47: 33 | C47: 29 | D47: 0 | E47: 396 | F47: 2032-11-01 | G47: 2032-11-01 | H47: 0 | I47: 0 | J47: 0 | K47: 0 | L47: TRUE | M47: 5625 | N47: 0 | O47: 0 | P47: 0 | Q47: 0 | R47: 0 | S47: 0 | U47: 0 | V47: 0 | W47: 0 | X47: 0 | Y47: 0
A48: 34 | B48: 34 | C48: 30 | D48: 0 | E48: 408 | F48: 2033-11-01 | G48: 2033-11-01 | H48: 0 | I48: 0 | J48: 0 | K48: 0 | L48: TRUE | M48: 5985 | N48: 0 | O48: 0 | P48: 0 | Q48: 0 | R48: 0 | S48: 0 | U48: 0 | V48: 0 | W48: 0 | X48: 0 | Y48: 0
A49: 35 | B49: 35 | C49: 31 | D49: 0 | E49: 420 | F49: 2034-11-01 | G49: 2034-11-01 | H49: 0 | I49: 0 | J49: 0 | K49: 0 | L49: TRUE | M49: 6345 | N49: 0 | O49: 0 | P49: 0 | Q49: 0 | R49: 0 | S49: 0 | U49: 0 | V49: 0 | W49: 0 | X49: 0 | Y49: 0
A50: 36 | B50: 36 | C50: 32 | D50: 0 | E50: 432 | F50: 2035-11-01 | G50: 2035-11-01 | H50: 0 | I50: 0 | J50: 0 | K50: 0 | L50: TRUE | M50: 6705 | N50: 0 | O50: 0 | P50: 0 | Q50: 0 | R50: 0 | S50: 0 | U50: 0 | V50: 0 | W50: 0 | X50: 0 | Y50: 0
A51: 37 | B51: =IF(A51<=0,0,A51) -> 37 | C51: 33 | D51: =IF($I$6="N",IF(G51>=$C$7,DAYS360($C$6,$C$7)/30,DAYS360($C$6,G51)/30),IF(B51=0,0,IF(B51=B50,D50,IF(G51>=$C$7,DAYS360($C$6,$C$7)/30,DAYS360($C$6,G51)/30)))) -> 0 | E51: =IF($I$6="N",IF(G51>=$C$7,DAYS360($C$7,G51)/30,0),IF(B51=0,0,IF(B51=B50,E50,IF(G51>=$C$7,DAYS360($C$7,G51)/30,0)))) -> 444 | F51: 2036-11-01 | G51: =DATE(YEAR(F51),MONTH(F51),1) -> 2036-11-01 | H51: =(J51*(1+$D$6)^D51)*(1+$D$7)^E51 -> 0 | I51: 0 | J51: =IF(C51<=$C$3,$F$3,0) -> 0 | K51: 0 | L51: =IF($M$13<F51,TRUE,FALSE) -> TRUE | M51: =IF(L51,IF(F51>$C$7,DAYS360(IF($M$13>=$C$7,$M$13,$C$7),F51,FALSE),0),0) -> 7065 | N51: =H51*((((1+$H$7)^M51) - 1)/((1+$H$7)^M51)) -> 0 | O51: =IF(AND(L51,$M$13<=$C$7),DAYS360($M$13,IF(F51>=$C$7,$C$7,F51)),0) -> 0 | P51: =(H51-N51)*((((1+$H$6)^O51) - 1)/((1+$H$6)^O51)) -> 0 | Q51: =N51+P51 -> 0 | R51: =I51-Q51 -> 0 | S51: =J51+R51 -> 0 | U51: =IF(F51>$M$13,0, $M$13-F51) -> 0 | V51: =IF(F51>$M$13,0,DAYS360(F51,$M$13)) -> 0 | W51: =IF(V51>0,H51*$M$11,0) -> 0 | X51: =IF(U51>0,(H51*(1+$M$12)^U51)-H51,0) -> 0 | Y51: =S51+W51+X51 -> 0
A52: 38 | B52: 38 | C52: 34 | D52: 0 | E52: 456 | F52: 2037-11-01 | G52: 2037-11-01 | H52: 0 | I52: 0 | J52: 0 | K52: 0 | L52: TRUE | M52: 7425 | N52: 0 | O52: 0 | P52: 0 | Q52: 0 | R52: 0 | S52: 0 | U52: 0 | V52: 0 | W52: 0 | X52: 0 | Y52: 0
A53: 39 | B53: 39 | C53: 35 | D53: 0 | E53: 468 | F53: 2038-11-01 | G53: 2038-11-01 | H53: 0 | I53: 0 | J53: 0 | K53: 0 | L53: TRUE | M53: 7785 | N53: 0 | O53: 0 | P53: 0 | Q53: 0 | R53: 0 | S53: 0 | U53: 0 | V53: 0 | W53: 0 | X53: 0 | Y53: 0
A54: 40 | B54: 40 | C54: 36 | D54: 0 | E54: 480 | F54: 2039-11-01 | G54: 2039-11-01 | H54: 0 | I54: 0 | J54: 0 | K54: 0 | L54: TRUE | M54: 8145 | N54: 0 | O54: 0 | P54: 0 | Q54: 0 | R54: 0 | S54: 0 | U54: 0 | V54: 0 | W54: 0 | X54: 0 | Y54: 0
A55: 41 | B55: 41 | C55: 37 | D55: 0 | E55: 492 | F55: 2040-11-01 | G55: 2040-11-01 | H55: 0 | I55: 0 | J55: 0 | K55: 0 | L55: TRUE | M55: 8505 | N55: 0 | O55: 0 | P55: 0 | Q55: 0 | R55: 0 | S55: 0 | U55: 0 | V55: 0 | W55: 0 | X55: 0 | Y55: 0
A56: 42 | B56: 42 | C56: 38 | D56: 0 | E56: 504 | F56: 2041-11-01 | G56: 2041-11-01 | H56: 0 | I56: 0 | J56: 0 | K56: 0 | L56: TRUE | M56: 8865 | N56: 0 | O56: 0 | P56: 0 | Q56: 0 | R56: 0 | S56: 0 | U56: 0 | V56: 0 | W56: 0 | X56: 0 | Y56: 0
A57: 43 | B57: 43 | C57: 39 | D57: 0 | E57: 516 | F57: 2042-11-01 | G57: 2042-11-01 | H57: 0 | I57: 0 | J57: 0 | K57: 0 | L57: TRUE | M57: 9225 | N57: 0 | O57: 0 | P57: 0 | Q57: 0 | R57: 0 | S57: 0 | U57: 0 | V57: 0 | W57: 0 | X57: 0 | Y57: 0
A58: 44 | B58: 44 | C58: 40 | D58: 0 | E58: 528 | F58: 2043-11-01 | G58: 2043-11-01 | H58: 0 | I58: 0 | J58: 0 | K58: 0 | L58: TRUE | M58: 9585 | N58: 0 | O58: 0 | P58: 0 | Q58: 0 | R58: 0 | S58: 0 | U58: 0 | V58: 0 | W58: 0 | X58: 0 | Y58: 0
A59: 45 | B59: 45 | C59: 41 | D59: 0 | E59: 540 | F59: 2044-11-01 | G59: 2044-11-01 | H59: 0 | I59: 0 | J59: 0 | K59: 0 | L59: TRUE | M59: 9945 | N59: 0 | O59: 0 | P59: 0 | Q59: 0 | R59: 0 | S59: 0 | U59: 0 | V59: 0 | W59: 0 | X59: 0 | Y59: 0
A60: 46 | B60: 46 | C60: 42 | D60: 0 | E60: 552 | F60: 2045-11-01 | G60: 2045-11-01 | H60: 0 | I60: 0 | J60: 0 | K60: 0 | L60: TRUE | M60: 10305 | N60: 0 | O60: 0 | P60: 0 | Q60: 0 | R60: 0 | S60: 0 | U60: 0 | V60: 0 | W60: 0 | X60: 0 | Y60: 0
A61: 47 | B61: 47 | C61: 43 | D61: 0 | E61: 564 | F61: 2046-11-01 | G61: 2046-11-01 | H61: 0 | I61: 0 | J61: 0 | K61: 0 | L61: TRUE | M61: 10665 | N61: 0 | O61: 0 | P61: 0 | Q61: 0 | R61: 0 | S61: 0 | U61: 0 | V61: 0 | W61: 0 | X61: 0 | Y61: 0
A62: 48 | B62: 48 | C62: 44 | D62: 0 | E62: 576 | F62: 2047-11-01 | G62: 2047-11-01 | H62: 0 | I62: 0 | J62: 0 | K62: 0 | L62: TRUE | M62: 11025 | N62: 0 | O62: 0 | P62: 0 | Q62: 0 | R62: 0 | S62: 0 | U62: 0 | V62: 0 | W62: 0 | X62: 0 | Y62: 0
A63: 49 | B63: 49 | C63: 45 | D63: 0 | E63: 588 | F63: 2048-11-01 | G63: 2048-11-01 | H63: 0 | I63: 0 | J63: 0 | K63: 0 | L63: TRUE | M63: 11385 | N63: 0 | O63: 0 | P63: 0 | Q63: 0 | R63: 0 | S63: 0 | U63: 0 | V63: 0 | W63: 0 | X63: 0 | Y63: 0
A64: 50 | B64: 50 | C64: 46 | D64: 0 | E64: 600 | F64: 2049-11-01 | G64: 2049-11-01 | H64: 0 | I64: 0 | J64: 0 | K64: 0 | L64: TRUE | M64: 11745 | N64: 0 | O64: 0 | P64: 0 | Q64: 0 | R64: 0 | S64: 0 | U64: 0 | V64: 0 | W64: 0 | X64: 0 | Y64: 0
A65: 51 | B65: 51 | C65: 47 | D65: 0 | E65: 612 | F65: 2050-11-01 | G65: 2050-11-01 | H65: 0 | I65: 0 | J65: 0 | K65: 0 | L65: TRUE | M65: 12105 | N65: 0 | O65: 0 | P65: 0 | Q65: 0 | R65: 0 | S65: 0 | U65: 0 | V65: 0 | W65: 0 | X65: 0 | Y65: 0
A66: 52 | B66: 52 | C66: 48 | D66: 0 | E66: 624 | F66: 2051-11-01 | G66: 2051-11-01 | H66: 0 | I66: 0 | J66: 0 | K66: 0 | L66: TRUE | M66: 12465 | N66: 0 | O66: 0 | P66: 0 | Q66: 0 | R66: 0 | S66: 0 | U66: 0 | V66: 0 | W66: 0 | X66: 0 | Y66: 0
A67: 53 | B67: 53 | C67: 49 | D67: 0 | E67: 636 | F67: 2052-11-01 | G67: 2052-11-01 | H67: 0 | I67: 0 | J67: 0 | K67: 0 | L67: TRUE | M67: 12825 | N67: 0 | O67: 0 | P67: 0 | Q67: 0 | R67: 0 | S67: 0 | U67: 0 | V67: 0 | W67: 0 | X67: 0 | Y67: 0
A68: 54 | B68: 54 | C68: 50 | D68: 0 | E68: 648 | F68: 2053-11-01 | G68: 2053-11-01 | H68: 0 | I68: 0 | J68: 0 | K68: 0 | L68: TRUE | M68: 13185 | N68: 0 | O68: 0 | P68: 0 | Q68: 0 | R68: 0 | S68: 0 | U68: 0 | V68: 0 | W68: 0 | X68: 0 | Y68: 0
A69: 55 | B69: 55 | C69: 51 | D69: 0 | E69: 660 | F69: 2054-11-01 | G69: 2054-11-01 | H69: 0 | I69: 0 | J69: 0 | K69: 0 | L69: TRUE | M69: 13545 | N69: 0 | O69: 0 | P69: 0 | Q69: 0 | R69: 0 | S69: 0 | U69: 0 | V69: 0 | W69: 0 | X69: 0 | Y69: 0
A70: 56 | B70: 56 | C70: 52 | D70: 0 | E70: 672 | F70: 2055-11-01 | G70: 2055-11-01 | H70: 0 | I70: 0 | J70: 0 | K70: 0 | L70: TRUE | M70: 13905 | N70: 0 | O70: 0 | P70: 0 | Q70: 0 | R70: 0 | S70: 0 | U70: 0 | V70: 0 | W70: 0 | X70: 0 | Y70: 0
A71: 57 | B71: 57 | C71: 53 | D71: 0 | E71: 684 | F71: 2056-11-01 | G71: 2056-11-01 | H71: 0 | I71: 0 | J71: 0 | K71: 0 | L71: TRUE | M71: 14265 | N71: 0 | O71: 0 | P71: 0 | Q71: 0 | R71: 0 | S71: 0 | U71: 0 | V71: 0 | W71: 0 | X71: 0 | Y71: 0
A72: 58 | B72: 58 | C72: 54 | D72: 0 | E72: 696 | F72: 2057-11-01 | G72: 2057-11-01 | H72: 0 | I72: 0 | J72: 0 | K72: 0 | L72: TRUE | M72: 14625 | N72: 0 | O72: 0 | P72: 0 | Q72: 0 | R72: 0 | S72: 0 | U72: 0 | V72: 0 | W72: 0 | X72: 0 | Y72: 0
A73: 59 | B73: 59 | C73: 55 | D73: 0 | E73: 708 | F73: 2058-11-01 | G73: 2058-11-01 | H73: 0 | I73: 0 | J73: 0 | K73: 0 | L73: TRUE | M73: 14985 | N73: 0 | O73: 0 | P73: 0 | Q73: 0 | R73: 0 | S73: 0 | U73: 0 | V73: 0 | W73: 0 | X73: 0 | Y73: 0
A74: 60 | B74: 60 | C74: 56 | D74: 0 | E74: 720 | F74: 2059-11-01 | G74: 2059-11-01 | H74: 0 | I74: 0 | J74: 0 | K74: 0 | L74: TRUE | M74: 15345 | N74: 0 | O74: 0 | P74: 0 | Q74: 0 | R74: 0 | S74: 0 | U74: 0 | V74: 0 | W74: 0 | X74: 0 | Y74: 0
A75: 61 | B75: 61 | C75: 57 | D75: 0 | E75: 732 | F75: 2060-11-01 | G75: 2060-11-01 | H75: 0 | I75: 0 | J75: 0 | K75: 0 | L75: TRUE | M75: 15705 | N75: 0 | O75: 0 | P75: 0 | Q75: 0 | R75: 0 | S75: 0 | U75: 0 | V75: 0 | W75: 0 | X75: 0 | Y75: 0
A76: 62 | B76: 62 | C76: 58 | D76: 0 | E76: 744 | F76: 2061-11-01 | G76: 2061-11-01 | H76: 0 | I76: 0 | J76: 0 | K76: 0 | L76: TRUE | M76: 16065 | N76: 0 | O76: 0 | P76: 0 | Q76: 0 | R76: 0 | S76: 0 | U76: 0 | V76: 0 | W76: 0 | X76: 0 | Y76: 0
A77: 63 | B77: 63 | C77: 59 | D77: 0 | E77: 756 | F77: 2062-11-01 | G77: 2062-11-01 | H77: 0 | I77: 0 | J77: 0 | K77: 0 | L77: TRUE | M77: 16425 | N77: 0 | O77: 0 | P77: 0 | Q77: 0 | R77: 0 | S77: 0 | U77: 0 | V77: 0 | W77: 0 | X77: 0 | Y77: 0
A78: 64 | B78: 64 | C78: 60 | D78: 0 | E78: 768 | F78: 2063-11-01 | G78: 2063-11-01 | H78: 0 | I78: 0 | J78: 0 | K78: 0 | L78: TRUE | M78: 16785 | N78: 0 | O78: 0 | P78: 0 | Q78: 0 | R78: 0 | S78: 0 | U78: 0 | V78: 0 | W78: 0 | X78: 0 | Y78: 0
A79: 65 | B79: 65 | C79: 61 | D79: 0 | E79: 780 | F79: 2064-11-01 | G79: 2064-11-01 | H79: 0 | I79: 0 | J79: 0 | K79: 0 | L79: TRUE | M79: 17145 | N79: 0 | O79: 0 | P79: 0 | Q79: 0 | R79: 0 | S79: 0 | U79: 0 | V79: 0 | W79: 0 | X79: 0 | Y79: 0
A80: 66 | B80: 66 | C80: 62 | D80: 0 | E80: 792 | F80: 2065-11-01 | G80: 2065-11-01 | H80: 0 | I80: 0 | J80: 0 | K80: 0 | L80: TRUE | M80: 17505 | N80: 0 | O80: 0 | P80: 0 | Q80: 0 | R80: 0 | S80: 0 | U80: 0 | V80: 0 | W80: 0 | X80: 0 | Y80: 0
A81: 67 | B81: 67 | C81: 63 | D81: 0 | E81: 804 | F81: 2066-11-01 | G81: 2066-11-01 | H81: 0 | I81: 0 | J81: 0 | K81: 0 | L81: TRUE | M81: 17865 | N81: 0 | O81: 0 | P81: 0 | Q81: 0 | R81: 0 | S81: 0 | U81: 0 | V81: 0 | W81: 0 | X81: 0 | Y81: 0
A82: 68 | B82: 68 | C82: 64 | D82: 0 | E82: 816 | F82: 2067-11-01 | G82: 2067-11-01 | H82: 0 | I82: 0 | J82: 0 | K82: 0 | L82: TRUE | M82: 18225 | N82: 0 | O82: 0 | P82: 0 | Q82: 0 | R82: 0 | S82: 0 | U82: 0 | V82: 0 | W82: 0 | X82: 0 | Y82: 0
A83: 69 | B83: =IF(A83<=0,0,A83) -> 69 | C83: 65 | D83: =IF($I$6="N",IF(G83>=$C$7,DAYS360($C$6,$C$7)/30,DAYS360($C$6,G83)/30),IF(B83=0,0,IF(B83=B82,D82,IF(G83>=$C$7,DAYS360($C$6,$C$7)/30,DAYS360($C$6,G83)/30)))) -> 0 | E83: =IF($I$6="N",IF(G83>=$C$7,DAYS360($C$7,G83)/30,0),IF(B83=0,0,IF(B83=B82,E82,IF(G83>=$C$7,DAYS360($C$7,G83)/30,0)))) -> 828 | F83: 2068-11-01 | G83: =DATE(YEAR(F83),MONTH(F83),1) -> 2068-11-01 | H83: =(J83*(1+$D$6)^D83)*(1+$D$7)^E83 -> 0 | I83: =H83-J83 -> 0 | J83: =IF(C83<=$C$3,$F$3,0) -> 0 | K83: 0 | L83: =IF($M$13<F83,TRUE,FALSE) -> TRUE | M83: =IF(L83,IF(F83>$C$7,DAYS360(IF($M$13>=$C$7,$M$13,$C$7),F83,FALSE),0),0) -> 18585 | N83: =H83*((((1+$H$7)^M83) - 1)/((1+$H$7)^M83)) -> 0 | O83: =IF(AND(L83,$M$13<=$C$7),DAYS360($M$13,IF(F83>=$C$7,$C$7,F83)),0) -> 0 | P83: =(H83-N83)*((((1+$H$6)^O83) - 1)/((1+$H$6)^O83)) -> 0 | Q83: =N83+P83 -> 0 | R83: =I83-Q83 -> 0 | S83: =J83+R83 -> 0 | U83: =IF(F83>$M$13,0, $M$13-F83) -> 0 | V83: =IF(F83>$M$13,0,DAYS360(F83,$M$13)) -> 0 | W83: =IF(V83>0,H83*$M$11,0) -> 0 | X83: =IF(U83>0,(H83*(1+$M$12)^U83)-H83,0) -> 0 | Y83: =S83+W83+X83 -> 0
A84: =INT(DAYS360(DATE(YEAR($H$2),MONTH($H$2)+1,DAY($H$2)),DATE(YEAR($F84),MONTH($F84),DAY($F84)))/360) -> 70 | B84: 70 | C84: 66 | D84: 0 | E84: 840 | F84: 2069-11-01 | G84: 2069-11-01 | H84: 0 | I84: 0 | J84: 0 | K84: =K83-J84 -> 0 | L84: TRUE | M84: 18945 | N84: 0 | O84: 0 | P84: 0 | Q84: 0 | R84: 0 | S84: 0 | U84: 0 | V84: 0 | W84: 0 | X84: 0 | Y84: 0
A85: 71 | B85: 71 | C85: 67 | D85: 0 | E85: 852 | F85: 2070-11-01 | G85: 2070-11-01 | H85: 0 | I85: 0 | J85: 0 | K85: 0 | L85: TRUE | M85: 19305 | N85: 0 | O85: 0 | P85: 0 | Q85: 0 | R85: 0 | S85: 0 | U85: 0 | V85: 0 | W85: 0 | X85: 0 | Y85: 0
A86: 72 | B86: 72 | C86: 68 | D86: 0 | E86: 864 | F86: =DATE(YEAR(F85),MONTH(F85)+$E$6,DAY(F85)) -> 2071-11-01 | G86: 2071-11-01 | H86: 0 | I86: 0 | J86: 0 | K86: 0 | L86: TRUE | M86: 19665 | N86: 0 | O86: 0 | P86: 0 | Q86: 0 | R86: 0 | S86: 0 | U86: 0 | V86: 0 | W86: 0 | X86: 0 | Y86: 0
A87: 73 | B87: 73 | C87: 69 | D87: 0 | E87: 876 | F87: 2072-11-01 | G87: 2072-11-01 | H87: 0 | I87: 0 | J87: 0 | K87: 0 | L87: TRUE | M87: 20025 | N87: 0 | O87: 0 | P87: 0 | Q87: 0 | R87: 0 | S87: 0 | U87: 0 | V87: 0 | W87: 0 | X87: 0 | Y87: 0
A88: 74 | B88: 74 | C88: 70 | D88: 0 | E88: 888 | F88: 2073-11-01 | G88: 2073-11-01 | H88: 0 | I88: 0 | J88: 0 | K88: 0 | L88: TRUE | M88: 20385 | N88: 0 | O88: 0 | P88: 0 | Q88: 0 | R88: 0 | S88: 0 | U88: 0 | V88: 0 | W88: 0 | X88: 0 | Y88: 0
A89: 75 | B89: 75 | C89: 71 | D89: 0 | E89: 900 | F89: 2074-11-01 | G89: 2074-11-01 | H89: 0 | I89: 0 | J89: 0 | K89: 0 | L89: TRUE | M89: 20745 | N89: 0 | O89: 0 | P89: 0 | Q89: 0 | R89: 0 | S89: 0 | U89: 0 | V89: 0 | W89: 0 | X89: 0 | Y89: 0
A90: 76 | B90: 76 | C90: 72 | D90: 0 | E90: 912 | F90: 2075-11-01 | G90: 2075-11-01 | H90: 0 | I90: 0 | J90: 0 | K90: 0 | L90: TRUE | M90: 21105 | N90: 0 | O90: 0 | P90: 0 | Q90: 0 | R90: 0 | S90: 0 | U90: 0 | V90: 0 | W90: 0 | X90: 0 | Y90: 0
B91: Total | H91: =SUM(H19:H90) -> 6275298.827 | I91: =SUM(I19:I90) -> 6270756.897 | J91: =SUM(J19:J90) -> 4541.93 | K91: 0

Sheet Gradiente_2_Juros_Diario
A1: Parcelamento
A2: Montante (PV) | B2: 12000 | D2: Dt. Parcela | E2: 2015-06-15 | M2: Q | N2: PV / n
A3: Parcelas (n) | B3: 12 | D3: Principal | E3: =B2/B3 -> 1000 | M3: SD | N3: PV - k * Q
A4: Juros | F4: Casas decimais | G4: 20 | I4: Diferença de datas (dias) | M4: INTk | N4: Q * i ^ k
B5: Data 1° juros | C5: (i) Taxa | D5: =IF(G6="N","A cada X meses","A cada X dias") -> A cada X meses | E5: (i) Taxa AM | F5: (i) Taxa AD | G5: Freq. Diária | I5: 1° juros | J5: 2°juros | K5: =DAYS360($B$6,$B$7) -> 7440 | M5: PMTk | N5: Q * (1 + i) ^ k
A6: 1° juros | B6: 2015-03-01 | C6: 0.0003317327062 | D6: 1 | E6: =IF($G$6="N",(1+C6)^(1/D6),(1+C6)^30)-1 -> 0.0003317327062 | F6: =ROUND(IF($G$6="N",(1+E6)^(1/30),(1+C6)^(1/D6))-1,$G$4+2) -> 1.105598429e-05 | G6: n | I6: 1° juros | J6: Vencimento | K6: =DAYS360($B$6,$E$2) -> 104
A7: 2° juros | B7: 2035-11-01 | C7: 0.0003317327062 | D7: =D6 -> 1 | E7: =IF($G$6="N",(1+C7)^(1/D7),(1+C7)^30)-1 -> 0.0003317327062 | F7: =ROUND(IF($G$6="N",(1+E7)^(1/30),(1+C7)^(1/D7))-1,$G$4+2) -> 1.105598429e-05 | I7: 2°juros | J7: Vencimento | K7: =DAYS360($B$7,$E$2) -> -7336
A8: Dt. Parcela >= 1° juros | E8: =E2>=B6 -> TRUE
A9: Dt. Parcela >= 2° juros | E9: =E2>=B7 -> FALSE | I9: Dt Ini. Correção | K9: 2009-04-01
A10: Recalculando o montante pela 1ª taxa de juros: | D10: =F6 -> 1.105598429e-05 | I10: Dt. Fim Correção | K10: 2011-10-01
A11: Qtde meses com o 1° juros | D11: =IF(AND(E8,E9),K5,IF(E8,K6,0)) -> 104 | I11: % Multa | K11: 0
A12: Novo montante (PV¹) | D12: =B2*(1+D10)^D11 -> 12013.80573 | I12: % Juros Atraso | K12: 0.00033
A13: Recalculando o montante pela 2ª taxa de juros: | D13: =F7 -> 1.105598429e-05 | I13: Data de recebimento | K13: 2015-04-21
A14: Qtde meses com o 1° juros | D14: =IF(E9,K7,0) -> 0
A15: Novo montante (PV¹) | D15: =D12*(1+D13)^D14 -> 12013.80573
A17: Parcela | B17: Dias de juros | C17: 1° juros (dias) | D17: 2° juros (dias) | E17: Vencimento | F17: Prestação | G17: Juros | H17: Amort. (Q) | I17: Saldo Dev | J17: Antecipando | K17: Dias Adiant. 2º juros | L17: R$ desc. 2º Juros | M17: Dias adiant. 1º juros | N17: R$ desc. 1º Juros | O17: Tot. desc Antec. | P17: Valor do juros com desconto | Q17: Valor da Parcela com Desconto | S17: Dias Atraso | T17: Dias Atraso (360) | U17: Multa Atraso | V17: Juros Atraso | W17: Valor final
C18: 0 | D18: 0 | I18: =B2 -> 12000
A19: 1 | B19: =DAYS360($B$6,E19) -> 104 | C19: =IF(E19>=$B$7,DAYS360($B$6,$B$7),DAYS360($B$6,E19)) -> 104 | D19: =IF(E19>=$B$7,DAYS360($B$7,E19),0) -> 0 | E19: =E2 -> 2015-06-15 | F19: =(H19*(1+$F$6)^C19)*(1+$F$7)^D19 -> 1001.150477 | G19: =F19-H19 -> 1.150477302 | H19: =IF(A19<=$B$3,$E$3,0) -> 1000 | I19: =I18-H19 -> 11000 | J19: =IF($K$13<E19,TRUE,FALSE) -> TRUE | K19: =IF(J19,IF(E19>$B$7,DAYS360(IF($K$13>=$B$7,$K$13,$B$7),E19,FALSE),0),0) -> 0 | L19: =F19*((((1+$F$7)^K19) - 1)/((1+$F$7)^K19)) -> 0 | M19: =IF(AND(J19,$K$13<=$B$7),DAYS360($K$13,IF(E19>=$B$7,$B$7,E19)),0) -> 54 | N19: =(F19-L19)*((((1+$F$6)^M19) - 1)/((1+$F$6)^M19)) -> 0.5975283231 | O19: =L19+N19 -> 0.5975283231 | P19: =G19-O19 -> 0.5529489785 | Q19: =H19+P19 -> 1000.552949 | S19: =IF(E19>$K$13,0, $K$13-E19) -> 0 | T19: =IF(E19>$K$13,0,DAYS360(E19,$K$13)) -> 0 | U19: =IF(T19>0,F19*$K$11,0) -> 0 | V19: =IF(S19>0,(F19*(1+$K$12)^S19)-F19,0) -> 0 | W19: =Q19+U19+V19 -> 1000.552949
A20: 2 | B20: =DAYS360($B$6,E20) -> 134 | C20: =IF(E20>=$B$7,DAYS360($B$6,$B$7),DAYS360($B$6,E20)) -> 134 | D20: =IF(E20>=$B$7,DAYS360($B$7,E20),0) -> 0 | E20: =IF($G$6="s",DATE(YEAR(E19),MONTH(E19),DAY(E19)+$D$6),DATE(YEAR(E19),MONTH(E19)+$D$6,DAY(E19))) -> 2015-07-15 | F20: =(H20*(1+$F$6)^C20)*(1+$F$7)^D20 -> 1001.482592 | G20: 1.482591659 | H20: 1000 | I20: =I19-H20 -> 10000 | J20: TRUE | K20: 0 | L20: 0 | M20: 84 | N20: 0.9296426803 | O20: 0.9296426803 | P20: 0.5529489785 | Q20: 1000.552949 | S20: 0 | T20: 0 | U20: =IF(T20>0,F20*$K$11,0) -> 0 | V20: =IF(S20>0,(F20*(1+$K$12)^S20)-F20,0) -> 0 | W20: 1000.552949
A21: 3 | B21: 164 | C21: 164 | D21: 0 | E21: =IF($G$6="s",DATE(YEAR(E20),MONTH(E20),DAY(E20)+$D$6),DATE(YEAR(E20),MONTH(E20)+$D$6,DAY(E20))) -> 2015-08-15 | F21: 1001.814816 | G21: 1.814816189 | H21: 1000 | I21: 9000 | J21: TRUE | K21: 0 | L21: 0 | M21: 114 | N21: 1.261867211 | O21: 1.261867211 | P21: 0.5529489785 | Q21: 1000.552949 | S21: 0 | T21: 0 | U21: 0 | V21: 0 | W21: 1000.552949
A22: 4 | B22: 194 | C22: 194 | D22: 0 | E22: 2015-09-15 | F22: 1002.147151 | G22: 2.147150929 | H22: 1000 | I22: 8000 | J22: TRUE | K22: 0 | L22: 0 | M22: 144 | N22: 1.594201951 | O22: 1.594201951 | P22: 0.5529489785 | Q22: 1000.552949 | S22: 0 | T22: 0 | U22: 0 | V22: 0 | W22: 1000.552949
A23: 5 | B23: 224 | C23: 224 | D23: 0 | E23: 2015-10-15 | F23: 1002.479596 | G23: 2.479595916 | H23: 1000 | I23: 7000 | J23: TRUE | K23: 0 | L23: 0 | M23: 174 | N23: 1.926646937 | O23: 1.926646937 | P23: 0.5529489785 | Q23: 1000.552949 | S23: 0 | T23: 0 | U23: 0 | V23: 0 | W23: 1000.552949
A24: 6 | B24: 254 | C24: 254 | D24: 0 | E24: 2015-11-15 | F24: 1002.812151 | G24: 2.812151185 | H24: 1000 | I24: 6000 | J24: TRUE | K24: 0 | L24: 0 | M24: 204 | N24: 2.259202207 | O24: 2.259202207 | P24: 0.5529489785 | Q24: 1000.552949 | S24: 0 | T24: 0 | U24: 0 | V24: 0 | W24: 1000.552949
A25: 7 | B25: 284 | C25: 284 | D25: 0 | E25: 2015-12-15 | F25: 1003.144817 | G25: 3.144816774 | H25: 1000 | I25: 5000 | J25: TRUE | K25: 0 | L25: 0 | M25: 234 | N25: 2.591867795 | O25: 2.591867795 | P25: 0.5529489785 | Q25: 1000.552949 | S25: 0 | T25: 0 | U25: 0 | V25: 0 | W25: 1000.552949
A26: 8 | B26: 314 | C26: 314 | D26: 0 | E26: 2016-01-15 | F26: 1003.477593 | G26: 3.477592719 | H26: 1000 | I26: 4000 | J26: TRUE | K26: 0 | L26: 0 | M26: 264 | N26: 2.92464374 | O26: 2.92464374 | P26: 0.5529489785 | Q26: 1000.552949 | S26: 0 | T26: 0 | U26: 0 | V26: 0 | W26: 1000.552949
A27: 9 | B27: 344 | C27: 344 | D27: 0 | E27: 2016-02-15 | F27: 1003.810479 | G27: 3.810479056 | H27: 1000 | I27: 3000 | J27: TRUE | K27: 0 | L27: 0 | M27: 294 | N27: 3.257530078 | O27: 3.257530078 | P27: 0.5529489785 | Q27: 1000.552949 | S27: 0 | T27: 0 | U27: 0 | V27: 0 | W27: 1000.552949
A28: 10 | B28: 374 | C28: 374 | D28: 0 | E28: 2016-03-15 | F28: 1004.143476 | G28: 4.143475823 | H28: 1000 | I28: 2000 | J28: TRUE | K28: 0 | L28: 0 | M28: 324 | N28: 3.590526844 | O28: 3.590526844 | P28: 0.5529489785 | Q28: 1000.552949 | S28: 0 | T28: 0 | U28: 0 | V28: 0 | W28: 1000.552949
A29: 11 | B29: 404 | C29: 404 | D29: 0 | E29: 2016-04-15 | F29: 1004.476583 | G29: 4.476583056 | H29: 1000 | I29: 1000 | J29: TRUE | K29: 0 | L29: 0 | M29: 354 | N29: 3.923634077 | O29: 3.923634077 | P29: 0.5529489785 | Q29: 1000.552949 | S29: 0 | T29: 0 | U29: 0 | V29: 0 | W29: 1000.552949
A30: 12 | B30: 434 | C30: 434 | D30: 0 | E30: 2016-05-15 | F30: 1004.809801 | G30: 4.809800791 | H30: 1000 | I30: 0 | J30: TRUE | K30: 0 | L30: 0 | M30: 384 | N30: 4.256851812 | O30: 4.256851812 | P30: 0.5529489785 | Q30: 1000.552949 | S30: 0 | T30: 0 | U30: 0 | V30: 0 | W30: 1000.552949
A31: 13 | B31: 464 | C31: 464 | D31: 0 | E31: 2016-06-15 | F31: 0 | G31: 0 | H31: 0 | I31: 0 | J31: TRUE | K31: 0 | L31: 0 | M31: 414 | N31: 0 | O31: 0 | P31: 0 | Q31: 0 | S31: 0 | T31: 0 | U31: 0 | V31: 0 | W31: 0
A32: 14 | B32: 494 | C32: 494 | D32: 0 | E32: 2016-07-15 | F32: 0 | G32: 0 | H32: 0 | I32: 0 | J32: TRUE | K32: 0 | L32: 0 | M32: 444 | N32: 0 | O32: 0 | P32: 0 | Q32: 0 | S32: 0 | T32: 0 | U32: 0 | V32: 0 | W32: 0
A33: 15 | B33: 524 | C33: 524 | D33: 0 | E33: 2016-08-15 | F33: 0 | G33: 0 | H33: 0 | I33: 0 | J33: TRUE | K33: 0 | L33: 0 | M33: 474 | N33: 0 | O33: 0 | P33: 0 | Q33: 0 | S33: 0 | T33: 0 | U33: 0 | V33: 0 | W33: 0
A34: 16 | B34: 554 | C34: 554 | D34: 0 | E34: 2016-09-15 | F34: 0 | G34: 0 | H34: 0 | I34: 0 | J34: TRUE | K34: 0 | L34: 0 | M34: 504 | N34: 0 | O34: 0 | P34: 0 | Q34: 0 | S34: 0 | T34: 0 | U34: 0 | V34: 0 | W34: 0
A35: 17 | B35: 584 | C35: 584 | D35: 0 | E35: 2016-10-15 | F35: 0 | G35: 0 | H35: 0 | I35: 0 | J35: TRUE | K35: 0 | L35: 0 | M35: 534 | N35: 0 | O35: 0 | P35: 0 | Q35: 0 | S35: 0 | T35: 0 | U35: 0 | V35: 0 | W35: 0
A36: 18 | B36: 614 | C36: 614 | D36: 0 | E36: 2016-11-15 | F36: 0 | G36: 0 | H36: 0 | I36: 0 | J36: TRUE | K36: 0 | L36: 0 | M36: 564 | N36: 0 | O36: 0 | P36: 0 | Q36: 0 | S36: 0 | T36: 0 | U36: 0 | V36: 0 | W36: 0
A37: 19 | B37: 644 | C37: 644 | D37: 0 | E37: 2016-12-15 | F37: 0 | G37: 0 | H37: 0 | I37: 0 | J37: TRUE | K37: 0 | L37: 0 | M37: 594 | N37: 0 | O37: 0 | P37: 0 | Q37: 0 | S37: 0 | T37: 0 | U37: 0 | V37: 0 | W37: 0
A38: 20 | B38: 674 | C38: 674 | D38: 0 | E38: 2017-01-15 | F38: 0 | G38: 0 | H38: 0 | I38: 0 | J38: TRUE | K38: 0 | L38: 0 | M38: 624 | N38: 0 | O38: 0 | P38: 0 | Q38: 0 | S38: 0 | T38: 0 | U38: 0 | V38: 0 | W38: 0
A39: 21 | B39: 704 | C39: 704 | D39: 0 | E39: 2017-02-15 | F39: 0 | G39: 0 | H39: 0 | I39: 0 | J39: TRUE | K39: 0 | L39: 0 | M39: 654 | N39: 0 | O39: 0 | P39: 0 | Q39: 0 | S39: 0 | T39: 0 | U39: 0 | V39: 0 | W39: 0
A40: 22 | B40: 734 | C40: 734 | D40: 0 | E40: 2017-03-15 | F40: 0 | G40: 0 | H40: 0 | I40: 0 | J40: TRUE | K40: 0 | L40: 0 | M40: 684 | N40: 0 | O40: 0 | P40: 0 | Q40: 0 | S40: 0 | T40: 0 | U40: 0 | V40: 0 | W40: 0
A41: 23 | B41: 764 | C41: 764 | D41: 0 | E41: 2017-04-15 | F41: 0 | G41: 0 | H41: 0 | I41: 0 | J41: TRUE | K41: 0 | L41: 0 | M41: 714 | N41: 0 | O41: 0 | P41: 0 | Q41: 0 | S41: 0 | T41: 0 | U41: 0 | V41: 0 | W41: 0
A42: 24 | B42: 794 | C42: 794 | D42: 0 | E42: 2017-05-15 | F42: 0 | G42: 0 | H42: 0 | I42: 0 | J42: TRUE | K42: 0 | L42: 0 | M42: 744 | N42: 0 | O42: 0 | P42: 0 | Q42: 0 | S42: 0 | T42: 0 | U42: 0 | V42: 0 | W42: 0
A43: 25 | B43: 824 | C43: 824 | D43: 0 | E43: 2017-06-15 | F43: 0 | G43: 0 | H43: 0 | I43: 0 | J43: TRUE | K43: 0 | L43: 0 | M43: 774 | N43: 0 | O43: 0 | P43: 0 | Q43: 0 | S43: 0 | T43: 0 | U43: 0 | V43: 0 | W43: 0
A44: 26 | B44: 854 | C44: 854 | D44: 0 | E44: 2017-07-15 | F44: 0 | G44: 0 | H44: 0 | I44: 0 | J44: TRUE | K44: 0 | L44: 0 | M44: 804 | N44: 0 | O44: 0 | P44: 0 | Q44: 0 | S44: 0 | T44: 0 | U44: 0 | V44: 0 | W44: 0
A45: 27 | B45: 884 | C45: 884 | D45: 0 | E45: 2017-08-15 | F45: 0 | G45: 0 | H45: 0 | I45: 0 | J45: TRUE | K45: 0 | L45: 0 | M45: 834 | N45: 0 | O45: 0 | P45: 0 | Q45: 0 | S45: 0 | T45: 0 | U45: 0 | V45: 0 | W45: 0
A46: 28 | B46: 914 | C46: 914 | D46: 0 | E46: 2017-09-15 | F46: 0 | G46: 0 | H46: 0 | I46: 0 | J46: TRUE | K46: 0 | L46: 0 | M46: 864 | N46: 0 | O46: 0 | P46: 0 | Q46: 0 | S46: 0 | T46: 0 | U46: 0 | V46: 0 | W46: 0
A47: 29 | B47: 944 | C47: 944 | D47: 0 | E47: 2017-10-15 | F47: 0 | G47: 0 | H47: 0 | I47: 0 | J47: TRUE | K47: 0 | L47: 0 | M47: 894 | N47: 0 | O47: 0 | P47: 0 | Q47: 0 | S47: 0 | T47: 0 | U47: 0 | V47: 0 | W47: 0
A48: 30 | B48: 974 | C48: 974 | D48: 0 | E48: 2017-11-15 | F48: 0 | G48: 0 | H48: 0 | I48: 0 | J48: TRUE | K48: 0 | L48: 0 | M48: 924 | N48: 0 | O48: 0 | P48: 0 | Q48: 0 | S48: 0 | T48: 0 | U48: 0 | V48: 0 | W48: 0
A49: 31 | B49: 1004 | C49: 1004 | D49: 0 | E49: 2017-12-15 | F49: 0 | G49: 0 | H49: 0 | I49: 0 | J49: TRUE | K49: 0 | L49: 0 | M49: 954 | N49: 0 | O49: 0 | P49: 0 | Q49: 0 | S49: 0 | T49: 0 | U49: 0 | V49: 0 | W49: 0
A50: 32 | B50: 1034 | C50: 1034 | D50: 0 | E50: 2018-01-15 | F50: 0 | G50: 0 | H50: 0 | I50: 0 | J50: TRUE | K50: 0 | L50: 0 | M50: 984 | N50: 0 | O50: 0 | P50: 0 | Q50: 0 | S50: 0 | T50: 0 | U50: 0 | V50: 0 | W50: 0
A51: 33 | B51: 1064 | C51: 1064 | D51: 0 | E51: 2018-02-15 | F51: 0 | G51: 0 | H51: =IF(A51<=$B$3,$E$3,0) -> 0 | I51: 0 | J51: TRUE | K51: =IF(J51,IF(E51>$B$7,DAYS360(IF($K$13>=$B$7,$K$13,$B$7),E51,FALSE),0),0) -> 0 | L51: 0 | M51: =IF(AND(J51,$K$13<=$B$7),DAYS360($K$13,IF(E51>=$B$7,$B$7,E51)),0) -> 1014 | N51: 0 | O51: 0 | P51: 0 | Q51: 0 | S51: 0 | T51: 0 | U51: 0 | V51: 0 | W51: 0
A52: 34 | B52: 1094 | C52: 1094 | D52: 0 | E52: 2018-03-15 | F52: 0 | G52: 0 | H52: 0 | I52: 0 | J52: TRUE | K52: 0 | L52: 0 | M52: 1044 | N52: 0 | O52: 0 | P52: 0 | Q52: 0 | S52: 0 | T52: 0 | U52: 0 | V52: 0 | W52: 0
A53: 35 | B53: 1124 | C53: 1124 | D53: 0 | E53: 2018-04-15 | F53: 0 | G53: 0 | H53: 0 | I53: 0 | J53: TRUE | K53: 0 | L53: 0 | M53: 1074 | N53: 0 | O53: 0 | P53: 0 | Q53: 0 | S53: 0 | T53: 0 | U53: 0 | V53: 0 | W53: 0
A54: 36 | B54: 1154 | C54: 1154 | D54: 0 | E54: 2018-05-15 | F54: 0 | G54: 0 | H54: 0 | I54: 0 | J54: TRUE | K54: 0 | L54: 0 | M54: 1104 | N54: 0 | O54: 0 | P54: 0 | Q54: 0 | S54: 0 | T54: 0 | U54: 0 | V54: 0 | W54: 0
A55: 37 | B55: 1184 | C55: 1184 | D55: 0 | E55: 2018-06-15 | F55: 0 | G55: 0 | H55: 0 | I55: 0 | J55: TRUE | K55: 0 | L55: 0 | M55: 1134 | N55: 0 | O55: 0 | P55: 0 | Q55: 0 | S55: 0 | T55: 0 | U55: 0 | V55: 0 | W55: 0
A56: 38 | B56: 1214 | C56: 1214 | D56: 0 | E56: 2018-07-15 | F56: 0 | G56: 0 | H56: 0 | I56: 0 | J56: TRUE | K56: 0 | L56: 0 | M56: 1164 | N56: 0 | O56: 0 | P56: 0 | Q56: 0 | S56: 0 | T56: 0 | U56: 0 | V56: 0 | W56: 0
A57: 39 | B57: 1244 | C57: 1244 | D57: 0 | E57: 2018-08-15 | F57: 0 | G57: 0 | H57: 0 | I57: 0 | J57: TRUE | K57: 0 | L57: 0 | M57: 1194 | N57: 0 | O57: 0 | P57: 0 | Q57: 0 | S57: 0 | T57: 0 | U57: 0 | V57: 0 | W57: 0
A58: 40 | B58: 1274 | C58: 1274 | D58: 0 | E58: 2018-09-15 | F58: 0 | G58: 0 | H58: 0 | I58: 0 | J58: TRUE | K58: 0 | L58: 0 | M58: 1224 | N58: 0 | O58: 0 | P58: 0 | Q58: 0 | S58: 0 | T58: 0 | U58: 0 | V58: 0 | W58: 0
A59: 41 | B59: 1304 | C59: 1304 | D59: 0 | E59: 2018-10-15 | F59: 0 | G59: 0 | H59: 0 | I59: 0 | J59: TRUE | K59: 0 | L59: 0 | M59: 1254 | N59: 0 | O59: 0 | P59: 0 | Q59: 0 | S59: 0 | T59: 0 | U59: 0 | V59: 0 | W59: 0
A60: 42 | B60: 1334 | C60: 1334 | D60: 0 | E60: 2018-11-15 | F60: 0 | G60: 0 | H60: 0 | I60: 0 | J60: TRUE | K60: 0 | L60: 0 | M60: 1284 | N60: 0 | O60: 0 | P60: 0 | Q60: 0 | S60: 0 | T60: 0 | U60: 0 | V60: 0 | W60: 0
A61: 43 | B61: 1364 | C61: 1364 | D61: 0 | E61: 2018-12-15 | F61: 0 | G61: 0 | H61: 0 | I61: 0 | J61: TRUE | K61: 0 | L61: 0 | M61: 1314 | N61: 0 | O61: 0 | P61: 0 | Q61: 0 | S61: 0 | T61: 0 | U61: 0 | V61: 0 | W61: 0
A62: 44 | B62: 1394 | C62: 1394 | D62: 0 | E62: 2019-01-15 | F62: 0 | G62: 0 | H62: 0 | I62: 0 | J62: TRUE | K62: 0 | L62: 0 | M62: 1344 | N62: 0 | O62: 0 | P62: 0 | Q62: 0 | S62: 0 | T62: 0 | U62: 0 | V62: 0 | W62: 0
A63: 45 | B63: 1424 | C63: 1424 | D63: 0 | E63: 2019-02-15 | F63: 0 | G63: 0 | H63: 0 | I63: 0 | J63: TRUE | K63: 0 | L63: 0 | M63: 1374 | N63: 0 | O63: 0 | P63: 0 | Q63: 0 | S63: 0 | T63: 0 | U63: 0 | V63: 0 | W63: 0
A64: 46 | B64: 1454 | C64: 1454 | D64: 0 | E64: 2019-03-15 | F64: 0 | G64: 0 | H64: 0 | I64: 0 | J64: TRUE | K64: 0 | L64: 0 | M64: 1404 | N64: 0 | O64: 0 | P64: 0 | Q64: 0 | S64: 0 | T64: 0 | U64: 0 | V64: 0 | W64: 0
A65: 47 | B65: 1484 | C65: 1484 | D65: 0 | E65: 2019-04-15 | F65: 0 | G65: 0 | H65: 0 | I65: 0 | J65: TRUE | K65: 0 | L65: 0 | M65: 1434 | N65: 0 | O65: 0 | P65: 0 | Q65: 0 | S65: 0 | T65: 0 | U65: 0 | V65: 0 | W65: 0
A66: 48 | B66: 1514 | C66: 1514 | D66: 0 | E66: 2019-05-15 | F66: 0 | G66: 0 | H66: 0 | I66: 0 | J66: TRUE | K66: 0 | L66: 0 | M66: 1464 | N66: 0 | O66: 0 | P66: 0 | Q66: 0 | S66: 0 | T66: 0 | U66: 0 | V66: 0 | W66: 0
A67: 49 | B67: 1544 | C67: 1544 | D67: 0 | E67: 2019-06-15 | F67: 0 | G67: 0 | H67: 0 | I67: 0 | J67: TRUE | K67: 0 | L67: 0 | M67: 1494 | N67: 0 | O67: 0 | P67: 0 | Q67: 0 | S67: 0 | T67: 0 | U67: 0 | V67: 0 | W67: 0
A68: 50 | B68: 1574 | C68: 1574 | D68: 0 | E68: 2019-07-15 | F68: 0 | G68: 0 | H68: 0 | I68: 0 | J68: TRUE | K68: 0 | L68: 0 | M68: 1524 | N68: 0 | O68: 0 | P68: 0 | Q68: 0 | S68: 0 | T68: 0 | U68: 0 | V68: 0 | W68: 0
A69: 51 | B69: 1604 | C69: 1604 | D69: 0 | E69: 2019-08-15 | F69: 0 | G69: 0 | H69: 0 | I69: 0 | J69: TRUE | K69: 0 | L69: 0 | M69: 1554 | N69: 0 | O69: 0 | P69: 0 | Q69: 0 | S69: 0 | T69: 0 | U69: 0 | V69: 0 | W69: 0
A70: 52 | B70: 1634 | C70: 1634 | D70: 0 | E70: 2019-09-15 | F70: 0 | G70: 0 | H70: 0 | I70: 0 | J70: TRUE | K70: 0 | L70: 0 | M70: 1584 | N70: 0 | O70: 0 | P70: 0 | Q70: 0 | S70: 0 | T70: 0 | U70: 0 | V70: 0 | W70: 0
A71: 53 | B71: 1664 | C71: 1664 | D71: 0 | E71: 2019-10-15 | F71: 0 | G71: 0 | H71: 0 | I71: 0 | J71: TRUE | K71: 0 | L71: 0 | M71: 1614 | N71: 0 | O71: 0 | P71: 0 | Q71: 0 | S71: 0 | T71: 0 | U71: 0 | V71: 0 | W71: 0
A72: 54 | B72: 1694 | C72: 1694 | D72: 0 | E72: 2019-11-15 | F72: 0 | G72: 0 | H72: 0 | I72: 0 | J72: TRUE | K72: 0 | L72: 0 | M72: 1644 | N72: 0 | O72: 0 | P72: 0 | Q72: 0 | S72: 0 | T72: 0 | U72: 0 | V72: 0 | W72: 0
A73: 55 | B73: 1724 | C73: 1724 | D73: 0 | E73: 2019-12-15 | F73: 0 | G73: 0 | H73: 0 | I73: 0 | J73: TRUE | K73: 0 | L73: 0 | M73: 1674 | N73: 0 | O73: 0 | P73: 0 | Q73: 0 | S73: 0 | T73: 0 | U73: 0 | V73: 0 | W73: 0
A74: 56 | B74: 1754 | C74: 1754 | D74: 0 | E74: 2020-01-15 | F74: 0 | G74: 0 | H74: 0 | I74: 0 | J74: TRUE | K74: 0 | L74: 0 | M74: 1704 | N74: 0 | O74: 0 | P74: 0 | Q74: 0 | S74: 0 | T74: 0 | U74: 0 | V74: 0 | W74: 0
A75: 57 | B75: 1784 | C75: 1784 | D75: 0 | E75: 2020-02-15 | F75: 0 | G75: 0 | H75: 0 | I75: 0 | J75: TRUE | K75: 0 | L75: 0 | M75: 1734 | N75: 0 | O75: 0 | P75: 0 | Q75: 0 | S75: 0 | T75: 0 | U75: 0 | V75: 0 | W75: 0
A76: 58 | B76: 1814 | C76: 1814 | D76: 0 | E76: 2020-03-15 | F76: 0 | G76: 0 | H76: 0 | I76: 0 | J76: TRUE | K76: 0 | L76: 0 | M76: 1764 | N76: 0 | O76: 0 | P76: 0 | Q76: 0 | S76: 0 | T76: 0 | U76: 0 | V76: 0 | W76: 0
A77: 59 | B77: 1844 | C77: 1844 | D77: 0 | E77: 2020-04-15 | F77: 0 | G77: 0 | H77: 0 | I77: 0 | J77: TRUE | K77: 0 | L77: 0 | M77: 1794 | N77: 0 | O77: 0 | P77: 0 | Q77: 0 | S77: 0 | T77: 0 | U77: 0 | V77: 0 | W77: 0
A78: 60 | B78: 1874 | C78: 1874 | D78: 0 | E78: 2020-05-15 | F78: 0 | G78: 0 | H78: 0 | I78: 0 | J78: TRUE | K78: 0 | L78: 0 | M78: 1824 | N78: 0 | O78: 0 | P78: 0 | Q78: 0 | S78: 0 | T78: 0 | U78: 0 | V78: 0 | W78: 0
A79: 61 | B79: 1904 | C79: 1904 | D79: 0 | E79: 2020-06-15 | F79: 0 | G79: 0 | H79: 0 | I79: 0 | J79: TRUE | K79: 0 | L79: 0 | M79: 1854 | N79: 0 | O79: 0 | P79: 0 | Q79: 0 | S79: 0 | T79: 0 | U79: 0 | V79: 0 | W79: 0
A80: 62 | B80: 1934 | C80: 1934 | D80: 0 | E80: 2020-07-15 | F80: 0 | G80: 0 | H80: 0 | I80: 0 | J80: TRUE | K80: 0 | L80: 0 | M80: 1884 | N80: 0 | O80: 0 | P80: 0 | Q80: 0 | S80: 0 | T80: 0 | U80: 0 | V80: 0 | W80: 0
A81: 63 | B81: 1964 | C81: 1964 | D81: 0 | E81: 2020-08-15 | F81: 0 | G81: 0 | H81: 0 | I81: 0 | J81: TRUE | K81: 0 | L81: 0 | M81: 1914 | N81: 0 | O81: 0 | P81: 0 | Q81: 0 | S81: 0 | T81: 0 | U81: 0 | V81: 0 | W81: 0
A82: 64 | B82: 1994 | C82: 1994 | D82: 0 | E82: 2020-09-15 | F82: 0 | G82: 0 | H82: 0 | I82: 0 | J82: TRUE | K82: 0 | L82: 0 | M82: 1944 | N82: 0 | O82: 0 | P82: 0 | Q82: 0 | S82: 0 | T82: 0 | U82: 0 | V82: 0 | W82: 0
A83: 65 | B83: 2024 | C83: 2024 | D83: 0 | E83: 2020-10-15 | F83: 0 | G83: =F83-H83 -> 0 | H83: =IF(A83<=$B$3,$E$3,0) -> 0 | I83: 0 | J83: =IF($K$13<E83,TRUE,FALSE) -> TRUE | K83: =IF(J83,IF(E83>$B$7,DAYS360(IF($K$13>=$B$7,$K$13,$B$7),E83,FALSE),0),0) -> 0 | L83: =F83*((((1+$F$7)^K83) - 1)/((1+$F$7)^K83)) -> 0 | M83: =IF(AND(J83,$K$13<=$B$7),DAYS360($K$13,IF(E83>=$B$7,$B$7,E83)),0) -> 1974 | N83: =(F83-L83)*((((1+$F$6)^M83) - 1)/((1+$F$6)^M83)) -> 0 | O83: =L83+N83 -> 0 | P83: =G83-O83 -> 0 | Q83: =H83+P83 -> 0 | S83: =IF(E83>$K$13,0, $K$13-E83) -> 0 | T83: =IF(E83>$K$13,0,DAYS360(E83,$K$13)) -> 0 | U83: 0 | V83: 0 | W83: =Q83+U83+V83 -> 0
A84: 66 | B84: =DAYS360($B$6,E84) -> 2054 | C84: =IF(E84>=$B$7,DAYS360($B$6,$B$7),DAYS360($B$6,E84)) -> 2054 | D84: =IF(E84>=$B$7,DAYS360($B$7,E84),0) -> 0 | E84: 2020-11-15 | F84: =(H84*(1+$F$6)^C84)*(1+$F$7)^D84 -> 0 | G84: 0 | H84: 0 | I84: =I83-H84 -> 0 | J84: TRUE | K84: 0 | L84: 0 | M84: 2004 | N84: 0 | O84: 0 | P84: 0 | Q84: 0 | S84: 0 | T84: 0 | U84: =IF(T84>0,F84*$K$11,0) -> 0 | V84: =IF(S84>0,(F84*(1+$K$12)^S84)-F84,0) -> 0 | W84: 0
A85: 67 | B85: 2084 | C85: 2084 | D85: 0 | E85: =IF($G$6="s",DATE(YEAR(E84),MONTH(E84),DAY(E84)+$D$6),DATE(YEAR(E84),MONTH(E84)+$D$6,DAY(E84))) -> 2020-12-15 | F85: 0 | G85: 0 | H85: 0 | I85: 0 | J85: TRUE | K85: 0 | L85: 0 | M85: 2034 | N85: 0 | O85: 0 | P85: 0 | Q85: 0 | S85: 0 | T85: 0 | U85: 0 | V85: 0 | W85: 0
A86: 68 | B86: 2114 | C86: 2114 | D86: 0 | E86: 2021-01-15 | F86: 0 | G86: 0 | H86: 0 | I86: 0 | J86: TRUE | K86: 0 | L86: 0 | M86: 2064 | N86: 0 | O86: 0 | P86: 0 | Q86: 0 | S86: 0 | T86: 0 | U86: 0 | V86: 0 | W86: 0
A87: 69 | B87: 2144 | C87: 2144 | D87: 0 | E87: 2021-02-15 | F87: 0 | G87: 0 | H87: 0 | I87: 0 | J87: TRUE | K87: 0 | L87: 0 | M87: 2094 | N87: 0 | O87: 0 | P87: 0 | Q87: 0 | S87: 0 | T87: 0 | U87: 0 | V87: 0 | W87: 0
A88: 70 | B88: 2174 | C88: 2174 | D88: 0 | E88: 2021-03-15 | F88: 0 | G88: 0 | H88: 0 | I88: 0 | J88: TRUE | K88: 0 | L88: 0 | M88: 2124 | N88: 0 | O88: 0 | P88: 0 | Q88: 0 | S88: 0 | T88: 0 | U88: 0 | V88: 0 | W88: 0
A89: 71 | B89: 2204 | C89: 2204 | D89: 0 | E89: 2021-04-15 | F89: 0 | G89: 0 | H89: 0 | I89: 0 | J89: TRUE | K89: 0 | L89: 0 | M89: 2154 | N89: 0 | O89: 0 | P89: 0 | Q89: 0 | S89: 0 | T89: 0 | U89: 0 | V89: 0 | W89: 0
A90: 72 | B90: 2234 | C90: 2234 | D90: 0 | E90: 2021-05-15 | F90: 0 | G90: 0 | H90: 0 | I90: 0 | J90: TRUE | K90: 0 | L90: 0 | M90: 2184 | N90: 0 | O90: 0 | P90: 0 | Q90: 0 | S90: 0 | T90: 0 | U90: 0 | V90: 0 | W90: 0
A91: Total | F91: =SUM(F19:F90) -> 12035.74953 | G91: =SUM(G19:G90) -> 35.7495314 | H91: =SUM(H19:H90) -> 12000 | I91: 0

Sheet Simples (hidden)
A1: PMT | F1: PMT | G1: Valor da prestação | I1: PV * ((((1 + i) ^ n) * i ) / (((1 + i) ^ n) -1))
A2: PV | C2: 60000 | F2: PV | G2: Montante
A3: n | C3: 10 | F3: n | G3: Nº de prestações
A4: i | C4: 0.01 | F4: i | G4: Juros | I4: i * PMT * ((((1 + i) ^(n - (k -1))) - 1)/(((1 + i) ^(n - (k -1))) * i))
A5: i (diário) | C5: =C4/30 -> 0.0003333333333 | F5: SDk | G5: Saldo Devedor | I5: PMT * ((((1 + i) ^(n - k)) - 1)/(((1 + i) ^(n - k)) * i))
A6: Dt Parcela | C6: 2013-05-01 | F6: D | G6: Desconto | I6: FV[((1+d)^n) - 1/((1+d)^n)]
A7: Dt Juros | C7: 2013-01-01
A9: Dt Ini. Correção | C9: 2008-01-01
A10: Dt. Fim Correção | C10: 2009-11-01
A11: % Multa | C11: 0
A12: % Juros Atraso | C12: 0.00033
A13: Data de recebimento | C13: 2013-07-01
N14: 0 | Q14: 0
A15: Parcela | B15: k | C15: Vencimento | D15: Prestação | E15: Juros | F15: Amort. | G15: Saldo Dev | H15: Dias de Antecipação (ANO 360) | I15: Desconto Antecipação | J15: Valor do juros com desconto | K15: Valor da Parcela com Desconto | M15: Dias Atraso | N15: Dias Atraso (360) | O15: Vlr. Reajuste | P15: Multa Atraso | Q15: Juros Atraso | R15: Corr. Atraso | S15: Valor final
A16: 0 | B16: 0 | G16: =C2 -> 60000 | O16: 0 | R16: 0
A17: 1 | B17: =DAYS360(C7,C6)/30 -> 4 | C17: =C6 -> 2013-05-01 | D17: =F17+E17 -> 6240 | E17: =F17*$C$4*B17 -> 240 | F17: =IF(A17<=$C$3,$C$2/$C$3,0) -> 6000 | G17: =G16-F17 -> 54000 | H17: =IF(C17<=$C$13,0,DAYS360($C$13,C17)) -> 0 | I17: =(D17*$C$5*H17)/(1+$C$5*H17) -> 0 | J17: =E17-I17 -> 240 | K17: =F17+J17 -> 6240 | M17: =IF(C17>$C$13,0, $C$13-C17) -> 61 | N17: =IF(C17>$C$13,0,DAYS360(C17,$C$13)) -> 60 | O17: 122.1233112 | P17: =IF(N17>0,(D17 + O17)*$C$11,0) -> 0 | Q17: =IF(M17>0,((D17 + O17)*(1+$C$12)^M17)-(D17 + O17),0) -> 129.3456988 | R17: 0 | S17: =K17+O17+P17+Q17+R17 -> 6491.46901
A18: 2 | B18: =B17+1 -> 5 | C18: =DATE(YEAR(C17),MONTH(C17)+1,DAY(C17)) -> 2013-06-01 | D18: =F18+E18 -> 6300 | E18: 300 | F18: =IF(A18<=$C$3,$C$2/$C$3,0) -> 6000 | G18: =G17-F18 -> 48000 | H18: 0 | I18: =(D18*$C$5*H18)/(1+$C$5*H18) -> 0 | J18: 300 | K18: =F18+J18 -> 6300 | M18: 30 | N18: 30 | O18: 123.3445443 | P18: 0 | Q18: 63.89633374 | R18: 0 | S18: 6487.240878
A19: 3 | B19: =B18+1 -> 6 | C19: 2013-07-01 | D19: 6360 | E19: 360 | F19: 6000 | G19: 42000 | H19: 0 | I19: =(D19*$C$5*H19)/(1+$C$5*H19) -> 0 | J19: 360 | K19: 6360 | M19: 0 | N19: 0 | O19: 124.5657774 | P19: 0 | Q19: 0 | R19: 0 | S19: 6484.565777
A20: 4 | B20: 7 | C20: 2013-08-01 | D20: 6420 | E20: 420 | F20: 6000 | G20: 36000 | H20: 30 | I20: 63.56435644 | J20: 356.4356436 | K20: 6356.435644 | M20: 0 | N20: 0 | O20: 124.5415945 | P20: 0 | Q20: 0 | R20: 0 | S20: 6480.977238
A21: 5 | B21: 8 | C21: 2013-09-01 | D21: 6480 | E21: 480 | F21: 6000 | G21: 30000 | H21: 60 | I21: 127.0588235 | J21: 352.9411765 | K21: 6352.941176 | M21: 0 | N21: 0 | O21: 124.5178859 | P21: 0 | Q21: 0 | R21: 0 | S21: 6477.459062
A22: 6 | B22: 9 | C22: 2013-10-01 | D22: 6540 | E22: 540 | F22: 6000 | G22: 24000 | H22: 90 | I22: 190.4854369 | J22: 349.5145631 | K22: 6349.514563 | M22: 0 | N22: 0 | O22: 124.4946376 | P22: 0 | Q22: 0 | R22: 0 | S22: 6474.009201
A23: 7 | B23: 10 | C23: 2013-11-01 | D23: 6600 | E23: 600 | F23: 6000 | G23: 18000 | H23: 120 | I23: 253.8461538 | J23: 346.1538462 | K23: 6346.153846 | M23: 0 | N23: 0 | O23: 124.4718364 | P23: 0 | Q23: 0 | R23: 0 | S23: 6470.625683
A24: 8 | B24: 11 | C24: 2013-12-01 | D24: 6660 | E24: 660 | F24: 6000 | G24: 12000 | H24: 150 | I24: 317.1428571 | J24: 342.8571429 | K24: 6342.857143 | M24: 0 | N24: 0 | O24: 124.4494695 | P24: 0 | Q24: 0 | R24: 0 | S24: 6467.306612
A25: 9 | B25: 12 | C25: 2014-01-01 | D25: 6720 | E25: 720 | F25: 6000 | G25: 6000 | H25: 180 | I25: 380.3773585 | J25: 339.6226415 | K25: 6339.622642 | M25: 0 | N25: 0 | O25: 124.4275246 | P25: 0 | Q25: 0 | R25: 0 | S25: 6464.050166
A26: 10 | B26: 13 | C26: 2014-02-01 | D26: 6780 | E26: 780 | F26: 6000 | G26: 0 | H26: 210 | I26: 443.5514019 | J26: 336.4485981 | K26: 6336.448598 | M26: 0 | N26: 0 | O26: 124.4059899 | P26: 0 | Q26: 0 | R26: 0 | S26: 6460.854588
A27: 11 | B27: 14 | C27: 2014-03-01 | D27: 0 | E27: =F27*$C$4*B27 -> 0 | F27: 0 | G27: 0 | H27: 240 | I27: 0 | J27: 0 | K27: 0 | M27: 0 | N27: 0 | O27: 124.384854 | P27: 0 | Q27: 0 | R27: 0 | S27: 124.384854
A28: 12 | B28: 15 | C28: 2014-04-01 | D28: 0 | E28: =F28*$C$4*B28 -> 0 | F28: 0 | G28: 0 | H28: 270 | I28: 0 | J28: 0 | K28: 0 | M28: 0 | N28: 0 | O28: 124.3641059 | P28: 0 | Q28: 0 | R28: 0 | S28: 124.3641059
A29: 13 | B29: 16 | C29: 2014-05-01 | D29: 0 | E29: 0 | F29: 0 | G29: 0 | H29: 300 | I29: 0 | J29: 0 | K29: 0 | M29: 0 | N29: 0 | O29: 124.343735 | P29: 0 | Q29: 0 | R29: 0 | S29: 124.343735
A30: 14 | B30: 17 | C30: 2014-06-01 | D30: 0 | E30: 0 | F30: 0 | G30: 0 | H30: 330 | I30: 0 | J30: 0 | K30: 0 | M30: 0 | N30: 0 | O30: 124.3237312 | P30: 0 | Q30: 0 | R30: 0 | S30: 124.3237312
A31: 15 | B31: 18 | C31: 2014-07-01 | D31: 0 | E31: 0 | F31: 0 | G31: 0 | H31: 360 | I31: 0 | J31: 0 | K31: 0 | M31: 0 | N31: 0 | O31: 124.3040846 | P31: 0 | Q31: 0 | R31: 0 | S31: 124.3040846
A32: 16 | B32: 19 | C32: 2014-08-01 | D32: 0 | E32: 0 | F32: 0 | G32: 0 | H32: 390 | I32: 0 | J32: 0 | K32: 0 | M32: 0 | N32: 0 | O32: 124.2847857 | P32: 0 | Q32: 0 | R32: 0 | S32: 124.2847857
A33: 17 | B33: 20 | C33: 2014-09-01 | D33: 0 | E33: 0 | F33: 0 | G33: 0 | H33: 420 | I33: 0 | J33: 0 | K33: 0 | M33: 0 | N33: 0 | O33: 124.2658254 | P33: 0 | Q33: 0 | R33: 0 | S33: 124.2658254
A34: 18 | B34: 21 | C34: 2014-10-01 | D34: 0 | E34: 0 | F34: 0 | G34: 0 | H34: 450 | I34: 0 | J34: 0 | K34: 0 | M34: 0 | N34: 0 | O34: 124.2471948 | P34: 0 | Q34: 0 | R34: 0 | S34: 124.2471948
A35: 19 | B35: 22 | C35: 2014-11-01 | D35: 0 | E35: 0 | F35: 0 | G35: 0 | H35: 480 | I35: 0 | J35: 0 | K35: 0 | M35: 0 | N35: 0 | O35: 124.2288855 | P35: 0 | Q35: 0 | R35: 0 | S35: 124.2288855
A36: 20 | B36: 23 | C36: 2014-12-01 | D36: 0 | E36: 0 | F36: 0 | G36: 0 | H36: 510 | I36: 0 | J36: 0 | K36: 0 | M36: 0 | N36: 0 | O36: 124.2108891 | P36: 0 | Q36: 0 | R36: 0 | S36: 124.2108891
A37: 21 | B37: 24 | C37: 2015-01-01 | D37: 0 | E37: 0 | F37: 0 | G37: 0 | H37: 540 | I37: 0 | J37: 0 | K37: 0 | M37: 0 | N37: 0 | O37: 124.1931978 | P37: 0 | Q37: 0 | R37: 0 | S37: 124.1931978
A38: 22 | B38: 25 | C38: 2015-02-01 | D38: 0 | E38: 0 | F38: 0 | G38: 0 | H38: 570 | I38: 0 | J38: 0 | K38: 0 | M38: 0 | N38: 0 | O38: 124.1758038 | P38: 0 | Q38: 0 | R38: 0 | S38: 124.1758038
A39: 23 | B39: 26 | C39: 2015-03-01 | D39: 0 | E39: 0 | F39: 0 | G39: 0 | H39: 600 | I39: 0 | J39: 0 | K39: 0 | M39: 0 | N39: 0 | O39: 124.1586997 | P39: 0 | Q39: 0 | R39: 0 | S39: 124.1586997
A40: 24 | B40: 27 | C40: 2015-04-01 | D40: 0 | E40: 0 | F40: 0 | G40: 0 | H40: 630 | I40: 0 | J40: 0 | K40: 0 | M40: 0 | N40: 0 | O40: 124.1418783 | P40: 0 | Q40: 0 | R40: 0 | S40: 124.1418783
A41: 25 | B41: 28 | C41: 2015-05-01 | D41: 0 | E41: 0 | F41: 0 | G41: 0 | H41: 660 | I41: 0 | J41: 0 | K41: 0 | M41: 0 | N41: 0 | O41: 124.1253327 | P41: 0 | Q41: 0 | R41: 0 | S41: 124.1253327
A42: 26 | B42: 29 | C42: 2015-06-01 | D42: 0 | E42: 0 | F42: 0 | G42: 0 | H42: 690 | I42: 0 | J42: 0 | K42: 0 | M42: 0 | N42: 0 | O42: 124.1090561 | P42: 0 | Q42: 0 | R42: 0 | S42: 124.1090561
A43: 27 | B43: 30 | C43: 2015-07-01 | D43: 0 | E43: 0 | F43: 0 | G43: 0 | H43: 720 | I43: 0 | J43: 0 | K43: 0 | M43: 0 | N43: 0 | O43: 124.093042 | P43: 0 | Q43: 0 | R43: 0 | S43: 124.093042
A44: 28 | B44: 31 | C44: 2015-08-01 | D44: 0 | E44: 0 | F44: 0 | G44: 0 | H44: 750 | I44: 0 | J44: 0 | K44: 0 | M44: 0 | N44: 0 | O44: 124.0772841 | P44: 0 | Q44: 0 | R44: 0 | S44: 124.0772841
A45: 29 | B45: 32 | C45: 2015-09-01 | D45: 0 | E45: 0 | F45: 0 | G45: 0 | H45: 780 | I45: 0 | J45: 0 | K45: 0 | M45: 0 | N45: 0 | O45: 124.0617764 | P45: 0 | Q45: 0 | R45: 0 | S45: 124.0617764
A46: 30 | B46: 33 | C46: 2015-10-01 | D46: 0 | E46: 0 | F46: 0 | G46: 0 | H46: 810 | I46: 0 | J46: 0 | K46: 0 | M46: 0 | N46: 0 | O46: 124.0465129 | P46: 0 | Q46: 0 | R46: 0 | S46: 124.0465129
A47: 31 | B47: 34 | C47: 2015-11-01 | D47: 0 | E47: 0 | F47: 0 | G47: 0 | H47: 840 | I47: 0 | J47: 0 | K47: 0 | M47: 0 | N47: 0 | O47: 124.0314879 | P47: 0 | Q47: 0 | R47: 0 | S47: 124.0314879
A48: 32 | B48: 35 | C48: 2015-12-01 | D48: 0 | E48: 0 | F48: 0 | G48: 0 | H48: 870 | I48: 0 | J48: 0 | K48: 0 | M48: 0 | N48: 0 | O48: 124.0166958 | P48: 0 | Q48: 0 | R48: 0 | S48: 124.0166958
A49: 33 | B49: 36 | C49: 2016-01-01 | D49: 0 | E49: 0 | F49: 0 | G49: =G48-F49 -> 0 | H49: =IF(C49<=$C$13,0,DAYS360($C$13,C49)) -> 900 | I49: 0 | J49: 0 | K49: =F49+J49 -> 0 | M49: =IF(C49>$C$13,0, $C$13-C49) -> 0 | N49: =IF(C49>$C$13,0,DAYS360(C49,$C$13)) -> 0 | O49: 124.0021313 | P49: =IF(N49>0,(D49 + O49)*$C$11,0) -> 0 | Q49: =IF(M49>0,((D49 + O49)*(1+$C$12)^M49)-(D49 + O49),0) -> 0 | R49: 0 | S49: =K49+O49+P49+Q49+R49 -> 124.0021313
A50: 34 | B50: 37 | C50: =DATE(YEAR(C49),MONTH(C49)+1,DAY(C49)) -> 2016-02-01 | D50: 0 | E50: 0 | F50: 0 | G50: 0 | H50: 930 | I50: 0 | J50: 0 | K50: 0 | M50: 0 | N50: 0 | O50: 123.9877892 | P50: 0 | Q50: 0 | R50: 0 | S50: 123.9877892
A51: 35 | B51: 38 | C51: 2016-03-01 | D51: 0 | E51: 0 | F51: 0 | G51: 0 | H51: 960 | I51: 0 | J51: 0 | K51: 0 | M51: 0 | N51: 0 | O51: 123.9736644 | P51: 0 | Q51: 0 | R51: 0 | S51: 123.9736644
A52: 36 | B52: 39 | C52: 2016-04-01 | D52: 0 | E52: 0 | F52: 0 | G52: 0 | H52: 990 | I52: 0 | J52: 0 | K52: 0 | M52: 0 | N52: 0 | O52: 123.9597519 | P52: 0 | Q52: 0 | R52: 0 | S52: 123.9597519
A53: 37 | B53: 40 | C53: 2016-05-01 | D53: 0 | E53: 0 | F53: 0 | G53: 0 | H53: 1020 | I53: 0 | J53: 0 | K53: 0 | M53: 0 | N53: 0 | O53: 123.9460471 | P53: 0 | Q53: 0 | R53: 0 | S53: 123.9460471
A54: 38 | B54: 41 | C54: 2016-06-01 | D54: 0 | E54: 0 | F54: 0 | G54: 0 | H54: 1050 | I54: 0 | J54: 0 | K54: 0 | M54: 0 | N54: 0 | O54: 123.9325454 | P54: 0 | Q54: 0 | R54: 0 | S54: 123.9325454
A55: 39 | B55: 42 | C55: 2016-07-01 | D55: 0 | E55: 0 | F55: 0 | G55: 0 | H55: 1080 | I55: 0 | J55: 0 | K55: 0 | M55: 0 | N55: 0 | O55: 123.9192422 | P55: 0 | Q55: 0 | R55: 0 | S55: 123.9192422
A56: 40 | B56: 43 | C56: 2016-08-01 | D56: 0 | E56: 0 | F56: 0 | G56: 0 | H56: 1110 | I56: 0 | J56: 0 | K56: 0 | M56: 0 | N56: 0 | O56: 123.9061332 | P56: 0 | Q56: 0 | R56: 0 | S56: 123.9061332
A57: 41 | B57: 44 | C57: 2016-09-01 | D57: 0 | E57: 0 | F57: 0 | G57: 0 | H57: 1140 | I57: 0 | J57: 0 | K57: 0 | M57: 0 | N57: 0 | O57: 123.8932142 | P57: 0 | Q57: 0 | R57: 0 | S57: 123.8932142
A58: 42 | B58: 45 | C58: 2016-10-01 | D58: 0 | E58: 0 | F58: 0 | G58: 0 | H58: 1170 | I58: 0 | J58: 0 | K58: 0 | M58: 0 | N58: 0 | O58: 123.8804811 | P58: 0 | Q58: 0 | R58: 0 | S58: 123.8804811
A59: 43 | B59: 46 | C59: 2016-11-01 | D59: 0 | E59: 0 | F59: 0 | G59: 0 | H59: 1200 | I59: 0 | J59: 0 | K59: 0 | M59: 0 | N59: 0 | O59: 123.8679299 | P59: 0 | Q59: 0 | R59: 0 | S59: 123.8679299
A60: 44 | B60: 47 | C60: 2016-12-01 | D60: 0 | E60: 0 | F60: 0 | G60: 0 | H60: 1230 | I60: 0 | J60: 0 | K60: 0 | M60: 0 | N60: 0 | O60: 123.8555567 | P60: 0 | Q60: 0 | R60: 0 | S60: 123.8555567
A61: 45 | B61: 48 | C61: 2017-01-01 | D61: 0 | E61: 0 | F61: 0 | G61: 0 | H61: 1260 | I61: 0 | J61: 0 | K61: 0 | M61: 0 | N61: 0 | O61: 123.8433578 | P61: 0 | Q61: 0 | R61: 0 | S61: 123.8433578
A62: 46 | B62: 49 | C62: 2017-02-01 | D62: 0 | E62: 0 | F62: 0 | G62: 0 | H62: 1290 | I62: 0 | J62: 0 | K62: 0 | M62: 0 | N62: 0 | O62: 123.8313295 | P62: 0 | Q62: 0 | R62: 0 | S62: 123.8313295
A63: 47 | B63: 50 | C63: 2017-03-01 | D63: 0 | E63: 0 | F63: 0 | G63: 0 | H63: 1320 | I63: 0 | J63: 0 | K63: 0 | M63: 0 | N63: 0 | O63: 123.8194683 | P63: 0 | Q63: 0 | R63: 0 | S63: 123.8194683
A64: 48 | B64: 51 | C64: 2017-04-01 | D64: 0 | E64: 0 | F64: 0 | G64: 0 | H64: 1350 | I64: 0 | J64: 0 | K64: 0 | M64: 0 | N64: 0 | O64: 123.8077706 | P64: 0 | Q64: 0 | R64: 0 | S64: 123.8077706
A65: 49 | B65: 52 | C65: 2017-05-01 | D65: 0 | E65: 0 | F65: 0 | G65: 0 | H65: 1380 | I65: 0 | J65: 0 | K65: 0 | M65: 0 | N65: 0 | O65: 123.7962332 | P65: 0 | Q65: 0 | R65: 0 | S65: 123.7962332
A66: 50 | B66: 53 | C66: 2017-06-01 | D66: 0 | E66: 0 | F66: 0 | G66: 0 | H66: 1410 | I66: 0 | J66: 0 | K66: 0 | M66: 0 | N66: 0 | O66: 123.7848528 | P66: 0 | Q66: 0 | R66: 0 | S66: 123.7848528
A67: 51 | B67: 54 | C67: 2017-07-01 | D67: 0 | E67: 0 | F67: 0 | G67: 0 | H67: 1440 | I67: 0 | J67: 0 | K67: 0 | M67: 0 | N67: 0 | O67: 123.7736262 | P67: 0 | Q67: 0 | R67: 0 | S67: 123.7736262
A68: 52 | B68: 55 | C68: 2017-08-01 | D68: 0 | E68: 0 | F68: 0 | G68: 0 | H68: 1470 | I68: 0 | J68: 0 | K68: 0 | M68: 0 | N68: 0 | O68: 123.7625502 | P68: 0 | Q68: 0 | R68: 0 | S68: 123.7625502
A69: 53 | B69: 56 | C69: 2017-09-01 | D69: 0 | E69: 0 | F69: 0 | G69: 0 | H69: 1500 | I69: =(D69*$C$5*H69)/(1+$C$5*H69) -> 0 | J69: 0 | K69: 0 | M69: 0 | N69: 0 | O69: 123.751622 | P69: 0 | Q69: 0 | R69: 0 | S69: 123.751622
A70: 54 | B70: 57 | C70: 2017-10-01 | D70: 0 | E70: 0 | F70: 0 | G70: 0 | H70: 1530 | I70: 0 | J70: 0 | K70: 0 | M70: 0 | N70: 0 | O70: 123.7408385 | P70: 0 | Q70: 0 | R70: 0 | S70: 123.7408385
A71: 55 | B71: 58 | C71: 2017-11-01 | D71: 0 | E71: 0 | F71: 0 | G71: 0 | H71: 1560 | I71: 0 | J71: 0 | K71: 0 | M71: 0 | N71: 0 | O71: 123.7301968 | P71: 0 | Q71: 0 | R71: 0 | S71: 123.7301968
A72: 56 | B72: 59 | C72: 2017-12-01 | D72: 0 | E72: 0 | F72: 0 | G72: 0 | H72: 1590 | I72: 0 | J72: 0 | K72: 0 | M72: 0 | N72: 0 | O72: 123.7196943 | P72: 0 | Q72: 0 | R72: 0 | S72: 123.7196943
A73: 57 | B73: 60 | C73: 2018-01-01 | D73: 0 | E73: 0 | F73: 0 | G73: 0 | H73: 1620 | I73: 0 | J73: 0 | K73: 0 | M73: 0 | N73: 0 | O73: 123.7093282 | P73: 0 | Q73: 0 | R73: 0 | S73: 123.7093282
A74: 58 | B74: 61 | C74: 2018-02-01 | D74: 0 | E74: 0 | F74: 0 | G74: 0 | H74: 1650 | I74: 0 | J74: 0 | K74: 0 | M74: 0 | N74: 0 | O74: 123.6990958 | P74: 0 | Q74: 0 | R74: 0 | S74: 123.6990958
A75: 59 | B75: 62 | C75: 2018-03-01 | D75: 0 | E75: 0 | F75: 0 | G75: 0 | H75: 1680 | I75: 0 | J75: 0 | K75: 0 | M75: 0 | N75: 0 | O75: 123.6889946 | P75: 0 | Q75: 0 | R75: 0 | S75: 123.6889946
A76: 60 | B76: 63 | C76: 2018-04-01 | D76: 0 | E76: 0 | F76: 0 | G76: 0 | H76: 1710 | I76: 0 | J76: 0 | K76: 0 | M76: 0 | N76: 0 | O76: 123.6790221 | P76: 0 | Q76: 0 | R76: 0 | S76: 123.6790221
A77: 61 | B77: 64 | C77: 2018-05-01 | D77: 0 | E77: 0 | F77: 0 | G77: 0 | H77: 1740 | I77: 0 | J77: 0 | K77: 0 | M77: 0 | N77: 0 | O77: 123.6691759 | P77: 0 | Q77: 0 | R77: 0 | S77: 123.6691759
A78: 62 | B78: 65 | C78: 2018-06-01 | D78: 0 | E78: 0 | F78: 0 | G78: 0 | H78: 1770 | I78: 0 | J78: 0 | K78: 0 | M78: 0 | N78: 0 | O78: 0 | P78: 0 | Q78: 0 | R78: 0 | S78: 0
A79: 63 | B79: 66 | C79: 2018-07-01 | D79: 0 | E79: 0 | F79: 0 | G79: 0 | H79: 1800 | I79: 0 | J79: 0 | K79: 0 | M79: 0 | N79: 0 | O79: 0 | P79: 0 | Q79: 0 | R79: 0 | S79: 0
A80: 64 | B80: 67 | C80: 2018-08-01 | D80: 0 | E80: 0 | F80: 0 | G80: 0 | H80: 1830 | I80: 0 | J80: 0 | K80: 0 | M80: 0 | N80: 0 | O80: 0 | P80: 0 | Q80: 0 | R80: 0 | S80: 0
A81: 65 | B81: 68 | C81: 2018-09-01 | D81: 0 | E81: 0 | F81: 0 | G81: =G80-F81 -> 0 | H81: =IF(C81<=$C$13,0,DAYS360($C$13,C81)) -> 1860 | I81: 0 | J81: =E81-I81 -> 0 | K81: =F81+J81 -> 0 | M81: =IF(C81>$C$13,0, $C$13-C81) -> 0 | N81: =IF(C81>$C$13,0,DAYS360(C81,$C$13)) -> 0 | O81: 0 | P81: =IF(N81>0,(D81 + O81)*$C$11,0) -> 0 | Q81: =IF(M81>0,((D81 + O81)*(1+$C$12)^M81)-(D81 + O81),0) -> 0 | R81: 0 | S81: =K81+O81+P81+Q81+R81 -> 0
A82: 66 | B82: 69 | C82: =DATE(YEAR(C81),MONTH(C81)+1,DAY(C81)) -> 2018-10-01 | D82: =F82+E82 -> 0 | E82: 0 | F82: =IF(A82<=$C$3,$C$2/$C$3,0) -> 0 | G82: 0 | H82: 1890 | I82: 0 | J82: 0 | K82: 0 | M82: 0 | N82: 0 | O82: 0 | P82: 0 | Q82: 0 | R82: 0 | S82: 0
A83: 67 | B83: =B82+1 -> 70 | C83: 2018-11-01 | D83: 0 | E83: 0 | F83: 0 | G83: 0 | H83: 1920 | I83: =(D83*$C$5*H83)/(1+$C$5*H83) -> 0 | J83: 0 | K83: 0 | M83: 0 | N83: 0 | O83: 0 | P83: 0 | Q83: 0 | R83: 0 | S83: 0
A84: 68 | B84: 71 | C84: 2018-12-01 | D84: 0 | E84: 0 | F84: 0 | G84: 0 | H84: 1950 | I84: 0 | J84: 0 | K84: 0 | M84: 0 | N84: 0 | O84: 0 | P84: 0 | Q84: 0 | R84: 0 | S84: 0
A85: 69 | B85: 72 | C85: 2019-01-01 | D85: 0 | E85: 0 | F85: 0 | G85: 0 | H85: 1980 | I85: 0 | J85: 0 | K85: 0 | M85: 0 | N85: 0 | O85: 0 | P85: 0 | Q85: 0 | R85: 0 | S85: 0
A86: 70 | B86: 73 | C86: 2019-02-01 | D86: 0 | E86: 0 | F86: 0 | G86: 0 | H86: 2010 | I86: 0 | J86: 0 | K86: 0 | M86: 0 | N86: 0 | O86: 0 | P86: 0 | Q86: 0 | R86: 0 | S86: 0
A87: 71 | B87: 74 | C87: 2019-03-01 | D87: 0 | E87: 0 | F87: 0 | G87: 0 | H87: 2040 | I87: 0 | J87: 0 | K87: 0 | M87: 0 | N87: 0 | O87: 0 | P87: 0 | Q87: 0 | R87: 0 | S87: 0
A88: 72 | B88: 75 | C88: 2019-04-01 | D88: 0 | E88: 0 | F88: 0 | G88: 0 | H88: 2070 | I88: 0 | J88: 0 | K88: 0 | M88: 0 | N88: 0 | O88: 0 | P88: 0 | Q88: 0 | R88: 0 | S88: 0
A89: Total | D89: =SUM(D17:D88) -> 65100 | E89: =SUM(E17:E88) -> 5100 | F89: =SUM(F17:F88) -> 60000 | G89: 0

Sheet Simples_2_Juros
B1: Parcelamento | H1: Data base de resíduo
B2: Montante (PV) | C2: 360000 | E2: Dt. Parcela | F2: 2015-04-10 | H2: 2013-04-01
B3: Parcelas (n) | C3: 36 | E3: Principal | F3: =(C2+H15)/C3 -> 10030
B4: Juros | K4: Diferença de datas
C5: Data 1° juros | D5: (i) Taxa | E5: A cada X meses | F5: (i) Taxa AM | H5: (i) Taxa AD | I5: Juros Anuais | K5: 1° juros | L5: 2°juros | M5: =INT(DAYS360(DATE(YEAR($C$6),MONTH($C$6),1),DATE(YEAR($C$7),MONTH($C$7),1))/30) -> 15
B6: 1° juros | C6: 2015-04-01 | D6: 0.01 | E6: 1 | F6: =D6/IF(E6>0,E6,1) -> 0.01 | G6: =(DATE(YEAR(C6),MONTH(C6)+1,1))-1 -> 2015-04-30 | H6: =F6/30 -> 0.0003333333333 | I6: N | K6: 1° juros | L6: Vencimento | M6: =INT(DAYS360(DATE(YEAR($C$6),MONTH($C$6),1),DATE(YEAR($F$2),MONTH($F$2),1))/30) -> 0
B7: 2° juros | C7: 2016-07-01 | D7: 0.01 | E7: =E6 -> 1 | F7: =D7/IF(E7>0,E7,1) -> 0.01 | H7: =F7/30 -> 0.0003333333333 | K7: 2°juros | L7: Vencimento | M7: =INT(DAYS360(DATE(YEAR($C$7),MONTH($C$7),1),DATE(YEAR($F$2),MONTH($F$2),1))/30) -> -15 | O7: Juros no Mês antes da 1ª parcela | R7: =C6<F2 -> TRUE
B8: Dt. Parcela >= 1° juros | H8: =F2>=C6 -> TRUE | O8: Ano/mês vencimento | R8: =YEAR(F2)*100 + MONTH(F2) -> 201504
B9: Dt. Parcela >= 2° juros | H9: =F2>=C7 -> FALSE | K9: Dt Ini. Correção | M9: 2008-01-01 | O9: Ano/mês juros | R9: =YEAR(C6)*100 + MONTH(C6) -> 201504
B10: Recalculando o montante pela 1ª taxa de juros: | E10: =F6 -> 0.01 | H10: Pro rata - do PV¹ | K10: Dt. Fim Correção | M10: 2009-11-01 | O10: Juros em mês anterior da 1ª Parcela | R10: =R9<R8 -> FALSE
B11: Qtde meses com o 1° juros | E11: =IF(AND(H8,H9),M5,IF(H8,M6,0)) -> 0 | H11: S | K11: % Multa | M11: 0 | O11: Dias pro rata | P11: ínicio juros | R11: =IF(R7,C6,0) -> 2015-04-01
B12: Novo montante (PV¹) | E12: =C2+(C2*E10*E11) -> 360000 | H12: Dias pro-rata | K12: % Juros Atraso | M12: 0.00033 | P12: fim juros | R12: =IF(R7,IF(R10,G6,F2),0) -> 2015-04-10
B13: Recalculando o montante pela 2ª taxa de juros: | E13: =F7 -> 0.01 | H13: =IF(H11="S",R13,0) -> 9 | K13: Data de recebimento | M13: 2013-08-01 | P13: dias pro-rata | R13: =R12-R11 -> 9
B14: Qtde meses com o 1° juros | E14: =IF(H9,M7,0) -> 0 | H14: PV com juros pro rata
B15: Novo montante (PV¹) | E15: =E12+(E12*E13*E14)+H15 -> 361080 | H15: =IF(H11="S",C2*H6*H13,0) -> 1080
A17: Ano | B17: Ano | C17: k | D17: 1° juros | E17: 2° juros | F17: Vencimento | G17: Vencimento sempre no dia 01 | H17: Prestação | I17: 1° Juros | J17: 2º Juros | K17: Amort. | L17: Saldo Dev | M17: Antecipando | N17: Dias Adiant. 2º juros | O17: R$ desc. 2º Juros | P17: Dias adiant. 1º juros | Q17: R$ desc. 1º Juros | R17: Total de desconto | S17: Valor do juros com desconto | T17: Valor da Parcela com Desconto | V17: Dias Atraso | W17: Dias Atraso (360) | X17: Vlr. Reajuste | Y17: Multa Atraso | Z17: Juros Atraso | AA17: Corr. Atraso | AB17: Valor final
C18: 0 | L18: =C2+H15 -> 361080 | X18: 0 | AA18: 0
A19: =INT(DAYS360(DATE(YEAR($H$2),MONTH($H$2)+1,DAY($H$2)),DATE(YEAR($G19),MONTH($G19),DAY($G19)))/360) -> 1 | B19: =IF(A19<=0,0,A19) -> 1 | C19: 1 | D19: =IF($I$6="N",IF(G19>=$C$7,DAYS360($C$6,$C$7)/30,DAYS360($C$6,G19)/30),IF(B19=0,0,IF(B19=B18,D18,IF(G19>=$C$7,DAYS360($C$6,$C$7)/30,DAYS360($C$6,G19)/30)))) -> 0 | E19: =IF($I$6="N",IF(G19>=$C$7,DAYS360($C$7,G19)/30,0),IF(B19=0,0,IF(B19=B18,E18,IF(G19>=$C$7,DAYS360($C$7,G19)/30,0)))) -> 0 | F19: =F2 -> 2015-04-10 | G19: =DATE(YEAR(F19),MONTH(F19),1) -> 2015-04-01 | H19: =K19+I19+J19 -> 10030 | I19: =(K19*$D$6*D19) -> 0 | J19: =(K19*E19*$D$7) -> 0 | K19: =IF(C19<=$C$3,$F$3,0) -> 10030 | L19: =L18-K19 -> 351050 | M19: =IF($M$13<F19,TRUE,FALSE) -> TRUE | N19: =IF(M19,IF(F19>$C$7,DAYS360(IF($M$13>=$C$7,$M$13,$C$7),F19,FALSE),0),0) -> 0 | O19: =H19 - (H19/(1+$H$7*N19)) -> 0 | P19: =IF(AND(M19,$M$13<=$C$7),DAYS360($M$13,IF(F19>=$C$7,$C$7,F19)),0) -> 609 | Q19: =((H19-O19)*$H$6*P19)/(1+$H$6*P19) -> 1692.510391 | R19: =Q19+O19 -> 1692.510391 | S19: =I19-R19 -> -1692.510391 | T19: =K19+R19 -> 11722.51039 | V19: =IF(F19>$M$13,0, $M$13-F19) -> 0 | W19: =IF(F19>$M$13,0,DAYS360(F19,$M$13)) -> 0 | X19: 370.0336328 | Y19: =IF(W19>0,(H19 + X19)*$M$11,0) -> 0 | Z19: =IF(V19>0,((H19 + X19)*(1+$M$12)^V19)-(H19 + X19),0) -> 0 | AA19: 0.01295676419 | AB19: =T19+X19+Y19+Z19+AA19 -> 12092.55698
A20: 2 | B20: =IF(A20<=0,0,A20) -> 2 | C20: 2 | D20: 1 | E20: 0 | F20: =DATE(YEAR(F19),MONTH(F19)+$E$6,DAY(F19)) -> 2015-05-10 | G20: 2015-05-01 | H20: =K20+I20+J20 -> 10130.3 | I20: 100.3 | J20: 0 | K20: 10030 | L20: 341020 | M20: TRUE | N20: 0 | O20: 0 | P20: =IF(AND(M20,$M$13<=$C$7),DAYS360($M$13,IF(F20>=$C$7,$C$7,F20)),0) -> 639 | Q20: =((H20-O20)*$H$6*P20)/(1+$H$6*P20) -> 1778.857296 | R20: =Q20+O20 -> 1778.857296 | S20: =I20-R20 -> -1678.557296 | T20: =K20+S20 -> 8351.442704 | V20: 0 | W20: 0 | X20: 373.6973321 | Y20: 0 | Z20: 0 | AA20: 0.006171752575 | AB20: 8725.146208
A21: 2 | B21: 2 | C21: 3 | D21: 2 | E21: 0 | F21: =DATE(YEAR(F20),MONTH(F20)+$E$6,DAY(F20)) -> 2015-06-10 | G21: 2015-06-01 | H21: 10230.6 | I21: 200.6 | J21: 0 | K21: 10030 | L21: 330990 | M21: TRUE | N21: 0 | O21: 0 | P21: 669 | Q21: =((H21-O21)*$H$6*P21)/(1+$H$6*P21) -> 1865.432379 | R21: 1865.432379 | S21: -1664.832379 | T21: 8365.167621 | V21: 0 | W21: 0 | X21: 377.3610315 | Y21: 0 | Z21: 0 | AA21: 0.002343721946 | AB21: 8742.530996
A22: 2 | B22: 2 | C22: 4 | D22: 3 | E22: 0 | F22: 2015-07-10 | G22: 2015-07-01 | H22: 10330.9 | I22: 300.9 | J22: 0 | K22: 10030 | L22: 320960 | M22: TRUE | N22: 0 | O22: 0 | P22: 699 | Q22: =H22 - (H22/(1+$H$6*P22)) -> 1952.230089 | R22: 1952.230089 | S22: -1651.330089 | T22: 8378.669911 | V22: 0 | W22: 0 | X22: 381.0247308 | Y22: 0 | Z22: 0 | AA22: 0.0002146629336 | AB22: 8759.694856
A23: 2 | B23: 2 | C23: 5 | D23: 4 | E23: 0 | F23: 2015-08-10 | G23: 2015-08-01 | H23: 10431.2 | I23: 401.2 | J23: 0 | K23: 10030 | L23: 310930 | M23: TRUE | N23: 0 | O23: 0 | P23: 729 | Q23: 2039.245052 | R23: 2039.245052 | S23: -1638.045052 | T23: 8391.954948 | V23: 0 | W23: 0 | X23: 381.1312056 | Y23: 0 | Z23: 0 | AA23: 0 | AB23: 8773.086153
A24: 2 | B24: 2 | C24: 6 | D24: 5 | E24: 0 | F24: 2015-09-10 | G24: 2015-09-01 | H24: 10531.5 | I24: 501.5 | J24: 0 | K24: 10030 | L24: 300900 | M24: TRUE | N24: 0 | O24: 0 | P24: 759 | Q24: 2126.472067 | R24: 2126.472067 | S24: -1624.972067 | T24: 8405.027933 | V24: 0 | W24: 0 | X24: 380.9863926 | Y24: 0 | Z24: 0 | AA24: 0 | AB24: 8786.014326
A25: 2 | B25: 2 | C25: 7 | D25: 6 | E25: 0 | F25: 2015-10-10 | G25: 2015-10-01 | H25: 10631.8 | I25: 601.8 | J25: 0 | K25: 10030 | L25: 290870 | M25: TRUE | N25: 0 | O25: 0 | P25: 789 | Q25: 2213.906097 | R25: 2213.906097 | S25: -1612.106097 | T25: 8417.893903 | V25: 0 | W25: 0 | X25: 380.8443933 | Y25: 0 | Z25: 0 | AA25: 0 | AB25: 8798.738297
A26: 2 | B26: 2 | C26: 8 | D26: 7 | E26: 0 | F26: 2015-11-10 | G26: 2015-11-01 | H26: 10732.1 | I26: 702.1 | J26: 0 | K26: 10030 | L26: 280840 | M26: TRUE | N26: 0 | O26: 0 | P26: 819 | Q26: 2301.542262 | R26: 2301.542262 | S26: -1599.442262 | T26: 8430.557738 | V26: 0 | W26: 0 | X26: 380.7051265 | Y26: 0 | Z26: 0 | AA26: 0 | AB26: 8811.262864
A27: 2 | B27: 2 | C27: 9 | D27: 8 | E27: 0 | F27: =DATE(YEAR(F26),MONTH(F26)+$E$6,DAY(F26)) -> 2015-12-10 | G27: 2015-12-01 | H27: 10832.4 | I27: 802.4 | J27: 0 | K27: 10030 | L27: 270810 | M27: TRUE | N27: 0 | O27: 0 | P27: 849 | Q27: 2389.375838 | R27: 2389.375838 | S27: -1586.975838 | T27: 8443.024162 | V27: 0 | W27: 0 | X27: 380.5685141 | Y27: 0 | Z27: 0 | AA27: 0 | AB27: 8823.592676
A28: 2 | B28: 2 | C28: 10 | D28: 9 | E28: 0 | F28: 2016-01-10 | G28: 2016-01-01 | H28: 10932.7 | I28: 902.7 | J28: 0 | K28: 10030 | L28: 260780 | M28: TRUE | N28: 0 | O28: 0 | P28: 879 | Q28: 2477.402243 | R28: 2477.402243 | S28: -1574.702243 | T28: 8455.297757 | V28: 0 | W28: 0 | X28: 380.434481 | Y28: 0 | Z28: 0 | AA28: 0 | AB28: 8835.732238
A29: 2 | B29: 2 | C29: 11 | D29: 10 | E29: 0 | F29: 2016-02-10 | G29: 2016-02-01 | H29: 11033 | I29: 1003 | J29: 0 | K29: 10030 | L29: 250750 | M29: TRUE | N29: 0 | O29: 0 | P29: 909 | Q29: 2565.617038 | R29: 2565.617038 | S29: -1562.617038 | T29: 8467.382962 | V29: 0 | W29: 0 | X29: 380.3029546 | Y29: 0 | Z29: 0 | AA29: 0 | AB29: 8847.685917
A30: 2 | B30: 2 | C30: 12 | D30: 11 | E30: 0 | F30: 2016-03-10 | G30: 2016-03-01 | H30: 11133.3 | I30: 1103.3 | J30: 0 | K30: 10030 | L30: 240720 | M30: =IF($M$11<F30,TRUE,FALSE) -> TRUE | N30: 0 | O30: 0 | P30: 939 | Q30: 2654.015918 | R30: 2654.015918 | S30: -1550.715918 | T30: 8479.284082 | V30: 0 | W30: 0 | X30: 380.1738655 | Y30: 0 | Z30: 0 | AA30: 0 | AB30: 8859.457948
A31: 2 | B31: 2 | C31: 13 | D31: 12 | E31: 0 | F31: 2016-04-10 | G31: 2016-04-01 | H31: 11233.6 | I31: 1203.6 | J31: 0 | K31: 10030 | L31: 230690 | M31: TRUE | N31: 0 | O31: 0 | P31: 969 | Q31: 2742.594709 | R31: 2742.594709 | S31: -1538.994709 | T31: 8491.005291 | V31: 0 | W31: 0 | X31: 380.0471464 | Y31: 0 | Z31: 0 | AA31: 0 | AB31: 8871.052437
A32: 3 | B32: 3 | C32: 14 | D32: 13 | E32: 0 | F32: 2016-05-10 | G32: 2016-05-01 | H32: 11333.9 | I32: 1303.9 | J32: 0 | K32: 10030 | L32: 220660 | M32: TRUE | N32: 0 | O32: 0 | P32: 999 | Q32: 2831.349362 | R32: 2831.349362 | S32: -1527.449362 | T32: 8502.550638 | V32: 0 | W32: 0 | X32: 379.9227327 | Y32: 0 | Z32: 0 | AA32: 0 | AB32: 8882.47337
A33: 3 | B33: 3 | C33: 15 | D33: 14 | E33: 0 | F33: 2016-06-10 | G33: 2016-06-01 | H33: 11434.2 | I33: 1404.2 | J33: 0 | K33: 10030 | L33: 210630 | M33: TRUE | N33: 0 | O33: 0 | P33: 1029 | Q33: 2920.275949 | R33: 2920.275949 | S33: -1516.075949 | T33: 8513.924051 | V33: 0 | W33: 0 | X33: 379.800562 | Y33: 0 | Z33: 0 | AA33: 0 | AB33: 8893.724613
A34: 3 | B34: 3 | C34: 16 | D34: 15 | E34: 0 | F34: 2016-07-10 | G34: 2016-07-01 | H34: 11534.5 | I34: 1504.5 | J34: 0 | K34: 10030 | L34: 200600 | M34: TRUE | N34: =IF(M34,IF(F34>$C$7,DAYS360(IF($M$13>=$C$7,$M$13,$C$7),F34,FALSE),0),0) -> 9 | O34: 34.5 | P34: 1050 | Q34: 2990.425926 | R34: 3024.925926 | S34: -1520.425926 | T34: 8509.574074 | V34: 0 | W34: 0 | X34: 379.6805743 | Y34: 0 | Z34: 0 | AA34: 0 | AB34: 8889.254648
A35: 3 | B35: 3 | C35: 17 | D35: 15 | E35: 1 | F35: 2016-08-10 | G35: 2016-08-01 | H35: 11634.8 | I35: 1504.5 | J35: 100.3 | K35: 10030 | L35: 190570 | M35: TRUE | N35: =IF(M35,IF(F35>$C$7,DAYS360(IF($M$13>=$C$7,$M$13,$C$7),F35,FALSE),0),0) -> 39 | O35: 149.3113524 | P35: 1050 | Q35: 3016.42963 | R35: 3165.740982 | S35: -1661.240982 | T35: 8368.759018 | V35: 0 | W35: 0 | X35: 379.5627115 | Y35: 0 | Z35: 0 | AA35: 0 | AB35: 8748.321729
A36: 3 | B36: 3 | C36: 18 | D36: 15 | E36: 2 | F36: 2016-09-10 | G36: 2016-09-01 | H36: 11735.1 | I36: 1504.5 | J36: 200.6 | K36: 10030 | L36: 180540 | M36: TRUE | N36: 69 | O36: 263.8390029 | P36: 1050 | Q36: 3042.433333 | R36: 3306.272336 | S36: -1801.772336 | T36: 8228.227664 | V36: 0 | W36: 0 | X36: 379.4469176 | Y36: 0 | Z36: 0 | AA36: 0 | AB36: 8607.674581
A37: 3 | B37: 3 | C37: 19 | D37: 15 | E37: 3 | F37: 2016-10-10 | G37: 2016-10-01 | H37: 11835.4 | I37: 1504.5 | J37: 300.9 | K37: 10030 | L37: 170510 | M37: TRUE | N37: 99 | O37: 378.0911907 | P37: 1050 | Q37: 3068.437037 | R37: 3446.528228 | S37: -1942.028228 | T37: 8087.971772 | V37: 0 | W37: 0 | X37: 379.3331388 | Y37: 0 | Z37: 0 | AA37: 0 | AB37: 8467.304911
A38: 3 | B38: 3 | C38: 20 | D38: 15 | E38: 4 | F38: 2016-11-10 | G38: 2016-11-01 | H38: 11935.7 | I38: 1504.5 | J38: 401.2 | K38: 10030 | L38: 160480 | M38: TRUE | N38: 129 | O38: 492.0758389 | P38: 1050 | Q38: 3094.440741 | R38: 3586.51658 | S38: -2082.01658 | T38: 7947.98342 | V38: 0 | W38: 0 | X38: 379.2213227 | Y38: 0 | Z38: 0 | AA38: 0 | AB38: 8327.204743
A39: 3 | B39: 3 | C39: 21 | D39: 15 | E39: 5 | F39: 2016-12-10 | G39: 2016-12-01 | H39: 12036 | I39: 1504.5 | J39: 501.5 | K39: 10030 | L39: 150450 | M39: TRUE | N39: 159 | O39: 605.8005698 | P39: 1050 | Q39: 3120.444444 | R39: 3726.245014 | S39: -2221.745014 | T39: 7808.254986 | V39: 0 | W39: 0 | X39: 0 | Y39: 0 | Z39: 0 | AA39: 0 | AB39: 7808.254986
A40: 3 | B40: 3 | C40: 22 | D40: 15 | E40: 6 | F40: 2017-01-10 | G40: 2017-01-01 | H40: 12136.3 | I40: 1504.5 | J40: 601.8 | K40: 10030 | L40: 140420 | M40: TRUE | N40: 189 | O40: 719.2727187 | P40: 1050 | Q40: 3146.448148 | R40: 3865.720867 | S40: -2361.220867 | T40: 7668.779133 | V40: 0 | W40: 0 | X40: 0 | Y40: 0 | Z40: 0 | AA40: 0 | AB40: 7668.779133
A41: 3 | B41: 3 | C41: 23 | D41: 15 | E41: 7 | F41: 2017-02-10 | G41: 2017-02-01 | H41: 12236.6 | I41: 1504.5 | J41: 702.1 | K41: 10030 | L41: 130390 | M41: TRUE | N41: 219 | O41: 832.4993476 | P41: 1050 | Q41: 3172.451852 | R41: 4004.951199 | S41: -2500.451199 | T41: 7529.548801 | V41: 0 | W41: 0 | X41: 0 | Y41: 0 | Z41: 0 | AA41: 0 | AB41: 7529.548801
A42: 3 | B42: 3 | C42: 24 | D42: 15 | E42: 8 | F42: 2017-03-10 | G42: 2017-03-01 | H42: 12336.9 | I42: 1504.5 | J42: 802.4 | K42: 10030 | L42: 120360 | M42: TRUE | N42: 249 | O42: 945.4872576 | P42: 1050 | Q42: 3198.455556 | R42: 4143.942813 | S42: -2639.442813 | T42: 7390.557187 | V42: 0 | W42: 0 | X42: 0 | Y42: 0 | Z42: 0 | AA42: 0 | AB42: 7390.557187
A43: 3 | B43: 3 | C43: 25 | D43: 15 | E43: 9 | F43: 2017-04-10 | G43: 2017-04-01 | H43: 12437.2 | I43: 1504.5 | J43: 902.7 | K43: 10030 | L43: 110330 | M43: TRUE | N43: 279 | O43: 1058.243001 | P43: 1050 | Q43: 3224.459259 | R43: 4282.70226 | S43: -2778.20226 | T43: 7251.79774 | V43: 0 | W43: 0 | X43: 0 | Y43: 0 | Z43: 0 | AA43: 0 | AB43: 7251.79774
A44: 4 | B44: 4 | C44: 26 | D44: 15 | E44: 10 | F44: 2017-05-10 | G44: 2017-05-01 | H44: 12537.5 | I44: 1504.5 | J44: 1003 | K44: 10030 | L44: 100300 | M44: TRUE | N44: 309 | O44: 1170.772892 | P44: 1050 | Q44: 3250.462963 | R44: 4421.235855 | S44: -2916.735855 | T44: 7113.264145 | V44: 0 | W44: 0 | X44: 0 | Y44: 0 | Z44: 0 | AA44: 0 | AB44: 7113.264145
A45: 4 | B45: 4 | C45: 27 | D45: 15 | E45: 11 | F45: 2017-06-10 | G45: 2017-06-01 | H45: 12637.8 | I45: 1504.5 | J45: 1103.3 | K45: 10030 | L45: 90270 | M45: TRUE | N45: 339 | O45: 1283.083019 | P45: 1050 | Q45: 3276.466667 | R45: 4559.549686 | S45: -3055.049686 | T45: 6974.950314 | V45: 0 | W45: 0 | X45: 0 | Y45: 0 | Z45: 0 | AA45: 0 | AB45: 6974.950314
A46: 4 | B46: 4 | C46: 28 | D46: 15 | E46: 12 | F46: 2017-07-10 | G46: 2017-07-01 | H46: 12738.1 | I46: 1504.5 | J46: 1203.6 | K46: 10030 | L46: 80240 | M46: TRUE | N46: 369 | O46: 1395.179252 | P46: 1050 | Q46: 3302.47037 | R46: 4697.649622 | S46: -3193.149622 | T46: 6836.850378 | V46: 0 | W46: 0 | X46: 0 | Y46: 0 | Z46: 0 | AA46: 0 | AB46: 6836.850378
A47: 4 | B47: 4 | C47: 29 | D47: 15 | E47: 13 | F47: 2017-08-10 | G47: 2017-08-01 | H47: 12838.4 | I47: 1504.5 | J47: 1303.9 | K47: 10030 | L47: 70210 | M47: TRUE | N47: 399 | O47: 1507.067255 | P47: 1050 | Q47: 3328.474074 | R47: 4835.541329 | S47: -3331.041329 | T47: 6698.958671 | V47: 0 | W47: 0 | X47: 0 | Y47: 0 | Z47: 0 | AA47: 0 | AB47: 6698.958671
A48: 4 | B48: 4 | C48: 30 | D48: 15 | E48: 14 | F48: 2017-09-10 | G48: 2017-09-01 | H48: 12938.7 | I48: 1504.5 | J48: 1404.2 | K48: 10030 | L48: 60180 | M48: TRUE | N48: 429 | O48: 1618.752493 | P48: 1050 | Q48: 3354.477778 | R48: 4973.230271 | S48: -3468.730271 | T48: 6561.269729 | V48: 0 | W48: 0 | X48: 0 | Y48: 0 | Z48: 0 | AA48: 0 | AB48: 6561.269729
A49: 4 | B49: 4 | C49: 31 | D49: 15 | E49: 15 | F49: 2017-10-10 | G49: 2017-10-01 | H49: 13039 | I49: 1504.5 | J49: 1504.5 | K49: 10030 | L49: 50150 | M49: TRUE | N49: 459 | O49: 1730.240243 | P49: 1050 | Q49: 3380.481481 | R49: 5110.721724 | S49: -3606.221724 | T49: 6423.778276 | V49: 0 | W49: 0 | X49: 0 | Y49: 0 | Z49: 0 | AA49: 0 | AB49: 6423.778276
A50: 4 | B50: 4 | C50: 32 | D50: 15 | E50: 16 | F50: 2017-11-10 | G50: 2017-11-01 | H50: 13139.3 | I50: 1504.5 | J50: 1604.8 | K50: 10030 | L50: 40120 | M50: TRUE | N50: 489 | O50: 1841.535598 | P50: 1050 | Q50: 3406.485185 | R50: 5248.020783 | S50: -3743.520783 | T50: 6286.479217 | V50: 0 | W50: 0 | X50: 0 | Y50: 0 | Z50: 0 | AA50: 0 | AB50: 6286.479217
A51: =INT(DAYS360(DATE(YEAR($H$2),MONTH($H$2)+1,DAY($H$2)),DATE(YEAR($G51),MONTH($G51),DAY($G51)))/360) -> 4 | B51: 4 | C51: 33 | D51: 15 | E51: 17 | F51: 2017-12-10 | G51: 2017-12-01 | H51: 13239.6 | I51: =(K51*$D$6*D51) -> 1504.5 | J51: =(K51*E51*$D$7) -> 1705.1 | K51: =IF(C51<=$C$3,$F$3,0) -> 10030 | L51: 30090 | M51: TRUE | N51: 519 | O51: =H51 - (H51/(1+$H$7*N51)) -> 1952.643478 | P51: 1050 | Q51: 3432.488889 | R51: 5385.132367 | S51: -3880.632367 | T51: 6149.367633 | V51: =IF(F51>$M$13,0, $M$13-F51) -> 0 | W51: =IF(F51>$M$13,0,DAYS360(F51,$M$13)) -> 0 | X51: 0 | Y51: =IF(W51>0,(H51 + X51)*$M$11,0) -> 0 | Z51: =IF(V51>0,((H51 + X51)*(1+$M$12)^V51)-(H51 + X51),0) -> 0 | AA51: 0 | AB51: 6149.367633
A52: 4 | B52: 4 | C52: 34 | D52: 15 | E52: 18 | F52: 2018-01-10 | G52: 2018-01-01 | H52: 13339.9 | I52: 1504.5 | J52: 1805.4 | K52: 10030 | L52: 20060 | M52: TRUE | N52: 549 | O52: 2063.568639 | P52: 1050 | Q52: 3458.492593 | R52: 5522.061232 | S52: -4017.561232 | T52: =K52+S52 -> 6012.438768 | V52: 0 | W52: 0 | X52: 0 | Y52: 0 | Z52: 0 | AA52: 0 | AB52: 6012.438768
A53: 4 | B53: 4 | C53: 35 | D53: 15 | E53: 19 | F53: 2018-02-10 | G53: 2018-02-01 | H53: 13440.2 | I53: 1504.5 | J53: 1905.7 | K53: 10030 | L53: 10030 | M53: TRUE | N53: 579 | O53: 2174.315675 | P53: 1050 | Q53: 3484.496296 | R53: 5658.811971 | S53: -4154.311971 | T53: 5875.688029 | V53: 0 | W53: 0 | X53: 0 | Y53: 0 | Z53: 0 | AA53: 0 | AB53: 5875.688029
A54: 4 | B54: 4 | C54: 36 | D54: 15 | E54: 20 | F54: 2018-03-10 | G54: 2018-03-01 | H54: 13540.5 | I54: 1504.5 | J54: 2006 | K54: 10030 | L54: 0 | M54: TRUE | N54: 609 | O54: 2284.889027 | P54: 1050 | Q54: =H54 - (H54/(1+$H$6*P54)) -> 3510.5 | R54: 5795.389027 | S54: -4290.889027 | T54: 5739.110973 | V54: 0 | W54: 0 | X54: 0 | Y54: 0 | Z54: 0 | AA54: 0 | AB54: 5739.110973
A55: 4 | B55: 4 | C55: 37 | D55: 15 | E55: 21 | F55: 2018-04-10 | G55: 2018-04-01 | H55: 0 | I55: 0 | J55: 0 | K55: 0 | L55: 0 | M55: TRUE | N55: 639 | O55: 0 | P55: 1050 | Q55: 0 | R55: 0 | S55: 0 | T55: 0 | V55: 0 | W55: 0 | X55: 0 | Y55: 0 | Z55: 0 | AA55: 0 | AB55: 0
A56: 5 | B56: 5 | C56: 38 | D56: 15 | E56: 22 | F56: 2018-05-10 | G56: 2018-05-01 | H56: 0 | I56: 0 | J56: 0 | K56: 0 | L56: 0 | M56: TRUE | N56: 669 | O56: 0 | P56: 1050 | Q56: 0 | R56: 0 | S56: 0 | T56: 0 | V56: 0 | W56: 0 | X56: 0 | Y56: 0 | Z56: 0 | AA56: 0 | AB56: 0
A57: 5 | B57: 5 | C57: 39 | D57: 15 | E57: 23 | F57: 2018-06-10 | G57: 2018-06-01 | H57: 0 | I57: 0 | J57: 0 | K57: 0 | L57: 0 | M57: TRUE | N57: 699 | O57: 0 | P57: 1050 | Q57: 0 | R57: 0 | S57: 0 | T57: 0 | V57: 0 | W57: 0 | X57: 0 | Y57: 0 | Z57: 0 | AA57: 0 | AB57: 0
A58: 5 | B58: 5 | C58: 40 | D58: 15 | E58: 24 | F58: 2018-07-10 | G58: 2018-07-01 | H58: 0 | I58: 0 | J58: 0 | K58: 0 | L58: 0 | M58: TRUE | N58: 729 | O58: 0 | P58: 1050 | Q58: 0 | R58: 0 | S58: 0 | T58: 0 | V58: 0 | W58: 0 | X58: 0 | Y58: 0 | Z58: 0 | AA58: 0 | AB58: 0
A59: 5 | B59: 5 | C59: 41 | D59: 15 | E59: 25 | F59: 2018-08-10 | G59: 2018-08-01 | H59: 0 | I59: 0 | J59: 0 | K59: 0 | L59: 0 | M59: TRUE | N59: 759 | O59: 0 | P59: 1050 | Q59: 0 | R59: 0 | S59: 0 | T59: 0 | V59: 0 | W59: 0 | X59: 0 | Y59: 0 | Z59: 0 | AA59: 0 | AB59: 0
A60: 5 | B60: 5 | C60: 42 | D60: 15 | E60: 26 | F60: 2018-09-10 | G60: 2018-09-01 | H60: 0 | I60: 0 | J60: 0 | K60: 0 | L60: 0 | M60: TRUE | N60: 789 | O60: 0 | P60: 1050 | Q60: 0 | R60: 0 | S60: 0 | T60: 0 | V60: 0 | W60: 0 | X60: 0 | Y60: 0 | Z60: 0 | AA60: 0 | AB60: 0
A61: 5 | B61: 5 | C61: 43 | D61: 15 | E61: 27 | F61: 2018-10-10 | G61: 2018-10-01 | H61: 0 | I61: 0 | J61: 0 | K61: 0 | L61: 0 | M61: TRUE | N61: 819 | O61: 0 | P61: 1050 | Q61: 0 | R61: 0 | S61: 0 | T61: 0 | V61: 0 | W61: 0 | X61: 0 | Y61: 0 | Z61: 0 | AA61: 0 | AB61: 0
A62: 5 | B62: 5 | C62: 44 | D62: 15 | E62: 28 | F62: 2018-11-10 | G62: 2018-11-01 | H62: 0 | I62: 0 | J62: 0 | K62: 0 | L62: 0 | M62: =IF($M$11<F62,TRUE,FALSE) -> TRUE | N62: 849 | O62: 0 | P62: 1050 | Q62: 0 | R62: 0 | S62: 0 | T62: 0 | V62: 0 | W62: 0 | X62: 0 | Y62: 0 | Z62: 0 | AA62: 0 | AB62: 0
A63: 5 | B63: 5 | C63: 45 | D63: 15 | E63: 29 | F63: 2018-12-10 | G63: 2018-12-01 | H63: 0 | I63: 0 | J63: 0 | K63: 0 | L63: 0 | M63: TRUE | N63: 879 | O63: 0 | P63: 1050 | Q63: 0 | R63: 0 | S63: 0 | T63: 0 | V63: 0 | W63: 0 | X63: 0 | Y63: 0 | Z63: 0 | AA63: 0 | AB63: 0
A64: 5 | B64: 5 | C64: 46 | D64: 15 | E64: 30 | F64: 2019-01-10 | G64: 2019-01-01 | H64: 0 | I64: 0 | J64: 0 | K64: 0 | L64: 0 | M64: TRUE | N64: 909 | O64: 0 | P64: 1050 | Q64: 0 | R64: 0 | S64: 0 | T64: 0 | V64: 0 | W64: 0 | X64: 0 | Y64: 0 | Z64: 0 | AA64: 0 | AB64: 0
A65: 5 | B65: 5 | C65: 47 | D65: 15 | E65: 31 | F65: 2019-02-10 | G65: 2019-02-01 | H65: 0 | I65: 0 | J65: 0 | K65: 0 | L65: 0 | M65: TRUE | N65: 939 | O65: 0 | P65: 1050 | Q65: 0 | R65: 0 | S65: 0 | T65: 0 | V65: 0 | W65: 0 | X65: 0 | Y65: 0 | Z65: 0 | AA65: 0 | AB65: 0
A66: 5 | B66: 5 | C66: 48 | D66: 15 | E66: 32 | F66: 2019-03-10 | G66: 2019-03-01 | H66: 0 | I66: 0 | J66: 0 | K66: 0 | L66: 0 | M66: TRUE | N66: 969 | O66: 0 | P66: 1050 | Q66: 0 | R66: 0 | S66: 0 | T66: 0 | V66: 0 | W66: 0 | X66: 0 | Y66: 0 | Z66: 0 | AA66: 0 | AB66: 0
A67: 5 | B67: 5 | C67: 49 | D67: 15 | E67: 33 | F67: 2019-04-10 | G67: 2019-04-01 | H67: 0 | I67: 0 | J67: 0 | K67: 0 | L67: 0 | M67: TRUE | N67: 999 | O67: 0 | P67: 1050 | Q67: 0 | R67: 0 | S67: 0 | T67: 0 | V67: 0 | W67: 0 | X67: 0 | Y67: 0 | Z67: 0 | AA67: 0 | AB67: 0
A68: 6 | B68: 6 | C68: 50 | D68: 15 | E68: 34 | F68: 2019-05-10 | G68: 2019-05-01 | H68: 0 | I68: 0 | J68: 0 | K68: 0 | L68: 0 | M68: TRUE | N68: 1029 | O68: 0 | P68: 1050 | Q68: 0 | R68: 0 | S68: 0 | T68: 0 | V68: 0 | W68: 0 | X68: 0 | Y68: 0 | Z68: 0 | AA68: 0 | AB68: 0
A69: 6 | B69: 6 | C69: 51 | D69: 15 | E69: 35 | F69: 2019-06-10 | G69: 2019-06-01 | H69: 0 | I69: 0 | J69: 0 | K69: 0 | L69: 0 | M69: TRUE | N69: 1059 | O69: 0 | P69: 1050 | Q69: 0 | R69: 0 | S69: 0 | T69: 0 | V69: 0 | W69: 0 | X69: 0 | Y69: 0 | Z69: 0 | AA69: 0 | AB69: 0
A70: 6 | B70: 6 | C70: 52 | D70: 15 | E70: 36 | F70: 2019-07-10 | G70: 2019-07-01 | H70: 0 | I70: 0 | J70: 0 | K70: 0 | L70: 0 | M70: TRUE | N70: 1089 | O70: 0 | P70: 1050 | Q70: 0 | R70: 0 | S70: 0 | T70: 0 | V70: 0 | W70: 0 | X70: 0 | Y70: 0 | Z70: 0 | AA70: 0 | AB70: 0
A71: 6 | B71: 6 | C71: 53 | D71: 15 | E71: 37 | F71: 2019-08-10 | G71: 2019-08-01 | H71: 0 | I71: 0 | J71: 0 | K71: 0 | L71: 0 | M71: TRUE | N71: 1119 | O71: 0 | P71: 1050 | Q71: 0 | R71: 0 | S71: 0 | T71: 0 | V71: 0 | W71: 0 | X71: 0 | Y71: 0 | Z71: 0 | AA71: 0 | AB71: 0
A72: 6 | B72: 6 | C72: 54 | D72: 15 | E72: 38 | F72: 2019-09-10 | G72: 2019-09-01 | H72: 0 | I72: 0 | J72: 0 | K72: 0 | L72: 0 | M72: TRUE | N72: 1149 | O72: 0 | P72: 1050 | Q72: 0 | R72: 0 | S72: 0 | T72: 0 | V72: 0 | W72: 0 | X72: 0 | Y72: 0 | Z72: 0 | AA72: 0 | AB72: 0
A73: 6 | B73: 6 | C73: 55 | D73: 15 | E73: 39 | F73: 2019-10-10 | G73: 2019-10-01 | H73: 0 | I73: 0 | J73: 0 | K73: 0 | L73: 0 | M73: TRUE | N73: 1179 | O73: 0 | P73: 1050 | Q73: 0 | R73: 0 | S73: 0 | T73: 0 | V73: 0 | W73: 0 | X73: 0 | Y73: 0 | Z73: 0 | AA73: 0 | AB73: 0
A74: 6 | B74: 6 | C74: 56 | D74: 15 | E74: 40 | F74: 2019-11-10 | G74: 2019-11-01 | H74: 0 | I74: 0 | J74: 0 | K74: 0 | L74: 0 | M74: TRUE | N74: 1209 | O74: 0 | P74: 1050 | Q74: 0 | R74: 0 | S74: 0 | T74: 0 | V74: 0 | W74: 0 | X74: 0 | Y74: 0 | Z74: 0 | AA74: 0 | AB74: 0
A75: 6 | B75: 6 | C75: 57 | D75: 15 | E75: 41 | F75: 2019-12-10 | G75: 2019-12-01 | H75: 0 | I75: 0 | J75: 0 | K75: 0 | L75: 0 | M75: TRUE | N75: 1239 | O75: 0 | P75: 1050 | Q75: 0 | R75: 0 | S75: 0 | T75: 0 | V75: 0 | W75: 0 | X75: 0 | Y75: 0 | Z75: 0 | AA75: 0 | AB75: 0
A76: 6 | B76: 6 | C76: 58 | D76: 15 | E76: 42 | F76: 2020-01-10 | G76: 2020-01-01 | H76: 0 | I76: 0 | J76: 0 | K76: 0 | L76: 0 | M76: TRUE | N76: 1269 | O76: 0 | P76: 1050 | Q76: 0 | R76: 0 | S76: 0 | T76: 0 | V76: 0 | W76: 0 | X76: 0 | Y76: 0 | Z76: 0 | AA76: 0 | AB76: 0
A77: 6 | B77: 6 | C77: 59 | D77: 15 | E77: 43 | F77: 2020-02-10 | G77: 2020-02-01 | H77: 0 | I77: 0 | J77: 0 | K77: 0 | L77: 0 | M77: TRUE | N77: 1299 | O77: 0 | P77: 1050 | Q77: 0 | R77: 0 | S77: 0 | T77: 0 | V77: 0 | W77: 0 | X77: 0 | Y77: 0 | Z77: 0 | AA77: 0 | AB77: 0
A78: 6 | B78: 6 | C78: 60 | D78: 15 | E78: 44 | F78: 2020-03-10 | G78: 2020-03-01 | H78: 0 | I78: 0 | J78: 0 | K78: 0 | L78: 0 | M78: TRUE | N78: 1329 | O78: 0 | P78: 1050 | Q78: 0 | R78: 0 | S78: 0 | T78: 0 | V78: 0 | W78: 0 | X78: 0 | Y78: 0 | Z78: 0 | AA78: 0 | AB78: 0
A79: 6 | B79: 6 | C79: 61 | D79: 15 | E79: 45 | F79: 2020-04-10 | G79: 2020-04-01 | H79: 0 | I79: 0 | J79: 0 | K79: 0 | L79: 0 | M79: TRUE | N79: 1359 | O79: 0 | P79: 1050 | Q79: 0 | R79: 0 | S79: 0 | T79: 0 | V79: 0 | W79: 0 | X79: 0 | Y79: 0 | Z79: 0 | AA79: 0 | AB79: 0
A80: 7 | B80: 7 | C80: 62 | D80: 15 | E80: 46 | F80: 2020-05-10 | G80: 2020-05-01 | H80: 0 | I80: 0 | J80: 0 | K80: 0 | L80: 0 | M80: TRUE | N80: 1389 | O80: 0 | P80: 1050 | Q80: 0 | R80: 0 | S80: 0 | T80: 0 | V80: 0 | W80: 0 | X80: 0 | Y80: 0 | Z80: 0 | AA80: 0 | AB80: 0
A81: 7 | B81: 7 | C81: 63 | D81: 15 | E81: 47 | F81: 2020-06-10 | G81: 2020-06-01 | H81: 0 | I81: 0 | J81: 0 | K81: 0 | L81: 0 | M81: TRUE | N81: 1419 | O81: 0 | P81: 1050 | Q81: 0 | R81: 0 | S81: 0 | T81: 0 | V81: 0 | W81: 0 | X81: 0 | Y81: 0 | Z81: 0 | AA81: 0 | AB81: 0
A82: 7 | B82: 7 | C82: 64 | D82: 15 | E82: 48 | F82: 2020-07-10 | G82: 2020-07-01 | H82: 0 | I82: 0 | J82: 0 | K82: 0 | L82: 0 | M82: TRUE | N82: 1449 | O82: 0 | P82: 1050 | Q82: 0 | R82: 0 | S82: 0 | T82: 0 | V82: 0 | W82: 0 | X82: 0 | Y82: 0 | Z82: 0 | AA82: 0 | AB82: 0
A83: =INT(DAYS360(DATE(YEAR($H$2),MONTH($H$2)+1,DAY($H$2)),DATE(YEAR($G83),MONTH($G83),DAY($G83)))/360) -> 7 | B83: 7 | C83: 65 | D83: =IF($I$6="N",IF(G83>=$C$7,DAYS360($C$6,$C$7)/30,DAYS360($C$6,G83)/30),IF(B83=0,0,IF(B83=B82,D82,IF(G83>=$C$7,DAYS360($C$6,$C$7)/30,DAYS360($C$6,G83)/30)))) -> 15 | E83: =IF($I$6="N",IF(G83>=$C$7,DAYS360($C$7,G83)/30,0),IF(B83=0,0,IF(B83=B82,E82,IF(G83>=$C$7,DAYS360($C$7,G83)/30,0)))) -> 49 | F83: 2020-08-10 | G83: =DATE(YEAR(F83),MONTH(F83),1) -> 2020-08-01 | H83: 0 | I83: =(K83*$D$6*D83) -> 0 | J83: =(K83*E83*$D$7) -> 0 | K83: =IF(C83<=$C$3,$F$3,0) -> 0 | L83: =L82-K83 -> 0 | M83: TRUE | N83: 1479 | O83: =H83 - (H83/(1+$H$7*N83)) -> 0 | P83: 1050 | Q83: 0 | R83: 0 | S83: 0 | T83: 0 | V83: =IF(F83>$M$13,0, $M$13-F83) -> 0 | W83: =IF(F83>$M$13,0,DAYS360(F83,$M$13)) -> 0 | X83: 0 | Y83: =IF(W83>0,(H83 + X83)*$M$11,0) -> 0 | Z83: =IF(V83>0,((H83 + X83)*(1+$M$12)^V83)-(H83 + X83),0) -> 0 | AA83: 0 | AB83: =T83+X83+Y83+Z83+AA83 -> 0
A84: 7 | B84: =IF(A84<=0,0,A84) -> 7 | C84: 66 | D84: 15 | E84: 50 | F84: 2020-09-10 | G84: 2020-09-01 | H84: =K84+I84+J84 -> 0 | I84: 0 | J84: 0 | K84: 0 | L84: 0 | M84: TRUE | N84: 1509 | O84: 0 | P84: =IF(AND(M84,$M$13<=$C$7),DAYS360($M$13,IF(F84>=$C$7,$C$7,F84)),0) -> 1050 | Q84: 0 | R84: =Q84+O84 -> 0 | S84: =I84-R84 -> 0 | T84: =K84+S84 -> 0 | V84: 0 | W84: 0 | X84: 0 | Y84: 0 | Z84: 0 | AA84: 0 | AB84: 0
A85: 7 | B85: 7 | C85: 67 | D85: 15 | E85: 51 | F85: =DATE(YEAR(F84),MONTH(F84)+$E$6,DAY(F84)) -> 2020-10-10 | G85: 2020-10-01 | H85: 0 | I85: 0 | J85: 0 | K85: 0 | L85: 0 | M85: TRUE | N85: 1539 | O85: 0 | P85: 1050 | Q85: 0 | R85: 0 | S85: 0 | T85: 0 | V85: 0 | W85: 0 | X85: 0 | Y85: 0 | Z85: 0 | AA85: 0 | AB85: 0
A86: 7 | B86: 7 | C86: 68 | D86: 15 | E86: 52 | F86: 2020-11-10 | G86: 2020-11-01 | H86: 0 | I86: 0 | J86: 0 | K86: 0 | L86: 0 | M86: TRUE | N86: 1569 | O86: 0 | P86: 1050 | Q86: =H86 - (H86/(1+$H$6*P86)) -> 0 | R86: 0 | S86: 0 | T86: 0 | V86: 0 | W86: 0 | X86: 0 | Y86: 0 | Z86: 0 | AA86: 0 | AB86: 0
A87: 7 | B87: 7 | C87: 69 | D87: 15 | E87: 53 | F87: 2020-12-10 | G87: 2020-12-01 | H87: 0 | I87: 0 | J87: 0 | K87: 0 | L87: 0 | M87: TRUE | N87: 1599 | O87: 0 | P87: 1050 | Q87: 0 | R87: 0 | S87: 0 | T87: 0 | V87: 0 | W87: 0 | X87: 0 | Y87: 0 | Z87: 0 | AA87: 0 | AB87: 0
A88: 7 | B88: 7 | C88: 70 | D88: 15 | E88: 54 | F88: 2021-01-10 | G88: 2021-01-01 | H88: 0 | I88: 0 | J88: 0 | K88: 0 | L88: 0 | M88: TRUE | N88: 1629 | O88: 0 | P88: 1050 | Q88: 0 | R88: 0 | S88: 0 | T88: 0 | V88: 0 | W88: 0 | X88: 0 | Y88: 0 | Z88: 0 | AA88: 0 | AB88: 0
A89: 7 | B89: 7 | C89: 71 | D89: 15 | E89: 55 | F89: 2021-02-10 | G89: 2021-02-01 | H89: 0 | I89: 0 | J89: 0 | K89: 0 | L89: 0 | M89: TRUE | N89: 1659 | O89: 0 | P89: 1050 | Q89: 0 | R89: 0 | S89: 0 | T89: 0 | V89: 0 | W89: 0 | X89: 0 | Y89: 0 | Z89: 0 | AA89: 0 | AB89: 0
A90: 7 | B90: 7 | C90: 72 | D90: 15 | E90: 56 | F90: 2021-03-10 | G90: 2021-03-01 | H90: 0 | I90: 0 | J90: 0 | K90: 0 | L90: 0 | M90: TRUE | N90: 1689 | O90: 0 | P90: 1050 | Q90: 0 | R90: 0 | S90: 0 | T90: 0 | V90: 0 | W90: 0 | X90: 0 | Y90: 0 | Z90: 0 | AA90: 0 | AB90: 0
B91: Total | H91: =SUM(H19:H90) -> 424269 | I91: =SUM(I19:I90) -> 42126 | K91: =SUM(K19:K90) -> 361080 | L91: 0

Sheet Simples_2_Juros_Diario
A1: Parcelamento
A2: Montante (PV) | B2: 52200 | D2: Dt. Parcela | E2: 2015-03-15
A3: Parcelas (n) | B3: 10 | D3: Principal | E3: =B2/B3 -> 5220
A4: Juros | I4: Diferença de datas
B5: Data 1° juros | C5: (i) Taxa | D5: A cada X meses | E5: (i) Taxa AM | F5: (i) Taxa AD | I5: 1° juros | J5: 2°juros | K5: =DAYS360($B$6,$B$7) -> 3614
A6: 1° juros | B6: 2015-03-01 | C6: 0.06 | D6: 6 | E6: =C6/IF(D6>0,D6,1) -> 0.01 | F6: =E6/30 -> 0.0003333333333 | I6: 1° juros | J6: Vencimento | K6: =DAYS360($B$6,$E$2) -> 14
A7: 2° juros | B7: 2025-03-15 | C7: 0.06 | D7: =D6 -> 6 | E7: =C7/IF(D7>0,D7,1) -> 0.01 | F7: =E7/30 -> 0.0003333333333 | I7: 2°juros | J7: Vencimento | K7: =DAYS360($B$7,$E$2) -> -3600
A8: Dt. Parcela >= 1° juros | E8: =E2>=B6 -> TRUE
A9: Dt. Parcela >= 2° juros | E9: =E2>=B7 -> FALSE | I9: Dt Ini. Correção | K9: 2008-01-01
A10: Recalculando o montante pela 1ª taxa de juros: | D10: =F6 -> 0.0003333333333 | I10: Dt. Fim Correção | K10: 2009-11-01
A11: Qtde meses com o 1° juros | D11: =IF(AND(E8,E9),K5,IF(E8,K6,0)) -> 14 | I11: % Multa | K11: 0
A12: Novo montante (PV¹) | D12: =(B2*D10*D11)+B2 -> 52443.6 | I12: % Juros Atraso | K12: 0.00033
A13: Recalculando o montante pela 2ª taxa de juros: | D13: =F7 -> 0.0003333333333 | I13: Data de recebimento | K13: 2013-09-01
A14: Qtde meses com o 1° juros | D14: =IF(E9,K7,0) -> 0
A15: Novo montante (PV¹) | D15: =D12+(D12*D13*D14) -> 52443.6
A17: k | B17: 1° juros (dias) | C17: 2° juros (dias) | D17: Vencimento | E17: Prestação | F17: 1° Juros | G17: 2º Juros | H17: Amort. | I17: Saldo Dev | J17: Antecipando | K17: Dias Adiant. 2º juros | L17: R$ desc. 2º Juros | M17: Dias adiant. 1º juros | N17: R$ desc. 1º Juros | O17: Total de desconto | P17: Valor do juros com desconto | Q17: Valor da Parcela com Desconto | S17: Dias Atraso | T17: Dias Atraso (360) | U17: Vlr. Reajuste | V17: Multa Atraso | W17: Juros Atraso | X17: Corr. Atraso | Y17: Valor final
A18: 0 | I18: =B2 -> 52200 | U18: 0 | X18: 0
A19: 1 | B19: =IF(D19>=$B$7,DAYS360($B$6,$B$7),DAYS360($B$6,D19)) -> 14 | C19: =IF(D19>=$B$7,DAYS360($B$7,D19),0) -> 0 | D19: =E2 -> 2015-03-15 | E19: =H19+F19+G19 -> 5244.36 | F19: =(H19*$F$6*B19) -> 24.36 | G19: =(H19*C19*$F$7) -> 0 | H19: =IF(A19<=$B$3,$E$3,0) -> 5220 | I19: =I18-H19 -> 46980 | J19: =IF($K$13<D19,TRUE,FALSE) -> TRUE | K19: =IF(OR(NOT(J19),D19<=$B$7),0,DAYS360($K$13,D19)) -> 0 | L19: =E19 - (E19/(1+$F$7*K19)) -> 0 | M19: =IF(OR(NOT(J19),D19>$B$7),0,DAYS360($K$13,D19)) -> 554 | N19: =((E19-L19)*$F$6*M19)/(1+$F$6*M19) -> 817.4944963 | O19: =N19+L19 -> 817.4944963 | P19: =F19-O19 -> -793.1344963 | Q19: =H19+O19 -> 6037.494496 | S19: =IF(D19>$K$13,0, $K$13-D19) -> 0 | T19: =IF(D19>$K$13,0,DAYS360(D19,$K$13)) -> 0 | U19: 370.0336328 | V19: =IF(T19>0,(E19 + U19)*$K$11,0) -> 0 | W19: =IF(S19>0,((E19 + U19)*(1+$K$12)^S19)-(E19 + U19),0) -> 0 | X19: 0.01295676419 | Y19: =Q19+U19+V19+W19+X19 -> 6407.541086
A20: 2 | B20: =IF(D20>=$B$7,DAYS360($B$6,$B$7),DAYS360($B$6,D20)) -> 194 | C20: =IF(D20>=$B$7,DAYS360($B$7,D20),0) -> 0 | D20: =DATE(YEAR(D19),MONTH(D19)+$D$6,DAY(D19)) -> 2015-09-15 | E20: =H20+F20+G20 -> 5557.56 | F20: =(H20*$F$6*B20) -> 337.56 | G20: =(H20*C20*$F$7) -> 0 | H20: 5220 | I20: 41760 | J20: TRUE | K20: =IF(OR(NOT(J20),D20<=$B$7),0,DAYS360($K$13,D20)) -> 0 | L20: 0 | M20: =IF(OR(NOT(J20),D20>$B$7),0,DAYS360($K$13,D20)) -> 734 | N20: =((E20-L20)*$F$6*M20)/(1+$F$6*M20) -> 1092.460911 | O20: =N20+L20 -> 1092.460911 | P20: =F20-O20 -> -754.9009106 | Q20: =H20+P20 -> 4465.099089 | S20: 0 | T20: 0 | U20: 373.6973321 | V20: 0 | W20: 0 | X20: 0.006171752575 | Y20: 4838.802593
A21: 3 | B21: =IF(D21>=$B$7,DAYS360($B$6,$B$7),DAYS360($B$6,D21)) -> 374 | C21: =IF(D21>=$B$7,DAYS360($B$7,D21),0) -> 0 | D21: =DATE(YEAR(D20),MONTH(D20)+$D$6,DAY(D20)) -> 2016-03-15 | E21: 5870.76 | F21: 650.76 | G21: 0 | H21: 5220 | I21: 36540 | J21: TRUE | K21: 0 | L21: 0 | M21: 914 | N21: =((E21-L21)*$F$6*M21)/(1+$F$6*M21) -> 1370.943955 | O21: 1370.943955 | P21: -720.183955 | Q21: 4499.816045 | S21: 0 | T21: 0 | U21: 377.3610315 | V21: 0 | W21: 0 | X21: 0.002343721946 | Y21: 4877.17942
A22: 4 | B22: 554 | C22: 0 | D22: 2016-09-15 | E22: 6183.96 | F22: 963.96 | G22: 0 | H22: 5220 | I22: 31320 | J22: TRUE | K22: 0 | L22: 0 | M22: 1094 | N22: =E22 - (E22/(1+$F$6*M22)) -> 1652.479785 | O22: 1652.479785 | P22: -688.5197851 | Q22: 4531.480215 | S22: 0 | T22: 0 | U22: 381.0247308 | V22: 0 | W22: 0 | X22: 0.0002146629336 | Y22: 4912.50516
A23: 5 | B23: 734 | C23: 0 | D23: 2017-03-15 | E23: 6497.16 | F23: 1277.16 | G23: 0 | H23: 5220 | I23: 26100 | J23: TRUE | K23: 0 | L23: 0 | M23: 1274 | N23: =E23 - (E23/(1+$F$6*M23)) -> 1936.682695 | O23: 1936.682695 | P23: -659.5226954 | Q23: 4560.477305 | S23: 0 | T23: 0 | U23: 381.1312056 | V23: 0 | W23: 0 | X23: 0 | Y23: 4941.60851
A24: 6 | B24: 914 | C24: 0 | D24: 2017-09-15 | E24: 6810.36 | F24: 1590.36 | G24: 0 | H24: 5220 | I24: 20880 | J24: TRUE | K24: 0 | L24: 0 | M24: 1454 | N24: 2223.229331 | O24: 2223.229331 | P24: -632.8693309 | Q24: 4587.130669 | S24: 0 | T24: 0 | U24: 380.9863926 | V24: 0 | W24: 0 | X24: 0 | Y24: 4968.117062
A25: 7 | B25: 1094 | C25: 0 | D25: 2018-03-15 | E25: 7123.56 | F25: 1903.56 | G25: 0 | H25: 5220 | I25: 15660 | J25: TRUE | K25: 0 | L25: 0 | M25: 1634 | N25: 2511.846577 | O25: 2511.846577 | P25: -608.2865775 | Q25: 4611.713423 | S25: 0 | T25: 0 | U25: 380.8443933 | V25: 0 | W25: 0 | X25: 0 | Y25: 4992.557816
A26: 8 | B26: 1274 | C26: 0 | D26: 2018-09-15 | E26: 7436.76 | F26: 2216.76 | G26: 0 | H26: 5220 | I26: 10440 | J26: TRUE | K26: 0 | L26: 0 | M26: 1814 | N26: 2802.302169 | O26: 2802.302169 | P26: -585.5421687 | Q26: 4634.457831 | S26: 0 | T26: 0 | U26: 380.7051265 | V26: 0 | W26: 0 | X26: 0 | Y26: 5015.162958
A27: 9 | B27: 1454 | C27: 0 | D27: =DATE(YEAR(D26),MONTH(D26)+$D$6,DAY(D26)) -> 2019-03-15 | E27: 7749.96 | F27: 2529.96 | G27: 0 | H27: 5220 | I27: 5220 | J27: TRUE | K27: 0 | L27: 0 | M27: 1994 | N27: 3094.397325 | O27: 3094.397325 | P27: -564.4373248 | Q27: 4655.562675 | S27: 0 | T27: 0 | U27: 380.5685141 | V27: 0 | W27: 0 | X27: 0 | Y27: 5036.131189
A28: 10 | B28: 1634 | C28: 0 | D28: 2019-09-15 | E28: 8063.16 | F28: 2843.16 | G28: 0 | H28: 5220 | I28: 0 | J28: TRUE | K28: 0 | L28: 0 | M28: 2174 | N28: 3387.960928 | O28: 3387.960928 | P28: -544.8009277 | Q28: 4675.199072 | S28: 0 | T28: 0 | U28: 380.434481 | V28: 0 | W28: 0 | X28: 0 | Y28: 5055.633553
A29: 11 | B29: 1814 | C29: 0 | D29: 2020-03-15 | E29: 0 | F29: 0 | G29: 0 | H29: 0 | I29: 0 | J29: TRUE | K29: 0 | L29: 0 | M29: 2354 | N29: 0 | O29: 0 | P29: 0 | Q29: 0 | S29: 0 | T29: 0 | U29: 380.3029546 | V29: 0 | W29: 0 | X29: 0 | Y29: 380.3029546
A30: 12 | B30: 1994 | C30: 0 | D30: 2020-09-15 | E30: 0 | F30: 0 | G30: 0 | H30: 0 | I30: 0 | J30: =IF($K$11<D30,TRUE,FALSE) -> TRUE | K30: 0 | L30: 0 | M30: 2534 | N30: 0 | O30: 0 | P30: 0 | Q30: 0 | S30: 0 | T30: 0 | U30: 380.1738655 | V30: 0 | W30: 0 | X30: 0 | Y30: 380.1738655
A31: 13 | B31: 2174 | C31: 0 | D31: 2021-03-15 | E31: 0 | F31: 0 | G31: 0 | H31: 0 | I31: 0 | J31: TRUE | K31: 0 | L31: 0 | M31: 2714 | N31: 0 | O31: 0 | P31: 0 | Q31: 0 | S31: 0 | T31: 0 | U31: 380.0471464 | V31: 0 | W31: 0 | X31: 0 | Y31: 380.0471464
A32: 14 | B32: 2354 | C32: 0 | D32: 2021-09-15 | E32: 0 | F32: 0 | G32: 0 | H32: 0 | I32: 0 | J32: TRUE | K32: 0 | L32: =E32 - (E32/(1+$F$7*K32)) -> 0 | M32: 2894 | N32: =E32 - (E32/(1+$F$6*M32)) -> 0 | O32: 0 | P32: 0 | Q32: 0 | S32: 0 | T32: 0 | U32: 379.9227327 | V32: 0 | W32: 0 | X32: 0 | Y32: 379.9227327
A33: 15 | B33: 2534 | C33: 0 | D33: 2022-03-15 | E33: 0 | F33: 0 | G33: 0 | H33: 0 | I33: 0 | J33: TRUE | K33: 0 | L33: 0 | M33: 3074 | N33: =E33 - (E33/(1+$F$6*M33)) -> 0 | O33: 0 | P33: 0 | Q33: 0 | S33: 0 | T33: 0 | U33: 379.800562 | V33: 0 | W33: 0 | X33: 0 | Y33: 379.800562
A34: 16 | B34: 2714 | C34: 0 | D34: 2022-09-15 | E34: 0 | F34: 0 | G34: 0 | H34: 0 | I34: 0 | J34: TRUE | K34: 0 | L34: 0 | M34: 3254 | N34: 0 | O34: 0 | P34: 0 | Q34: 0 | S34: 0 | T34: 0 | U34: 379.6805743 | V34: 0 | W34: 0 | X34: 0 | Y34: 379.6805743
A35: 17 | B35: 2894 | C35: 0 | D35: 2023-03-15 | E35: 0 | F35: 0 | G35: 0 | H35: 0 | I35: 0 | J35: TRUE | K35: 0 | L35: 0 | M35: 3434 | N35: 0 | O35: 0 | P35: 0 | Q35: 0 | S35: 0 | T35: 0 | U35: 379.5627115 | V35: 0 | W35: 0 | X35: 0 | Y35: 379.5627115
A36: 18 | B36: 3074 | C36: 0 | D36: 2023-09-15 | E36: 0 | F36: 0 | G36: 0 | H36: 0 | I36: 0 | J36: TRUE | K36: 0 | L36: 0 | M36: 3614 | N36: 0 | O36: 0 | P36: 0 | Q36: 0 | S36: 0 | T36: 0 | U36: 379.4469176 | V36: 0 | W36: 0 | X36: 0 | Y36: 379.4469176
A37: 19 | B37: 3254 | C37: 0 | D37: 2024-03-15 | E37: 0 | F37: 0 | G37: 0 | H37: 0 | I37: 0 | J37: TRUE | K37: 0 | L37: 0 | M37: 3794 | N37: 0 | O37: 0 | P37: 0 | Q37: 0 | S37: 0 | T37: 0 | U37: 379.3331388 | V37: 0 | W37: 0 | X37: 0 | Y37: 379.3331388
A38: 20 | B38: 3434 | C38: 0 | D38: 2024-09-15 | E38: 0 | F38: 0 | G38: 0 | H38: 0 | I38: 0 | J38: TRUE | K38: 0 | L38: 0 | M38: 3974 | N38: 0 | O38: 0 | P38: 0 | Q38: 0 | S38: 0 | T38: 0 | U38: 379.2213227 | V38: 0 | W38: 0 | X38: 0 | Y38: 379.2213227
A39: 21 | B39: 3614 | C39: 0 | D39: 2025-03-15 | E39: 0 | F39: 0 | G39: 0 | H39: 0 | I39: 0 | J39: TRUE | K39: 0 | L39: 0 | M39: 4154 | N39: 0 | O39: 0 | P39: 0 | Q39: 0 | S39: 0 | T39: 0 | U39: 0 | V39: 0 | W39: 0 | X39: 0 | Y39: 0
A40: 22 | B40: 3614 | C40: 180 | D40: 2025-09-15 | E40: 0 | F40: 0 | G40: 0 | H40: 0 | I40: 0 | J40: TRUE | K40: 4334 | L40: 0 | M40: 0 | N40: 0 | O40: 0 | P40: 0 | Q40: 0 | S40: 0 | T40: 0 | U40: 0 | V40: 0 | W40: 0 | X40: 0 | Y40: 0
A41: 23 | B41: 3614 | C41: 360 | D41: 2026-03-15 | E41: 0 | F41: 0 | G41: 0 | H41: 0 | I41: 0 | J41: TRUE | K41: 4514 | L41: 0 | M41: 0 | N41: 0 | O41: 0 | P41: 0 | Q41: 0 | S41: 0 | T41: 0 | U41: 0 | V41: 0 | W41: 0 | X41: 0 | Y41: 0
A42: 24 | B42: 3614 | C42: 540 | D42: 2026-09-15 | E42: 0 | F42: 0 | G42: 0 | H42: 0 | I42: 0 | J42: TRUE | K42: 4694 | L42: 0 | M42: 0 | N42: 0 | O42: 0 | P42: 0 | Q42: 0 | S42: 0 | T42: 0 | U42: 0 | V42: 0 | W42: 0 | X42: 0 | Y42: 0
A43: 25 | B43: 3614 | C43: 720 | D43: 2027-03-15 | E43: 0 | F43: 0 | G43: 0 | H43: 0 | I43: 0 | J43: TRUE | K43: 4874 | L43: 0 | M43: 0 | N43: 0 | O43: 0 | P43: 0 | Q43: 0 | S43: 0 | T43: 0 | U43: 0 | V43: 0 | W43: 0 | X43: 0 | Y43: 0
A44: 26 | B44: 3614 | C44: 900 | D44: 2027-09-15 | E44: 0 | F44: 0 | G44: 0 | H44: 0 | I44: 0 | J44: TRUE | K44: 5054 | L44: 0 | M44: 0 | N44: 0 | O44: 0 | P44: 0 | Q44: 0 | S44: 0 | T44: 0 | U44: 0 | V44: 0 | W44: 0 | X44: 0 | Y44: 0
A45: 27 | B45: 3614 | C45: 1080 | D45: 2028-03-15 | E45: 0 | F45: 0 | G45: 0 | H45: 0 | I45: 0 | J45: TRUE | K45: 5234 | L45: 0 | M45: 0 | N45: 0 | O45: 0 | P45: 0 | Q45: 0 | S45: 0 | T45: 0 | U45: 0 | V45: 0 | W45: 0 | X45: 0 | Y45: 0
A46: 28 | B46: 3614 | C46: 1260 | D46: 2028-09-15 | E46: 0 | F46: 0 | G46: 0 | H46: 0 | I46: 0 | J46: TRUE | K46: 5414 | L46: 0 | M46: 0 | N46: 0 | O46: 0 | P46: 0 | Q46: 0 | S46: 0 | T46: 0 | U46: 0 | V46: 0 | W46: 0 | X46: 0 | Y46: 0
A47: 29 | B47: 3614 | C47: 1440 | D47: 2029-03-15 | E47: 0 | F47: 0 | G47: 0 | H47: 0 | I47: 0 | J47: TRUE | K47: 5594 | L47: 0 | M47: 0 | N47: 0 | O47: 0 | P47: 0 | Q47: 0 | S47: 0 | T47: 0 | U47: 0 | V47: 0 | W47: 0 | X47: 0 | Y47: 0
A48: 30 | B48: 3614 | C48: 1620 | D48: 2029-09-15 | E48: 0 | F48: 0 | G48: 0 | H48: 0 | I48: 0 | J48: TRUE | K48: 5774 | L48: 0 | M48: 0 | N48: 0 | O48: 0 | P48: 0 | Q48: 0 | S48: 0 | T48: 0 | U48: 0 | V48: 0 | W48: 0 | X48: 0 | Y48: 0
A49: 31 | B49: 3614 | C49: 1800 | D49: 2030-03-15 | E49: 0 | F49: 0 | G49: 0 | H49: 0 | I49: 0 | J49: TRUE | K49: 5954 | L49: 0 | M49: 0 | N49: 0 | O49: 0 | P49: 0 | Q49: 0 | S49: 0 | T49: 0 | U49: 0 | V49: 0 | W49: 0 | X49: 0 | Y49: 0
A50: 32 | B50: 3614 | C50: 1980 | D50: 2030-09-15 | E50: 0 | F50: 0 | G50: 0 | H50: 0 | I50: 0 | J50: TRUE | K50: 6134 | L50: 0 | M50: 0 | N50: 0 | O50: 0 | P50: 0 | Q50: 0 | S50: 0 | T50: 0 | U50: 0 | V50: 0 | W50: 0 | X50: 0 | Y50: 0
A51: 33 | B51: 3614 | C51: 2160 | D51: 2031-03-15 | E51: 0 | F51: 0 | G51: 0 | H51: 0 | I51: 0 | J51: TRUE | K51: 6314 | L51: 0 | M51: 0 | N51: 0 | O51: 0 | P51: 0 | Q51: 0 | S51: 0 | T51: 0 | U51: 0 | V51: 0 | W51: 0 | X51: 0 | Y51: 0
A52: 34 | B52: 3614 | C52: 2340 | D52: 2031-09-15 | E52: 0 | F52: 0 | G52: 0 | H52: 0 | I52: 0 | J52: TRUE | K52: 6494 | L52: 0 | M52: 0 | N52: 0 | O52: 0 | P52: 0 | Q52: 0 | S52: 0 | T52: 0 | U52: 0 | V52: 0 | W52: 0 | X52: 0 | Y52: 0
A53: 35 | B53: 3614 | C53: 2520 | D53: 2032-03-15 | E53: 0 | F53: 0 | G53: 0 | H53: 0 | I53: 0 | J53: TRUE | K53: 6674 | L53: 0 | M53: 0 | N53: 0 | O53: 0 | P53: 0 | Q53: 0 | S53: 0 | T53: 0 | U53: 0 | V53: 0 | W53: 0 | X53: 0 | Y53: 0
A54: 36 | B54: 3614 | C54: 2700 | D54: 2032-09-15 | E54: 0 | F54: 0 | G54: 0 | H54: 0 | I54: 0 | J54: TRUE | K54: 6854 | L54: 0 | M54: 0 | N54: 0 | O54: 0 | P54: 0 | Q54: 0 | S54: 0 | T54: 0 | U54: 0 | V54: 0 | W54: 0 | X54: 0 | Y54: 0
A55: 37 | B55: 3614 | C55: 2880 | D55: 2033-03-15 | E55: 0 | F55: 0 | G55: 0 | H55: 0 | I55: 0 | J55: TRUE | K55: 7034 | L55: 0 | M55: 0 | N55: 0 | O55: 0 | P55: 0 | Q55: 0 | S55: 0 | T55: 0 | U55: 0 | V55: 0 | W55: 0 | X55: 0 | Y55: 0
A56: 38 | B56: 3614 | C56: 3060 | D56: 2033-09-15 | E56: 0 | F56: 0 | G56: 0 | H56: 0 | I56: 0 | J56: TRUE | K56: 7214 | L56: 0 | M56: 0 | N56: 0 | O56: 0 | P56: 0 | Q56: 0 | S56: 0 | T56: 0 | U56: 0 | V56: 0 | W56: 0 | X56: 0 | Y56: 0
A57: 39 | B57: 3614 | C57: 3240 | D57: 2034-03-15 | E57: 0 | F57: 0 | G57: 0 | H57: 0 | I57: 0 | J57: TRUE | K57: 7394 | L57: 0 | M57: 0 | N57: 0 | O57: 0 | P57: 0 | Q57: 0 | S57: 0 | T57: 0 | U57: 0 | V57: 0 | W57: 0 | X57: 0 | Y57: 0
A58: 40 | B58: 3614 | C58: 3420 | D58: 2034-09-15 | E58: 0 | F58: 0 | G58: 0 | H58: 0 | I58: 0 | J58: TRUE | K58: 7574 | L58: 0 | M58: 0 | N58: 0 | O58: 0 | P58: 0 | Q58: 0 | S58: 0 | T58: 0 | U58: 0 | V58: 0 | W58: 0 | X58: 0 | Y58: 0
A59: 41 | B59: 3614 | C59: 3600 | D59: 2035-03-15 | E59: 0 | F59: 0 | G59: 0 | H59: 0 | I59: 0 | J59: TRUE | K59: 7754 | L59: 0 | M59: 0 | N59: 0 | O59: 0 | P59: 0 | Q59: 0 | S59: 0 | T59: 0 | U59: 0 | V59: 0 | W59: 0 | X59: 0 | Y59: 0
A60: 42 | B60: 3614 | C60: 3780 | D60: 2035-09-15 | E60: 0 | F60: 0 | G60: 0 | H60: 0 | I60: 0 | J60: TRUE | K60: 7934 | L60: 0 | M60: 0 | N60: 0 | O60: 0 | P60: 0 | Q60: 0 | S60: 0 | T60: 0 | U60: 0 | V60: 0 | W60: 0 | X60: 0 | Y60: 0
A61: 43 | B61: 3614 | C61: 3960 | D61: 2036-03-15 | E61: 0 | F61: 0 | G61: 0 | H61: 0 | I61: 0 | J61: TRUE | K61: 8114 | L61: 0 | M61: 0 | N61: 0 | O61: 0 | P61: 0 | Q61: 0 | S61: 0 | T61: 0 | U61: 0 | V61: 0 | W61: 0 | X61: 0 | Y61: 0
A62: 44 | B62: 3614 | C62: 4140 | D62: 2036-09-15 | E62: 0 | F62: 0 | G62: 0 | H62: 0 | I62: 0 | J62: TRUE | K62: 8294 | L62: 0 | M62: 0 | N62: 0 | O62: 0 | P62: 0 | Q62: 0 | S62: 0 | T62: 0 | U62: 0 | V62: 0 | W62: 0 | X62: 0 | Y62: 0
A63: 45 | B63: 3614 | C63: 4320 | D63: 2037-03-15 | E63: 0 | F63: 0 | G63: 0 | H63: 0 | I63: 0 | J63: TRUE | K63: 8474 | L63: 0 | M63: 0 | N63: 0 | O63: 0 | P63: 0 | Q63: 0 | S63: 0 | T63: 0 | U63: 0 | V63: 0 | W63: 0 | X63: 0 | Y63: 0
A64: 46 | B64: 3614 | C64: 4500 | D64: 2037-09-15 | E64: 0 | F64: 0 | G64: 0 | H64: 0 | I64: 0 | J64: TRUE | K64: 8654 | L64: 0 | M64: 0 | N64: 0 | O64: 0 | P64: 0 | Q64: 0 | S64: 0 | T64: 0 | U64: 0 | V64: 0 | W64: 0 | X64: 0 | Y64: 0
A65: 47 | B65: 3614 | C65: 4680 | D65: 2038-03-15 | E65: 0 | F65: 0 | G65: 0 | H65: 0 | I65: 0 | J65: TRUE | K65: 8834 | L65: 0 | M65: 0 | N65: 0 | O65: 0 | P65: 0 | Q65: 0 | S65: 0 | T65: 0 | U65: 0 | V65: 0 | W65: 0 | X65: 0 | Y65: 0
A66: 48 | B66: 3614 | C66: 4860 | D66: 2038-09-15 | E66: 0 | F66: 0 | G66: 0 | H66: 0 | I66: 0 | J66: TRUE | K66: 9014 | L66: 0 | M66: 0 | N66: 0 | O66: 0 | P66: 0 | Q66: 0 | S66: 0 | T66: 0 | U66: 0 | V66: 0 | W66: 0 | X66: 0 | Y66: 0
A67: 49 | B67: 3614 | C67: 5040 | D67: 2039-03-15 | E67: 0 | F67: 0 | G67: 0 | H67: 0 | I67: 0 | J67: TRUE | K67: 9194 | L67: 0 | M67: 0 | N67: 0 | O67: 0 | P67: 0 | Q67: 0 | S67: 0 | T67: 0 | U67: 0 | V67: 0 | W67: 0 | X67: 0 | Y67: 0
A68: 50 | B68: 3614 | C68: 5220 | D68: 2039-09-15 | E68: 0 | F68: 0 | G68: 0 | H68: 0 | I68: 0 | J68: TRUE | K68: 9374 | L68: 0 | M68: 0 | N68: 0 | O68: 0 | P68: 0 | Q68: 0 | S68: 0 | T68: 0 | U68: 0 | V68: 0 | W68: 0 | X68: 0 | Y68: 0
A69: 51 | B69: 3614 | C69: 5400 | D69: 2040-03-15 | E69: 0 | F69: 0 | G69: 0 | H69: 0 | I69: 0 | J69: TRUE | K69: 9554 | L69: 0 | M69: 0 | N69: 0 | O69: 0 | P69: 0 | Q69: 0 | S69: 0 | T69: 0 | U69: 0 | V69: 0 | W69: 0 | X69: 0 | Y69: 0
A70: 52 | B70: 3614 | C70: 5580 | D70: 2040-09-15 | E70: 0 | F70: 0 | G70: 0 | H70: 0 | I70: 0 | J70: TRUE | K70: 9734 | L70: 0 | M70: 0 | N70: 0 | O70: 0 | P70: 0 | Q70: 0 | S70: 0 | T70: 0 | U70: 0 | V70: 0 | W70: 0 | X70: 0 | Y70: 0
A71: 53 | B71: 3614 | C71: 5760 | D71: 2041-03-15 | E71: 0 | F71: 0 | G71: 0 | H71: 0 | I71: 0 | J71: TRUE | K71: 9914 | L71: 0 | M71: 0 | N71: 0 | O71: 0 | P71: 0 | Q71: 0 | S71: 0 | T71: 0 | U71: 0 | V71: 0 | W71: 0 | X71: 0 | Y71: 0
A72: 54 | B72: 3614 | C72: 5940 | D72: 2041-09-15 | E72: 0 | F72: 0 | G72: 0 | H72: 0 | I72: 0 | J72: TRUE | K72: 10094 | L72: 0 | M72: 0 | N72: 0 | O72: 0 | P72: 0 | Q72: 0 | S72: 0 | T72: 0 | U72: 0 | V72: 0 | W72: 0 | X72: 0 | Y72: 0
A73: 55 | B73: 3614 | C73: 6120 | D73: 2042-03-15 | E73: 0 | F73: 0 | G73: 0 | H73: 0 | I73: 0 | J73: TRUE | K73: 10274 | L73: 0 | M73: 0 | N73: 0 | O73: 0 | P73: 0 | Q73: 0 | S73: 0 | T73: 0 | U73: 0 | V73: 0 | W73: 0 | X73: 0 | Y73: 0
A74: 56 | B74: 3614 | C74: 6300 | D74: 2042-09-15 | E74: 0 | F74: 0 | G74: 0 | H74: 0 | I74: 0 | J74: TRUE | K74: 10454 | L74: 0 | M74: 0 | N74: 0 | O74: 0 | P74: 0 | Q74: 0 | S74: 0 | T74: 0 | U74: 0 | V74: 0 | W74: 0 | X74: 0 | Y74: 0
A75: 57 | B75: 3614 | C75: 6480 | D75: 2043-03-15 | E75: 0 | F75: 0 | G75: 0 | H75: 0 | I75: 0 | J75: TRUE | K75: 10634 | L75: 0 | M75: 0 | N75: 0 | O75: 0 | P75: 0 | Q75: 0 | S75: 0 | T75: 0 | U75: 0 | V75: 0 | W75: 0 | X75: 0 | Y75: 0
A76: 58 | B76: 3614 | C76: 6660 | D76: 2043-09-15 | E76: 0 | F76: 0 | G76: 0 | H76: 0 | I76: 0 | J76: TRUE | K76: 10814 | L76: 0 | M76: 0 | N76: 0 | O76: 0 | P76: 0 | Q76: 0 | S76: 0 | T76: 0 | U76: 0 | V76: 0 | W76: 0 | X76: 0 | Y76: 0
A77: 59 | B77: 3614 | C77: 6840 | D77: 2044-03-15 | E77: 0 | F77: 0 | G77: 0 | H77: 0 | I77: 0 | J77: TRUE | K77: 10994 | L77: 0 | M77: 0 | N77: 0 | O77: 0 | P77: 0 | Q77: 0 | S77: 0 | T77: 0 | U77: 0 | V77: 0 | W77: 0 | X77: 0 | Y77: 0
A78: 60 | B78: 3614 | C78: 7020 | D78: 2044-09-15 | E78: 0 | F78: 0 | G78: 0 | H78: 0 | I78: 0 | J78: TRUE | K78: 11174 | L78: 0 | M78: 0 | N78: 0 | O78: 0 | P78: 0 | Q78: 0 | S78: 0 | T78: 0 | U78: 0 | V78: 0 | W78: 0 | X78: 0 | Y78: 0
A79: 61 | B79: 3614 | C79: 7200 | D79: 2045-03-15 | E79: 0 | F79: 0 | G79: 0 | H79: 0 | I79: 0 | J79: TRUE | K79: 11354 | L79: 0 | M79: 0 | N79: 0 | O79: 0 | P79: 0 | Q79: 0 | S79: 0 | T79: 0 | U79: 0 | V79: 0 | W79: 0 | X79: 0 | Y79: 0
A80: 62 | B80: 3614 | C80: 7380 | D80: 2045-09-15 | E80: 0 | F80: 0 | G80: 0 | H80: 0 | I80: 0 | J80: TRUE | K80: 11534 | L80: 0 | M80: 0 | N80: 0 | O80: 0 | P80: 0 | Q80: 0 | S80: 0 | T80: 0 | U80: 0 | V80: 0 | W80: 0 | X80: 0 | Y80: 0
A81: 63 | B81: 3614 | C81: 7560 | D81: 2046-03-15 | E81: 0 | F81: 0 | G81: 0 | H81: 0 | I81: 0 | J81: TRUE | K81: 11714 | L81: 0 | M81: 0 | N81: 0 | O81: 0 | P81: 0 | Q81: 0 | S81: 0 | T81: 0 | U81: 0 | V81: 0 | W81: 0 | X81: 0 | Y81: 0
A82: 64 | B82: 3614 | C82: 7740 | D82: 2046-09-15 | E82: 0 | F82: 0 | G82: 0 | H82: 0 | I82: 0 | J82: TRUE | K82: 11894 | L82: 0 | M82: 0 | N82: 0 | O82: 0 | P82: 0 | Q82: 0 | S82: 0 | T82: 0 | U82: 0 | V82: 0 | W82: 0 | X82: 0 | Y82: 0
A83: 65 | B83: 3614 | C83: 7920 | D83: 2047-03-15 | E83: 0 | F83: 0 | G83: 0 | H83: =IF(A83<=$B$3,$E$3,0) -> 0 | I83: =I82-H83 -> 0 | J83: TRUE | K83: 12074 | L83: =E83 - (E83/(1+$F$7*K83)) -> 0 | M83: 0 | N83: 0 | O83: 0 | P83: 0 | Q83: 0 | S83: =IF(D83>$K$13,0, $K$13-D83) -> 0 | T83: =IF(D83>$K$13,0,DAYS360(D83,$K$13)) -> 0 | U83: 0 | V83: =IF(T83>0,(E83 + U83)*$K$11,0) -> 0 | W83: =IF(S83>0,((E83 + U83)*(1+$K$12)^S83)-(E83 + U83),0) -> 0 | X83: 0 | Y83: =Q83+U83+V83+W83+X83 -> 0
A84: 66 | B84: 3614 | C84: 8100 | D84: 2047-09-15 | E84: =H84+F84+G84 -> 0 | F84: =(H84*$F$6*B84) -> 0 | G84: =(H84*C84*$F$7) -> 0 | H84: 0 | I84: 0 | J84: TRUE | K84: =IF(OR(NOT(J84),D84<=$B$7),0,DAYS360($K$13,D84)) -> 12254 | L84: 0 | M84: =IF(OR(NOT(J84),D84>$B$7),0,DAYS360($K$13,D84)) -> 0 | N84: 0 | O84: =N84+L84 -> 0 | P84: =F84-O84 -> 0 | Q84: =H84+P84 -> 0 | S84: 0 | T84: 0 | U84: 0 | V84: 0 | W84: 0 | X84: 0 | Y84: 0
A85: 67 | B85: =IF(D85>=$B$7,DAYS360($B$6,$B$7),DAYS360($B$6,D85)) -> 3614 | C85: =IF(D85>=$B$7,DAYS360($B$7,D85),0) -> 8280 | D85: =DATE(YEAR(D84),MONTH(D84)+$D$6,DAY(D84)) -> 2048-03-15 | E85: 0 | F85: 0 | G85: 0 | H85: 0 | I85: 0 | J85: TRUE | K85: 12434 | L85: 0 | M85: 0 | N85: 0 | O85: 0 | P85: 0 | Q85: 0 | S85: 0 | T85: 0 | U85: 0 | V85: 0 | W85: 0 | X85: 0 | Y85: 0
A86: 68 | B86: 3614 | C86: 8460 | D86: 2048-09-15 | E86: 0 | F86: 0 | G86: 0 | H86: 0 | I86: 0 | J86: TRUE | K86: 12614 | L86: 0 | M86: 0 | N86: 0 | O86: 0 | P86: 0 | Q86: 0 | S86: 0 | T86: 0 | U86: 0 | V86: 0 | W86: 0 | X86: 0 | Y86: 0
A87: 69 | B87: 3614 | C87: 8640 | D87: 2049-03-15 | E87: 0 | F87: 0 | G87: 0 | H87: 0 | I87: 0 | J87: TRUE | K87: 12794 | L87: 0 | M87: 0 | N87: 0 | O87: 0 | P87: 0 | Q87: 0 | S87: 0 | T87: 0 | U87: 0 | V87: 0 | W87: 0 | X87: 0 | Y87: 0
A88: 70 | B88: 3614 | C88: 8820 | D88: 2049-09-15 | E88: 0 | F88: 0 | G88: 0 | H88: 0 | I88: 0 | J88: TRUE | K88: 12974 | L88: 0 | M88: 0 | N88: 0 | O88: 0 | P88: 0 | Q88: 0 | S88: 0 | T88: 0 | U88: 0 | V88: 0 | W88: 0 | X88: 0 | Y88: 0
A89: 71 | B89: 3614 | C89: 9000 | D89: 2050-03-15 | E89: 0 | F89: 0 | G89: 0 | H89: 0 | I89: 0 | J89: TRUE | K89: 13154 | L89: 0 | M89: 0 | N89: 0 | O89: 0 | P89: 0 | Q89: 0 | S89: 0 | T89: 0 | U89: 0 | V89: 0 | W89: 0 | X89: 0 | Y89: 0
A90: 72 | B90: 3614 | C90: 9180 | D90: 2050-09-15 | E90: 0 | F90: 0 | G90: 0 | H90: 0 | I90: 0 | J90: TRUE | K90: 13334 | L90: 0 | M90: 0 | N90: 0 | O90: 0 | P90: 0 | Q90: 0 | S90: 0 | T90: 0 | U90: 0 | V90: 0 | W90: 0 | X90: 0 | Y90: 0
A91: Total | E91: =SUM(E19:E90) -> 66537.6 | F91: =SUM(F19:F90) -> 14337.6 | H91: =SUM(H19:H90) -> 52200 | I91: 0

Sheet Simples DF
A1: PMT | F1: PMT | G1: Valor da prestação | I1: PV * ((((1 + i) ^ n) * i ) / (((1 + i) ^ n) -1))
A2: PV | C2: 10000 | F2: PV | G2: Montante
A3: n | C3: 10 | F3: n | G3: Nº de prestações
A4: i | C4: 0.01 | D4: 1 | E4: Meses | F4: i | G4: Juros | I4: i * PMT * ((((1 + i) ^(n - (k -1))) - 1)/(((1 + i) ^(n - (k -1))) * i))
A5: i (diário) | C5: =C4/(30 * D4) -> 0.0003333333333 | F5: SDk | G5: Saldo Devedor | I5: PMT * ((((1 + i) ^(n - k)) - 1)/(((1 + i) ^(n - k)) * i))
A6: Dt Parcela | C6: 2013-05-01 | F6: D | G6: Desconto | I6: FV[((1+d)^n) - 1/((1+d)^n)]
A7: Dt Juros | C7: 2013-01-01
A9: Dt Ini. Correção | C9: 2008-01-01
A10: Dt. Fim Correção | C10: 2009-11-01
A11: % Multa | C11: 0
A12: % Juros Atraso | C12: 0.00033
A13: Data de recebimento | C13: 2009-01-12
A15: Parcela | B15: k | C15: Vencimento | D15: Prestação | E15: Juros | F15: Amort. | G15: Saldo Dev | H15: Dias de Antecipação (ANO 360) | I15: Dias de Juros (ANO 360) | J15: Dias de juros devido | K15: Valor do juros com desconto - DF | L15: Desconto Antecipação | M15: Valor da Parcela com Desconto | O15: Dias Atraso | P15: Dias Atraso (360) | Q15: Vlr. Reajuste | R15: Multa Atraso | S15: Juros Atraso | T15: Corr. Atraso | U15: Valor final
A16: 0 | B16: 0 | C16: =C6 -> 2013-05-01 | G16: =C2 -> 10000 | Q16: 0 | T16: 0
A17: 1 | B17: =DAYS360(C7,C6)/30 -> 4 | C17: =DATE(YEAR(C16),MONTH(C16)+$D$4,DAY(C16)) -> 2013-06-01 | D17: =F17+E17 -> 1040 | E17: =F17*$C$4*B17 -> 40 | F17: =IF(A17<=$C$3,$C$2/$C$3,0) -> 1000 | G17: =G16-F17 -> 9000 | H17: =IF(C17<=$C$13,0,DAYS360($C$13,C17)) -> 1579 | I17: =DAYS360($C$16,C17) -> 30 | J17: =I17-H17 -> -1549 | K17: =F17*$C$5*J17 -> -516.3333333 | L17: =E17-K17 -> 556.3333333 | M17: =F17+K17 -> 483.6666667 | O17: 3.663699335 | P17: =IF(C17>$C$13,0,DAYS360(C17,$C$13)) -> 0 | Q17: 2069.016079 | R17: 0.01295676419 | S17: =IF(O17>0,((D17 + Q17)*(1+$C$12)^O17)-(D17 + Q17),0) -> 3.760517409 | T17: 0 | U17: =M17+Q17+R17+S17+T17 -> 2556.45622
A18: 2 | B18: =B17+1 -> 5 | C18: =DATE(YEAR(C17),MONTH(C17)+$D$4,DAY(C17)) -> 2013-07-01 | D18: =F18+E18 -> 1050 | E18: =F18*$C$4*B18 -> 50 | F18: =IF(A18<=$C$3,$C$2/$C$3,0) -> 1000 | G18: 8000 | H18: 1609 | I18: =DAYS360($C$16,C18) -> 60 | J18: =I18-H18 -> -1549 | K18: =F18*$C$5*J18 -> -516.3333333 | L18: =E18-K18 -> 566.3333333 | M18: =F18+K18 -> 483.6666667 | O18: 7.32739867 | P18: 0 | Q18: 1977.960721 | R18: 0.006171752575 | S18: 7.329383392 | T18: 0 | U18: 2468.962942
A19: 3 | B19: =B18+1 -> 6 | C19: =DATE(YEAR(C18),MONTH(C18)+$D$4,DAY(C18)) -> 2013-08-01 | D19: 1060 | E19: 60 | F19: 1000 | G19: 7000 | H19: 1639 | I19: 90 | J19: -1549 | K19: -516.3333333 | L19: 576.3333333 | M19: 483.6666667 | O19: 10.991098 | P19: 0 | Q19: 1977.960721 | R19: 0.002343721946 | S19: 11.03705586 | T19: 0 | U19: 2472.666787
A20: 4 | B20: 7 | C20: 2013-09-01 | D20: 1070 | E20: 70 | F20: 1000 | G20: 6000 | H20: 1669 | I20: 120 | J20: -1549 | K20: -516.3333333 | L20: 586.3333333 | M20: 483.6666667 | O20: 14.65479734 | P20: 0 | Q20: 1977.960721 | R20: 0.0002146629336 | S20: 14.77344794 | T20: 0 | U20: 2476.40105
A21: 5 | B21: 8 | C21: 2013-10-01 | D21: 1080 | E21: 80 | F21: 1000 | G21: 5000 | H21: 1699 | I21: 150 | J21: -1549 | K21: -516.3333333 | L21: 596.3333333 | M21: 483.6666667 | O21: 14.89904396 | P21: 0 | Q21: 1977.960721 | R21: 0 | S21: 15.06955754 | T21: 0 | U21: 2476.696945
A22: 6 | B22: 9 | C22: 2013-11-01 | D22: 1090 | E22: 90 | F22: 1000 | G22: 4000 | H22: 1729 | I22: 180 | J22: -1549 | K22: -516.3333333 | L22: 606.3333333 | M22: 483.6666667 | O22: 14.89904396 | P22: 0 | Q22: 1977.960721 | R22: 0 | S22: 15.1188373 | T22: 0 | U22: 2476.746225
A23: 7 | B23: 10 | C23: 2013-12-01 | D23: 1100 | E23: 100 | F23: 1000 | G23: 3000 | H23: 1759 | I23: 210 | J23: -1549 | K23: -516.3333333 | L23: 616.3333333 | M23: 483.6666667 | O23: 14.89904396 | P23: 0 | Q23: 1977.960721 | R23: 0 | S23: 15.16811706 | T23: 0 | U23: 2476.795504
A24: 8 | B24: 11 | C24: 2014-01-01 | D24: 1110 | E24: 110 | F24: 1000 | G24: 2000 | H24: 1789 | I24: 240 | J24: -1549 | K24: -516.3333333 | L24: 626.3333333 | M24: 483.6666667 | O24: 14.89904396 | P24: 0 | Q24: 1977.960721 | R24: 0 | S24: 15.21739682 | T24: 0 | U24: 2476.844784
A25: 9 | B25: 12 | C25: 2014-02-01 | D25: 1120 | E25: 120 | F25: 1000 | G25: 1000 | H25: 1819 | I25: 270 | J25: -1549 | K25: -516.3333333 | L25: 636.3333333 | M25: 483.6666667 | O25: 14.89904396 | P25: 0 | Q25: 1977.960721 | R25: 0 | S25: 15.26667658 | T25: 0 | U25: 2476.894064
A26: 10 | B26: 13 | C26: 2014-03-01 | D26: 1130 | E26: 130 | F26: 1000 | G26: 0 | H26: 1849 | I26: 300 | J26: -1549 | K26: -516.3333333 | L26: 646.3333333 | M26: 483.6666667 | O26: 14.89904396 | P26: 0 | Q26: 1977.960721 | R26: 0 | S26: 15.31595634 | T26: 0 | U26: 2476.943344
A27: 11 | B27: 14 | C27: 2014-04-01 | D27: 0 | E27: 0 | F27: 0 | G27: 0 | H27: 1879 | I27: 330 | J27: -1549 | K27: 0 | L27: 0 | M27: 0 | O27: 14.89904396 | P27: 0 | Q27: 1977.960721 | R27: 0 | S27: 9.747343281 | T27: 0 | U27: 1987.708064
A28: 12 | B28: 15 | C28: 2014-05-01 | D28: 0 | E28: 0 | F28: 0 | G28: 0 | H28: 1909 | I28: 360 | J28: -1549 | K28: 0 | L28: 0 | M28: 0 | O28: 14.89904396 | P28: 0 | Q28: 1977.960721 | R28: 0 | S28: 9.747343281 | T28: 0 | U28: 1987.708064
A29: 13 | B29: 16 | C29: 2014-06-01 | D29: 0 | E29: 0 | F29: 0 | G29: 0 | H29: 1939 | I29: 390 | J29: -1549 | K29: 0 | L29: 0 | M29: 0 | O29: 14.89904396 | P29: 0 | Q29: 1977.960721 | R29: 0 | S29: 9.747343281 | T29: 0 | U29: 1987.708064
A30: 14 | B30: 17 | C30: 2014-07-01 | D30: 0 | E30: 0 | F30: 0 | G30: 0 | H30: 1969 | I30: 420 | J30: -1549 | K30: 0 | L30: 0 | M30: 0 | O30: 14.89904396 | P30: 0 | Q30: 1977.960721 | R30: 0 | S30: 9.747343281 | T30: 0 | U30: 1987.708064
A31: 15 | B31: 18 | C31: 2014-08-01 | D31: 0 | E31: 0 | F31: 0 | G31: 0 | H31: 1999 | I31: 450 | J31: -1549 | K31: 0 | L31: 0 | M31: 0 | O31: 14.89904396 | P31: 0 | Q31: 1977.960721 | R31: 0 | S31: 9.747343281 | T31: 0 | U31: 1987.708064
A32: 16 | B32: 19 | C32: 2014-09-01 | D32: 0 | E32: 0 | F32: 0 | G32: 0 | H32: 2029 | I32: 480 | J32: -1549 | K32: 0 | L32: 0 | M32: 0 | O32: 14.89904396 | P32: 0 | Q32: 1977.960721 | R32: 0 | S32: 9.747343281 | T32: 0 | U32: 1987.708064
A33: 17 | B33: 20 | C33: 2014-10-01 | D33: 0 | E33: 0 | F33: 0 | G33: 0 | H33: 2059 | I33: 510 | J33: -1549 | K33: 0 | L33: 0 | M33: 0 | O33: 14.89904396 | P33: 0 | Q33: 1977.960721 | R33: 0 | S33: 9.747343281 | T33: 0 | U33: 1987.708064
A34: 18 | B34: 21 | C34: 2014-11-01 | D34: 0 | E34: 0 | F34: 0 | G34: 0 | H34: 2089 | I34: 540 | J34: -1549 | K34: 0 | L34: 0 | M34: 0 | O34: 14.89904396 | P34: 0 | Q34: 1977.960721 | R34: 0 | S34: 9.747343281 | T34: 0 | U34: 1987.708064
A35: 19 | B35: 22 | C35: 2014-12-01 | D35: 0 | E35: 0 | F35: 0 | G35: 0 | H35: 2119 | I35: 570 | J35: -1549 | K35: 0 | L35: 0 | M35: 0 | O35: 14.89904396 | P35: 0 | Q35: 1977.960721 | R35: 0 | S35: 9.747343281 | T35: 0 | U35: 1987.708064
A36: 20 | B36: 23 | C36: 2015-01-01 | D36: 0 | E36: 0 | F36: 0 | G36: 0 | H36: 2149 | I36: 600 | J36: -1549 | K36: 0 | L36: 0 | M36: 0 | O36: 14.89904396 | P36: 0 | Q36: 1977.960721 | R36: 0 | S36: 9.747343281 | T36: 0 | U36: 1987.708064
A37: 21 | B37: 24 | C37: 2015-02-01 | D37: 0 | E37: 0 | F37: 0 | G37: 0 | H37: 2179 | I37: 630 | J37: -1549 | K37: 0 | L37: 0 | M37: 0 | O37: 0 | P37: 0 | Q37: 1977.960721 | R37: 0 | S37: 0 | T37: 0 | U37: 1977.960721
A38: 22 | B38: 25 | C38: 2015-03-01 | D38: 0 | E38: 0 | F38: 0 | G38: 0 | H38: 2209 | I38: 660 | J38: -1549 | K38: 0 | L38: 0 | M38: 0 | O38: 0 | P38: 0 | Q38: 1977.960721 | R38: 0 | S38: 0 | T38: 0 | U38: 1977.960721
A39: 23 | B39: 26 | C39: 2015-04-01 | D39: 0 | E39: 0 | F39: 0 | G39: 0 | H39: 2239 | I39: 690 | J39: -1549 | K39: 0 | L39: 0 | M39: 0 | O39: 0 | P39: 0 | Q39: 1977.960721 | R39: 0 | S39: 0 | T39: 0 | U39: 1977.960721
A40: 24 | B40: 27 | C40: 2015-05-01 | D40: 0 | E40: 0 | F40: 0 | G40: 0 | H40: 2269 | I40: 720 | J40: -1549 | K40: 0 | L40: 0 | M40: 0 | O40: 0 | P40: 0 | Q40: 1977.960721 | R40: 0 | S40: 0 | T40: 0 | U40: 1977.960721
A41: 25 | B41: 28 | C41: 2015-06-01 | D41: 0 | E41: 0 | F41: 0 | G41: 0 | H41: 2299 | I41: 750 | J41: -1549 | K41: 0 | L41: 0 | M41: 0 | O41: 0 | P41: 0 | Q41: 1977.960721 | R41: 0 | S41: 0 | T41: 0 | U41: 1977.960721
A42: 26 | B42: 29 | C42: 2015-07-01 | D42: 0 | E42: 0 | F42: 0 | G42: 0 | H42: 2329 | I42: 780 | J42: -1549 | K42: 0 | L42: 0 | M42: 0 | O42: 0 | P42: 0 | Q42: 1977.960721 | R42: 0 | S42: 0 | T42: 0 | U42: 1977.960721
A43: 27 | B43: 30 | C43: 2015-08-01 | D43: 0 | E43: 0 | F43: 0 | G43: 0 | H43: 2359 | I43: 810 | J43: -1549 | K43: 0 | L43: 0 | M43: 0 | O43: 0 | P43: 0 | Q43: 1977.960721 | R43: 0 | S43: 0 | T43: 0 | U43: 1977.960721
A44: 28 | B44: 31 | C44: 2015-09-01 | D44: 0 | E44: 0 | F44: 0 | G44: 0 | H44: 2389 | I44: 840 | J44: -1549 | K44: 0 | L44: 0 | M44: 0 | O44: 0 | P44: 0 | Q44: 1977.960721 | R44: 0 | S44: 0 | T44: 0 | U44: 1977.960721
A45: 29 | B45: 32 | C45: 2015-10-01 | D45: 0 | E45: 0 | F45: 0 | G45: 0 | H45: 2419 | I45: 870 | J45: -1549 | K45: 0 | L45: 0 | M45: 0 | O45: 0 | P45: 0 | Q45: 1977.960721 | R45: 0 | S45: 0 | T45: 0 | U45: 1977.960721
A46: 30 | B46: 33 | C46: 2015-11-01 | D46: 0 | E46: 0 | F46: 0 | G46: 0 | H46: 2449 | I46: 900 | J46: -1549 | K46: 0 | L46: 0 | M46: 0 | O46: 0 | P46: 0 | Q46: 1977.960721 | R46: 0 | S46: 0 | T46: 0 | U46: 1977.960721
A47: 31 | B47: 34 | C47: 2015-12-01 | D47: 0 | E47: 0 | F47: 0 | G47: 0 | H47: 2479 | I47: 930 | J47: -1549 | K47: 0 | L47: 0 | M47: 0 | O47: 0 | P47: 0 | Q47: 1977.960721 | R47: 0 | S47: 0 | T47: 0 | U47: 1977.960721
A48: 32 | B48: 35 | C48: 2016-01-01 | D48: 0 | E48: 0 | F48: 0 | G48: 0 | H48: 2509 | I48: 960 | J48: -1549 | K48: 0 | L48: 0 | M48: 0 | O48: 0 | P48: 0 | Q48: 1977.960721 | R48: 0 | S48: 0 | T48: 0 | U48: 1977.960721
A49: 33 | B49: 36 | C49: 2016-02-01 | D49: 0 | E49: 0 | F49: 0 | G49: 0 | H49: 2539 | I49: 990 | J49: -1549 | K49: 0 | L49: 0 | M49: 0 | O49: 0 | P49: 0 | Q49: 1977.960721 | R49: 0 | S49: =IF(O49>0,((D49 + Q49)*(1+$C$12)^O49)-(D49 + Q49),0) -> 0 | T49: 0 | U49: 1977.960721
A50: 34 | B50: 37 | C50: 2016-03-01 | D50: 0 | E50: 0 | F50: 0 | G50: 0 | H50: 2569 | I50: 1020 | J50: -1549 | K50: 0 | L50: 0 | M50: 0 | O50: 0 | P50: 0 | Q50: 1977.960721 | R50: 0 | S50: 0 | T50: 0 | U50: 1977.960721
A51: 35 | B51: 38 | C51: 2016-04-01 | D51: 0 | E51: 0 | F51: 0 | G51: 0 | H51: 2599 | I51: 1050 | J51: -1549 | K51: 0 | L51: 0 | M51: 0 | O51: 0 | P51: 0 | Q51: 1977.960721 | R51: 0 | S51: 0 | T51: 0 | U51: 1977.960721
A52: 36 | B52: 39 | C52: 2016-05-01 | D52: 0 | E52: 0 | F52: 0 | G52: 0 | H52: 2629 | I52: 1080 | J52: -1549 | K52: 0 | L52: 0 | M52: 0 | O52: 0 | P52: 0 | Q52: 1977.960721 | R52: 0 | S52: 0 | T52: 0 | U52: 1977.960721
A53: 37 | B53: 40 | C53: 2016-06-01 | D53: 0 | E53: 0 | F53: 0 | G53: 0 | H53: 2659 | I53: 1110 | J53: -1549 | K53: 0 | L53: 0 | M53: 0 | O53: 0 | P53: 0 | Q53: 1977.960721 | R53: 0 | S53: 0 | T53: 0 | U53: 1977.960721
A54: 38 | B54: 41 | C54: 2016-07-01 | D54: 0 | E54: 0 | F54: 0 | G54: 0 | H54: 2689 | I54: 1140 | J54: -1549 | K54: 0 | L54: 0 | M54: 0 | O54: 0 | P54: 0 | Q54: 1977.960721 | R54: 0 | S54: 0 | T54: 0 | U54: 1977.960721
A55: 39 | B55: 42 | C55: 2016-08-01 | D55: 0 | E55: 0 | F55: 0 | G55: 0 | H55: 2719 | I55: 1170 | J55: -1549 | K55: 0 | L55: 0 | M55: 0 | O55: 0 | P55: 0 | Q55: 1977.960721 | R55: 0 | S55: 0 | T55: 0 | U55: 1977.960721
A56: 40 | B56: 43 | C56: 2016-09-01 | D56: 0 | E56: 0 | F56: 0 | G56: 0 | H56: 2749 | I56: 1200 | J56: -1549 | K56: 0 | L56: 0 | M56: 0 | O56: 0 | P56: 0 | Q56: 1977.960721 | R56: 0 | S56: 0 | T56: 0 | U56: 1977.960721
A57: 41 | B57: 44 | C57: 2016-10-01 | D57: 0 | E57: 0 | F57: 0 | G57: 0 | H57: 2779 | I57: 1230 | J57: -1549 | K57: 0 | L57: 0 | M57: 0 | O57: 0 | P57: 0 | Q57: 1977.960721 | R57: 0 | S57: 0 | T57: 0 | U57: 1977.960721
A58: 42 | B58: 45 | C58: 2016-11-01 | D58: 0 | E58: 0 | F58: 0 | G58: 0 | H58: 2809 | I58: 1260 | J58: -1549 | K58: 0 | L58: 0 | M58: 0 | O58: 0 | P58: 0 | Q58: 1977.960721 | R58: 0 | S58: 0 | T58: 0 | U58: 1977.960721
A59: 43 | B59: 46 | C59: 2016-12-01 | D59: 0 | E59: 0 | F59: 0 | G59: 0 | H59: 2839 | I59: 1290 | J59: -1549 | K59: 0 | L59: 0 | M59: 0 | O59: 0 | P59: 0 | Q59: 1977.960721 | R59: 0 | S59: 0 | T59: 0 | U59: 1977.960721
A60: 44 | B60: 47 | C60: 2017-01-01 | D60: 0 | E60: 0 | F60: 0 | G60: 0 | H60: 2869 | I60: 1320 | J60: -1549 | K60: 0 | L60: 0 | M60: 0 | O60: 0 | P60: 0 | Q60: 1977.960721 | R60: 0 | S60: 0 | T60: 0 | U60: 1977.960721
A61: 45 | B61: 48 | C61: 2017-02-01 | D61: 0 | E61: 0 | F61: 0 | G61: 0 | H61: 2899 | I61: 1350 | J61: -1549 | K61: 0 | L61: 0 | M61: 0 | O61: 0 | P61: 0 | Q61: 1977.960721 | R61: 0 | S61: 0 | T61: 0 | U61: 1977.960721
A62: 46 | B62: 49 | C62: 2017-03-01 | D62: 0 | E62: 0 | F62: 0 | G62: 0 | H62: 2929 | I62: 1380 | J62: -1549 | K62: 0 | L62: 0 | M62: 0 | O62: 0 | P62: 0 | Q62: 1977.960721 | R62: 0 | S62: 0 | T62: 0 | U62: 1977.960721
A63: 47 | B63: 50 | C63: 2017-04-01 | D63: 0 | E63: 0 | F63: 0 | G63: 0 | H63: 2959 | I63: 1410 | J63: -1549 | K63: 0 | L63: 0 | M63: 0 | O63: 0 | P63: 0 | Q63: 1977.960721 | R63: 0 | S63: 0 | T63: 0 | U63: 1977.960721
A64: 48 | B64: 51 | C64: 2017-05-01 | D64: 0 | E64: 0 | F64: 0 | G64: 0 | H64: 2989 | I64: 1440 | J64: -1549 | K64: 0 | L64: 0 | M64: 0 | O64: 0 | P64: 0 | Q64: 1977.960721 | R64: 0 | S64: 0 | T64: 0 | U64: 1977.960721
A65: 49 | B65: 52 | C65: 2017-06-01 | D65: 0 | E65: 0 | F65: 0 | G65: 0 | H65: 3019 | I65: 1470 | J65: -1549 | K65: 0 | L65: 0 | M65: 0 | O65: 0 | P65: 0 | Q65: 0 | R65: 0 | S65: 0 | T65: 0 | U65: 0
A66: 50 | B66: 53 | C66: 2017-07-01 | D66: 0 | E66: 0 | F66: 0 | G66: 0 | H66: 3049 | I66: 1500 | J66: -1549 | K66: 0 | L66: 0 | M66: 0 | O66: 0 | P66: 0 | Q66: 0 | R66: 0 | S66: 0 | T66: 0 | U66: 0
A67: 51 | B67: 54 | C67: 2017-08-01 | D67: 0 | E67: 0 | F67: 0 | G67: 0 | H67: 3079 | I67: 1530 | J67: -1549 | K67: 0 | L67: 0 | M67: 0 | O67: 0 | P67: 0 | Q67: 0 | R67: 0 | S67: 0 | T67: 0 | U67: 0
A68: 52 | B68: 55 | C68: 2017-09-01 | D68: 0 | E68: 0 | F68: 0 | G68: 0 | H68: 3109 | I68: 1560 | J68: -1549 | K68: 0 | L68: 0 | M68: 0 | O68: 0 | P68: 0 | Q68: 0 | R68: 0 | S68: 0 | T68: 0 | U68: 0
A69: 53 | B69: 56 | C69: 2017-10-01 | D69: 0 | E69: 0 | F69: 0 | G69: 0 | H69: 3139 | I69: 1590 | J69: -1549 | K69: 0 | L69: 0 | M69: 0 | O69: 0 | P69: 0 | Q69: 0 | R69: 0 | S69: 0 | T69: 0 | U69: 0
A70: 54 | B70: 57 | C70: 2017-11-01 | D70: 0 | E70: 0 | F70: 0 | G70: 0 | H70: 3169 | I70: 1620 | J70: -1549 | K70: 0 | L70: 0 | M70: 0 | O70: 0 | P70: 0 | Q70: 0 | R70: 0 | S70: 0 | T70: 0 | U70: 0
A71: 55 | B71: 58 | C71: 2017-12-01 | D71: 0 | E71: 0 | F71: 0 | G71: 0 | H71: 3199 | I71: 1650 | J71: -1549 | K71: 0 | L71: 0 | M71: 0 | O71: 0 | P71: 0 | Q71: 0 | R71: 0 | S71: 0 | T71: 0 | U71: 0
A72: 56 | B72: 59 | C72: 2018-01-01 | D72: 0 | E72: 0 | F72: 0 | G72: 0 | H72: 3229 | I72: 1680 | J72: -1549 | K72: 0 | L72: 0 | M72: 0 | O72: 0 | P72: 0 | Q72: 0 | R72: 0 | S72: 0 | T72: 0 | U72: 0
A73: 57 | B73: 60 | C73: 2018-02-01 | D73: 0 | E73: 0 | F73: 0 | G73: 0 | H73: 3259 | I73: 1710 | J73: -1549 | K73: 0 | L73: 0 | M73: 0 | O73: 0 | P73: 0 | Q73: 0 | R73: 0 | S73: 0 | T73: 0 | U73: 0
A74: 58 | B74: 61 | C74: 2018-03-01 | D74: 0 | E74: 0 | F74: 0 | G74: 0 | H74: 3289 | I74: 1740 | J74: -1549 | K74: 0 | L74: 0 | M74: 0 | O74: 0 | P74: 0 | Q74: 0 | R74: 0 | S74: 0 | T74: 0 | U74: 0
A75: 59 | B75: 62 | C75: 2018-04-01 | D75: 0 | E75: 0 | F75: 0 | G75: 0 | H75: 3319 | I75: 1770 | J75: -1549 | K75: 0 | L75: 0 | M75: 0 | O75: 0 | P75: 0 | Q75: 0 | R75: 0 | S75: 0 | T75: 0 | U75: 0
A76: 60 | B76: 63 | C76: 2018-05-01 | D76: 0 | E76: 0 | F76: 0 | G76: 0 | H76: 3349 | I76: 1800 | J76: -1549 | K76: 0 | L76: 0 | M76: 0 | O76: 0 | P76: 0 | Q76: 0 | R76: 0 | S76: 0 | T76: 0 | U76: 0
A77: 61 | B77: 64 | C77: 2018-06-01 | D77: 0 | E77: 0 | F77: 0 | G77: 0 | H77: 3379 | I77: 1830 | J77: -1549 | K77: 0 | L77: 0 | M77: 0 | O77: 0 | P77: 0 | Q77: 0 | R77: 0 | S77: 0 | T77: 0 | U77: 0
A78: 62 | B78: 65 | C78: 2018-07-01 | D78: 0 | E78: 0 | F78: 0 | G78: 0 | H78: 3409 | I78: 1860 | J78: -1549 | K78: 0 | L78: 0 | M78: 0 | O78: 0 | P78: 0 | Q78: 0 | R78: 0 | S78: 0 | T78: 0 | U78: 0
A79: 63 | B79: 66 | C79: 2018-08-01 | D79: 0 | E79: 0 | F79: 0 | G79: 0 | H79: 3439 | I79: 1890 | J79: -1549 | K79: 0 | L79: 0 | M79: 0 | O79: 0 | P79: 0 | Q79: 0 | R79: 0 | S79: 0 | T79: 0 | U79: 0
A80: 64 | B80: 67 | C80: 2018-09-01 | D80: 0 | E80: 0 | F80: 0 | G80: 0 | H80: 3469 | I80: 1920 | J80: -1549 | K80: 0 | L80: 0 | M80: 0 | O80: 0 | P80: 0 | Q80: 0 | R80: 0 | S80: 0 | T80: 0 | U80: 0
A81: 65 | B81: 68 | C81: 2018-10-01 | D81: 0 | E81: 0 | F81: 0 | G81: =G80-F81 -> 0 | H81: =IF(C81<=$C$13,0,DAYS360($C$13,C81)) -> 3499 | I81: 1950 | J81: -1549 | K81: 0 | L81: 0 | M81: 0 | O81: 0 | P81: =IF(C81>$C$13,0,DAYS360(C81,$C$13)) -> 0 | Q81: 0 | R81: 0 | S81: =IF(O81>0,((D81 + Q81)*(1+$C$12)^O81)-(D81 + Q81),0) -> 0 | T81: 0 | U81: =M81+Q81+R81+S81+T81 -> 0
A82: 66 | B82: 69 | C82: 2018-11-01 | D82: =F82+E82 -> 0 | E82: =F82*$C$4*B82 -> 0 | F82: =IF(A82<=$C$3,$C$2/$C$3,0) -> 0 | G82: 0 | H82: 3529 | I82: =DAYS360($C$16,C82) -> 1980 | J82: =I82-H82 -> -1549 | K82: =F82*$C$5*J82 -> 0 | L82: =E82-K82 -> 0 | M82: =F82+K82 -> 0 | O82: 0 | P82: 0 | Q82: 0 | R82: 0 | S82: 0 | T82: 0 | U82: 0
A83: 67 | B83: =B82+1 -> 70 | C83: =DATE(YEAR(C82),MONTH(C82)+$D$4,DAY(C82)) -> 2018-12-01 | D83: 0 | E83: 0 | F83: 0 | G83: 0 | H83: 3559 | I83: 2010 | J83: -1549 | K83: 0 | L83: 0 | M83: 0 | O83: 0 | P83: 0 | Q83: 0 | R83: 0 | S83: 0 | T83: 0 | U83: 0
A84: 68 | B84: 71 | C84: 2019-01-01 | D84: 0 | E84: 0 | F84: 0 | G84: 0 | H84: 3589 | I84: 2040 | J84: -1549 | K84: 0 | L84: 0 | M84: 0 | O84: 0 | P84: 0 | Q84: 0 | R84: 0 | S84: 0 | T84: 0 | U84: 0
A85: 69 | B85: 72 | C85: 2019-02-01 | D85: 0 | E85: 0 | F85: 0 | G85: 0 | H85: 3619 | I85: 2070 | J85: -1549 | K85: 0 | L85: 0 | M85: 0 | O85: 0 | P85: 0 | Q85: 0 | R85: 0 | S85: 0 | T85: 0 | U85: 0
A86: 70 | B86: 73 | C86: 2019-03-01 | D86: 0 | E86: 0 | F86: 0 | G86: 0 | H86: 3649 | I86: 2100 | J86: -1549 | K86: 0 | L86: 0 | M86: 0 | O86: 0 | P86: 0 | Q86: 0 | R86: 0 | S86: 0 | T86: 0 | U86: 0
A87: 71 | B87: 74 | C87: 2019-04-01 | D87: 0 | E87: 0 | F87: 0 | G87: 0 | H87: 3679 | I87: 2130 | J87: -1549 | K87: 0 | L87: 0 | M87: 0 | O87: 0 | P87: 0 | Q87: 0 | R87: 0 | S87: 0 | T87: 0 | U87: 0
A88: 72 | B88: 75 | C88: 2019-05-01 | D88: 0 | E88: 0 | F88: 0 | G88: 0 | H88: 3709 | I88: 2160 | J88: -1549 | K88: 0 | L88: 0 | M88: 0 | O88: 0 | P88: 0 | Q88: 179.4658643 | R88: 0 | S88: 0 | U88: 179.4658643
A89: Total | D89: =SUM(D17:D88) -> 10850 | E89: =SUM(E17:E88) -> 850 | F89: =SUM(F17:F88) -> 10000 | G89: 0

Sheet PRICE (hidden)
A1: Montante (VP) | B1: 8000000 | H1: PMT | I1: Valor da prestação | K1: PV * ((((1 + i) ^ n) * i ) / (((1 + i) ^ n) -1))
A2: Qtde Parcelas (n) | B2: 100 | C2: Valor da Parcela | D2: =B1/B2 -> 80000 | H2: PV | I2: Montante
A3: Juros inicia | B3: 1 | C3: meses antes da 1ª parcela com juros | H3: n | I3: Nº de prestações
A4: Dt 1º parcela | B4: 2015-01-01 | C4: Dt Inicio Juros | D4: =DATE(YEAR(B4),MONTH(B4)-B3,DAY(B4)) -> 2014-12-01 | H4: i | I4: Juros | K4: i * PMT * ((((1 + i) ^(n - (k -1))) - 1)/(((1 + i) ^(n - (k -1))) * i))
A5: Taxa (i) | B5: 0.01023684434 | C5: a cada | D5: 1 | E5: Meses | H5: SDk | I5: Saldo Devedor | K5: PMT * ((((1 + i) ^(n - k)) - 1)/(((1 + i) ^(n - k)) * i))
A6: Taxa Mensal | B6: =((1+B5)^(1/IF(D5>0,D5,1)))-1 -> 0.01023684434 | H6: D | I6: Desconto | K6: FV[((1+d)^n) - 1/((1+d)^n)]
A7: Taxa diária | B7: =((1+B6)^(1/30))-1 -> 0.000339551058
A8: VP' | B8: =B1*(1+B6) ^B3 -> 8081894.755 | D8: Inicio da correção | F8: 2008-02-01
A9: VF | B9: 0 | D9: Dt. Fim Correção | F9: 2015-12-01
A10: Tipo | B10: 1 | C10: =IF(B10=1,"Begin","End") -> Begin | D10: % Multa | F10: 0
A11: Desconto Ant. (mês) | B11: 0 | D11: % Juros Atraso | F11: 0
A12: Valor Parcela | B12: =PMT(B5,B2,-B8,B9,B10) -> 128189.5656 | D12: Data de recebimento | F12: 2012-07-12
A14: k | B14: Vencimento | C14: Prestação | D14: Juros | E14: Amort. | F14: Saldo Dev | G14: Dias de Antecipação (ANO 360) | H14: Desconto Antecipação | I14: Valor do juros com desconto | J14: Valor da Parcela com Desconto | L14: Dias Atraso | M14: Dias Atraso (360) | N14: Vlr. Reajuste | O14: Multa Atraso | P14: Juros Atraso | Q14: Corr. Atraso | R14: Valor final
A15: 0 | F15: =B8 -> 8081894.755 | N15: 0 | Q15: 0
A16: 1 | B16: =B4 -> 2015-01-01 | C16: =ROUND(IF(A16<=$B$2,$B$8 * ((((1 + $B$5) ^ ($B$2 -$B$10)) * $B$5 ) / (((1 + $B$5) ^ $B$2) -1)),0),2) -> 128189.57 | D16: =ROUND($B$5 * C16 * ((((1 + $B$5) ^($B$2 - (A16 -1))) - 1)/(((1 + $B$5) ^($B$2 - (A16 -1))) * $B$5)),2) -> 81894.76 | E16: =C16-D16 -> 46294.81 | F16: =C16 * ((((1 + $B$5) ^($B$2 - A16)) - 1)/(((1 + $B$5) ^($B$2 - A16)) * $B$5)) -> 7953705.463 | G16: =IF(C16>0,IF(B16<=$F$12,0,DAYS360($F$12,B16)),0) -> 889 | H16: =C16*((((1+$B$7)^G16) - 1)/((1+$B$7)^G16)) -> 33396.0995 | I16: =D16-H16 -> 48498.6605 | J16: =E16+I16 -> 94793.4705 | K16: =D16+E16 -> 128189.57 | L16: =IF(B16>$F$12,0, $F$12-B16) -> 0 | M16: =IF(B16>$F$12,0,DAYS360(B16,$F$12)) -> 0 | N16: 1349.912773 | O16: =IF(M16>0,(C16 + N16)*$F$10,0) -> 0 | P16: =IF(L16>0,((C16 + N16)*(1+$F$11)^L16)-(C16 + N16),0) -> 0 | Q16: 0 | R16: =J16+N16+O16+P16+Q16 -> 96143.38327
A17: 2 | B17: =DATE(YEAR(B16),MONTH(B16)+$D$5,DAY(B16)) -> 2015-02-01 | C17: =ROUND(IF(A17<=$B$2,$B$8 * ((((1 + $B$5) ^ ($B$2 -$B$10)) * $B$5 ) / (((1 + $B$5) ^ $B$2) -1)),0),2) -> 128189.57 | D17: =ROUND($B$5 * C17 * ((((1 + $B$5) ^($B$2 - (A17 -1))) - 1)/(((1 + $B$5) ^($B$2 - (A17 -1))) * $B$5)),2) -> 81420.84 | E17: 46768.73 | F17: 7906936.737 | G17: =IF(C17>0,IF(B17<=$F$12,0,DAYS360($F$12,B17)),0) -> 919 | H17: =C17*((((1+$B$7)^G17) - 1)/((1+$B$7)^G17)) -> 34356.65247 | I17: 47064.18753 | J17: 93832.91753 | L17: 0 | M17: 0 | N17: 1349.912773 | O17: 0 | P17: 0 | Q17: 0 | R17: 95182.8303
A18: 3 | B18: 2015-03-01 | C18: 128189.57 | D18: 80942.08 | E18: 47247.49 | F18: 7859689.248 | G18: 949 | H18: 35307.47205 | I18: 45634.60795 | J18: 92882.09795 | L18: 0 | M18: 0 | N18: 1349.912773 | O18: 0 | P18: 0 | Q18: 0 | R18: 94232.01072
A19: 4 | B19: 2015-04-01 | C19: 128189.57 | D19: 80458.42 | E19: 47731.15 | F19: 7811958.093 | G19: 979 | H19: 36248.65687 | I19: 44209.76313 | J19: 91940.91313 | L19: 0 | M19: 0 | N19: 1349.912773 | O19: 0 | P19: 0 | Q19: 0 | R19: 93290.82591
A20: 5 | B20: 2015-05-01 | C20: 128189.57 | D20: 79969.8 | E20: 48219.77 | F20: 7763738.322 | G20: 1009 | H20: 37180.30455 | I20: 42789.49545 | J20: 91009.26545 | L20: 0 | M20: 0 | N20: 1349.912773 | O20: 0 | P20: 0 | Q20: 0 | R20: 92359.17822
A21: 6 | B21: 2015-06-01 | C21: 128189.57 | D21: 79476.18 | E21: 48713.39 | F21: 7715024.933 | G21: 1039 | H21: 38102.51174 | I21: 41373.66826 | J21: 90087.05826 | L21: 0 | M21: 0 | N21: 1349.912773 | O21: 0 | P21: 0 | Q21: 0 | R21: 91436.97103
A22: 7 | B22: 2015-07-01 | C22: 128189.57 | D22: 78977.51 | E22: 49212.06 | F22: 7665812.872 | G22: 1069 | H22: 39015.3741 | I22: 39962.1359 | J22: 89174.1959 | L22: 0 | M22: 0 | N22: 1349.912773 | O22: 0 | P22: 0 | Q22: 0 | R22: 90524.10867
A23: 8 | B23: 2015-08-01 | C23: 128189.57 | D23: 78473.73 | E23: 49715.84 | F23: 7616097.035 | G23: 1099 | H23: 39918.98633 | I23: 38554.74367 | J23: 88270.58367 | L23: 0 | M23: 0 | N23: 1341.862724 | O23: 0 | P23: 0 | Q23: 0 | R23: 89612.4464
A24: 9 | B24: 2015-09-01 | C24: 128189.57 | D24: 77964.8 | E24: 50224.77 | F24: 7565872.265 | G24: 1129 | H24: 40813.44215 | I24: 37151.35785 | J24: 87376.12785 | L24: 0 | M24: 0 | N24: 1329.249748 | O24: 0 | P24: 0 | Q24: 0 | R24: 88705.3776
A25: 10 | B25: 2015-10-01 | C25: 128189.57 | D25: 77450.66 | E25: 50738.91 | F25: 7515133.352 | G25: 1159 | H25: 41698.83435 | I25: 35751.82565 | J25: 86490.73565 | L25: 0 | M25: 0 | N25: 1316.75533 | O25: 0 | P25: 0 | Q25: 0 | R25: 87807.49098
A26: 11 | B26: 2015-11-01 | C26: 128189.57 | D26: 76931.25 | E26: 51258.32 | F26: 7463875.032 | G26: 1189 | H26: 42575.25476 | I26: 34355.99524 | J26: 85614.31524 | L26: 0 | M26: 0 | N26: 1304.378353 | O26: 0 | P26: 0 | Q26: 0 | R26: 86918.69359
A27: 12 | B27: 2015-12-01 | C27: 128189.57 | D27: 76406.53 | E27: 51783.04 | F27: 7412091.989 | G27: 1219 | H27: 43442.79432 | I27: 32963.73568 | J27: 84746.77568 | L27: 0 | M27: 0 | N27: 1292.117716 | O27: 0 | P27: 0 | Q27: 0 | R27: 86038.8934
A28: 13 | B28: 2016-01-01 | C28: 128189.57 | D28: 75876.43 | E28: 52313.14 | F28: 7359778.851 | G28: 1249 | H28: 44301.54299 | I28: 31574.88701 | J28: 83888.02701 | L28: 0 | M28: 0 | N28: 0 | O28: 0 | P28: 0 | Q28: 0 | R28: 83888.02701
A29: 14 | B29: 2016-02-01 | C29: 128189.57 | D29: 75340.91 | E29: 52848.66 | F29: 7306930.191 | G29: 1279 | H29: 45151.58987 | I29: 30189.32013 | J29: 83037.98013 | L29: 0 | M29: 0 | N29: 0 | O29: 0 | P29: 0 | Q29: 0 | R29: 83037.98013
A30: 15 | B30: 2016-03-01 | C30: 128189.57 | D30: 74799.91 | E30: 53389.66 | F30: 7253540.528 | G30: 1309 | H30: 45993.02312 | I30: 28806.88688 | J30: 82196.54688 | L30: 0 | M30: 0 | N30: 0 | O30: 0 | P30: 0 | Q30: 0 | R30: 82196.54688
A31: 16 | B31: 2016-04-01 | C31: 128189.57 | D31: 74253.37 | E31: 53936.2 | F31: 7199604.324 | G31: 1339 | H31: 46825.93004 | I31: 27427.43996 | J31: 81363.63996 | L31: 0 | M31: 0 | N31: 0 | O31: 0 | P31: 0 | Q31: 0 | R31: 81363.63996
A32: 17 | B32: 2016-05-01 | C32: 128189.57 | D32: 73701.23 | E32: 54488.34 | F32: 7145115.983 | G32: 1369 | H32: 47650.39702 | I32: 26050.83298 | J32: 80539.17298 | L32: 0 | M32: 0 | N32: 0 | O32: 0 | P32: 0 | Q32: 0 | R32: 80539.17298
A33: 18 | B33: 2016-06-01 | C33: 128189.57 | D33: 73143.44 | E33: 55046.13 | F33: 7090069.853 | G33: 1399 | H33: 48466.50958 | I33: 24676.93042 | J33: 79723.06042 | L33: 0 | M33: 0 | N33: 0 | O33: 0 | P33: 0 | Q33: 0 | R33: 79723.06042
A34: 19 | B34: 2016-07-01 | C34: 128189.57 | D34: 72579.94 | E34: 55609.63 | F34: 7034460.224 | G34: 1429 | H34: 49274.35238 | I34: 23305.58762 | J34: 78915.21762 | L34: 0 | M34: 0 | N34: 0 | O34: 0 | P34: 0 | Q34: 0 | R34: 78915.21762
A35: 20 | B35: 2016-08-01 | C35: 128189.57 | D35: 72010.67 | E35: 56178.9 | F35: 6978281.328 | G35: 1459 | H35: 50074.00921 | I35: 21936.66079 | J35: 78115.56079 | L35: 0 | M35: 0 | N35: 0 | O35: 0 | P35: 0 | Q35: 0 | R35: 78115.56079
A36: 21 | B36: 2016-09-01 | C36: 128189.57 | D36: 71435.58 | E36: 56753.99 | F36: 6921527.338 | G36: 1489 | H36: 50865.56304 | I36: 20570.01696 | J36: 77324.00696 | L36: 0 | M36: 0 | N36: 0 | O36: 0 | P36: 0 | Q36: 0 | R36: 77324.00696
A37: 22 | B37: 2016-10-01 | C37: 128189.57 | D37: 70854.6 | E37: 57334.97 | F37: 6864192.366 | G37: 1519 | H37: 51649.09595 | I37: 19205.50405 | J37: 76540.47405 | L37: 0 | M37: 0 | N37: 0 | O37: 0 | P37: 0 | Q37: 0 | R37: 76540.47405
A38: 23 | B38: 2016-11-01 | C38: 128189.57 | D38: 70267.67 | E38: 57921.9 | F38: 6806270.465 | G38: 1549 | H38: 52424.68924 | I38: 17842.98076 | J38: 75764.88076 | L38: 0 | M38: 0 | N38: 0 | O38: 0 | P38: 0 | Q38: 0 | R38: 75764.88076
A39: 24 | B39: 2016-12-01 | C39: 128189.57 | D39: 69674.73 | E39: 58514.84 | F39: 6747755.626 | G39: 1579 | H39: 53192.42336 | I39: 16482.30664 | J39: 74997.14664 | L39: 0 | M39: 0 | N39: 0 | O39: 0 | P39: 0 | Q39: 0 | R39: 74997.14664
A40: 25 | B40: 2017-01-01 | C40: 128189.57 | D40: 69075.72 | E40: 59113.85 | F40: 6688641.78 | G40: 1609 | H40: 53952.37794 | I40: 15123.34206 | J40: 74237.19206 | L40: 0 | M40: 0 | N40: 0 | O40: 0 | P40: 0 | Q40: 0 | R40: 74237.19206
A41: 26 | B41: 2017-02-01 | C41: 128189.57 | D41: 68470.58 | E41: 59718.99 | F41: 6628922.795 | G41: 1639 | H41: 54704.63181 | I41: 13765.94819 | J41: 73484.93819 | L41: 0 | M41: 0 | N41: 0 | O41: 0 | P41: 0 | Q41: 0 | R41: 73484.93819
A42: 27 | B42: 2017-03-01 | C42: 128189.57 | D42: 67859.25 | E42: 60330.32 | F42: 6568592.476 | G42: 1669 | H42: 55449.26301 | I42: 12409.98699 | J42: 72740.30699 | L42: 0 | M42: 0 | N42: 0 | O42: 0 | P42: 0 | Q42: 0 | R42: 72740.30699
A43: 28 | B43: 2017-04-01 | C43: 128189.57 | D43: 67241.66 | E43: 60947.91 | F43: 6507644.564 | G43: 1699 | H43: 56186.34878 | I43: 11055.31122 | J43: 72003.22122 | L43: 0 | M43: 0 | N43: 0 | O43: 0 | P43: 0 | Q43: 0 | R43: 72003.22122
A44: 29 | B44: 2017-05-01 | C44: 128189.57 | D44: 66617.74 | E44: 61571.83 | F44: 6446072.739 | G44: 1729 | H44: 56915.96558 | I44: 9701.774425 | J44: 71273.60442 | L44: 0 | M44: 0 | N44: 0 | O44: 0 | P44: 0 | Q44: 0 | R44: 71273.60442
A45: 30 | B45: 2017-06-01 | C45: 128189.57 | D45: 65987.44 | E45: 62202.13 | F45: 6383870.612 | G45: 1759 | H45: 57638.18908 | I45: 8349.25092 | J45: 70551.38092 | L45: 0 | M45: 0 | N45: 0 | O45: 0 | P45: 0 | Q45: 0 | R45: 70551.38092
A46: 31 | B46: 2017-07-01 | C46: 128189.57 | D46: 65350.69 | E46: 62838.88 | F46: 6321031.732 | G46: 1789 | H46: 58353.09421 | I46: 6997.595789 | J46: 69836.47579 | L46: 0 | M46: 0 | N46: 0 | O46: 0 | P46: 0 | Q46: 0 | R46: 69836.47579
A47: 32 | B47: 2017-08-01 | C47: 128189.57 | D47: 64707.42 | E47: 63482.15 | F47: 6257549.58 | G47: 1819 | H47: 59060.75513 | I47: 5646.664871 | J47: 69128.81487 | L47: 0 | M47: 0 | N47: 0 | O47: 0 | P47: 0 | Q47: 0 | R47: 69128.81487
A48: 33 | B48: 2017-09-01 | C48: 128189.57 | D48: 64057.56 | E48: =C48-D48 -> 64132.01 | F48: =C48 * ((((1 + $B$5) ^($B$2 - A48)) - 1)/(((1 + $B$5) ^($B$2 - A48)) * $B$5)) -> 6193417.571 | G48: =IF(C48>0,IF(B48<=$F$12,0,DAYS360($F$12,B48)),0) -> 1849 | H48: 59761.24524 | I48: =D48-H48 -> 4296.314762 | J48: =E48+I48 -> 68428.32476 | L48: 0 | M48: 0 | N48: 0 | O48: 0 | P48: 0 | Q48: 0 | R48: 68428.32476
A49: 34 | B49: =DATE(YEAR(B48),MONTH(B48)+$D$5,DAY(B48)) -> 2017-10-01 | C49: 128189.57 | D49: 63401.05 | E49: 64788.52 | F49: 6128629.052 | G49: 1879 | H49: =C49*((((1+$B$7)^G49) - 1)/((1+$B$7)^G49)) -> 60454.6372 | I49: 2946.412799 | J49: 67734.9328 | L49: 0 | M49: 0 | N49: 0 | O49: 0 | P49: 0 | Q49: 0 | R49: 67734.9328
A50: 35 | B50: 2017-11-01 | C50: 128189.57 | D50: 62737.82 | E50: 65451.75 | F50: 6063177.304 | G50: 1909 | H50: 61141.00295 | I50: 1596.817055 | J50: 67048.56705 | L50: 0 | M50: 0 | N50: 0 | O50: 0 | P50: 0 | Q50: 0 | R50: 67048.56705
A51: 36 | B51: 2017-12-01 | C51: 128189.57 | D51: 62067.8 | E51: 66121.77 | F51: 5997055.536 | G51: 1939 | H51: 61820.41367 | I51: 247.3863324 | J51: 66369.15633 | L51: 0 | M51: 0 | N51: 0 | O51: 0 | P51: 0 | Q51: 0 | R51: 66369.15633
A52: 37 | B52: 2018-01-01 | C52: 128189.57 | D52: 61390.92 | E52: 66798.65 | F52: 5930256.89 | G52: 1969 | H52: 62492.93984 | I52: -1102.019844 | J52: 65696.63016 | L52: 0 | M52: 0 | N52: 0 | O52: 0 | P52: 0 | Q52: 0 | R52: 65696.63016
A53: 38 | B53: 2018-02-01 | C53: 128189.57 | D53: 60707.12 | E53: 67482.45 | F53: 5862774.437 | G53: 1999 | H53: 63158.65124 | I53: -2451.531237 | J53: 65030.91876 | L53: 0 | M53: 0 | N53: 0 | O53: 0 | P53: 0 | Q53: 0 | R53: 65030.91876
A54: 39 | B54: 2018-03-01 | C54: 128189.57 | D54: 60016.31 | E54: 68173.26 | F54: 5794601.176 | G54: 2029 | H54: 63817.6169 | I54: -3801.306901 | J54: 64371.9531 | L54: 0 | M54: 0 | N54: 0 | O54: 0 | P54: 0 | Q54: 0 | R54: 64371.9531
A55: 40 | B55: 2018-04-01 | C55: 128189.57 | D55: 59318.43 | E55: 68871.14 | F55: 5725730.036 | G55: 2059 | H55: 64469.90519 | I55: -5151.475191 | J55: 63719.66481 | L55: 0 | M55: 0 | N55: 0 | O55: 0 | P55: 0 | Q55: 0 | R55: 63719.66481
A56: 41 | B56: 2018-05-01 | C56: 128189.57 | D56: 58613.41 | E56: 69576.16 | F56: 5656153.874 | G56: 2089 | H56: 65115.58377 | I56: -6502.17377 | J56: 63073.98623 | L56: 0 | M56: 0 | N56: 0 | O56: 0 | P56: 0 | Q56: 0 | R56: 63073.98623
A57: 42 | B57: 2018-06-01 | C57: 128189.57 | D57: 57901.17 | E57: 70288.4 | F57: 5585865.47 | G57: 2119 | H57: 65754.71961 | I57: -7853.549614 | J57: 62434.85039 | L57: 0 | M57: 0 | N57: 0 | O57: 0 | P57: 0 | Q57: 0 | R57: 62434.85039
A58: 43 | B58: 2018-07-01 | C58: 128189.57 | D58: 57181.64 | E58: 71007.93 | F58: 5514857.536 | G58: 2149 | H58: 66387.37902 | I58: -9205.739023 | J58: 61802.19098 | L58: 0 | M58: 0 | N58: 0 | O58: 0 | P58: 0 | Q58: 0 | R58: 61802.19098
A59: 44 | B59: 2018-08-01 | C59: 128189.57 | D59: 56454.74 | E59: 71734.83 | F59: 5443122.704 | G59: 2179 | H59: 67013.62762 | I59: -10558.88762 | J59: 61175.94238 | L59: 0 | M59: 0 | N59: 0 | O59: 0 | P59: 0 | Q59: 0 | R59: 61175.94238
A60: 45 | B60: 2018-09-01 | C60: 128189.57 | D60: 55720.4 | E60: 72469.17 | F60: 5370653.534 | G60: 2209 | H60: 67633.53037 | I60: -11913.13037 | J60: 60556.03963 | L60: 0 | M60: 0 | N60: 0 | O60: 0 | P60: 0 | Q60: 0 | R60: 60556.03963
A61: 46 | B61: 2018-10-01 | C61: 128189.57 | D61: 54978.54 | E61: 73211.03 | F61: 5297442.508 | G61: 2239 | H61: 68247.15158 | I61: -13268.61158 | J61: 59942.41842 | L61: 0 | M61: 0 | N61: 0 | O61: 0 | P61: 0 | Q61: 0 | R61: 59942.41842
A62: 47 | B62: 2018-11-01 | C62: 128189.57 | D62: 54229.09 | E62: 73960.48 | F62: 5223482.032 | G62: 2269 | H62: 68854.55489 | I62: -14625.46489 | J62: 59335.01511 | L62: 0 | M62: 0 | N62: 0 | O62: 0 | P62: 0 | Q62: 0 | R62: 59335.01511
A63: 48 | B63: 2018-12-01 | C63: 128189.57 | D63: 53471.97 | E63: 74717.6 | F63: 5148764.435 | G63: 2299 | H63: 69455.80332 | I63: -15983.83332 | J63: 58733.76668 | L63: 0 | M63: 0 | N63: 0 | O63: 0 | P63: 0 | Q63: 0 | R63: 58733.76668
A64: 49 | B64: 2019-01-01 | C64: 128189.57 | D64: 52707.1 | E64: 75482.47 | F64: 5073281.965 | G64: 2329 | H64: 70050.95923 | I64: -17343.85923 | J64: 58138.61077 | L64: 0 | M64: 0 | N64: 0 | O64: 0 | P64: 0 | Q64: 0 | R64: 58138.61077
A65: 50 | B65: 2019-02-01 | C65: 128189.57 | D65: 51934.4 | E65: 76255.17 | F65: 4997026.793 | G65: 2359 | H65: 70640.08436 | I65: -18705.68436 | J65: 57549.48564 | L65: 0 | M65: 0 | N65: 0 | O65: 0 | P65: 0 | Q65: 0 | R65: 57549.48564
A66: 51 | B66: 2019-03-01 | C66: 128189.57 | D66: 51153.79 | E66: 77035.78 | F66: 4919991.008 | G66: 2389 | H66: 71223.23981 | I66: -20069.44981 | J66: 56966.33019 | L66: 0 | M66: 0 | N66: 0 | O66: 0 | P66: 0 | Q66: 0 | R66: 56966.33019
A67: 52 | B67: 2019-04-01 | C67: 128189.57 | D67: 50365.18 | E67: 77824.39 | F67: 4842166.62 | G67: 2419 | H67: 71800.48609 | I67: -21435.30609 | J67: 56389.08391 | L67: 0 | M67: 0 | N67: 0 | O67: 0 | P67: 0 | Q67: 0 | R67: 56389.08391
A68: 53 | B68: 2019-05-01 | C68: 128189.57 | D68: 49568.51 | E68: 78621.06 | F68: 4763545.556 | G68: 2449 | H68: 72371.88306 | I68: -22803.37306 | J68: 55817.68694 | L68: 0 | M68: 0 | N68: 0 | O68: 0 | P68: 0 | Q68: 0 | R68: 55817.68694
A69: 54 | B69: 2019-06-01 | C69: 128189.57 | D69: 48763.67 | E69: 79425.9 | F69: 4684119.66 | G69: 2479 | H69: 72937.49 | I69: -24173.82 | J69: 55252.08 | L69: 0 | M69: 0 | N69: 0 | O69: 0 | P69: 0 | Q69: 0 | R69: 55252.08
A70: 55 | B70: 2019-07-01 | C70: 128189.57 | D70: 47950.6 | E70: 80238.97 | F70: 4603880.694 | G70: 2509 | H70: 73497.36558 | I70: -25546.76558 | J70: 54692.20442 | L70: 0 | M70: 0 | N70: 0 | O70: 0 | P70: 0 | Q70: 0 | R70: 54692.20442
A71: 56 | B71: 2019-08-01 | C71: 128189.57 | D71: 47129.21 | E71: 81060.36 | F71: 4522820.334 | G71: 2539 | H71: 74051.56788 | I71: -26922.35788 | J71: 54138.00212 | L71: 0 | M71: 0 | N71: 0 | O71: 0 | P71: 0 | Q71: 0 | R71: 54138.00212
A72: 57 | B72: 2019-09-01 | C72: 128189.57 | D72: 46299.41 | E72: 81890.16 | F72: 4440930.172 | G72: 2569 | H72: 74600.15439 | I72: -28300.74439 | J72: 53589.41561 | L72: 0 | M72: 0 | N72: 0 | O72: 0 | P72: 0 | Q72: 0 | R72: 53589.41561
A73: 58 | B73: 2019-10-01 | C73: 128189.57 | D73: 45461.11 | E73: 82728.46 | F73: 4358201.713 | G73: 2599 | H73: 75143.18201 | I73: -29682.07201 | J73: 53046.38799 | L73: 0 | M73: 0 | N73: 0 | O73: 0 | P73: 0 | Q73: 0 | R73: 53046.38799
A74: 59 | B74: 2019-11-01 | C74: 128189.57 | D74: 44614.23 | E74: 83575.34 | F74: 4274626.375 | G74: 2629 | H74: 75680.70706 | I74: -31066.47706 | J74: 52508.86294 | L74: 0 | M74: 0 | N74: 0 | O74: 0 | P74: 0 | Q74: 0 | R74: 52508.86294
A75: 60 | B75: 2019-12-01 | C75: 128189.57 | D75: 43758.68 | E75: 84430.89 | F75: 4190195.49 | G75: 2659 | H75: 76212.78532 | I75: -32454.10532 | J75: 51976.78468 | L75: 0 | M75: 0 | N75: 0 | O75: 0 | P75: 0 | Q75: 0 | R75: 51976.78468
A76: 61 | B76: 2020-01-01 | C76: 128189.57 | D76: 42894.38 | E76: 85295.19 | F76: 4104900.299 | G76: 2689 | H76: 76739.47196 | I76: -33845.09196 | J76: 51450.09804 | L76: 0 | M76: 0 | N76: 0 | O76: 0 | P76: 0 | Q76: 0 | R76: 51450.09804
A77: 62 | B77: 2020-02-01 | C77: 128189.57 | D77: 42021.23 | E77: 86168.34 | F77: 4018731.955 | G77: 2719 | H77: 77260.82163 | I77: -35239.59163 | J77: 50928.74837 | L77: 0 | M77: 0 | N77: 0 | O77: 0 | P77: 0 | Q77: 0 | R77: 50928.74837
A78: 63 | B78: 2020-03-01 | C78: 128189.57 | D78: 41139.13 | E78: 87050.44 | F78: 3931681.518 | G78: 2749 | H78: 77776.88841 | I78: -36637.75841 | J78: 50412.68159 | L78: 0 | M78: 0 | N78: 0 | O78: 0 | P78: 0 | Q78: 0 | R78: 50412.68159
A79: 64 | B79: 2020-04-01 | C79: 128189.57 | D79: 40248.01 | E79: 87941.56 | F79: 3843739.96 | G79: 2779 | H79: 78287.72582 | I79: -38039.71582 | J79: 49901.84418 | L79: 0 | M79: 0 | N79: 0 | O79: 0 | P79: 0 | Q79: 0 | R79: 49901.84418
A80: 65 | B80: 2020-05-01 | C80: 128189.57 | D80: 39347.77 | E80: =C80-D80 -> 88841.8 | F80: =C80 * ((((1 + $B$5) ^($B$2 - A80)) - 1)/(((1 + $B$5) ^($B$2 - A80)) * $B$5)) -> 3754898.157 | G80: =IF(C80>0,IF(B80<=$F$12,0,DAYS360($F$12,B80)),0) -> 2809 | H80: 78793.38686 | I80: =D80-H80 -> -39445.61686 | J80: =E80+I80 -> 49396.18314 | L80: =IF(B80>$F$12,0, $F$12-B80) -> 0 | M80: =IF(B80>$F$12,0,DAYS360(B80,$F$12)) -> 0 | N80: 0 | O80: =IF(M80>0,(C80 + N80)*$F$10,0) -> 0 | P80: =IF(L80>0,((C80 + N80)*(1+$F$11)^L80)-(C80 + N80),0) -> 0 | Q80: 0 | R80: =J80+N80+O80+P80+Q80 -> 49396.18314
A81: 66 | B81: =DATE(YEAR(B80),MONTH(B80)+$D$5,DAY(B80)) -> 2020-06-01 | C81: =ROUND(IF(A81<=$B$2,$B$8 * ((((1 + $B$5) ^ ($B$2 -$B$10)) * $B$5 ) / (((1 + $B$5) ^ $B$2) -1)),0),2) -> 128189.57 | D81: =ROUND($B$5 * C81 * ((((1 + $B$5) ^($B$2 - (A81 -1))) - 1)/(((1 + $B$5) ^($B$2 - (A81 -1))) * $B$5)),2) -> 38438.31 | E81: 89751.26 | F81: 3665146.895 | G81: 2839 | H81: =C81*((((1+$B$7)^G81) - 1)/((1+$B$7)^G81)) -> 79293.92397 | I81: -40855.61397 | J81: 48895.64603 | L81: 0 | M81: 0 | N81: 0 | O81: 0 | P81: 0 | Q81: 0 | R81: 48895.64603
A82: 67 | B82: 2020-07-01 | C82: 128189.57 | D82: 37519.54 | E82: 90670.03 | F82: 3574476.864 | G82: 2869 | H82: 79789.38909 | I82: -42269.84909 | J82: 48400.18091 | L82: 0 | M82: 0 | N82: 0 | O82: 0 | P82: 0 | Q82: 0 | R82: 48400.18091
A83: 68 | B83: 2020-08-01 | C83: 128189.57 | D83: 36591.36 | E83: 91598.21 | F83: 3482878.657 | G83: 2899 | H83: 80279.8336 | I83: -43688.4736 | J83: 47909.7364 | L83: 0 | M83: 0 | N83: 0 | O83: 0 | P83: 0 | Q83: 0 | R83: 47909.7364
A84: 69 | B84: 2020-09-01 | C84: 128189.57 | D84: 35653.69 | E84: 92535.88 | F84: 3390342.774 | G84: 2929 | H84: 80765.30839 | I84: -45111.61839 | J84: 47424.26161 | L84: 0 | M84: 0 | N84: 0 | O84: 0 | P84: 0 | Q84: 0 | R84: 47424.26161
A85: 70 | B85: 2020-10-01 | C85: 128189.57 | D85: 34706.41 | E85: 93483.16 | F85: 3296859.615 | G85: 2959 | H85: 81245.8638 | I85: -46539.4538 | J85: 46943.7062 | L85: 0 | M85: 0 | N85: 0 | O85: 0 | P85: 0 | Q85: 0 | R85: 46943.7062
A86: 71 | B86: 2020-11-01 | C86: 128189.57 | D86: 33749.44 | E86: 94440.13 | F86: 3202419.483 | G86: 2989 | H86: 81721.54969 | I86: -47972.10969 | J86: 46468.02031 | L86: 0 | M86: 0 | N86: 0 | O86: 0 | P86: 0 | Q86: 0 | R86: 46468.02031
A87: 72 | B87: 2020-12-01 | C87: 128189.57 | D87: 32782.67 | E87: 95406.9 | F87: 3107012.583 | G87: 3019 | H87: 82192.4154 | I87: -49409.7454 | J87: 45997.1546 | L87: 0 | M87: 0 | N87: 0 | O87: 0 | P87: 0 | Q87: 0 | R87: 45997.1546
A88: 73 | B88: 2021-01-01 | C88: 128189.57 | D88: 31806 | E88: =C88-D88 -> 96383.57 | F88: 3010629.017 | G88: 3049 | H88: 82658.50978 | I88: -50852.50978 | J88: 45531.06022 | L88: 0 | M88: 0 | N88: 0 | O88: 0 | P88: 0 | Q88: 0 | R88: 45531.06022
A89: 74 | B89: 2021-02-01 | C89: 128189.57 | D89: 30819.34 | E89: =C89-D89 -> 97370.23 | F89: 2913258.788 | G89: 3079 | H89: 83119.88117 | I89: -52300.54117 | J89: 45069.68883 | L89: 0 | M89: 0 | N89: 0 | O89: 0 | P89: 0 | Q89: 0 | R89: 45069.68883
A90: 75 | B90: 2021-03-01 | C90: 128189.57 | D90: 29822.58 | E90: =C90-D90 -> 98366.99 | F90: 2814891.795 | G90: 3109 | H90: 83576.57743 | I90: -53753.99743 | J90: 44612.99257 | L90: 0 | M90: 0 | N90: 0 | O90: 0 | P90: 0 | Q90: 0 | R90: 44612.99257
A91: 76 | B91: 2021-04-01 | C91: 128189.57 | D91: 28815.61 | E91: =C91-D91 -> 99373.96 | F91: 2715517.834 | G91: 3139 | H91: 84028.64594 | I91: -55213.03594 | J91: 44160.92406 | L91: 0 | M91: 0 | N91: 0 | O91: 0 | P91: 0 | Q91: 0 | R91: 44160.92406
A92: 77 | B92: 2021-05-01 | C92: 128189.57 | D92: 27798.33 | E92: =C92-D92 -> 100391.24 | F92: 2615126.597 | G92: 3169 | H92: 84476.13358 | I92: -56677.80358 | J92: 43713.43642 | L92: 0 | M92: 0 | N92: 0 | O92: 0 | P92: 0 | Q92: 0 | R92: 43713.43642
A93: 78 | B93: 2021-06-01 | C93: 128189.57 | D93: 26770.64 | E93: =C93-D93 -> 101418.93 | F93: 2513707.671 | G93: 3199 | H93: 84919.08678 | I93: -58148.44678 | J93: 43270.48322 | L93: 0 | M93: 0 | N93: 0 | O93: 0 | P93: 0 | Q93: 0 | R93: 43270.48322
A94: 79 | B94: 2021-07-01 | C94: 128189.57 | D94: 25732.43 | E94: 102457.14 | F94: 2411250.535 | G94: 3229 | H94: 85357.55149 | I94: -59625.12149 | J94: 42832.01851 | L94: 0 | M94: 0 | N94: 0 | O94: 0 | P94: 0 | Q94: 0 | R94: 42832.01851
A95: 80 | B95: 2021-08-01 | C95: 128189.57 | D95: 24683.6 | E95: 103505.97 | F95: 2307744.562 | G95: 3259 | H95: 85791.57318 | I95: -61107.97318 | J95: 42397.99682 | L95: 0 | M95: 0 | N95: 0 | O95: 0 | P95: 0 | Q95: 0 | R95: 42397.99682
A96: 81 | B96: 2021-09-01 | C96: 128189.57 | D96: 23624.02 | E96: 104565.55 | F96: 2203179.014 | G96: 3289 | H96: 86221.19688 | I96: -62597.17688 | J96: 41968.37312 | L96: 0 | M96: 0 | N96: 0 | O96: 0 | P96: 0 | Q96: 0 | R96: 41968.37312
A97: 82 | B97: 2021-10-01 | C97: 128189.57 | D97: 22553.6 | E97: 105635.97 | F97: 2097543.044 | G97: 3319 | H97: 86646.46716 | I97: -64092.86716 | J97: 41543.10284 | L97: 0 | M97: 0 | N97: 0 | O97: 0 | P97: 0 | Q97: 0 | R97: 41543.10284
A98: 83 | B98: 2021-11-01 | C98: 128189.57 | D98: 21472.22 | E98: 106717.35 | F98: 1990825.696 | G98: 3349 | H98: 87067.42813 | I98: -65595.20813 | J98: 41122.14187 | L98: 0 | M98: 0 | N98: 0 | O98: 0 | P98: 0 | Q98: 0 | R98: 41122.14187
A99: 84 | B99: 2021-12-01 | C99: 128189.57 | D99: 20379.77 | E99: 107809.8 | F99: 1883015.899 | G99: 3379 | H99: 87484.12345 | I99: -67104.35345 | J99: 40705.44655 | L99: 0 | M99: 0 | N99: 0 | O99: 0 | P99: 0 | Q99: 0 | R99: 40705.44655
A100: 85 | B100: 2022-01-01 | C100: 128189.57 | D100: 19276.14 | E100: 108913.43 | F100: 1774102.469 | G100: 3409 | H100: 87896.59635 | I100: -68620.45635 | J100: 40292.97365 | L100: 0 | M100: 0 | N100: 0 | O100: 0 | P100: 0 | Q100: 0 | R100: 40292.97365
A101: 86 | B101: 2022-02-01 | C101: 128189.57 | D101: 18161.21 | E101: 110028.36 | F101: 1664074.11 | G101: 3439 | H101: 88304.88961 | I101: -70143.67961 | J101: 39884.68039 | L101: 0 | M101: 0 | N101: 0 | O101: 0 | P101: 0 | Q101: 0 | R101: 39884.68039
A102: 87 | B102: 2022-03-01 | C102: 128189.57 | D102: 17034.87 | E102: 111154.7 | F102: 1552919.408 | G102: 3469 | H102: 88709.04559 | I102: -71674.17559 | J102: 39480.52441 | L102: 0 | M102: 0 | N102: 0 | O102: 0 | P102: 0 | Q102: 0 | R102: 39480.52441
A103: 88 | B103: 2022-04-01 | C103: 128189.57 | D103: 15896.99 | E103: 112292.58 | F103: 1440626.832 | G103: 3499 | H103: 89109.10622 | I103: -73212.11622 | J103: 39080.46378 | L103: 0 | M103: 0 | N103: 0 | O103: 0 | P103: 0 | Q103: 0 | R103: 39080.46378
A104: 89 | B104: 2022-05-01 | C104: 128189.57 | D104: 14747.47 | E104: 113442.1 | F104: 1327184.735 | G104: 3529 | H104: 89505.11298 | I104: -74757.64298 | J104: 38684.45702 | L104: 0 | M104: 0 | N104: 0 | O104: 0 | P104: 0 | Q104: 0 | R104: 38684.45702
A105: 90 | B105: 2022-06-01 | C105: 128189.57 | D105: 13586.18 | E105: 114603.39 | F105: 1212581.348 | G105: 3559 | H105: 89897.10697 | I105: -76310.92697 | J105: 38292.46303 | L105: 0 | M105: 0 | N105: 0 | O105: 0 | P105: 0 | Q105: 0 | R105: 38292.46303
A106: 91 | B106: 2022-07-01 | C106: 128189.57 | D106: 12413.01 | E106: 115776.56 | F106: 1096804.785 | G106: 3589 | H106: 90285.12883 | I106: -77872.11883 | J106: 37904.44117 | L106: 0 | M106: 0 | N106: 0 | O106: 0 | P106: 0 | Q106: 0 | R106: 37904.44117
A107: 92 | B107: 2022-08-01 | C107: 128189.57 | D107: 11227.82 | E107: 116961.75 | F107: 979843.0344 | G107: 3619 | H107: 90669.21882 | I107: -79441.39882 | J107: 37520.35118 | L107: 0 | M107: 0 | N107: 0 | O107: 0 | P107: 0 | Q107: 0 | R107: 37520.35118
A108: 93 | B108: 2022-09-01 | C108: 128189.57 | D108: 10030.5 | E108: 118159.07 | F108: 861683.9651 | G108: 3649 | H108: 91049.41679 | I108: -81018.91679 | J108: 37140.15321 | L108: 0 | M108: 0 | N108: 0 | O108: 0 | P108: 0 | Q108: 0 | R108: 37140.15321
A109: 94 | B109: 2022-10-01 | C109: 128189.57 | D109: 8820.92 | E109: 119368.65 | F109: 742315.3197 | G109: 3679 | H109: 91425.76217 | I109: -82604.84217 | J109: 36763.80783 | L109: 0 | M109: 0 | N109: 0 | O109: 0 | P109: 0 | Q109: 0 | R109: 36763.80783
A110: 95 | B110: 2022-11-01 | C110: 128189.57 | D110: 7598.97 | E110: 120590.6 | F110: 621724.7161 | G110: 3709 | H110: 91798.294 | I110: -84199.324 | J110: 36391.276 | L110: 0 | M110: 0 | N110: 0 | O110: 0 | P110: 0 | Q110: 0 | R110: 36391.276
A111: 96 | B111: 2022-12-01 | C111: 128189.57 | D111: 6364.5 | E111: 121825.07 | F111: 499899.6452 | G111: 3739 | H111: 92167.05092 | I111: -85802.55092 | J111: 36022.51908 | L111: 0 | M111: 0 | N111: 0 | O111: 0 | P111: 0 | Q111: 0 | R111: 36022.51908
A112: 97 | B112: 2023-01-01 | C112: 128189.57 | D112: 5117.39 | E112: 123072.18 | F112: =C112 * ((((1 + $B$5) ^($B$2 - A112)) - 1)/(((1 + $B$5) ^($B$2 - A112)) * $B$5)) -> 376827.4701 | G112: =IF(C112>0,IF(B112<=$F$12,0,DAYS360($F$12,B112)),0) -> 3769 | H112: 92532.07118 | I112: =D112-H112 -> -87414.68118 | J112: =E112+I112 -> 35657.49882 | L112: 0 | M112: 0 | N112: 0 | O112: 0 | P112: 0 | Q112: 0 | R112: 35657.49882
A113: 98 | B113: =DATE(YEAR(B112),MONTH(B112)+$D$5,DAY(B112)) -> 2023-02-01 | C113: 128189.57 | D113: 3857.52 | E113: 124332.05 | F113: 252495.4242 | G113: 3799 | H113: =C113*((((1+$B$7)^G113) - 1)/((1+$B$7)^G113)) -> 92893.39266 | I113: -89035.87266 | J113: 35296.17734 | L113: 0 | M113: 0 | N113: 0 | O113: 0 | P113: 0 | Q113: 0 | R113: 35296.17734
A114: 99 | B114: 2023-03-01 | C114: 128189.57 | D114: 2584.76 | E114: 125604.81 | F114: 126890.6106 | G114: 3829 | H114: 93251.05282 | I114: -90666.29282 | J114: 34938.51718 | L114: 0 | M114: 0 | N114: 0 | O114: 0 | P114: 0 | Q114: 0 | R114: 34938.51718
A115: 100 | B115: 2023-04-01 | C115: 128189.57 | D115: 1298.96 | E115: 126890.61 | F115: 0 | G115: 3859 | H115: 93605.08877 | I115: -92306.12877 | J115: 34584.48123 | L115: 0 | M115: 0 | N115: 0 | O115: 0 | P115: 0 | Q115: 0 | R115: 34584.48123
A116: 101 | B116: 2023-05-01 | C116: 0 | D116: 0 | E116: =C116-D116 -> 0 | F116: 0 | G116: 0 | H116: 0 | I116: 0 | J116: 0 | L116: 0 | M116: 0 | N116: 0 | O116: 0 | P116: 0 | Q116: 0 | R116: 0
A117: 102 | B117: 2023-06-01 | C117: 0 | D117: 0 | E117: 0 | F117: 0 | G117: 0 | H117: 0 | I117: 0 | J117: 0 | L117: 0 | M117: 0 | N117: 0 | O117: 0 | P117: 0 | Q117: 0 | R117: 0
A118: 103 | B118: 2023-07-01 | C118: 0 | D118: 0 | E118: 0 | F118: 0 | G118: 0 | H118: 0 | I118: 0 | J118: 0 | L118: 0 | M118: 0 | N118: 0 | O118: 0 | P118: 0 | Q118: 0 | R118: 0
A119: 104 | B119: 2023-08-01 | C119: 0 | D119: 0 | E119: 0 | F119: 0 | G119: 0 | H119: 0 | I119: 0 | J119: 0 | L119: 0 | M119: 0 | N119: 0 | O119: 0 | P119: 0 | Q119: 0 | R119: 0
A120: 105 | B120: 2023-09-01 | C120: 0 | D120: 0 | E120: 0 | F120: 0 | G120: 0 | H120: 0 | I120: 0 | J120: 0 | L120: 0 | M120: 0 | N120: 0 | O120: 0 | P120: 0 | Q120: 0 | R120: 0
A121: 106 | B121: 2023-10-01 | C121: 0 | D121: 0 | E121: 0 | F121: 0 | G121: 0 | H121: 0 | I121: 0 | J121: 0 | L121: 0 | M121: 0 | N121: 0 | O121: 0 | P121: 0 | Q121: 0 | R121: 0
A122: 107 | B122: 2023-11-01 | C122: 0 | D122: 0 | E122: 0 | F122: 0 | G122: 0 | H122: 0 | I122: 0 | J122: 0 | L122: 0 | M122: 0 | N122: 0 | O122: 0 | P122: 0 | Q122: 0 | R122: 0
A123: 108 | B123: 2023-12-01 | C123: 0 | D123: 0 | E123: 0 | F123: 0 | G123: 0 | H123: 0 | I123: 0 | J123: 0 | L123: 0 | M123: 0 | N123: 0 | O123: 0 | P123: 0 | Q123: 0 | R123: 0
A124: 109 | B124: 2024-01-01 | C124: 0 | D124: 0 | E124: 0 | F124: 0 | G124: 0 | H124: 0 | I124: 0 | J124: 0 | L124: 0 | M124: 0 | N124: 0 | O124: 0 | P124: 0 | Q124: 0 | R124: 0
A125: 110 | B125: 2024-02-01 | C125: 0 | D125: 0 | E125: 0 | F125: 0 | G125: 0 | H125: 0 | I125: 0 | J125: 0 | L125: 0 | M125: 0 | N125: 0 | O125: 0 | P125: 0 | Q125: 0 | R125: 0
A126: 111 | B126: 2024-03-01 | C126: 0 | D126: 0 | E126: 0 | F126: 0 | G126: 0 | H126: 0 | I126: 0 | J126: 0 | L126: 0 | M126: 0 | N126: 0 | O126: 0 | P126: 0 | Q126: 0 | R126: 0
A127: 112 | B127: 2024-04-01 | C127: 0 | D127: 0 | E127: 0 | F127: 0 | G127: 0 | H127: 0 | I127: 0 | J127: 0 | L127: 0 | M127: 0 | N127: 0 | O127: 0 | P127: 0 | Q127: 0 | R127: 0
A128: 113 | B128: 2024-05-01 | C128: 0 | D128: 0 | E128: =C128-D128 -> 0 | F128: 0 | G128: 0 | H128: 0 | I128: 0 | J128: 0 | L128: 0 | M128: 0 | N128: 0 | O128: 0 | P128: 0 | Q128: 0 | R128: 0
A129: 114 | B129: 2024-06-01 | C129: 0 | D129: 0 | E129: 0 | F129: 0 | G129: 0 | H129: 0 | I129: 0 | J129: 0 | L129: 0 | M129: 0 | N129: 0 | O129: 0 | P129: 0 | Q129: 0 | R129: 0
A130: 115 | B130: 2024-07-01 | C130: 0 | D130: 0 | E130: 0 | F130: 0 | G130: 0 | H130: 0 | I130: 0 | J130: 0 | L130: 0 | M130: 0 | N130: 0 | O130: 0 | P130: 0 | Q130: 0 | R130: 0
A131: 116 | B131: 2024-08-01 | C131: 0 | D131: 0 | E131: 0 | F131: 0 | G131: 0 | H131: 0 | I131: 0 | J131: 0 | L131: 0 | M131: 0 | N131: 0 | O131: 0 | P131: 0 | Q131: 0 | R131: 0
A132: 117 | B132: 2024-09-01 | C132: 0 | D132: 0 | E132: 0 | F132: 0 | G132: 0 | H132: 0 | I132: 0 | J132: 0 | L132: 0 | M132: 0 | N132: 0 | O132: 0 | P132: 0 | Q132: 0 | R132: 0
A133: 118 | B133: 2024-10-01 | C133: 0 | D133: 0 | E133: 0 | F133: 0 | G133: 0 | H133: 0 | I133: 0 | J133: 0 | L133: 0 | M133: 0 | N133: 0 | O133: 0 | P133: 0 | Q133: 0 | R133: 0
A134: 119 | B134: 2024-11-01 | C134: 0 | D134: 0 | E134: 0 | F134: 0 | G134: 0 | H134: 0 | I134: 0 | J134: 0 | L134: 0 | M134: 0 | N134: 0 | O134: 0 | P134: 0 | Q134: 0 | R134: 0
A135: 120 | B135: 2024-12-01 | C135: 0 | D135: 0 | E135: 0 | F135: 0 | G135: 0 | H135: 0 | I135: 0 | J135: 0 | L135: 0 | M135: 0 | N135: 0 | O135: 0 | P135: 0 | Q135: 0 | R135: 0
A136: 121 | B136: 2025-01-01 | C136: 0 | D136: 0 | E136: 0 | F136: 0 | G136: 0 | H136: 0 | I136: 0 | J136: 0 | L136: 0 | M136: 0 | N136: 0 | O136: 0 | P136: 0 | Q136: 0 | R136: 0
A137: 122 | B137: 2025-02-01 | C137: 0 | D137: 0 | E137: 0 | F137: 0 | G137: 0 | H137: 0 | I137: 0 | J137: 0 | L137: 0 | M137: 0 | N137: 0 | O137: 0 | P137: 0 | Q137: 0 | R137: 0
A138: 123 | B138: 2025-03-01 | C138: 0 | D138: 0 | E138: 0 | F138: 0 | G138: 0 | H138: 0 | I138: 0 | J138: 0 | L138: 0 | M138: 0 | N138: 0 | O138: 0 | P138: 0 | Q138: 0 | R138: 0
A139: 124 | B139: 2025-04-01 | C139: 0 | D139: 0 | E139: 0 | F139: 0 | G139: 0 | H139: 0 | I139: 0 | J139: 0 | L139: 0 | M139: 0 | N139: 0 | O139: 0 | P139: 0 | Q139: 0 | R139: 0
A140: 125 | B140: 2025-05-01 | C140: 0 | D140: 0 | E140: 0 | F140: 0 | G140: 0 | H140: 0 | I140: 0 | J140: 0 | L140: 0 | M140: 0 | N140: 0 | O140: 0 | P140: 0 | Q140: 0 | R140: 0
A141: 126 | B141: 2025-06-01 | C141: 0 | D141: 0 | E141: 0 | F141: 0 | G141: 0 | H141: 0 | I141: 0 | J141: 0 | L141: 0 | M141: 0 | N141: 0 | O141: 0 | P141: 0 | Q141: 0 | R141: 0
A142: 127 | B142: 2025-07-01 | C142: 0 | D142: 0 | E142: 0 | F142: 0 | G142: 0 | H142: 0 | I142: 0 | J142: 0 | L142: 0 | M142: 0 | N142: 0 | O142: 0 | P142: 0 | Q142: 0 | R142: 0
A143: 128 | B143: 2025-08-01 | C143: 0 | D143: 0 | E143: 0 | F143: 0 | G143: 0 | H143: 0 | I143: 0 | J143: 0 | L143: 0 | M143: 0 | N143: 0 | O143: 0 | P143: 0 | Q143: 0 | R143: 0
A144: 129 | B144: 2025-09-01 | C144: 0 | D144: 0 | E144: 0 | F144: =C144 * ((((1 + $B$5) ^($B$2 - A144)) - 1)/(((1 + $B$5) ^($B$2 - A144)) * $B$5)) -> 0 | G144: =IF(C144>0,IF(B144<=$F$12,0,DAYS360($F$12,B144)),0) -> 0 | H144: 0 | I144: =D144-H144 -> 0 | J144: =E144+I144 -> 0 | L144: =IF(B144>$F$12,0, $F$12-B144) -> 0 | M144: =IF(B144>$F$12,0,DAYS360(B144,$F$12)) -> 0 | N144: 0 | O144: =IF(M144>0,(C144 + N144)*$F$10,0) -> 0 | P144: =IF(L144>0,((C144 + N144)*(1+$F$11)^L144)-(C144 + N144),0) -> 0 | Q144: 0 | R144: =J144+N144+O144+P144+Q144 -> 0
A145: 130 | B145: =DATE(YEAR(B144),MONTH(B144)+$D$5,DAY(B144)) -> 2025-10-01 | C145: =ROUND(IF(A145<=$B$2,$B$8 * ((((1 + $B$5) ^ ($B$2 -$B$10)) * $B$5 ) / (((1 + $B$5) ^ $B$2) -1)),0),2) -> 0 | D145: =ROUND($B$5 * C145 * ((((1 + $B$5) ^($B$2 - (A145 -1))) - 1)/(((1 + $B$5) ^($B$2 - (A145 -1))) * $B$5)),2) -> 0 | E145: 0 | F145: 0 | G145: 0 | H145: =C145*((((1+$B$7)^G145) - 1)/((1+$B$7)^G145)) -> 0 | I145: 0 | J145: 0 | L145: 0 | M145: 0 | N145: 0 | O145: 0 | P145: 0 | Q145: 0 | R145: 0
A146: 131 | B146: 2025-11-01 | C146: 0 | D146: 0 | E146: 0 | F146: 0 | G146: 0 | H146: 0 | I146: 0 | J146: 0 | L146: 0 | M146: 0 | N146: 0 | O146: 0 | P146: 0 | Q146: 0 | R146: 0
A147: 132 | B147: 2025-12-01 | C147: 0 | D147: 0 | E147: 0 | F147: 0 | G147: 0 | H147: 0 | I147: 0 | J147: 0 | L147: 0 | M147: 0 | N147: 0 | O147: 0 | P147: 0 | Q147: 0 | R147: 0
A148: 133 | B148: 2026-01-01 | C148: 0 | D148: 0 | E148: 0 | F148: 0 | G148: 0 | H148: 0 | I148: 0 | J148: 0 | L148: 0 | M148: 0 | N148: 0 | O148: 0 | P148: 0 | Q148: 0 | R148: 0
A149: 134 | B149: 2026-02-01 | C149: 0 | D149: 0 | E149: 0 | F149: 0 | G149: 0 | H149: 0 | I149: 0 | J149: 0 | L149: 0 | M149: 0 | N149: 0 | O149: 0 | P149: 0 | Q149: 0 | R149: 0
A150: 135 | B150: 2026-03-01 | C150: 0 | D150: 0 | E150: 0 | F150: 0 | G150: 0 | H150: 0 | I150: 0 | J150: 0 | L150: 0 | M150: 0 | N150: 0 | O150: 0 | P150: 0 | Q150: 0 | R150: 0
A151: 136 | B151: 2026-04-01 | C151: 0 | D151: 0 | E151: 0 | F151: 0 | G151: 0 | H151: 0 | I151: 0 | J151: 0 | L151: 0 | M151: 0 | N151: 0 | O151: 0 | P151: 0 | Q151: 0 | R151: 0
A152: 137 | B152: 2026-05-01 | C152: 0 | D152: 0 | E152: 0 | F152: 0 | G152: 0 | H152: 0 | I152: 0 | J152: 0 | L152: 0 | M152: 0 | N152: 0 | O152: 0 | P152: 0 | Q152: 0 | R152: 0
A153: 138 | B153: 2026-06-01 | C153: 0 | D153: 0 | E153: 0 | F153: 0 | G153: 0 | H153: 0 | I153: 0 | J153: 0 | L153: 0 | M153: 0 | N153: 0 | O153: 0 | P153: 0 | Q153: 0 | R153: 0
A154: 139 | B154: 2026-07-01 | C154: 0 | D154: 0 | E154: 0 | F154: 0 | G154: 0 | H154: 0 | I154: 0 | J154: 0 | L154: 0 | M154: 0 | N154: 0 | O154: 0 | P154: 0 | Q154: 0 | R154: 0
A155: 140 | B155: 2026-08-01 | C155: 0 | D155: 0 | E155: 0 | F155: 0 | G155: 0 | H155: 0 | I155: 0 | J155: 0 | L155: 0 | M155: 0 | N155: 0 | O155: 0 | P155: 0 | Q155: 0 | R155: 0
A156: 141 | B156: 2026-09-01 | C156: 0 | D156: 0 | E156: 0 | F156: 0 | G156: 0 | H156: 0 | I156: 0 | J156: 0 | L156: 0 | M156: 0 | N156: 0 | O156: 0 | P156: 0 | Q156: 0 | R156: 0
A157: 142 | B157: 2026-10-01 | C157: 0 | D157: 0 | E157: 0 | F157: 0 | G157: 0 | H157: 0 | I157: 0 | J157: 0 | L157: 0 | M157: 0 | N157: 0 | O157: 0 | P157: 0 | Q157: 0 | R157: 0
A158: 143 | B158: 2026-11-01 | C158: 0 | D158: 0 | E158: 0 | F158: 0 | G158: 0 | H158: 0 | I158: 0 | J158: 0 | L158: 0 | M158: 0 | N158: 0 | O158: 0 | P158: 0 | Q158: 0 | R158: 0
A159: 144 | B159: 2026-12-01 | C159: 0 | D159: 0 | E159: 0 | F159: 0 | G159: 0 | H159: 0 | I159: 0 | J159: 0 | L159: 0 | M159: 0 | N159: 0 | O159: 0 | P159: 0 | Q159: 0 | R159: 0
A160: 145 | B160: 2027-01-01 | C160: 0 | D160: 0 | E160: 0 | F160: 0 | G160: 0 | H160: 0 | I160: 0 | J160: 0 | L160: 0 | M160: 0 | N160: 0 | O160: 0 | P160: 0 | Q160: 0 | R160: 0
A161: Total | C161: =SUM(C16:C160) -> 12818957 | D161: =SUM(D16:D160) -> 4818956.69 | E161: =SUM(E16:E160) -> 8000000.31 | F161: 0 | G161: =SUM(G16:G160) -> 237400 | H161: =SUM(H16:H160) -> 6842566.89 | I161: =SUM(I16:I160) -> -2023610.2 | J161: =SUM(J16:J160) -> 5976390.11

Sheet PRICE_2_Juros
A1: Parcelamento | H1: * A data de vencimento deve ser maior ou igual a data do segundo juros. | M1: PMT | N1: Valor da prestação | P1: PV * ((((1 + i) ^ n) * i ) / (((1 + i) ^ n) -1))
A2: Montante (PV) | B2: 4541.93 | D2: Dt. Parcela | E2: 2004-09-01 | M2: PV | N2: Montante
A3: Parcelas (n) | B3: 1 | D3: Principal | E3: =B2/B3 -> 4541.93 | M3: n | N3: Nº de prestações
A4: Tipo | B4: 1 | C4: =IF(B4=1,"Begin","End") -> Begin | M4: i | N4: Juros | P4: i * PMT * ((((1 + i) ^(n - (k -1))) - 1)/(((1 + i) ^(n - (k -1))) * i))
A5: Juros | I5: Diferença de datas | M5: SDk | N5: Saldo Devedor | P5: PMT * ((((1 + i) ^(n - k)) - 1)/(((1 + i) ^(n - k)) * i))
B6: Data 1° juros | C6: (i) Taxa | D6: A cada X meses | E6: (i) Taxa AM | G6: (i) Taxa AD | I6: 1° juros | J6: 2°juros | K6: =INT(DAYS360(DATE(YEAR($B$7),MONTH($B$7),1),DATE(YEAR($B$8),MONTH($B$8),1))/30) -> 0 | M6: D | N6: Desconto | P6: FV[((1+d)^n) - 1/((1+d)^n)]
A7: 1° juros | B7: 1999-09-01 | C7: 0.12808 | D7: 12 | E7: =((1+C7)^(1/IF(D7>0,D7,1)))-1 -> 0.01009369046 | F7: =(DATE(YEAR(B7),MONTH(B7)+1,1))-1 -> 1999-09-30 | G7: =((1+E7)^(1/30))-1 -> 0.0003348256876 | I7: 1° juros | J7: Vencimento | K7: =INT(DAYS360(DATE(YEAR($B$7),MONTH($B$7),1),DATE(YEAR($E$2),MONTH($E$2),1))/30) -> 60
A8: 2° juros | B8: 1999-09-01 | C8: 0.12808 | D8: =D7 -> 12 | E8: =((1+C8)^(1/IF(D8>0,D8,1)))-1 -> 0.01009369046 | G8: =((1+E8)^(1/30))-1 -> 0.0003348256876 | I8: 2°juros | J8: Vencimento | K8: =INT(DAYS360(DATE(YEAR($B$8),MONTH($B$8),1),DATE(YEAR($E$2),MONTH($E$2),1))/30) -> 60
A9: Dt. Parcela >= 1° juros | E9: =E2>=B7 -> TRUE
A10: Dt. Parcela >= 2° juros | E10: =E2>=B8 -> TRUE
A11: Recalculando o montante pela 1ª taxa de juros: | D11: =E7 -> 0.01009369046 | E11: Pro rata - do PV¹ | M11: Juros no Mês antes da 1ª parcela | P11: =B7<E2 -> TRUE
A12: Qtde meses com o 1° juros | D12: =IF(AND(E9,E10),K6,IF(E9,K7,0)) -> 0 | E12: N | M12: Ano/mês vencimento | P12: =YEAR(E2)*100 + MONTH(E2) -> 200409
A13: Novo montante (PV¹) | D13: =(B2*(1+D11)^D12)+E16 -> 4541.93 | E13: Dias pro-rata | I13: Inicio da correção | K13: 2008-02-01 | M13: Ano/mês juros | P13: =YEAR(B7)*100 + MONTH(B7) -> 199909
A14: Recalculando o montante pela 2ª taxa de juros: | D14: =E8 -> 0.01009369046 | E14: =IF(E12="S",P17,0) -> 0 | I14: Dt. Fim Correção | K14: 2015-12-01 | M14: Juros em mês anterior da 1ª Parcela | P14: =P13<P12 -> TRUE
A15: Qtde meses com o 1° juros | D15: =IF(E10,K8,0) -> 60 | E15: PV com juros pro rata | I15: % Multa | K15: 0 | M15: Dias pro rata | N15: ínicio juros | P15: =IF(P11,B7,0) -> 1999-09-01
A16: Novo montante (PV¹) | D16: =(D13*(1+D14)^D15) -> 8297.360022 | E16: =IF(E12="S",B2*(1+G7)^E14,B2)-B2 -> 0 | I16: % Juros Atraso | K16: 0 | N16: fim juros | P16: =IF(P11,IF(P14,F7,E2),0) -> 1999-09-30
A17: Valor Parcela | B17: =PMT(C8,B3,-D16,0,B4) -> 8297.360022 | I17: Data de recebimento | K17: 2015-02-10 | N17: dias pro-rata | P17: =P16-P15 -> 29
A19: k | B19: Vencimento | C19: Prestação | D19: Juros | E19: Amort. | G19: Saldo Dev | H19: Dias de Antecipação (ANO 360) | I19: Desconto Antecipação | J19: Valor do juros com desconto | K19: Valor da Parcela com Desconto | M19: Dias Atraso | N19: Dias Atraso (360) | O19: Multa Atraso | P19: Juros Atraso | Q19: Valor final
A20: 0 | G20: =F16 -> 0
A21: 1 | B21: =E2 -> 2004-09-01 | C21: =IF(A21<=$B$3,$D$16 * ((((1 + $C$8) ^ ($B$3 -$B$4)) * $C$8 ) / (((1 + $C$8) ^ $B$3) -1)),0) -> 8297.360022 | D21: =$C$8 * C21 * ((((1 + $C$8) ^($B$3 - (A21 -1))) - 1)/(((1 + $C$8) ^($B$3 - (A21 -1))) * $C$8)) -> 942.0660517 | E21: =C21-D21 -> 7355.29397 | G21: =C21 * ((((1 + $C$7) ^($B$3 - A21)) - 1)/(((1 + $C$7) ^($B$3 - A21)) * $C$7)) -> 0 | H21: =IF(C21>0,IF(B21<=$K$17,0,IF($B$4=0,30*$D$7,0) + DAYS360($K$17,B21)),0) -> 0 | I21: =C21*((((1+$G$8)^H21) - 1)/((1+$G$8)^H21)) -> 0 | J21: =D21-I21 -> 942.0660517 | K21: =E21+J21 -> 8297.360022 | M21: =IF(B21>$K$17,0, $K$17-B21) -> 3814 | N21: =IF(B21>$K$17,0,DAYS360(B21,$K$17)) -> 3759 | O21: =IF(N21>0,C21*$K$15,0) -> 0 | P21: =IF(M21>0,(C21*(1+$K$16)^M21)-C21,0) -> 0 | Q21: =K21+O21+P21 -> 8297.360022
A22: 2 | B22: =DATE(YEAR(B21),MONTH(B21)+$D$8,DAY(B21)) -> 2005-09-01 | C22: =IF(A22<=$B$3,$D$16 * ((((1 + $C$8) ^ ($B$3 -$B$4)) * $C$8 ) / (((1 + $C$8) ^ $B$3) -1)),0) -> 0 | D22: =$C$8 * C22 * ((((1 + $C$8) ^($B$3 - (A22 -1))) - 1)/(((1 + $C$8) ^($B$3 - (A22 -1))) * $C$8)) -> 0 | E22: 0 | G22: 0 | H22: =IF(C22>0,IF(B22<=$K$17,0,IF($B$4=0,30*$D$7,0) + DAYS360($K$17,B22)),0) -> 0 | I22: =C22*((((1+$G$8)^H22) - 1)/((1+$G$8)^H22)) -> 0 | J22: 0 | K22: 0 | M22: 3449 | N22: 3399 | O22: =IF(N22>0,C22*$K$15,0) -> 0 | P22: =IF(M22>0,(C22*(1+$K$16)^M22)-C22,0) -> 0 | Q22: =K22+O22+P22 -> 0
A23: 3 | B23: 2006-09-01 | C23: 0 | D23: 0 | E23: 0 | G23: 0 | H23: 0 | I23: 0 | J23: 0 | K23: 0 | M23: 3084 | N23: 3039 | O23: 0 | P23: 0 | Q23: 0
A24: 4 | B24: 2007-09-01 | C24: 0 | D24: 0 | E24: 0 | G24: 0 | H24: 0 | I24: 0 | J24: 0 | K24: 0 | M24: 2719 | N24: 2679 | O24: 0 | P24: 0 | Q24: 0
A25: 5 | B25: 2008-09-01 | C25: 0 | D25: 0 | E25: 0 | G25: 0 | H25: 0 | I25: 0 | J25: 0 | K25: 0 | M25: 2353 | N25: 2319 | O25: 0 | P25: 0 | Q25: 0
A26: 6 | B26: 2009-09-01 | C26: 0 | D26: 0 | E26: 0 | G26: 0 | H26: 0 | I26: 0 | J26: 0 | K26: 0 | M26: 1988 | N26: 1959 | O26: 0 | P26: 0 | Q26: 0
A27: 7 | B27: 2010-09-01 | C27: 0 | D27: 0 | E27: 0 | G27: 0 | H27: 0 | I27: 0 | J27: 0 | K27: 0 | M27: 1623 | N27: 1599 | O27: 0 | P27: 0 | Q27: 0
A28: 8 | B28: 2011-09-01 | C28: 0 | D28: 0 | E28: 0 | G28: 0 | H28: 0 | I28: 0 | J28: 0 | K28: 0 | M28: 1258 | N28: 1239 | O28: 0 | P28: 0 | Q28: 0
A29: 9 | B29: 2012-09-01 | C29: 0 | D29: 0 | E29: 0 | G29: 0 | H29: 0 | I29: 0 | J29: 0 | K29: 0 | M29: 892 | N29: 879 | O29: 0 | P29: 0 | Q29: 0
A30: 10 | B30: 2013-09-01 | C30: 0 | D30: 0 | E30: 0 | G30: 0 | H30: 0 | I30: 0 | J30: 0 | K30: 0 | M30: 527 | N30: 519 | O30: 0 | P30: 0 | Q30: 0
A31: 11 | B31: 2014-09-01 | C31: 0 | D31: 0 | E31: 0 | G31: 0 | H31: =IF(C31>0,IF(B31<=$K$17,0,IF($B$4=0,30,0) + DAYS360($K$17,B31)),0) -> 0 | I31: 0 | J31: 0 | K31: 0 | M31: 162 | N31: 159 | O31: 0 | P31: 0 | Q31: 0
A32: 12 | B32: 2015-09-01 | C32: 0 | D32: 0 | E32: 0 | G32: 0 | H32: 0 | I32: 0 | J32: 0 | K32: 0 | M32: 0 | N32: 0 | O32: 0 | P32: 0 | Q32: 0
A33: 13 | B33: 2016-09-01 | C33: 0 | D33: 0 | E33: 0 | G33: 0 | H33: 0 | I33: 0 | J33: 0 | K33: 0 | M33: 0 | N33: 0 | O33: 0 | P33: 0 | Q33: 0
A34: 14 | B34: 2017-09-01 | C34: 0 | D34: 0 | E34: 0 | G34: 0 | H34: 0 | I34: 0 | J34: 0 | K34: 0 | M34: 0 | N34: 0 | O34: 0 | P34: 0 | Q34: 0
A35: 15 | B35: 2018-09-01 | C35: 0 | D35: 0 | E35: 0 | G35: 0 | H35: 0 | I35: 0 | J35: 0 | K35: 0 | M35: 0 | N35: 0 | O35: 0 | P35: 0 | Q35: 0
A36: 16 | B36: 2019-09-01 | C36: 0 | D36: 0 | E36: 0 | G36: 0 | H36: 0 | I36: 0 | J36: 0 | K36: 0 | M36: 0 | N36: 0 | O36: 0 | P36: 0 | Q36: 0
A37: 17 | B37: 2020-09-01 | C37: 0 | D37: 0 | E37: 0 | G37: 0 | H37: 0 | I37: 0 | J37: 0 | K37: 0 | M37: 0 | N37: 0 | O37: 0 | P37: 0 | Q37: 0
A38: 18 | B38: 2021-09-01 | C38: 0 | D38: 0 | E38: 0 | G38: 0 | H38: 0 | I38: 0 | J38: 0 | K38: 0 | M38: 0 | N38: 0 | O38: 0 | P38: 0 | Q38: 0
A39: 19 | B39: 2022-09-01 | C39: 0 | D39: 0 | E39: 0 | G39: 0 | H39: 0 | I39: 0 | J39: 0 | K39: 0 | M39: 0 | N39: 0 | O39: 0 | P39: 0 | Q39: 0
A40: 20 | B40: 2023-09-01 | C40: 0 | D40: 0 | E40: 0 | G40: 0 | H40: 0 | I40: 0 | J40: 0 | K40: 0 | M40: 0 | N40: 0 | O40: 0 | P40: 0 | Q40: 0
A41: 21 | B41: 2024-09-01 | C41: 0 | D41: 0 | E41: 0 | G41: 0 | H41: 0 | I41: 0 | J41: 0 | K41: 0 | M41: 0 | N41: 0 | O41: 0 | P41: 0 | Q41: 0
A42: 22 | B42: 2025-09-01 | C42: 0 | D42: 0 | E42: 0 | G42: 0 | H42: 0 | I42: 0 | J42: 0 | K42: 0 | M42: 0 | N42: 0 | O42: 0 | P42: 0 | Q42: 0
A43: 23 | B43: 2026-09-01 | C43: 0 | D43: 0 | E43: 0 | G43: 0 | H43: 0 | I43: 0 | J43: 0 | K43: 0 | M43: 0 | N43: 0 | O43: 0 | P43: 0 | Q43: 0
A44: 24 | B44: 2027-09-01 | C44: 0 | D44: 0 | E44: 0 | G44: 0 | H44: 0 | I44: 0 | J44: 0 | K44: 0 | M44: 0 | N44: 0 | O44: 0 | P44: 0 | Q44: 0
A45: 25 | B45: 2028-09-01 | C45: 0 | D45: 0 | E45: 0 | G45: 0 | H45: 0 | I45: 0 | J45: 0 | K45: 0 | M45: 0 | N45: 0 | O45: 0 | P45: 0 | Q45: 0
A46: 26 | B46: 2029-09-01 | C46: 0 | D46: 0 | E46: 0 | G46: 0 | H46: 0 | I46: 0 | J46: 0 | K46: 0 | M46: 0 | N46: 0 | O46: 0 | P46: 0 | Q46: 0
A47: 27 | B47: 2030-09-01 | C47: 0 | D47: 0 | E47: 0 | G47: 0 | H47: 0 | I47: 0 | J47: 0 | K47: 0 | M47: 0 | N47: 0 | O47: 0 | P47: 0 | Q47: 0
A48: 28 | B48: 2031-09-01 | C48: 0 | D48: 0 | E48: 0 | G48: 0 | H48: 0 | I48: 0 | J48: 0 | K48: 0 | M48: 0 | N48: 0 | O48: 0 | P48: 0 | Q48: 0
A49: 29 | B49: 2032-09-01 | C49: 0 | D49: 0 | E49: 0 | G49: 0 | H49: 0 | I49: 0 | J49: 0 | K49: 0 | M49: 0 | N49: 0 | O49: 0 | P49: 0 | Q49: 0
A50: 30 | B50: 2033-09-01 | C50: 0 | D50: 0 | E50: 0 | G50: 0 | H50: 0 | I50: 0 | J50: 0 | K50: 0 | M50: 0 | N50: 0 | O50: 0 | P50: 0 | Q50: 0
A51: 31 | B51: 2034-09-01 | C51: 0 | D51: 0 | E51: 0 | G51: 0 | H51: 0 | I51: 0 | J51: 0 | K51: 0 | M51: 0 | N51: 0 | O51: 0 | P51: 0 | Q51: 0
A52: 32 | B52: 2035-09-01 | C52: 0 | D52: 0 | E52: 0 | G52: 0 | H52: 0 | I52: 0 | J52: 0 | K52: 0 | M52: 0 | N52: 0 | O52: 0 | P52: 0 | Q52: 0
A53: 33 | B53: 2036-09-01 | C53: 0 | D53: 0 | E53: 0 | G53: =C53 * ((((1 + $C$7) ^($B$3 - A53)) - 1)/(((1 + $C$7) ^($B$3 - A53)) * $C$7)) -> 0 | H53: 0 | I53: =C53*((((1+$G$8)^H53) - 1)/((1+$G$8)^H53)) -> 0 | J53: 0 | K53: 0 | M53: =IF(B53>$K$17,0, $K$17-B53) -> 0 | N53: =IF(B53>$K$17,0,DAYS360(B53,$K$17)) -> 0 | O53: 0 | P53: 0 | Q53: 0
A54: 34 | B54: =DATE(YEAR(B53),MONTH(B53)+$D$8,DAY(B53)) -> 2037-09-01 | C54: 0 | D54: 0 | E54: 0 | G54: 0 | H54: 0 | I54: 0 | J54: 0 | K54: 0 | M54: 0 | N54: 0 | O54: 0 | P54: 0 | Q54: 0
A55: 35 | B55: 2038-09-01 | C55: 0 | D55: 0 | E55: 0 | G55: 0 | H55: 0 | I55: 0 | J55: 0 | K55: 0 | M55: 0 | N55: 0 | O55: 0 | P55: 0 | Q55: 0
A56: 36 | B56: 2039-09-01 | C56: 0 | D56: 0 | E56: 0 | G56: 0 | H56: 0 | I56: 0 | J56: 0 | K56: 0 | M56: 0 | N56: 0 | O56: 0 | P56: 0 | Q56: 0
A57: 37 | B57: 2040-09-01 | C57: 0 | D57: 0 | E57: 0 | G57: 0 | H57: 0 | I57: 0 | J57: 0 | K57: 0 | M57: 0 | N57: 0 | O57: 0 | P57: 0 | Q57: 0
A58: 38 | B58: 2041-09-01 | C58: 0 | D58: 0 | E58: 0 | G58: 0 | H58: 0 | I58: 0 | J58: 0 | K58: 0 | M58: 0 | N58: 0 | O58: 0 | P58: 0 | Q58: 0
A59: 39 | B59: 2042-09-01 | C59: 0 | D59: 0 | E59: 0 | G59: 0 | H59: 0 | I59: 0 | J59: 0 | K59: 0 | M59: 0 | N59: 0 | O59: 0 | P59: 0 | Q59: 0
A60: 40 | B60: 2043-09-01 | C60: 0 | D60: 0 | E60: 0 | G60: 0 | H60: 0 | I60: 0 | J60: 0 | K60: 0 | M60: 0 | N60: 0 | O60: 0 | P60: 0 | Q60: 0
A61: 41 | B61: 2044-09-01 | C61: 0 | D61: 0 | E61: 0 | G61: 0 | H61: 0 | I61: 0 | J61: 0 | K61: 0 | M61: 0 | N61: 0 | O61: 0 | P61: 0 | Q61: 0
A62: 42 | B62: 2045-09-01 | C62: 0 | D62: 0 | E62: 0 | G62: 0 | H62: 0 | I62: 0 | J62: 0 | K62: 0 | M62: 0 | N62: 0 | O62: 0 | P62: 0 | Q62: 0
A63: 43 | B63: 2046-09-01 | C63: 0 | D63: 0 | E63: 0 | G63: 0 | H63: 0 | I63: 0 | J63: 0 | K63: 0 | M63: 0 | N63: 0 | O63: 0 | P63: 0 | Q63: 0
A64: 44 | B64: 2047-09-01 | C64: 0 | D64: 0 | E64: 0 | G64: 0 | H64: 0 | I64: 0 | J64: 0 | K64: 0 | M64: 0 | N64: 0 | O64: 0 | P64: 0 | Q64: 0
A65: 45 | B65: 2048-09-01 | C65: 0 | D65: 0 | E65: 0 | G65: 0 | H65: 0 | I65: 0 | J65: 0 | K65: 0 | M65: 0 | N65: 0 | O65: 0 | P65: 0 | Q65: 0
A66: 46 | B66: 2049-09-01 | C66: 0 | D66: 0 | E66: 0 | G66: 0 | H66: 0 | I66: 0 | J66: 0 | K66: 0 | M66: 0 | N66: 0 | O66: 0 | P66: 0 | Q66: 0
A67: 47 | B67: 2050-09-01 | C67: 0 | D67: 0 | E67: 0 | G67: 0 | H67: 0 | I67: 0 | J67: 0 | K67: 0 | M67: 0 | N67: 0 | O67: 0 | P67: 0 | Q67: 0
A68: 48 | B68: 2051-09-01 | C68: 0 | D68: 0 | E68: 0 | G68: 0 | H68: 0 | I68: 0 | J68: 0 | K68: 0 | M68: 0 | N68: 0 | O68: 0 | P68: 0 | Q68: 0
A69: 49 | B69: 2052-09-01 | C69: 0 | D69: 0 | E69: 0 | G69: 0 | H69: 0 | I69: 0 | J69: 0 | K69: 0 | M69: 0 | N69: 0 | O69: 0 | P69: 0 | Q69: 0
A70: 50 | B70: 2053-09-01 | C70: 0 | D70: 0 | E70: 0 | G70: 0 | H70: 0 | I70: 0 | J70: 0 | K70: 0 | M70: 0 | N70: 0 | O70: 0 | P70: 0 | Q70: 0
A71: 51 | B71: 2054-09-01 | C71: 0 | D71: 0 | E71: 0 | G71: 0 | H71: 0 | I71: 0 | J71: 0 | K71: 0 | M71: 0 | N71: 0 | O71: 0 | P71: 0 | Q71: 0
A72: 52 | B72: 2055-09-01 | C72: 0 | D72: 0 | E72: 0 | G72: 0 | H72: 0 | I72: 0 | J72: 0 | K72: 0 | M72: 0 | N72: 0 | O72: 0 | P72: 0 | Q72: 0
A73: 53 | B73: 2056-09-01 | C73: 0 | D73: 0 | E73: 0 | G73: 0 | H73: 0 | I73: 0 | J73: 0 | K73: 0 | M73: 0 | N73: 0 | O73: 0 | P73: 0 | Q73: 0
A74: 54 | B74: 2057-09-01 | C74: 0 | D74: 0 | E74: 0 | G74: 0 | H74: 0 | I74: 0 | J74: 0 | K74: 0 | M74: 0 | N74: 0 | O74: 0 | P74: 0 | Q74: 0
A75: 55 | B75: 2058-09-01 | C75: 0 | D75: 0 | E75: 0 | G75: 0 | H75: 0 | I75: 0 | J75: 0 | K75: 0 | M75: 0 | N75: 0 | O75: 0 | P75: 0 | Q75: 0
A76: 56 | B76: 2059-09-01 | C76: 0 | D76: 0 | E76: 0 | G76: 0 | H76: 0 | I76: 0 | J76: 0 | K76: 0 | M76: 0 | N76: 0 | O76: 0 | P76: 0 | Q76: 0
A77: 57 | B77: 2060-09-01 | C77: 0 | D77: 0 | E77: 0 | G77: 0 | H77: 0 | I77: 0 | J77: 0 | K77: 0 | M77: 0 | N77: 0 | O77: 0 | P77: 0 | Q77: 0
A78: 58 | B78: 2061-09-01 | C78: 0 | D78: 0 | E78: 0 | G78: 0 | H78: 0 | I78: 0 | J78: 0 | K78: 0 | M78: 0 | N78: 0 | O78: 0 | P78: 0 | Q78: 0
A79: 59 | B79: 2062-09-01 | C79: 0 | D79: 0 | E79: 0 | G79: 0 | H79: 0 | I79: 0 | J79: 0 | K79: 0 | M79: 0 | N79: 0 | O79: 0 | P79: 0 | Q79: 0
A80: 60 | B80: 2063-09-01 | C80: 0 | D80: 0 | E80: 0 | G80: 0 | H80: 0 | I80: 0 | J80: 0 | K80: 0 | M80: 0 | N80: 0 | O80: 0 | P80: 0 | Q80: 0
A81: 61 | B81: 2064-09-01 | C81: 0 | D81: 0 | E81: 0 | G81: 0 | H81: 0 | I81: 0 | J81: 0 | K81: 0 | M81: 0 | N81: 0 | O81: 0 | P81: 0 | Q81: 0
A82: 62 | B82: 2065-09-01 | C82: 0 | D82: 0 | E82: 0 | G82: 0 | H82: 0 | I82: 0 | J82: 0 | K82: 0 | M82: 0 | N82: 0 | O82: 0 | P82: 0 | Q82: 0
A83: 63 | B83: 2066-09-01 | C83: 0 | D83: 0 | E83: 0 | G83: 0 | H83: 0 | I83: 0 | J83: 0 | K83: 0 | M83: 0 | N83: 0 | O83: 0 | P83: 0 | Q83: 0
A84: 64 | B84: 2067-09-01 | C84: 0 | D84: 0 | E84: 0 | G84: 0 | H84: 0 | I84: 0 | J84: 0 | K84: 0 | M84: 0 | N84: 0 | O84: 0 | P84: 0 | Q84: 0
A85: 65 | B85: 2068-09-01 | C85: 0 | D85: 0 | E85: =C85-D85 -> 0 | G85: =C85 * ((((1 + $C$7) ^($B$3 - A85)) - 1)/(((1 + $C$7) ^($B$3 - A85)) * $C$7)) -> 0 | H85: 0 | I85: =C85*((((1+$G$8)^H85) - 1)/((1+$G$8)^H85)) -> 0 | J85: =D85-I85 -> 0 | K85: =E85+J85 -> 0 | M85: =IF(B85>$K$17,0, $K$17-B85) -> 0 | N85: =IF(B85>$K$17,0,DAYS360(B85,$K$17)) -> 0 | O85: 0 | P85: 0 | Q85: 0
A86: 66 | B86: =DATE(YEAR(B85),MONTH(B85)+$D$8,DAY(B85)) -> 2069-09-01 | C86: =IF(A86<=$B$3,$D$16 * ((((1 + $C$8) ^ ($B$3 -$B$4)) * $C$8 ) / (((1 + $C$8) ^ $B$3) -1)),0) -> 0 | D86: =$C$8 * C86 * ((((1 + $C$8) ^($B$3 - (A86 -1))) - 1)/(((1 + $C$8) ^($B$3 - (A86 -1))) * $C$8)) -> 0 | E86: 0 | G86: 0 | H86: =IF(C86>0,IF(B86<=$K$17,0,IF($B$4=0,30,0) + DAYS360($K$17,B86)),0) -> 0 | I86: 0 | J86: 0 | K86: 0 | M86: 0 | N86: 0 | O86: =IF(N86>0,C86*$K$15,0) -> 0 | P86: =IF(M86>0,(C86*(1+$K$16)^M86)-C86,0) -> 0 | Q86: =K86+O86+P86 -> 0
A87: 67 | B87: 2070-09-01 | C87: 0 | D87: 0 | E87: 0 | G87: 0 | H87: 0 | I87: 0 | J87: 0 | K87: 0 | M87: 0 | N87: 0 | O87: 0 | P87: 0 | Q87: 0
A88: 68 | B88: 2071-09-01 | C88: 0 | D88: 0 | E88: 0 | G88: 0 | H88: 0 | I88: 0 | J88: 0 | K88: 0 | M88: 0 | N88: 0 | O88: 0 | P88: 0 | Q88: 0
A89: 69 | B89: 2072-09-01 | C89: 0 | D89: 0 | E89: 0 | G89: 0 | H89: 0 | I89: 0 | J89: 0 | K89: 0 | M89: 0 | N89: 0 | O89: 0 | P89: 0 | Q89: 0
A90: 70 | B90: 2073-09-01 | C90: 0 | D90: 0 | E90: 0 | G90: 0 | H90: 0 | I90: 0 | J90: 0 | K90: 0 | M90: 0 | N90: 0 | O90: 0 | P90: 0 | Q90: 0
A91: 71 | B91: 2074-09-01 | C91: 0 | D91: 0 | E91: 0 | G91: 0 | H91: 0 | I91: 0 | J91: 0 | K91: 0 | M91: 0 | N91: 0 | O91: 0 | P91: 0 | Q91: 0
A92: 72 | B92: 2075-09-01 | C92: 0 | D92: 0 | E92: 0 | G92: 0 | H92: 0 | I92: 0 | J92: 0 | K92: 0 | M92: 0 | N92: 0 | O92: 0 | P92: 0 | Q92: 0
A93: 73 | B93: 2076-09-01 | C93: 0 | D93: 0 | E93: =C93-D93 -> 0 | G93: 0 | H93: 0 | I93: 0 | J93: 0 | K93: 0 | M93: 0 | N93: 0 | O93: 0 | P93: 0 | Q93: 0
A94: 74 | B94: 2077-09-01 | C94: 0 | D94: 0 | E94: =C94-D94 -> 0 | G94: 0 | H94: 0 | I94: 0 | J94: 0 | K94: 0 | M94: 0 | N94: 0 | O94: 0 | P94: 0 | Q94: 0
A95: 75 | B95: 2078-09-01 | C95: 0 | D95: 0 | E95: =C95-D95 -> 0 | G95: 0 | H95: 0 | I95: 0 | J95: 0 | K95: 0 | M95: 0 | N95: 0 | O95: 0 | P95: 0 | Q95: 0
A96: 76 | B96: 2079-09-01 | C96: 0 | D96: 0 | E96: =C96-D96 -> 0 | G96: 0 | H96: 0 | I96: 0 | J96: 0 | K96: 0 | M96: 0 | N96: 0 | O96: 0 | P96: 0 | Q96: 0
A97: 77 | B97: 2080-09-01 | C97: 0 | D97: 0 | E97: =C97-D97 -> 0 | G97: 0 | H97: 0 | I97: 0 | J97: 0 | K97: 0 | M97: 0 | N97: 0 | O97: 0 | P97: 0 | Q97: 0
A98: 78 | B98: 2081-09-01 | C98: 0 | D98: 0 | E98: =C98-D98 -> 0 | G98: 0 | H98: 0 | I98: 0 | J98: 0 | K98: 0 | M98: 0 | N98: 0 | O98: 0 | P98: 0 | Q98: 0
A99: 79 | B99: 2082-09-01 | C99: 0 | D99: 0 | E99: 0 | G99: 0 | H99: 0 | I99: 0 | J99: 0 | K99: 0 | M99: 0 | N99: 0 | O99: 0 | P99: 0 | Q99: 0
A100: 80 | B100: 2083-09-01 | C100: 0 | D100: 0 | E100: 0 | G100: 0 | H100: 0 | I100: 0 | J100: 0 | K100: 0 | M100: 0 | N100: 0 | O100: 0 | P100: 0 | Q100: 0
A101: 81 | B101: 2084-09-01 | C101: 0 | D101: 0 | E101: 0 | G101: 0 | H101: 0 | I101: 0 | J101: 0 | K101: 0 | M101: 0 | N101: 0 | O101: 0 | P101: 0 | Q101: 0
A102: 82 | B102: 2085-09-01 | C102: 0 | D102: 0 | E102: 0 | G102: 0 | H102: 0 | I102: 0 | J102: 0 | K102: 0 | M102: 0 | N102: 0 | O102: 0 | P102: 0 | Q102: 0
A103: 83 | B103: 2086-09-01 | C103: 0 | D103: 0 | E103: 0 | G103: 0 | H103: 0 | I103: 0 | J103: 0 | K103: 0 | M103: 0 | N103: 0 | O103: 0 | P103: 0 | Q103: 0
A104: 84 | B104: 2087-09-01 | C104: 0 | D104: 0 | E104: 0 | G104: 0 | H104: 0 | I104: 0 | J104: 0 | K104: 0 | M104: 0 | N104: 0 | O104: 0 | P104: 0 | Q104: 0
A105: 85 | B105: 2088-09-01 | C105: 0 | D105: 0 | E105: 0 | G105: 0 | H105: 0 | I105: 0 | J105: 0 | K105: 0 | M105: 0 | N105: 0 | O105: 0 | P105: 0 | Q105: 0
A106: 86 | B106: 2089-09-01 | C106: 0 | D106: 0 | E106: 0 | G106: 0 | H106: 0 | I106: 0 | J106: 0 | K106: 0 | M106: 0 | N106: 0 | O106: 0 | P106: 0 | Q106: 0
A107: 87 | B107: 2090-09-01 | C107: 0 | D107: 0 | E107: 0 | G107: 0 | H107: 0 | I107: 0 | J107: 0 | K107: 0 | M107: 0 | N107: 0 | O107: 0 | P107: 0 | Q107: 0
A108: 88 | B108: 2091-09-01 | C108: 0 | D108: 0 | E108: 0 | G108: 0 | H108: 0 | I108: 0 | J108: 0 | K108: 0 | M108: 0 | N108: 0 | O108: 0 | P108: 0 | Q108: 0
A109: 89 | B109: 2092-09-01 | C109: 0 | D109: 0 | E109: 0 | G109: 0 | H109: 0 | I109: 0 | J109: 0 | K109: 0 | M109: 0 | N109: 0 | O109: 0 | P109: 0 | Q109: 0
A110: 90 | B110: 2093-09-01 | C110: 0 | D110: 0 | E110: 0 | G110: 0 | H110: 0 | I110: 0 | J110: 0 | K110: 0 | M110: 0 | N110: 0 | O110: 0 | P110: 0 | Q110: 0
A111: 91 | B111: 2094-09-01 | C111: 0 | D111: 0 | E111: 0 | G111: 0 | H111: 0 | I111: 0 | J111: 0 | K111: 0 | M111: 0 | N111: 0 | O111: 0 | P111: 0 | Q111: 0
A112: 92 | B112: 2095-09-01 | C112: 0 | D112: 0 | E112: 0 | G112: 0 | H112: 0 | I112: 0 | J112: 0 | K112: 0 | M112: 0 | N112: 0 | O112: 0 | P112: 0 | Q112: 0
A113: 93 | B113: 2096-09-01 | C113: 0 | D113: 0 | E113: 0 | G113: 0 | H113: 0 | I113: 0 | J113: 0 | K113: 0 | M113: 0 | N113: 0 | O113: 0 | P113: 0 | Q113: 0
A114: 94 | B114: 2097-09-01 | C114: 0 | D114: 0 | E114: 0 | G114: 0 | H114: 0 | I114: 0 | J114: 0 | K114: 0 | M114: 0 | N114: 0 | O114: 0 | P114: 0 | Q114: 0
A115: 95 | B115: 2098-09-01 | C115: 0 | D115: 0 | E115: 0 | G115: 0 | H115: 0 | I115: 0 | J115: 0 | K115: 0 | M115: 0 | N115: 0 | O115: 0 | P115: 0 | Q115: 0
A116: 96 | B116: 2099-09-01 | C116: 0 | D116: 0 | E116: 0 | G116: 0 | H116: 0 | I116: 0 | J116: 0 | K116: 0 | M116: 0 | N116: 0 | O116: 0 | P116: 0 | Q116: 0
A117: 97 | B117: 2100-09-01 | C117: 0 | D117: 0 | E117: 0 | G117: =C117 * ((((1 + $C$7) ^($B$3 - A117)) - 1)/(((1 + $C$7) ^($B$3 - A117)) * $C$7)) -> 0 | H117: 0 | I117: =C117*((((1+$G$8)^H117) - 1)/((1+$G$8)^H117)) -> 0 | J117: 0 | K117: 0 | M117: =IF(B117>$K$17,0, $K$17-B117) -> 0 | N117: =IF(B117>$K$17,0,DAYS360(B117,$K$17)) -> 0 | O117: 0 | P117: 0 | Q117: 0
A118: 98 | B118: =DATE(YEAR(B117),MONTH(B117)+$D$8,DAY(B117)) -> 2101-09-01 | C118: 0 | D118: 0 | E118: 0 | G118: 0 | H118: 0 | I118: 0 | J118: 0 | K118: 0 | M118: 0 | N118: 0 | O118: 0 | P118: 0 | Q118: 0
A119: 99 | B119: 2102-09-01 | C119: 0 | D119: 0 | E119: 0 | G119: 0 | H119: 0 | I119: 0 | J119: 0 | K119: 0 | M119: 0 | N119: 0 | O119: 0 | P119: 0 | Q119: 0
A120: 100 | B120: 2103-09-01 | C120: 0 | D120: 0 | E120: 0 | G120: 0 | H120: 0 | I120: 0 | J120: 0 | K120: 0 | M120: 0 | N120: 0 | O120: 0 | P120: 0 | Q120: 0
A121: 101 | B121: 2104-09-01 | C121: 0 | D121: 0 | E121: 0 | G121: 0 | H121: 0 | I121: 0 | J121: 0 | K121: 0 | M121: 0 | N121: 0 | O121: 0 | P121: 0 | Q121: 0
A122: 102 | B122: 2105-09-01 | C122: 0 | D122: 0 | E122: 0 | G122: 0 | H122: 0 | I122: 0 | J122: 0 | K122: 0 | M122: 0 | N122: 0 | O122: 0 | P122: 0 | Q122: 0
A123: 103 | B123: 2106-09-01 | C123: 0 | D123: 0 | E123: 0 | G123: 0 | H123: 0 | I123: 0 | J123: 0 | K123: 0 | M123: 0 | N123: 0 | O123: 0 | P123: 0 | Q123: 0
A124: 104 | B124: 2107-09-01 | C124: 0 | D124: 0 | E124: 0 | G124: 0 | H124: 0 | I124: 0 | J124: 0 | K124: 0 | M124: 0 | N124: 0 | O124: 0 | P124: 0 | Q124: 0
A125: 105 | B125: 2108-09-01 | C125: 0 | D125: 0 | E125: 0 | G125: 0 | H125: 0 | I125: 0 | J125: 0 | K125: 0 | M125: 0 | N125: 0 | O125: 0 | P125: 0 | Q125: 0
A126: 106 | B126: 2109-09-01 | C126: 0 | D126: 0 | E126: 0 | G126: 0 | H126: 0 | I126: 0 | J126: 0 | K126: 0 | M126: 0 | N126: 0 | O126: 0 | P126: 0 | Q126: 0
A127: 107 | B127: 2110-09-01 | C127: 0 | D127: 0 | E127: 0 | G127: 0 | H127: 0 | I127: 0 | J127: 0 | K127: 0 | M127: 0 | N127: 0 | O127: 0 | P127: 0 | Q127: 0
A128: 108 | B128: 2111-09-01 | C128: 0 | D128: 0 | E128: 0 | G128: 0 | H128: 0 | I128: 0 | J128: 0 | K128: 0 | M128: 0 | N128: 0 | O128: 0 | P128: 0 | Q128: 0
A129: 109 | B129: 2112-09-01 | C129: 0 | D129: 0 | E129: 0 | G129: 0 | H129: 0 | I129: 0 | J129: 0 | K129: 0 | M129: 0 | N129: 0 | O129: 0 | P129: 0 | Q129: 0
A130: 110 | B130: 2113-09-01 | C130: 0 | D130: 0 | E130: 0 | G130: 0 | H130: 0 | I130: 0 | J130: 0 | K130: 0 | M130: 0 | N130: 0 | O130: 0 | P130: 0 | Q130: 0
A131: 111 | B131: 2114-09-01 | C131: 0 | D131: 0 | E131: 0 | G131: 0 | H131: 0 | I131: 0 | J131: 0 | K131: 0 | M131: 0 | N131: 0 | O131: 0 | P131: 0 | Q131: 0
A132: 112 | B132: 2115-09-01 | C132: 0 | D132: 0 | E132: 0 | G132: 0 | H132: 0 | I132: 0 | J132: 0 | K132: 0 | M132: 0 | N132: 0 | O132: 0 | P132: 0 | Q132: 0
A133: 113 | B133: 2116-09-01 | C133: 0 | D133: 0 | E133: 0 | G133: 0 | H133: 0 | I133: 0 | J133: 0 | K133: 0 | M133: 0 | N133: 0 | O133: 0 | P133: 0 | Q133: 0
A134: 114 | B134: 2117-09-01 | C134: 0 | D134: 0 | E134: 0 | G134: 0 | H134: 0 | I134: 0 | J134: 0 | K134: 0 | M134: 0 | N134: 0 | O134: 0 | P134: 0 | Q134: 0
A135: 115 | B135: 2118-09-01 | C135: 0 | D135: 0 | E135: 0 | G135: 0 | H135: 0 | I135: 0 | J135: 0 | K135: 0 | M135: 0 | N135: 0 | O135: 0 | P135: 0 | Q135: 0
A136: 116 | B136: 2119-09-01 | C136: 0 | D136: 0 | E136: 0 | G136: 0 | H136: 0 | I136: 0 | J136: 0 | K136: 0 | M136: 0 | N136: 0 | O136: 0 | P136: 0 | Q136: 0
A137: 117 | B137: 2120-09-01 | C137: 0 | D137: 0 | E137: 0 | G137: 0 | H137: 0 | I137: 0 | J137: 0 | K137: 0 | M137: 0 | N137: 0 | O137: 0 | P137: 0 | Q137: 0
A138: 118 | B138: 2121-09-01 | C138: 0 | D138: 0 | E138: 0 | G138: 0 | H138: 0 | I138: 0 | J138: 0 | K138: 0 | M138: 0 | N138: 0 | O138: 0 | P138: 0 | Q138: 0
A139: 119 | B139: 2122-09-01 | C139: 0 | D139: 0 | E139: 0 | G139: 0 | H139: 0 | I139: 0 | J139: 0 | K139: 0 | M139: 0 | N139: 0 | O139: 0 | P139: 0 | Q139: 0
A140: 120 | B140: 2123-09-01 | C140: 0 | D140: 0 | E140: 0 | G140: 0 | H140: 0 | I140: 0 | J140: 0 | K140: 0 | M140: 0 | N140: 0 | O140: 0 | P140: 0 | Q140: 0
A141: 121 | B141: 2124-09-01 | C141: 0 | D141: 0 | E141: 0 | G141: 0 | H141: 0 | I141: 0 | J141: 0 | K141: 0 | M141: 0 | N141: 0 | O141: 0 | P141: 0 | Q141: 0
A142: 122 | B142: 2125-09-01 | C142: 0 | D142: 0 | E142: 0 | G142: 0 | H142: 0 | I142: 0 | J142: 0 | K142: 0 | M142: 0 | N142: 0 | O142: 0 | P142: 0 | Q142: 0
A143: 123 | B143: 2126-09-01 | C143: 0 | D143: 0 | E143: 0 | G143: 0 | H143: 0 | I143: 0 | J143: 0 | K143: 0 | M143: 0 | N143: 0 | O143: 0 | P143: 0 | Q143: 0
A144: 124 | B144: 2127-09-01 | C144: 0 | D144: 0 | E144: 0 | G144: 0 | H144: 0 | I144: 0 | J144: 0 | K144: 0 | M144: 0 | N144: 0 | O144: 0 | P144: 0 | Q144: 0
A145: 125 | B145: 2128-09-01 | C145: 0 | D145: 0 | E145: 0 | G145: 0 | H145: 0 | I145: 0 | J145: 0 | K145: 0 | M145: 0 | N145: 0 | O145: 0 | P145: 0 | Q145: 0
A146: 126 | B146: 2129-09-01 | C146: 0 | D146: 0 | E146: 0 | G146: 0 | H146: 0 | I146: 0 | J146: 0 | K146: 0 | M146: 0 | N146: 0 | O146: 0 | P146: 0 | Q146: 0
A147: 127 | B147: 2130-09-01 | C147: 0 | D147: 0 | E147: 0 | G147: 0 | H147: 0 | I147: 0 | J147: 0 | K147: 0 | M147: 0 | N147: 0 | O147: 0 | P147: 0 | Q147: 0
A148: 128 | B148: 2131-09-01 | C148: 0 | D148: 0 | E148: 0 | G148: 0 | H148: 0 | I148: 0 | J148: 0 | K148: 0 | M148: 0 | N148: 0 | O148: 0 | P148: 0 | Q148: 0
A149: 129 | B149: 2132-09-01 | C149: 0 | D149: 0 | E149: 0 | G149: =C149 * ((((1 + $C$7) ^($B$3 - A149)) - 1)/(((1 + $C$7) ^($B$3 - A149)) * $C$7)) -> 0 | H149: 0 | I149: =C149*((((1+$G$8)^H149) - 1)/((1+$G$8)^H149)) -> 0 | J149: =D149-I149 -> 0 | K149: =E149+J149 -> 0 | M149: =IF(B149>$K$17,0, $K$17-B149) -> 0 | N149: =IF(B149>$K$17,0,DAYS360(B149,$K$17)) -> 0 | O149: 0 | P149: 0 | Q149: 0
A150: 130 | B150: =DATE(YEAR(B149),MONTH(B149)+$D$8,DAY(B149)) -> 2133-09-01 | C150: =IF(A150<=$B$3,$D$16 * ((((1 + $C$8) ^ ($B$3 -$B$4)) * $C$8 ) / (((1 + $C$8) ^ $B$3) -1)),0) -> 0 | D150: =$C$8 * C150 * ((((1 + $C$8) ^($B$3 - (A150 -1))) - 1)/(((1 + $C$8) ^($B$3 - (A150 -1))) * $C$8)) -> 0 | E150: 0 | G150: 0 | H150: =IF(C150>0,IF(B150<=$K$17,0,IF($B$4=0,30,0) + DAYS360($K$17,B150)),0) -> 0 | I150: 0 | J150: 0 | K150: 0 | M150: 0 | N150: 0 | O150: =IF(N150>0,C150*$K$15,0) -> 0 | P150: =IF(M150>0,(C150*(1+$K$16)^M150)-C150,0) -> 0 | Q150: =K150+O150+P150 -> 0
A151: 131 | B151: 2134-09-01 | C151: 0 | D151: 0 | E151: 0 | G151: 0 | H151: 0 | I151: 0 | J151: 0 | K151: 0 | M151: 0 | N151: 0 | O151: 0 | P151: 0 | Q151: 0
A152: 132 | B152: 2135-09-01 | C152: 0 | D152: 0 | E152: 0 | G152: 0 | H152: 0 | I152: 0 | J152: 0 | K152: 0 | M152: 0 | N152: 0 | O152: 0 | P152: 0 | Q152: 0
A153: 133 | B153: 2136-09-01 | C153: 0 | D153: 0 | E153: 0 | G153: 0 | H153: 0 | I153: 0 | J153: 0 | K153: 0 | M153: 0 | N153: 0 | O153: 0 | P153: 0 | Q153: 0
A154: 134 | B154: 2137-09-01 | C154: 0 | D154: 0 | E154: 0 | G154: 0 | H154: 0 | I154: 0 | J154: 0 | K154: 0 | M154: 0 | N154: 0 | O154: 0 | P154: 0 | Q154: 0
A155: 135 | B155: 2138-09-01 | C155: 0 | D155: 0 | E155: 0 | G155: 0 | H155: 0 | I155: 0 | J155: 0 | K155: 0 | M155: 0 | N155: 0 | O155: 0 | P155: 0 | Q155: 0
A156: 136 | B156: 2139-09-01 | C156: 0 | D156: 0 | E156: 0 | G156: 0 | H156: 0 | I156: 0 | J156: 0 | K156: 0 | M156: 0 | N156: 0 | O156: 0 | P156: 0 | Q156: 0
A157: 137 | B157: 2140-09-01 | C157: 0 | D157: 0 | E157: 0 | G157: 0 | H157: 0 | I157: 0 | J157: 0 | K157: 0 | M157: 0 | N157: 0 | O157: 0 | P157: 0 | Q157: 0
A158: 138 | B158: 2141-09-01 | C158: 0 | D158: 0 | E158: 0 | G158: 0 | H158: 0 | I158: 0 | J158: 0 | K158: 0 | M158: 0 | N158: 0 | O158: 0 | P158: 0 | Q158: 0
A159: 139 | B159: 2142-09-01 | C159: 0 | D159: 0 | E159: 0 | G159: 0 | H159: 0 | I159: 0 | J159: 0 | K159: 0 | M159: 0 | N159: 0 | O159: 0 | P159: 0 | Q159: 0
A160: 140 | B160: 2143-09-01 | C160: 0 | D160: 0 | E160: 0 | G160: 0 | H160: 0 | I160: 0 | J160: 0 | K160: 0 | M160: 0 | N160: 0 | O160: 0 | P160: 0 | Q160: 0
A161: 141 | B161: 2144-09-01 | C161: 0 | D161: 0 | E161: 0 | G161: 0 | H161: 0 | I161: 0 | J161: 0 | K161: 0 | M161: 0 | N161: 0 | O161: 0 | P161: 0 | Q161: 0
A162: 142 | B162: 2145-09-01 | C162: 0 | D162: 0 | E162: =C162-D162 -> 0 | G162: 0 | H162: 0 | I162: 0 | J162: 0 | K162: 0 | M162: 0 | N162: 0 | O162: 0 | P162: 0 | Q162: 0
A163: 143 | B163: 2146-09-01 | C163: 0 | D163: 0 | E163: 0 | G163: 0 | H163: 0 | I163: 0 | J163: 0 | K163: 0 | M163: 0 | N163: 0 | O163: 0 | P163: 0 | Q163: 0
A164: 144 | B164: 2147-09-01 | C164: 0 | D164: 0 | E164: 0 | G164: 0 | H164: 0 | I164: 0 | J164: 0 | K164: 0 | M164: 0 | N164: 0 | O164: 0 | P164: 0 | Q164: 0
A165: 145 | B165: 2148-09-01 | C165: 0 | D165: 0 | E165: 0 | G165: 0 | H165: 0 | I165: 0 | J165: 0 | K165: 0 | M165: 0 | N165: 0 | O165: 0 | P165: 0 | Q165: 0
A166: Total | C166: =SUM(C21:C165) -> 8297.360022 | D166: =SUM(D21:D165) -> 942.0660517 | E166: =SUM(E21:E165) -> 7355.29397 | G166: 0 | H166: =SUM(H21:H165) -> 0 | I166: =SUM(I21:I165) -> 0 | J166: =SUM(J21:J165) -> 942.0660517 | K166: =SUM(K21:K165) -> 8297.360022

Sheet SAC_2_Juros
A1: Parcelamento | G1: * A data de vencimento deve ser maior ou igual a data do segundo juros. | I1: Diferença de datas | M1: Q | N1: PV / n
A2: Montante (PV) | B2: 360000 | D2: Dt. Parcela | E2: 2015-05-21 | I2: Cobrar juros no mês inicial de jur. | K2: N | M2: SD | N2: PV - k * Q
A3: Parcelas (n) | B3: 36 | D3: Principal | E3: =B2/B3 -> 10000 | I3: 1° juros | J3: 2°juros | K3: =INT(DAYS360(DATE(YEAR($B$6),MONTH($B$6),1),DATE(YEAR($B$7),MONTH($B$7),1))/30) -> 9 | M3: INTk | N3: i * [PV - (k -1) * Q]
A4: Juros | I4: 1° juros | J4: Vencimento | K4: =(INT(DAYS360(DATE(YEAR($B$6),MONTH($B$6),1),DATE(YEAR($E$2),MONTH($E$2),1))/30))-D6 + IF(K2="S",2,0) -> 0 | M4: Juros | N4: I * Q * (n - k+1)
B5: Data 1° juros | C5: (i) Taxa | D5: A cada X meses | E5: (i) Taxa AM | G5: (i) Taxa AD | I5: 2°juros | J5: Vencimento | K5: =INT(DAYS360(DATE(YEAR($B$7),MONTH($B$7),1),DATE(YEAR($E$2),MONTH($E$2),1))/30) -> -8 | M5: PMTk | N5: Q + i * [PV - (k - 1) * Q]
A6: 1° juros | B6: 2015-04-01 | C6: 0.01 | D6: 1 | E6: =((1+C6)^(1/IF(D6>0,D6,1)))-1 -> 0.01 | F6: =(DATE(YEAR(B6),MONTH(B6)+1,1))-1 -> 2015-04-30 | G6: =((1+E6)^(1/30))-1 -> 0.0003317327062
A7: 2° juros | B7: 2016-01-01 | C7: 0.01 | D7: =D6 -> 1 | E7: =((1+C7)^(1/IF(D7>0,D7,1)))-1 -> 0.01 | G7: =((1+E7)^(1/30))-1 -> 0.0003317327062 | I7: Juros no Mês antes da 1ª parcela | K7: =B6<E2 -> TRUE
A8: Dt. Parcela >= 1° juros | E8: =E2>=B6 -> TRUE | I8: Ano/mês vencimento | K8: =YEAR(E2)*100 + MONTH(E2) -> 201505
A9: Dt. Parcela >= 2° juros | E9: =E2>=B7 -> FALSE | I9: Ano/mês juros | K9: =YEAR(B6)*100 + MONTH(B6) -> 201504
A10: Recalculando o montante pela 1ª taxa de juros: | D10: =E6 -> 0.01 | E10: Pro rata - do PV¹ | I10: Juros em mês anterior da 1ª Parcela | K10: =K9<K8 -> TRUE
A11: Qtde meses com o 1° juros | D11: =IF(AND(E8,E9),K3,IF(E8,K4,0)) -> 0 | E11: N | I11: Dias pro rata | J11: ínicio juros | K11: =IF(K7,B6,0) -> 2015-04-01
A12: Novo montante (PV¹) | D12: =(B2*(1+D10)^D11)+E15 -> 360000 | E12: Dias pro-rata | J12: fim juros | K12: =IF(K7,IF(K10,F6,E2),0) -> 2015-04-30
A13: Recalculando o montante pela 2ª taxa de juros: | D13: =E7 -> 0.01 | E13: =IF(E11="S",K13,0) -> 0 | J13: dias pro-rata | K13: =K12-K11 -> 29
A14: Qtde meses com o 1° juros | D14: =IF(E9,K5-D7,0) -> 0 | E14: PV com juros pro rata
A15: Novo montante (PV²) | D15: =D12*(1+D13)^D14 -> 360000 | E15: =IF(E11="S",B2*(1+G6)^E13,B2)-B2 -> 0 | I15: Data de recebimento | K15: 2009-03-01
A18: Parcela (k) | B18: Vencimento | C18: Principal (Q) | D18: Juros Grad | E18: Juros SAC | G18: Tot. juros (2ª formula) | H18: Principal UAU | I18: Juros UAU | J18: Prestação | K18: Dias de Antecipação (ANO 360) | L18: Valor da Parcela com Desconto | M18: Valor do desconto
A19: 0
A20: 1 | B20: =E2 -> 2015-05-21 | C20: =IF(A20<=$B$3,$D$15/$B$3,0) -> 10000 | D20: =IF(A20<=$B$3,C20-$E$3,0) -> 0 | E20: =IF(A20<=$B$3,$C$7*($D$15-(A20-1)*C20),0) -> 3600 | G20: =$C$7 * C20 * ($B$3 - A20+1) -> 3600 | H20: =C20-D20 -> 10000 | I20: =E20+D20 -> 3600 | J20: =C20+G20 -> 13600 | K20: =IF(B20<=$K$15,0,DAYS360($K$15,B20)) -> 2240 | L20: =J20*(1/(1+$G$7)) ^K20 -> 6469.583651 | M20: =J20-L20 -> 7130.416349
A21: 2 | B21: =DATE(YEAR(B20),MONTH(B20)+1,DAY(B20)) -> 2015-06-21 | C21: =IF(A21<=$B$3,$D$15/$B$3,0) -> 10000 | D21: =IF(A21<=$B$3,C21-$E$3,0) -> 0 | E21: 3500 | G21: 3500 | H21: 10000 | I21: 3500 | J21: 13500 | K21: 2270 | L21: 6358.428894 | M21: 7141.571106
A22: 3 | B22: 2015-07-21 | C22: 10000 | D22: 0 | E22: 3400 | G22: 3400 | H22: 10000 | I22: 3400 | J22: 13400 | K22: 2300 | L22: 6248.84101 | M22: 7151.15899
A23: 4 | B23: 2015-08-21 | C23: 10000 | D23: 0 | E23: 3300 | G23: 3300 | H23: 10000 | I23: 3300 | J23: 13300 | K23: 2330 | L23: 6140.79987 | M23: 7159.20013
A24: 5 | B24: 2015-09-21 | C24: 10000 | D24: 0 | E24: 3200 | G24: 3200 | H24: 10000 | I24: 3200 | J24: 13200 | K24: 2360 | L24: 6034.285586 | M24: 7165.714414
A25: 6 | B25: 2015-10-21 | C25: 10000 | D25: 0 | E25: 3100 | G25: 3100 | H25: 10000 | I25: 3100 | J25: 13100 | K25: 2390 | L25: 5929.278516 | M25: 7170.721484
A26: 7 | B26: 2015-11-21 | C26: 10000 | D26: 0 | E26: 3000 | G26: 3000 | H26: 10000 | I26: 3000 | J26: 13000 | K26: 2420 | L26: 5825.759256 | M26: 7174.240744
A27: 8 | B27: 2015-12-21 | C27: 10000 | D27: 0 | E27: 2900 | G27: 2900 | H27: 10000 | I27: 2900 | J27: 12900 | K27: 2450 | L27: 5723.708637 | M27: 7176.291363
A28: 9 | B28: 2016-01-21 | C28: 10000 | D28: 0 | E28: 2800 | G28: 2800 | H28: 10000 | I28: 2800 | J28: 12800 | K28: 2480 | L28: 5623.107725 | M28: 7176.892275
A29: 10 | B29: 2016-02-21 | C29: 10000 | D29: 0 | E29: 2700 | G29: 2700 | H29: 10000 | I29: 2700 | J29: 12700 | K29: 2510 | L29: 5523.937818 | M29: 7176.062182
A30: 11 | B30: 2016-03-21 | C30: 10000 | D30: 0 | E30: 2600 | G30: 2600 | H30: 10000 | I30: 2600 | J30: 12600 | K30: 2540 | L30: 5426.18044 | M30: 7173.81956
A31: 12 | B31: 2016-04-21 | C31: 10000 | D31: 0 | E31: 2500 | G31: 2500 | H31: 10000 | I31: 2500 | J31: 12500 | K31: 2570 | L31: 5329.817342 | M31: 7170.182658
A32: 13 | B32: 2016-05-21 | C32: 10000 | D32: 0 | E32: 2400 | G32: 2400 | H32: 10000 | I32: 2400 | J32: 12400 | K32: 2600 | L32: 5234.830499 | M32: 7165.169501
A33: 14 | B33: 2016-06-21 | C33: 10000 | D33: 0 | E33: 2300 | G33: 2300 | H33: 10000 | I33: 2300 | J33: 12300 | K33: 2630 | L33: 5141.202103 | M33: 7158.797897
A34: 15 | B34: 2016-07-21 | C34: 10000 | D34: 0 | E34: 2200 | G34: 2200 | H34: 10000 | I34: 2200 | J34: 12200 | K34: 2660 | L34: 5048.914566 | M34: 7151.085434
A35: 16 | B35: 2016-08-21 | C35: 10000 | D35: 0 | E35: 2100 | G35: 2100 | H35: 10000 | I35: 2100 | J35: 12100 | K35: 2690 | L35: 4957.950515 | M35: 7142.049485
A36: 17 | B36: 2016-09-21 | C36: 10000 | D36: 0 | E36: 2000 | G36: 2000 | H36: 10000 | I36: 2000 | J36: 12000 | K36: 2720 | L36: 4868.29279 | M36: 7131.70721
A37: 18 | B37: 2016-10-21 | C37: 10000 | D37: 0 | E37: 1900 | G37: 1900 | H37: 10000 | I37: 1900 | J37: 11900 | K37: 2750 | L37: 4779.924439 | M37: 7120.075561
A38: 19 | B38: 2016-11-21 | C38: 10000 | D38: 0 | E38: 1800 | G38: 1800 | H38: 10000 | I38: 1800 | J38: 11800 | K38: 2780 | L38: 4692.828719 | M38: 7107.171281
A39: 20 | B39: 2016-12-21 | C39: 10000 | D39: 0 | E39: 1700 | G39: 1700 | H39: 10000 | I39: 1700 | J39: 11700 | K39: 2810 | L39: 4606.989093 | M39: 7093.010907
A40: 21 | B40: 2017-01-21 | C40: 10000 | D40: 0 | E40: 1600 | G40: 1600 | H40: 10000 | I40: 1600 | J40: 11600 | K40: 2840 | L40: 4522.389226 | M40: 7077.610774
A41: 22 | B41: 2017-02-21 | C41: 10000 | D41: 0 | E41: 1500 | G41: 1500 | H41: 10000 | I41: 1500 | J41: 11500 | K41: 2870 | L41: 4439.012982 | M41: 7060.987018
A42: 23 | B42: 2017-03-21 | C42: 10000 | D42: 0 | E42: 1400 | G42: 1400 | H42: 10000 | I42: 1400 | J42: 11400 | K42: 2900 | L42: 4356.844425 | M42: 7043.155575
A43: 24 | B43: 2017-04-21 | C43: 10000 | D43: 0 | E43: 1300 | G43: 1300 | H43: 10000 | I43: 1300 | J43: 11300 | K43: 2930 | L43: 4275.867813 | M43: 7024.132187
A44: 25 | B44: 2017-05-21 | C44: 10000 | D44: 0 | E44: 1200 | G44: 1200 | H44: 10000 | I44: 1200 | J44: 11200 | K44: 2960 | L44: 4196.067599 | M44: 7003.932401
A45: 26 | B45: 2017-06-21 | C45: 10000 | D45: 0 | E45: 1100 | G45: 1100 | H45: 10000 | I45: 1100 | J45: 11100 | K45: 2990 | L45: 4117.428426 | M45: 6982.571574
A46: 27 | B46: 2017-07-21 | C46: 10000 | D46: 0 | E46: 1000 | G46: 1000 | H46: 10000 | I46: 1000 | J46: 11000 | K46: 3020 | L46: 4039.935125 | M46: 6960.064875
A47: 28 | B47: 2017-08-21 | C47: 10000 | D47: 0 | E47: 900 | G47: 900 | H47: 10000 | I47: 900 | J47: 10900 | K47: 3050 | L47: 3963.572715 | M47: 6936.427285
A48: 29 | B48: 2017-09-21 | C48: 10000 | D48: 0 | E48: 800 | G48: 800 | H48: 10000 | I48: 800 | J48: 10800 | K48: 3080 | L48: 3888.326398 | M48: 6911.673602
A49: 30 | B49: 2017-10-21 | C49: 10000 | D49: 0 | E49: 700 | G49: 700 | H49: 10000 | I49: 700 | J49: 10700 | K49: 3110 | L49: 3814.18156 | M49: 6885.81844
A50: 31 | B50: 2017-11-21 | C50: 10000 | D50: 0 | E50: 600 | G50: 600 | H50: 10000 | I50: 600 | J50: 10600 | K50: 3140 | L50: 3741.123766 | M50: 6858.876234
A51: 32 | B51: 2017-12-21 | C51: 10000 | D51: 0 | E51: 500 | G51: 500 | H51: 10000 | I51: 500 | J51: 10500 | K51: 3170 | L51: 3669.138758 | M51: 6830.861242
A52: 33 | B52: 2018-01-21 | C52: =IF(A52<=$B$3,$D$15/$B$3,0) -> 10000 | D52: 0 | E52: =IF(A52<=$B$3,$C$7*($D$15-(A52-1)*C52),0) -> 400 | G52: =$C$7 * C52 * ($B$3 - A52+1) -> 400 | H52: 10000 | I52: =E52+D52 -> 400 | J52: =C52+G52 -> 10400 | K52: =IF(B52<=$K$15,0,DAYS360($K$15,B52)) -> 3200 | L52: =J52*(1/(1+$G$7)) ^K52 -> 3598.212455 | M52: =J52-L52 -> 6801.787545
A53: 34 | B53: 2018-02-21 | C53: 10000 | D53: 0 | E53: 300 | G53: 300 | H53: 10000 | I53: 300 | J53: 10300 | K53: 3230 | L53: 3528.330949 | M53: 6771.669051
A54: 35 | B54: 2018-03-21 | C54: 10000 | D54: 0 | E54: 200 | G54: 200 | H54: 10000 | I54: 200 | J54: 10200 | K54: 3260 | L54: 3459.480503 | M54: 6740.519497
A55: 36 | B55: 2018-04-21 | C55: 10000 | D55: 0 | E55: 100 | G55: 100 | H55: 10000 | I55: 100 | J55: 10100 | K55: 3290 | L55: 3391.647552 | M55: 6708.352448
A56: 37 | B56: 2018-05-21 | C56: 0 | D56: 0 | E56: 0 | G56: 0 | H56: 0 | I56: 0 | J56: 0 | K56: 3320 | L56: 0 | M56: 0
A57: 38 | B57: 2018-06-21 | C57: 0 | D57: 0 | E57: 0 | G57: 0 | H57: 0 | I57: 0 | J57: 0 | K57: 3350 | L57: 0 | M57: 0
A58: 39 | B58: 2018-07-21 | C58: 0 | D58: 0 | E58: 0 | G58: 0 | H58: 0 | I58: 0 | J58: 0 | K58: 3380 | L58: 0 | M58: 0
A59: 40 | B59: 2018-08-21 | C59: 0 | D59: 0 | E59: 0 | G59: 0 | H59: 0 | I59: 0 | J59: 0 | K59: 3410 | L59: 0 | M59: 0
A60: 41 | B60: 2018-09-21 | C60: 0 | D60: 0 | E60: 0 | G60: 0 | H60: 0 | I60: 0 | J60: 0 | K60: 3440 | L60: 0 | M60: 0
A61: 42 | B61: 2018-10-21 | C61: 0 | D61: 0 | E61: 0 | G61: 0 | H61: 0 | I61: 0 | J61: 0 | K61: 3470 | L61: 0 | M61: 0
A62: 43 | B62: 2018-11-21 | C62: 0 | D62: 0 | E62: 0 | G62: 0 | H62: 0 | I62: 0 | J62: 0 | K62: 3500 | L62: 0 | M62: 0
A63: 44 | B63: 2018-12-21 | C63: 0 | D63: 0 | E63: 0 | G63: 0 | H63: 0 | I63: 0 | J63: 0 | K63: 3530 | L63: 0 | M63: 0
A64: 45 | B64: 2019-01-21 | C64: 0 | D64: 0 | E64: 0 | G64: 0 | H64: 0 | I64: 0 | J64: 0 | K64: 3560 | L64: 0 | M64: 0
A65: 46 | B65: 2019-02-21 | C65: 0 | D65: 0 | E65: 0 | G65: 0 | H65: 0 | I65: 0 | J65: 0 | K65: 3590 | L65: 0 | M65: 0
A66: 47 | B66: 2019-03-21 | C66: 0 | D66: 0 | E66: 0 | G66: 0 | H66: 0 | I66: 0 | J66: 0 | K66: 3620 | L66: 0 | M66: 0
A67: 48 | B67: 2019-04-21 | C67: 0 | D67: 0 | E67: 0 | G67: 0 | H67: 0 | I67: 0 | J67: 0 | K67: 3650 | L67: 0 | M67: 0
A68: 49 | B68: 2019-05-21 | C68: 0 | D68: 0 | E68: 0 | G68: 0 | H68: 0 | I68: 0 | J68: 0 | K68: 3680 | L68: 0 | M68: 0
A69: 50 | B69: 2019-06-21 | C69: 0 | D69: 0 | E69: 0 | G69: 0 | H69: 0 | I69: 0 | J69: 0 | K69: 3710 | L69: 0 | M69: 0
A70: 51 | B70: 2019-07-21 | C70: 0 | D70: 0 | E70: 0 | G70: 0 | H70: 0 | I70: 0 | J70: 0 | K70: 3740 | L70: 0 | M70: 0
A71: 52 | B71: 2019-08-21 | C71: 0 | D71: 0 | E71: 0 | G71: 0 | H71: 0 | I71: 0 | J71: 0 | K71: 3770 | L71: 0 | M71: 0
A72: 53 | B72: 2019-09-21 | C72: 0 | D72: 0 | E72: 0 | G72: 0 | H72: 0 | I72: 0 | J72: 0 | K72: 3800 | L72: 0 | M72: 0
A73: 54 | B73: 2019-10-21 | C73: 0 | D73: 0 | E73: 0 | G73: 0 | H73: 0 | I73: 0 | J73: 0 | K73: 3830 | L73: 0 | M73: 0
A74: 55 | B74: 2019-11-21 | C74: 0 | D74: 0 | E74: 0 | G74: 0 | H74: 0 | I74: 0 | J74: 0 | K74: 3860 | L74: 0 | M74: 0
A75: 56 | B75: 2019-12-21 | C75: 0 | D75: 0 | E75: 0 | G75: 0 | H75: 0 | I75: 0 | J75: 0 | K75: 3890 | L75: 0 | M75: 0
A76: 57 | B76: 2020-01-21 | C76: 0 | D76: 0 | E76: 0 | G76: 0 | H76: 0 | I76: 0 | J76: 0 | K76: 3920 | L76: 0 | M76: 0
A77: 58 | B77: 2020-02-21 | C77: 0 | D77: 0 | E77: 0 | G77: 0 | H77: 0 | I77: 0 | J77: 0 | K77: 3950 | L77: 0 | M77: 0
A78: 59 | B78: 2020-03-21 | C78: 0 | D78: 0 | E78: 0 | G78: 0 | H78: 0 | I78: 0 | J78: 0 | K78: 3980 | L78: 0 | M78: 0
A79: 60 | B79: 2020-04-21 | C79: 0 | D79: 0 | E79: 0 | G79: 0 | H79: 0 | I79: 0 | J79: 0 | K79: 4010 | L79: 0 | M79: 0
A80: 61 | B80: 2020-05-21 | C80: 0 | D80: 0 | E80: 0 | G80: 0 | H80: 0 | I80: 0 | J80: 0 | K80: 4040 | L80: 0 | M80: 0
A81: 62 | B81: 2020-06-21 | C81: 0 | D81: 0 | E81: 0 | G81: 0 | H81: 0 | I81: 0 | J81: 0 | K81: 4070 | L81: 0 | M81: 0
A82: 63 | B82: 2020-07-21 | C82: 0 | D82: 0 | E82: 0 | G82: 0 | H82: 0 | I82: 0 | J82: 0 | K82: 4100 | L82: 0 | M82: 0
A83: 64 | B83: 2020-08-21 | C83: 0 | D83: 0 | E83: 0 | G83: 0 | H83: 0 | I83: 0 | J83: 0 | K83: 4130 | L83: 0 | M83: 0
A84: 65 | B84: 2020-09-21 | C84: =IF(A84<=$B$3,$D$15/$B$3,0) -> 0 | D84: 0 | E84: =IF(A84<=$B$3,$C$7*($D$15-(A84-1)*C84),0) -> 0 | G84: =$C$7 * C84 * ($B$3 - A84+1) -> 0 | H84: =C84-D84 -> 0 | I84: =E84+D84 -> 0 | J84: =C84+G84 -> 0 | K84: =IF(B84<=$K$15,0,DAYS360($K$15,B84)) -> 4160 | L84: =J84*(1/(1+$G$7)) ^K84 -> 0 | M84: =J84-L84 -> 0
A85: 66 | B85: =DATE(YEAR(B84),MONTH(B84)+1,DAY(B84)) -> 2020-10-21 | C85: 0 | D85: =IF(A85<=$B$3,C85-$E$3,0) -> 0 | E85: 0 | G85: 0 | H85: 0 | I85: 0 | J85: 0 | K85: 4190 | L85: 0 | M85: 0
A86: 67 | B86: 2020-11-21 | C86: 0 | D86: 0 | E86: 0 | G86: 0 | H86: 0 | I86: 0 | J86: 0 | K86: 4220 | L86: 0 | M86: 0
A87: 68 | B87: 2020-12-21 | C87: 0 | D87: 0 | E87: 0 | G87: 0 | H87: 0 | I87: 0 | J87: 0 | K87: 4250 | L87: 0 | M87: 0
A88: 69 | B88: 2021-01-21 | C88: 0 | D88: 0 | E88: 0 | G88: 0 | H88: 0 | I88: 0 | J88: 0 | K88: 4280 | L88: 0 | M88: 0
A89: 70 | B89: 2021-02-21 | C89: 0 | D89: 0 | E89: 0 | G89: 0 | H89: 0 | I89: 0 | J89: 0 | K89: 4310 | L89: 0 | M89: 0
A90: 71 | B90: 2021-03-21 | C90: 0 | D90: 0 | E90: 0 | G90: 0 | H90: 0 | I90: 0 | J90: 0 | K90: 4340 | L90: 0 | M90: 0
A91: 72 | B91: 2021-04-21 | C91: 0 | D91: 0 | E91: 0 | G91: 0 | H91: 0 | I91: 0 | J91: 0 | K91: 4370 | L91: 0 | M91: 0
A92: 73 | B92: 2021-05-21 | C92: 0 | D92: 0 | E92: 0 | G92: 0 | H92: 0 | I92: 0 | J92: 0 | K92: 4400 | L92: 0 | M92: 0
A93: 74 | B93: 2021-06-21 | C93: 0 | D93: 0 | E93: 0 | G93: 0 | H93: 0 | I93: 0 | J93: 0 | K93: 4430 | L93: 0 | M93: 0
A94: 75 | B94: 2021-07-21 | C94: 0 | D94: 0 | E94: 0 | G94: 0 | H94: 0 | I94: 0 | J94: 0 | K94: 4460 | L94: 0 | M94: 0
A95: 76 | B95: 2021-08-21 | C95: 0 | D95: 0 | E95: 0 | G95: 0 | H95: 0 | I95: 0 | J95: 0 | K95: 4490 | L95: 0 | M95: 0
A96: 77 | B96: 2021-09-21 | C96: 0 | D96: 0 | E96: 0 | G96: 0 | H96: 0 | I96: 0 | J96: 0 | K96: 4520 | L96: 0 | M96: 0
A97: 78 | B97: 2021-10-21 | C97: 0 | D97: 0 | E97: 0 | G97: 0 | H97: 0 | I97: 0 | J97: 0 | K97: 4550 | L97: 0 | M97: 0
A98: 79 | B98: 2021-11-21 | C98: 0 | D98: 0 | E98: 0 | G98: 0 | H98: 0 | I98: 0 | J98: 0 | K98: 4580 | L98: 0 | M98: 0
A99: 80 | B99: 2021-12-21 | C99: 0 | D99: 0 | E99: 0 | G99: 0 | H99: 0 | I99: 0 | J99: 0 | K99: 4610 | L99: 0 | M99: 0
A100: 81 | B100: 2022-01-21 | C100: 0 | D100: 0 | E100: 0 | G100: 0 | H100: 0 | I100: 0 | J100: 0 | K100: 4640 | L100: 0 | M100: 0
A101: 82 | B101: 2022-02-21 | C101: 0 | D101: 0 | E101: 0 | G101: 0 | H101: 0 | I101: 0 | J101: 0 | K101: 4670 | L101: 0 | M101: 0
A102: 83 | B102: 2022-03-21 | C102: 0 | D102: 0 | E102: 0 | G102: 0 | H102: 0 | I102: 0 | J102: 0 | K102: 4700 | L102: 0 | M102: 0
A103: 84 | B103: 2022-04-21 | C103: 0 | D103: 0 | E103: 0 | G103: 0 | H103: 0 | I103: 0 | J103: 0 | K103: 4730 | L103: 0 | M103: 0
A104: 85 | B104: 2022-05-21 | C104: 0 | D104: 0 | E104: 0 | G104: 0 | H104: 0 | I104: 0 | J104: 0 | K104: 4760 | L104: 0 | M104: 0
A105: 86 | B105: 2022-06-21 | C105: 0 | D105: 0 | E105: 0 | G105: 0 | H105: 0 | I105: 0 | J105: 0 | K105: 4790 | L105: 0 | M105: 0
A106: 87 | B106: 2022-07-21 | C106: 0 | D106: 0 | E106: 0 | G106: 0 | H106: 0 | I106: 0 | J106: 0 | K106: 4820 | L106: 0 | M106: 0
A107: 88 | B107: 2022-08-21 | C107: 0 | D107: 0 | E107: 0 | G107: 0 | H107: 0 | I107: 0 | J107: 0 | K107: 4850 | L107: 0 | M107: 0
A108: 89 | B108: 2022-09-21 | C108: 0 | D108: 0 | E108: 0 | G108: 0 | H108: 0 | I108: 0 | J108: 0 | K108: 4880 | L108: 0 | M108: 0
A109: 90 | B109: 2022-10-21 | C109: 0 | D109: 0 | E109: 0 | G109: 0 | H109: 0 | I109: 0 | J109: 0 | K109: 4910 | L109: 0 | M109: 0
A110: 91 | B110: 2022-11-21 | C110: 0 | D110: 0 | E110: 0 | G110: 0 | H110: 0 | I110: 0 | J110: 0 | K110: 4940 | L110: 0 | M110: 0
A111: 92 | B111: 2022-12-21 | C111: 0 | D111: 0 | E111: 0 | G111: 0 | H111: 0 | I111: 0 | J111: 0 | K111: 4970 | L111: 0 | M111: 0
A112: 93 | B112: 2023-01-21 | C112: 0 | D112: 0 | E112: 0 | G112: 0 | H112: 0 | I112: 0 | J112: 0 | K112: 5000 | L112: 0 | M112: 0
A113: 94 | B113: 2023-02-21 | C113: 0 | D113: 0 | E113: 0 | G113: 0 | H113: 0 | I113: 0 | J113: 0 | K113: 5030 | L113: 0 | M113: 0
A114: 95 | B114: 2023-03-21 | C114: 0 | D114: 0 | E114: 0 | G114: 0 | H114: 0 | I114: 0 | J114: 0 | K114: 5060 | L114: 0 | M114: 0
A115: 96 | B115: 2023-04-21 | C115: 0 | D115: 0 | E115: 0 | G115: 0 | H115: 0 | I115: 0 | J115: 0 | K115: 5090 | L115: 0 | M115: 0
A116: 97 | B116: 2023-05-21 | C116: 0 | D116: 0 | E116: 0 | G116: 0 | H116: 0 | I116: 0 | J116: 0 | K116: 5120 | L116: =J116*(1/(1+$G$7)) ^K116 -> 0 | M116: =J116-L116 -> 0
A117: 98 | B117: 2023-06-21 | C117: 0 | D117: 0 | E117: 0 | G117: 0 | H117: 0 | I117: 0 | J117: 0 | K117: 5150 | L117: 0 | M117: 0
A118: 99 | B118: 2023-07-21 | C118: 0 | D118: 0 | E118: 0 | G118: 0 | H118: 0 | I118: 0 | J118: 0 | K118: 5180 | L118: 0 | M118: 0
A119: 100 | B119: 2023-08-21 | C119: 0 | D119: 0 | E119: 0 | G119: 0 | H119: 0 | I119: 0 | J119: 0 | K119: 5210 | L119: 0 | M119: 0
A120: 101 | B120: 2023-09-21 | C120: 0 | D120: 0 | E120: 0 | G120: 0 | H120: 0 | I120: 0 | J120: 0 | K120: 5240 | L120: 0 | M120: 0
A121: Total | C121: =SUM(C20:C120) -> 360000 | D121: =SUM(D20:D120) -> 0 | E121: 66600 | G121: 66600 | H121: 360000 | I121: =SUM(I20:I120) -> 66600 | J121: 426600 | K121: 377740 | L121: 172966.2217 | M121: 253633.7783

Sheet CalculoPrice
A1: CALCULO PRICE COM DE JUROS INICIANDO ANTES ou DEPOIS DA 1 PARCELA
A2: PARÂMETROS DAS PARCELAS
A3: Montante | B3: 32340
A4: Qtde Parcelas | B4: 120
A5: Valor da Parcela | B5: =B3/B4 -> 269.5
A6: Juros inicia | B6: 3 | C6: meses antes da 1ª parcela com juros
A7: Dt 1º parcela | B7: 2011-08-01
A8: Dt Inicio Juros | B8: =DATE(YEAR(B7),MONTH(B7)-B6,DAY(B7)) -> 2011-05-01 | F8: utilizado para freqüência diária
A9: Taxa | B9: 0.005 | C9: a cada | D9: 1 | E9: Meses | F9: 30 | G9: 30 | H9: =F9/G9 -> 1
A10: Taxa Mensal | B10: =((1+B9)^(1/IF(D9>0,D9,1)))-1 -> 0.005
A11: VP | B11: =-(B3*(1+B10) ^B6) -> -32827.52954
A12: VF | B12: 0
A13: Tipo | B13: 1 | C13: =IF(B13=1,"Begin","End") -> Begin
A14: Valor Parcela | B14: =PMT(B9,B4,B11,B12,B13) -> 362.6396823
A16: Explicação
A17: =CONCATENATE("O UAU! trabalha com cálculo PRICE do tipo ", IF(B13," BEGIN", " END"),", e é efetuado da seguinte maneira:") -> O UAU! trabalha com cálculo PRICE do tipo BEGIN, e é efetuado da seguinte maneira:
A18: =A20 -> Gerando uma diferença de 3 mês (es) entre o início do juros e o início das parcelas, o UAU! procede da seguinte maneira, ele pega o valor do montante (32340), calcula gradiente pela diferênça de meses entre os inícios da parcela e iníco de juros, utilizando a taxa mensal (0,005), gerando um novo VP de 32827,53. Com esse novo VP ele irá calcular as 120 parcela(s) PRICE, tendo uma parcela de 362,64
A20: =CONCATENATE("Gerando uma diferença de ",B6," mês (es) entre o início do juros e o início das parcelas, o UAU! procede da seguinte maneira, ele pega o valor do montante (",B3,"), calcula gradiente pela diferênça de meses entre os inícios da parcela e iníco de juros, utilizando a taxa mensal (",ROUND(B10,6),"), gerando um novo VP de ",ROUND(B11*-1,2), ". Com esse novo VP ele irá calcular as ", B4, " parcela(s) PRICE, tendo uma parcela de ", ROUND(H29,2)) -> Gerando uma diferença de 3 mês (es) entre o início do juros e o início das parcelas, o UAU! procede da seguinte maneira, ele pega o valor do montante (32340), calcula gradiente pela diferênça de meses entre os inícios da parcela e iníco de juros, utilizando a taxa mensal (0,005), gerando um novo VP de 32827,53. Com esse novo VP ele irá calcular as 120 parcela(s) PRICE, tendo uma parcela de 362,64
A22: =CONCATENATE("Gerando uma diferença de ",B6," mês (es) entre o início do juros e o início das parcelas, o UAU! procede da seguinte maneira, ele pega o valor do montante (",B3,"), retira ",B6, " meses de principal, gerando um novo VP de ",ROUND(B11*-1,2), ". Com esse novo VP ele irá calcular as ", B4, " parcela(s) PRICE, tendo uma parcela de ", ROUND(H29,2)) -> Gerando uma diferença de 3 mês (es) entre o início do juros e o início das parcelas, o UAU! procede da seguinte maneira, ele pega o valor do montante (32340), retira 3 meses de principal, gerando um novo VP de 32827,53. Com esse novo VP ele irá calcular as 120 parcela(s) PRICE, tendo uma parcela de 362,64
A26: A | B26: (((1 + sngTxJuros) ^ (dblParcel+END))* sngJrsPeriodo) | H26: =(((1 + B10) ^ ((B4*D9)+IF(B13=0,1,0)))* B9) -> 0.00909698367
A27: B | B27: (((1 + sngTxJuros) ^ dblParcel) - 1) | H27: =(((1 + B10) ^ (B4*D9)) - 1) -> 0.819396734
A28: C | B28: 1/ (1 + sngJrsPeriodo) | H28: =1/ (1 + B9) -> 0.9950248756
A29: Price UAU | B29: (Quota * (A/B))* C | H29: =((B11 * (H26/H27))* H28)*-1 -> 362.6396823

Sheet Taxa
A1: Fórmula de juros equivalente
A2: Juro Composto | D2: Juros Simples
A3: Taxa Mensal | B3: 0.02 | D3: Taxa Mensal | E3: 0.01
A4: Taxa equivalente | D4: Taxa equivalente
A5: Anual | D5: Anual
A6: 1 | B6: =(((1+$B$3)^12) ^A6)-1 -> 0.2682417946 | D6: 1 | E6: =$E$3*12*D6 -> 0.12
A7: Semestral | D7: Semestral
A8: 1 | B8: =(((1+$B$3)^6) ^A8)-1 -> 0.1261624193 | D8: 1 | E8: =$E$3*6*D8 -> 0.06
A9: Diário | D9: Diário
A10: 1 | B10: =(((1+$B$3)^(1/30)) ^A10)-1 -> 0.0006603054823 | D10: 1 | E10: =($E$3/30)*D10 -> 0.0003333333333
A12: Taxa Anual | B12: 0.13 | D12: Taxa Anual | E12: 0.13
A13: Taxa equivalente | D13: Taxa equivalente
A14: Mensal | D14: Mensal
A15: 1 | B15: =(((1+$B$12)^(1/12))^A15)-1 -> 0.01023684436 | D15: 1 | E15: =($E$12/12)*D15 -> 0.01083333333
A16: Semestral | D16: Semestral
A17: 1 | B17: =(((1+$B$12)^(1/2))^A17)-1 -> 0.06301458127 | D17: 1 | E17: =($E$12/2)*D17 -> 0.065
A18: Diário | D18: Diário
A19: 1 | B19: =(((1+$B$12)^(1/360))^A19)-1 -> 0.0003395510586 | D19: 1 | E19: =($E$12/360)*D19 -> 0.0003611111111

Sheet SAC (hidden)
A1: Montante | B1: =B3*2766.28 -> 196405.88 | C1: PV | F1: Q | G1: PV / n
A2: Montante (1) | B2: =B1*(1+B6)^B10 -> 194461.2673 | C2: PV (1) | F2: SD | G2: PV - k * Q
A3: Meses Juros | B3: 71 | C3: n | F3: INTk | G3: i * [PV - (k -1) * Q]
A4: Juros | B4: 0.01 | C4: i | D4: 1 | E4: Meses | F4: Juros | G4: I * Q * (n - k+1)
A5: Juros dia | B5: =((1+B4)^(1/30))-1 -> 0.0003317327062 | C5: i (Diário) | F5: PMTk | G5: Q + i * [PV - (k - 1) * Q]
A6: Juros mes | B6: =((1+B4)^(1/D4))-1 -> 0.01 | C6: i (mensal)
A7: Dt. 1ª Parcela | B7: 2013-11-25
A8: Data Juros | B8: 2013-11-01
A9: Dif. Meses | B9: =DAYS360(DATE(YEAR($B$8),MONTH($B$8),1),DATE(YEAR($B$7),MONTH($B$7),1))/30 -> 0 | D9: Jur. No mês
A10: Mês Inicio | B10: =B9-D4 + IF(D10="S",2,0) -> -1 | D10: N
A12: Dt Ini. Correção | C12: 2000-01-01
A13: Dt. Fim Correção | C13: 2005-11-01
A14: % Multa | C14: 0
A15: % Juros Atraso | C15: 0.00033
A16: Data de recebimento | C16: 2014-04-02
A18: Parcela (k) | B18: Vencimento | C18: Principal (Q) | D18: Juros Grad | E18: Juros SAC | F18: Tot. juros (2ª formula) | G18: Principal UAU | H18: Juros UAU | I18: Prestação | J18: Dias de Antecipação (ANO 360) | K18: Valor da Parcela com Desconto | L18: Valor do desconto
A19: 0
A20: 1 | B20: =B7 -> 2013-11-25 | C20: =IF(A20<=$B$3,$B$2/$B$3,0) -> 2738.891089 | D20: =IF(A20<=$B$3,C20-($B$1/$B$3),0) -> -27.38891089 | E20: =IF(A20<=$B$3,$B$4*($B$2-(A20-1)*C20),0) -> 1944.612673 | F20: =$B$4 * C20 * ($B$3 - A20+1) -> 1944.612673 | G20: =C20-D20 -> 2766.28 | H20: =E20+D20 -> 1917.223762 | I20: =C20+F20 -> 4683.503762 | J20: =IF(B20<=$C$16,0,DAYS360($C$16,B20)) -> 0 | K20: =I20*(1/(1+$B$5)) ^J20 -> 4683.503762 | L20: =I20-K20 -> 0
A21: 2 | B21: =DATE(YEAR(B20),MONTH(B20)+1,DAY(B20)) -> 2013-12-25 | C21: =IF(A21<=$B$3,$B$2/$B$3,0) -> 2738.891089 | D21: -27.38891089 | E21: =IF(A21<=$B$3,$B$4*($B$2-(A21-1)*C21),0) -> 1917.223762 | F21: =$B$4 * C21 * ($B$3 - A21+1) -> 1917.223762 | G21: 2766.28 | H21: 1889.834851 | I21: 4656.114851 | J21: 0 | K21: 4656.114851 | L21: 0
A22: 3 | B22: 2014-01-25 | C22: 2738.891089 | D22: -27.38891089 | E22: 1889.834851 | F22: 1889.834851 | G22: 2766.28 | H22: 1862.445941 | I22: 4628.725941 | J22: 0 | K22: 4628.725941 | L22: 0
A23: 4 | B23: 2014-02-25 | C23: 2738.891089 | D23: -27.38891089 | E23: 1862.445941 | F23: 1862.445941 | G23: 2766.28 | H23: 1835.05703 | I23: 4601.33703 | J23: 0 | K23: 4601.33703 | L23: 0
A24: 5 | B24: 2014-03-25 | C24: 2738.891089 | D24: -27.38891089 | E24: 1835.05703 | F24: 1835.05703 | G24: 2766.28 | H24: 1807.668119 | I24: 4573.948119 | J24: 0 | K24: 4573.948119 | L24: 0
A25: 6 | B25: 2014-04-25 | C25: 2738.891089 | D25: -27.38891089 | E25: 1807.668119 | F25: 1807.668119 | G25: 2766.28 | H25: 1780.279208 | I25: 4546.559208 | J25: 23 | K25: 4512.007344 | L25: 34.5518639
A26: 7 | B26: 2014-05-25 | C26: 2738.891089 | D26: -27.38891089 | E26: 1780.279208 | F26: 1780.279208 | G26: 2766.28 | H26: 1752.890297 | I26: 4519.170297 | J26: 53 | K26: 4440.422353 | L26: 78.74794367
A27: 8 | B27: 2014-06-25 | C27: 2738.891089 | D27: -27.38891089 | E27: 1752.890297 | F27: 1752.890297 | G27: 2766.28 | H27: 1725.501386 | I27: 4491.781386 | J27: 83 | K27: 4369.812577 | L27: 121.9688092
A28: 9 | B28: 2014-07-25 | C28: 2738.891089 | D28: -27.38891089 | E28: 1725.501386 | F28: 1725.501386 | G28: 2766.28 | H28: 1698.112475 | I28: 4464.392475 | J28: 113 | K28: 4300.165721 | L28: 164.2267541
A29: 10 | B29: 2014-08-25 | C29: 2738.891089 | D29: -27.38891089 | E29: 1698.112475 | F29: 1698.112475 | G29: 2766.28 | H29: 1670.723564 | I29: 4437.003564 | J29: 143 | K29: 4231.46964 | L29: 205.5339244
A30: 11 | B30: 2014-09-25 | C30: 2738.891089 | D30: -27.38891089 | E30: 1670.723564 | F30: 1670.723564 | G30: 2766.28 | H30: 1643.334653 | I30: 4409.614653 | J30: 173 | K30: 4163.712334 | L30: 245.9023198
A31: 12 | B31: 2014-10-25 | C31: 2738.891089 | D31: -27.38891089 | E31: 1643.334653 | F31: 1643.334653 | G31: 2766.28 | H31: 1615.945743 | I31: 4382.225743 | J31: 203 | K31: 4096.881947 | L31: 285.3437957
A32: 13 | B32: 2014-11-25 | C32: 2738.891089 | D32: -27.38891089 | E32: 1615.945743 | F32: 1615.945743 | G32: 2766.28 | H32: 1588.556832 | I32: 4354.836832 | J32: 233 | K32: 4030.966767 | L32: 323.8700647
A33: 14 | B33: 2014-12-25 | C33: 2738.891089 | D33: -27.38891089 | E33: 1588.556832 | F33: 1588.556832 | G33: 2766.28 | H33: 1561.167921 | I33: 4327.447921 | J33: 263 | K33: 3965.955223 | L33: 361.4926982
A34: 15 | B34: 2015-01-25 | C34: 2738.891089 | D34: -27.38891089 | E34: 1561.167921 | F34: 1561.167921 | G34: 2766.28 | H34: 1533.77901 | I34: 4300.05901 | J34: 293 | K34: 3901.835881 | L34: 398.2231286
A35: 16 | B35: 2015-02-25 | C35: 2738.891089 | D35: -27.38891089 | E35: 1533.77901 | F35: 1533.77901 | G35: 2766.28 | H35: 1506.390099 | I35: 4272.670099 | J35: 323 | K35: 3838.597449 | L35: 434.07265
A36: 17 | B36: 2015-03-25 | C36: 2738.891089 | D36: -27.38891089 | E36: 1506.390099 | F36: 1506.390099 | G36: 2766.28 | H36: 1479.001188 | I36: 4245.281188 | J36: 353 | K36: 3776.228767 | L36: 469.0524207
A37: 18 | B37: 2015-04-25 | C37: 2738.891089 | D37: -27.38891089 | E37: 1479.001188 | F37: 1479.001188 | G37: 2766.28 | H37: 1451.612277 | I37: 4217.892277 | J37: 383 | K37: 3714.718813 | L37: 503.1734642
A38: 19 | B38: 2015-05-25 | C38: 2738.891089 | D38: -27.38891089 | E38: 1451.612277 | F38: 1451.612277 | G38: 2766.28 | H38: 1424.223366 | I38: 4190.503366 | J38: 413 | K38: 3654.056695 | L38: 536.446671
A39: 20 | B39: 2015-06-25 | C39: 2738.891089 | D39: -27.38891089 | E39: 1424.223366 | F39: 1424.223366 | G39: 2766.28 | H39: 1396.834455 | I39: 4163.114455 | J39: 443 | K39: 3594.231655 | L39: 568.8828001
A40: 21 | B40: 2015-07-25 | C40: 2738.891089 | D40: -27.38891089 | E40: 1396.834455 | F40: 1396.834455 | G40: 2766.28 | H40: 1369.445545 | I40: 4135.725545 | J40: 473 | K40: 3535.233064 | L40: 600.4924808
A41: 22 | B41: 2015-08-25 | C41: 2738.891089 | D41: -27.38891089 | E41: 1369.445545 | F41: 1369.445545 | G41: 2766.28 | H41: 1342.056634 | I41: 4108.336634 | J41: 503 | K41: 3477.05042 | L41: 631.2862136
A42: 23 | B42: 2015-09-25 | C42: 2738.891089 | D42: -27.38891089 | E42: 1342.056634 | F42: 1342.056634 | G42: 2766.28 | H42: 1314.667723 | I42: 4080.947723 | J42: 533 | K42: 3419.67335 | L42: 661.2743723
A43: 24 | B43: 2015-10-25 | C43: 2738.891089 | D43: -27.38891089 | E43: 1314.667723 | F43: 1314.667723 | G43: 2766.28 | H43: 1287.278812 | I43: 4053.558812 | J43: 563 | K43: 3363.091607 | L43: 690.4672054
A44: 25 | B44: 2015-11-25 | C44: 2738.891089 | D44: -27.38891089 | E44: 1287.278812 | F44: 1287.278812 | G44: 2766.28 | H44: 1259.889901 | I44: 4026.169901 | J44: 593 | K44: 3307.295064 | L44: 718.8748371
A45: 26 | B45: 2015-12-25 | C45: 2738.891089 | D45: -27.38891089 | E45: 1259.889901 | F45: 1259.889901 | G45: 2766.28 | H45: 1232.50099 | I45: 3998.78099 | J45: 623 | K45: 3252.273721 | L45: 746.5072692
A46: 27 | B46: 2016-01-25 | C46: 2738.891089 | D46: -27.38891089 | E46: 1232.50099 | F46: 1232.50099 | G46: 2766.28 | H46: 1205.112079 | I46: 3971.392079 | J46: 653 | K46: 3198.017696 | L46: 773.3743827
A47: 28 | B47: 2016-02-25 | C47: 2738.891089 | D47: -27.38891089 | E47: 1205.112079 | F47: 1205.112079 | G47: 2766.28 | H47: 1177.723168 | I47: 3944.003168 | J47: 683 | K47: 3144.51723 | L47: 799.4859386
A48: 29 | B48: 2016-03-25 | C48: =IF(A48<=$B$3,$B$2/$B$3,0) -> 2738.891089 | D48: -27.38891089 | E48: 1177.723168 | F48: 1177.723168 | G48: 2766.28 | H48: 1150.334257 | I48: 3916.614257 | J48: 713 | K48: 3091.762678 | L48: 824.8515797
A49: 30 | B49: 2016-04-25 | C49: 2738.891089 | D49: -27.38891089 | E49: 1150.334257 | F49: 1150.334257 | G49: 2766.28 | H49: 1122.945347 | I49: 3889.225347 | J49: 743 | K49: 3039.744515 | L49: 849.480832
A50: 31 | B50: 2016-05-25 | C50: 2738.891089 | D50: -27.38891089 | E50: 1122.945347 | F50: 1122.945347 | G50: 2766.28 | H50: 1095.556436 | I50: 3861.836436 | J50: 773 | K50: 2988.45333 | L50: 873.3831059
A51: 32 | B51: 2016-06-25 | C51: 2738.891089 | D51: -27.38891089 | E51: 1095.556436 | F51: 1095.556436 | G51: 2766.28 | H51: 1068.167525 | I51: 3834.447525 | J51: 803 | K51: 2937.879827 | L51: 896.5676977
A52: 33 | B52: 2016-07-25 | C52: 2738.891089 | D52: =IF(A52<=$B$3,C52-($B$1/$B$3),0) -> -27.38891089 | E52: =IF(A52<=$B$3,$B$4*($B$2-(A52-1)*C52),0) -> 1068.167525 | F52: 1068.167525 | G52: =C52-D52 -> 2766.28 | H52: =E52+D52 -> 1040.778614 | I52: =C52+F52 -> 3807.058614 | J52: =IF(B52<=$C$16,0,DAYS360($C$16,B52)) -> 833 | K52: =I52*(1/(1+$B$5)) ^J52 -> 2888.014823 | L52: =I52-K52 -> 919.043791
A53: 34 | B53: =DATE(YEAR(B52),MONTH(B52)+1,DAY(B52)) -> 2016-08-25 | C53: 2738.891089 | D53: -27.38891089 | E53: 1040.778614 | F53: 1040.778614 | G53: 2766.28 | H53: 1013.389703 | I53: 3779.669703 | J53: 863 | K53: 2838.849245 | L53: 940.8204576
A54: 35 | B54: 2016-09-25 | C54: 2738.891089 | D54: -27.38891089 | E54: 1013.389703 | F54: 1013.389703 | G54: 2766.28 | H54: 986.0007921 | I54: 3752.280792 | J54: 893 | K54: 2790.374133 | L54: 961.9066594
A55: 36 | B55: 2016-10-25 | C55: 2738.891089 | D55: -27.38891089 | E55: 986.0007921 | F55: 986.0007921 | G55: 2766.28 | H55: 958.6118812 | I55: 3724.891881 | J55: 923 | K55: 2742.580632 | L55: 982.3112492
A56: 37 | B56: 2016-11-25 | C56: 2738.891089 | D56: -27.38891089 | E56: 958.6118812 | F56: 958.6118812 | G56: 2766.28 | H56: 931.2229703 | I56: 3697.50297 | J56: 953 | K56: 2695.459998 | L56: 1002.042972
A57: 38 | B57: 2016-12-25 | C57: 2738.891089 | D57: -27.38891089 | E57: 931.2229703 | F57: 931.2229703 | G57: 2766.28 | H57: 903.8340594 | I57: 3670.114059 | J57: 983 | K57: 2649.003592 | L57: 1021.110468
A58: 39 | B58: 2017-01-25 | C58: 2738.891089 | D58: -27.38891089 | E58: 903.8340594 | F58: 903.8340594 | G58: 2766.28 | H58: 876.4451485 | I58: 3642.725149 | J58: 1013 | K58: 2603.202879 | L58: 1039.522269
A59: 40 | B59: 2017-02-25 | C59: 2738.891089 | D59: -27.38891089 | E59: 876.4451485 | F59: 876.4451485 | G59: 2766.28 | H59: 849.0562376 | I59: 3615.336238 | J59: 1043 | K59: 2558.049431 | L59: 1057.286807
A60: 41 | B60: 2017-03-25 | C60: 2738.891089 | D60: -27.38891089 | E60: 849.0562376 | F60: 849.0562376 | G60: 2766.28 | H60: 821.6673267 | I60: 3587.947327 | J60: 1073 | K60: 2513.53492 | L60: 1074.412407
A61: 42 | B61: 2017-04-25 | C61: =IF(A61<=$B$3,$B$2/$B$3,0) -> 2738.891089 | D61: -27.38891089 | E61: 821.6673267 | F61: 821.6673267 | G61: 2766.28 | H61: 794.2784158 | I61: 3560.558416 | J61: 1103 | K61: 2469.651119 | L61: 1090.907297
A62: 43 | B62: 2017-05-25 | C62: 2738.891089 | D62: -27.38891089 | E62: 794.2784158 | F62: 794.2784158 | G62: 2766.28 | H62: 766.889505 | I62: 3533.169505 | J62: 1133 | K62: 2426.389904 | L62: 1106.779601
A63: 44 | B63: 2017-06-25 | C63: 2738.891089 | D63: -27.38891089 | E63: 766.889505 | F63: 766.889505 | G63: 2766.28 | H63: 739.5005941 | I63: 3505.780594 | J63: 1163 | K63: 2383.743247 | L63: 1122.037347
A64: 45 | B64: 2017-07-25 | C64: 2738.891089 | D64: -27.38891089 | E64: 739.5005941 | F64: 739.5005941 | G64: 2766.28 | H64: 712.1116832 | I64: 3478.391683 | J64: 1193 | K64: 2341.703221 | L64: 1136.688462
A65: 46 | B65: 2017-08-25 | C65: 2738.891089 | D65: -27.38891089 | E65: 712.1116832 | F65: 712.1116832 | G65: 2766.28 | H65: 684.7227723 | I65: 3451.002772 | J65: 1223 | K65: 2300.261993 | L65: 1150.74078
A66: 47 | B66: 2017-09-25 | C66: 2738.891089 | D66: -27.38891089 | E66: 684.7227723 | F66: 684.7227723 | G66: 2766.28 | H66: 657.3338614 | I66: 3423.613861 | J66: 1253 | K66: 2259.411827 | L66: 1164.202034
A67: 48 | B67: 2017-10-25 | C67: 2738.891089 | D67: -27.38891089 | E67: 657.3338614 | F67: 657.3338614 | G67: 2766.28 | H67: 629.9449505 | I67: 3396.22495 | J67: 1283 | K67: 2219.145081 | L67: 1177.079869
A68: 49 | B68: 2017-11-25 | C68: 2738.891089 | D68: -27.38891089 | E68: 629.9449505 | F68: 629.9449505 | G68: 2766.28 | H68: 602.5560396 | I68: 3368.83604 | J68: 1313 | K68: 2179.454208 | L68: 1189.381832
A69: 50 | B69: 2017-12-25 | C69: 2738.891089 | D69: -27.38891089 | E69: 602.5560396 | F69: 602.5560396 | G69: 2766.28 | H69: 575.1671287 | I69: 3341.447129 | J69: 1343 | K69: 2140.331751 | L69: 1201.115378
A70: 51 | B70: 2018-01-25 | C70: 2738.891089 | D70: -27.38891089 | E70: 575.1671287 | F70: 575.1671287 | G70: 2766.28 | H70: 547.7782178 | I70: 3314.058218 | J70: 1373 | K70: 2101.770344 | L70: 1212.287873
A71: 52 | B71: 2018-02-25 | C71: 2738.891089 | D71: -27.38891089 | E71: 547.7782178 | F71: 547.7782178 | G71: 2766.28 | H71: 520.3893069 | I71: 3286.669307 | J71: 1403 | K71: 2063.762714 | L71: 1222.906593
A72: 53 | B72: 2018-03-25 | C72: 2738.891089 | D72: -27.38891089 | E72: 520.3893069 | F72: 520.3893069 | G72: 2766.28 | H72: 493.000396 | I72: 3259.280396 | J72: 1433 | K72: 2026.301675 | L72: 1232.978721
A73: 54 | B73: 2018-04-25 | C73: 2738.891089 | D73: -27.38891089 | E73: 493.000396 | F73: 493.000396 | G73: 2766.28 | H73: 465.6114851 | I73: 3231.891485 | J73: 1463 | K73: 1989.380129 | L73: 1242.511357
A74: 55 | B74: 2018-05-25 | C74: 2738.891089 | D74: -27.38891089 | E74: 465.6114851 | F74: 465.6114851 | G74: 2766.28 | H74: 438.2225743 | I74: 3204.502574 | J74: 1493 | K74: 1952.991064 | L74: 1251.51151
A75: 56 | B75: 2018-06-25 | C75: 2738.891089 | D75: -27.38891089 | E75: 438.2225743 | F75: 438.2225743 | G75: 2766.28 | H75: 410.8336634 | I75: 3177.113663 | J75: 1523 | K75: 1917.127557 | L75: 1259.986106
A76: 57 | B76: 2018-07-25 | C76: 2738.891089 | D76: -27.38891089 | E76: 410.8336634 | F76: 410.8336634 | G76: 2766.28 | H76: 383.4447525 | I76: 3149.724752 | J76: 1553 | K76: 1881.782768 | L76: 1267.941984
A77: 58 | B77: 2018-08-25 | C77: =IF(A77<=$B$3,$B$2/$B$3,0) -> 2738.891089 | D77: -27.38891089 | E77: 383.4447525 | F77: 383.4447525 | G77: 2766.28 | H77: 356.0558416 | I77: 3122.335842 | J77: 1583 | K77: 1846.94994 | L77: 1275.385901
A78: 59 | B78: 2018-09-25 | C78: 2738.891089 | D78: -27.38891089 | E78: 356.0558416 | F78: 356.0558416 | G78: 2766.28 | H78: 328.6669307 | I78: 3094.946931 | J78: 1613 | K78: 1812.622401 | L78: 1282.32453
A79: 60 | B79: 2018-10-25 | C79: 2738.891089 | D79: -27.38891089 | E79: 328.6669307 | F79: 328.6669307 | G79: 2766.28 | H79: 301.2780198 | I79: 3067.55802 | J79: 1643 | K79: 1778.793559 | L79: 1288.764461
A80: 61 | B80: 2018-11-25 | C80: 2738.891089 | D80: -27.38891089 | E80: 301.2780198 | F80: 301.2780198 | G80: 2766.28 | H80: 273.8891089 | I80: 3040.169109 | J80: 1673 | K80: 1745.456905 | L80: 1294.712204
A81: 62 | B81: 2018-12-25 | C81: 2738.891089 | D81: -27.38891089 | E81: 273.8891089 | F81: 273.8891089 | G81: 2766.28 | H81: 246.500198 | I81: 3012.780198 | J81: 1703 | K81: 1712.606008 | L81: 1300.17419
A82: 63 | B82: 2019-01-25 | C82: 2738.891089 | D82: -27.38891089 | E82: 246.500198 | F82: 246.500198 | G82: 2766.28 | H82: 219.1112871 | I82: 2985.391287 | J82: 1733 | K82: 1680.234517 | L82: 1305.15677
A83: 64 | B83: 2019-02-25 | C83: 2738.891089 | D83: -27.38891089 | E83: 219.1112871 | F83: 219.1112871 | G83: 2766.28 | H83: 191.7223762 | I83: 2958.002376 | J83: 1763 | K83: 1648.33616 | L83: 1309.666216
A84: 65 | B84: 2019-03-25 | C84: 2738.891089 | D84: =IF(A84<=$B$3,C84-($B$1/$B$3),0) -> -27.38891089 | E84: =IF(A84<=$B$3,$B$4*($B$2-(A84-1)*C84),0) -> 191.7223762 | F84: 191.7223762 | G84: =C84-D84 -> 2766.28 | H84: =E84+D84 -> 164.3334653 | I84: =C84+F84 -> 2930.613465 | J84: =IF(B84<=$C$16,0,DAYS360($C$16,B84)) -> 1793 | K84: =I84*(1/(1+$B$5)) ^J84 -> 1616.904741 | L84: =I84-K84 -> 1313.708725
A85: 66 | B85: =DATE(YEAR(B84),MONTH(B84)+1,DAY(B84)) -> 2019-04-25 | C85: =IF(A85<=$B$3,$B$2/$B$3,0) -> 2738.891089 | D85: -27.38891089 | E85: 164.3334653 | F85: =$B$4 * C85 * ($B$3 - A85+1) -> 164.3334653 | G85: 2766.28 | H85: 136.9445545 | I85: 2903.224554 | J85: 1823 | K85: 1585.93414 | L85: 1317.290415
A86: 67 | B86: 2019-05-25 | C86: 2738.891089 | D86: -27.38891089 | E86: 136.9445545 | F86: 136.9445545 | G86: 2766.28 | H86: 109.5556436 | I86: 2875.835644 | J86: 1853 | K86: 1555.418314 | L86: 1320.41733
A87: 68 | B87: 2019-06-25 | C87: 2738.891089 | D87: -27.38891089 | E87: 109.5556436 | F87: 109.5556436 | G87: 2766.28 | H87: 82.16673267 | I87: 2848.446733 | J87: 1883 | K87: 1525.351293 | L87: 1323.095439
A88: 69 | B88: 2019-07-25 | C88: 2738.891089 | D88: -27.38891089 | E88: 82.16673267 | F88: 82.16673267 | G88: 2766.28 | H88: 54.77782178 | I88: 2821.057822 | J88: 1913 | K88: 1495.727182 | L88: 1325.33064
A89: 70 | B89: 2019-08-25 | C89: 2738.891089 | D89: -27.38891089 | E89: 54.77782178 | F89: 54.77782178 | G89: 2766.28 | H89: 27.38891089 | I89: 2793.668911 | J89: 1943 | K89: 1466.540157 | L89: 1327.128754
A90: 71 | B90: 2019-09-25 | C90: 2738.891089 | D90: -27.38891089 | E90: 27.38891089 | F90: 27.38891089 | G90: 2766.28 | H90: -3.552713679e-14 | I90: 2766.28 | J90: 1973 | K90: 1437.784468 | L90: 1328.495532
A91: 72 | B91: 2019-10-25 | C91: 0 | D91: 0 | E91: 0 | F91: 0 | G91: 0 | H91: 0 | I91: 0 | J91: 2003 | K91: 0 | L91: 0
A92: 73 | B92: 2019-11-25 | C92: 0 | D92: 0 | E92: 0 | F92: 0 | G92: 0 | H92: 0 | I92: 0 | J92: 2033 | K92: 0 | L92: 0
A93: 74 | B93: 2019-12-25 | C93: 0 | D93: 0 | E93: 0 | F93: 0 | G93: 0 | H93: 0 | I93: 0 | J93: 2063 | K93: 0 | L93: 0
A94: 75 | B94: 2020-01-25 | C94: =IF(A94<=$B$3,$B$2/$B$3,0) -> 0 | D94: 0 | E94: 0 | F94: 0 | G94: 0 | H94: 0 | I94: 0 | J94: 2093 | K94: 0 | L94: 0
A95: 76 | B95: 2020-02-25 | C95: =IF(A95<=$B$3,$B$2/$B$3,0) -> 0 | D95: 0 | E95: 0 | F95: 0 | G95: 0 | H95: 0 | I95: 0 | J95: 2123 | K95: 0 | L95: 0
A96: 77 | B96: 2020-03-25 | C96: 0 | D96: 0 | E96: 0 | F96: 0 | G96: 0 | H96: 0 | I96: 0 | J96: 2153 | K96: 0 | L96: 0
A97: 78 | B97: 2020-04-25 | C97: 0 | D97: 0 | E97: 0 | F97: 0 | G97: 0 | H97: 0 | I97: 0 | J97: 2183 | K97: 0 | L97: 0
A98: 79 | B98: 2020-05-25 | C98: 0 | D98: 0 | E98: 0 | F98: 0 | G98: 0 | H98: 0 | I98: 0 | J98: 2213 | K98: 0 | L98: 0
A99: 80 | B99: 2020-06-25 | C99: 0 | D99: 0 | E99: 0 | F99: 0 | G99: 0 | H99: 0 | I99: 0 | J99: 2243 | K99: 0 | L99: 0
A100: 81 | B100: 2020-07-25 | C100: 0 | D100: 0 | E100: 0 | F100: 0 | G100: 0 | H100: 0 | I100: 0 | J100: 2273 | K100: 0 | L100: 0
A101: 82 | B101: 2020-08-25 | C101: 0 | D101: 0 | E101: 0 | F101: 0 | G101: 0 | H101: 0 | I101: 0 | J101: 2303 | K101: 0 | L101: 0
A102: 83 | B102: 2020-09-25 | C102: 0 | D102: 0 | E102: 0 | F102: 0 | G102: 0 | H102: 0 | I102: 0 | J102: 2333 | K102: 0 | L102: 0
A103: 84 | B103: 2020-10-25 | C103: 0 | D103: 0 | E103: 0 | F103: 0 | G103: 0 | H103: 0 | I103: 0 | J103: 2363 | K103: 0 | L103: 0
A104: 85 | B104: 2020-11-25 | C104: 0 | D104: 0 | E104: 0 | F104: 0 | G104: 0 | H104: 0 | I104: 0 | J104: 2393 | K104: 0 | L104: 0
A105: 86 | B105: 2020-12-25 | C105: 0 | D105: 0 | E105: 0 | F105: 0 | G105: 0 | H105: 0 | I105: 0 | J105: 2423 | K105: 0 | L105: 0
A106: 87 | B106: 2021-01-25 | C106: 0 | D106: 0 | E106: 0 | F106: 0 | G106: 0 | H106: 0 | I106: 0 | J106: 2453 | K106: 0 | L106: 0
A107: 88 | B107: 2021-02-25 | C107: 0 | D107: 0 | E107: 0 | F107: 0 | G107: 0 | H107: 0 | I107: 0 | J107: 2483 | K107: 0 | L107: 0
A108: 89 | B108: 2021-03-25 | C108: 0 | D108: 0 | E108: 0 | F108: 0 | G108: 0 | H108: 0 | I108: 0 | J108: 2513 | K108: 0 | L108: 0
A109: 90 | B109: 2021-04-25 | C109: 0 | D109: 0 | E109: 0 | F109: 0 | G109: 0 | H109: 0 | I109: 0 | J109: 2543 | K109: 0 | L109: 0
A110: 91 | B110: 2021-05-25 | C110: 0 | D110: 0 | E110: 0 | F110: 0 | G110: 0 | H110: 0 | I110: 0 | J110: 2573 | K110: 0 | L110: 0
A111: 92 | B111: 2021-06-25 | C111: 0 | D111: 0 | E111: 0 | F111: 0 | G111: 0 | H111: 0 | I111: 0 | J111: 2603 | K111: 0 | L111: 0
A112: 93 | B112: 2021-07-25 | C112: 0 | D112: 0 | E112: 0 | F112: 0 | G112: 0 | H112: 0 | I112: 0 | J112: 2633 | K112: 0 | L112: 0
A113: 94 | B113: 2021-08-25 | C113: =IF(A113<=$B$3,$B$2/$B$3,0) -> 0 | D113: 0 | E113: 0 | F113: 0 | G113: 0 | H113: 0 | I113: 0 | J113: 2663 | K113: 0 | L113: 0
A114: 95 | B114: 2021-09-25 | C114: =IF(A114<=$B$3,$B$2/$B$3,0) -> 0 | D114: 0 | E114: 0 | F114: 0 | G114: 0 | H114: 0 | I114: 0 | J114: 2693 | K114: 0 | L114: 0
A115: 96 | B115: 2021-10-25 | C115: 0 | D115: 0 | E115: 0 | F115: 0 | G115: 0 | H115: 0 | I115: 0 | J115: 2723 | K115: 0 | L115: 0
A116: 97 | B116: 2021-11-25 | C116: 0 | D116: =IF(A116<=$B$3,C116-($B$1/$B$3),0) -> 0 | E116: =IF(A116<=$B$3,$B$4*($B$2-(A116-1)*C116),0) -> 0 | F116: 0 | G116: 0 | H116: 0 | I116: 0 | J116: 2753 | K116: =I116*(1/(1+$B$5)) ^J116 -> 0 | L116: =I116-K116 -> 0
A117: 98 | B117: 2021-12-25 | C117: 0 | D117: =IF(A117<=$B$3,C117-($B$1/$B$3),0) -> 0 | E117: =IF(A117<=$B$3,$B$4*($B$2-(A117-1)*C117),0) -> 0 | F117: 0 | G117: 0 | H117: 0 | I117: 0 | J117: 2783 | K117: =I117*(1/(1+$B$5)) ^J117 -> 0 | L117: =I117-K117 -> 0
A118: 99 | B118: 2022-01-25 | C118: 0 | D118: =IF(A118<=$B$3,C118-($B$1/$B$3),0) -> 0 | E118: =IF(A118<=$B$3,$B$4*($B$2-(A118-1)*C118),0) -> 0 | F118: 0 | G118: 0 | H118: 0 | I118: 0 | J118: 2813 | K118: =I118*(1/(1+$B$5)) ^J118 -> 0 | L118: =I118-K118 -> 0
A119: 100 | B119: 2022-02-25 | C119: 0 | D119: =IF(A119<=$B$3,C119-($B$1/$B$3),0) -> 0 | E119: =IF(A119<=$B$3,$B$4*($B$2-(A119-1)*C119),0) -> 0 | F119: 0 | G119: 0 | H119: 0 | I119: 0 | J119: 2843 | K119: =I119*(1/(1+$B$5)) ^J119 -> 0 | L119: =I119-K119 -> 0
A120: 101 | B120: 2022-03-25 | C120: 0 | D120: =IF(A120<=$B$3,C120-($B$1/$B$3),0) -> 0 | E120: =IF(A120<=$B$3,$B$4*($B$2-(A120-1)*C120),0) -> 0 | F120: 0 | G120: 0 | H120: 0 | I120: 0 | J120: 2873 | K120: =I120*(1/(1+$B$5)) ^J120 -> 0 | L120: =I120-K120 -> 0
A121: Total | C121: =SUM(C20:C120) -> 194461.2673 | D121: =SUM(D20:D120) -> -1944.612673 | E121: 70006.05624 | F121: 70006.05624 | G121: 196405.88 | H121: =SUM(H20:H120) -> 68061.44356 | I121: 264467.3236 | J121: 139008 | K121: 204330.6234 | L121: 60136.70016

Sheet Indice
A1: incc Indice % | H1: Correção diária
A2: Data | B2: Valor | C2: Data Final | D2: Dias | E2: Percentual Diário | F2: Valor | H2: Valor | I2: 10000 | K2: Data Inicial | L2: 2000-01-01 | M2: Data Final | N2: 2000-01-15
A3: 1999-12-01 | B3: 0 | C3: =(DATE(YEAR(A3),MONTH(A3)+1,DAY(A3)))-1 -> 1999-12-31 | D3: =(C3-A3)+1 -> 31 | E3: =((1+B3)^(1/D3))-1 -> 0 | F3: 182.084 | H3: Data | I3: Idx Dia | K3: Valor
A4: 2000-01-01 | B4: 0.01073680279 | C4: =(DATE(YEAR(A4),MONTH(A4)+1,DAY(A4)))-1 -> 2000-01-31 | D4: 31 | E4: =((1+B4)^(1/D4))-1 -> 0.00034456169 | F4: =F3*(1+B4) -> 184.039 | H4: 2000-01-01 | I4: 0.00034456169 | K4: 10003.44562
A5: 2000-02-01 | B5: 0.007726623161 | C5: 2000-02-29 | D5: 29 | E5: =((1+B5)^(1/D5))-1 -> 0.0002654464552 | F5: =F4*(1+B5) -> 185.461 | H5: 2000-01-02 | I5: 0.00034456169 | K5: 10006.89242
A6: 2000-03-01 | B6: 0.005559120246 | C6: 2000-03-31 | D6: 31 | E6: 0.0001788458415 | F6: =F5*(1+B6) -> 186.492 | H6: 2000-01-03 | I6: 0.00034456169 | K6: 10010.34041
A7: 2000-04-01 | B7: 0.005962722262 | C7: 2000-04-30 | D7: 30 | E7: 0.0001981868226 | F7: 187.604 | H7: 2000-01-04 | I7: 0.00034456169 | K7: 10013.78959
A8: 2000-05-01 | B8: 0.01349651393 | C8: 2000-05-31 | D8: 31 | E8: 0.0004325531136 | F8: 190.136 | H8: 2000-01-05 | I8: 0.00034456169 | K8: 10017.23996
A9: 2000-06-01 | B9: 0.007315816047 | C9: 2000-06-30 | D9: 30 | E9: 0.0002430023626 | F9: 191.527 | H9: 2000-01-06 | I9: 0.00034456169 | K9: 10020.69152
A10: 2000-07-01 | B10: 0.003012630073 | C10: 2000-07-31 | D10: 31 | E10: 9.704023057e-05 | F10: 192.104 | H10: 2000-01-07 | I10: 0.00034456169 | K10: 10024.14426
A11: 2000-08-01 | B11: 0.003862491151 | C11: 2000-08-31 | D11: 31 | E11: 0.0001243642127 | F11: 192.846 | H11: 2000-01-08 | I11: 0.00034456169 | K11: 10027.5982
A12: 2000-09-01 | B12: 0.002572000456 | C12: 2000-09-30 | D12: 30 | E12: 8.56269499e-05 | F12: 193.342 | H12: 2000-01-09 | I12: 0.00034456169 | K12: 10031.05333
A13: 2000-10-01 | B13: 0.003320540803 | C13: 2000-10-31 | D13: 31 | E13: 0.0001069424915 | F13: 193.984 | H13: 2000-01-10 | I13: 0.00034456169 | K13: 10034.50964
A14: 2000-11-01 | B14: 0.00414982679 | C14: 2000-11-30 | D14: 30 | E14: 0.0001380508617 | F14: 194.789 | H14: 2000-01-11 | I14: 0.00034456169 | K14: 10037.96715
A15: 2000-12-01 | B15: 0.00640693263 | C15: 2000-12-31 | D15: 31 | E15: 0.0002060372061 | F15: 196.037 | H15: 2000-01-12 | I15: 0.00034456169 | K15: 10041.42585
A16: 2001-01-01 | B16: 0.005799925524 | C16: 2001-01-31 | D16: 31 | E16: 0.0001865712961 | F16: 197.174 | H16: 2000-01-13 | I16: 0.00034456169 | K16: 10044.88574
A17: 2001-02-01 | B17: 0.00342337225 | C17: 2001-02-28 | D17: 28 | E17: 0.0001220619436 | F17: 197.849 | H17: 2000-01-14 | I17: 0.00034456169 | K17: 10048.34682
A18: 2001-03-01 | B18: 0.002724299845 | C18: 2001-03-31 | D18: 31 | E18: 8.776500164e-05 | F18: 198.388 | H18: 2000-01-15 | I18: 0.00034456169 | K18: 10051.8091
A19: 2001-04-01 | B19: 0.003649414279 | C19: 2001-04-30 | D19: 30 | E19: 0.0001214330832 | F19: 199.112
A20: 2001-05-01 | B20: 0.02113885652 | C20: 2001-05-31 | D20: 31 | E20: 0.0006750190276 | F20: 203.321
A21: 2001-06-01 | B21: 0.01161217976 | C21: 2001-06-30 | D21: 30 | E21: 0.0003849165891 | F21: 205.682
A22: 2001-07-01 | B22: 0.005153586605 | C22: 2001-07-31 | D22: 31 | E22: 0.0001658315655 | F22: 206.742
A23: 2001-08-01 | B23: 0.006210639348 | C23: 2001-08-31 | D23: 31 | E23: 0.0001997435851 | F23: 208.026
A24: 2001-09-01 | B24: 0.005518540952 | C24: 2001-09-30 | D24: 30 | E24: 0.0001834624803 | F24: 209.174
A25: 2001-10-01 | B25: 0.009312820905 | C25: 2001-10-31 | D25: 31 | E25: 0.0002990680652 | F25: 211.122
A26: 2001-11-01 | B26: 0.007360672976 | C26: 2001-11-30 | D26: 30 | E26: 0.0002444870629 | F26: 212.676
A27: 2001-12-01 | B27: 0.003371325396 | C27: 2001-12-31 | D27: 31 | E27: 0.0001085754171 | F27: 213.393
A28: 2002-01-01 | B28: 0.003603679596 | C28: 2002-01-31 | D28: 31 | E28: 0.0001160455037 | F28: 214.162
A29: 2002-02-01 | B29: 0.005776001345 | C29: 2002-02-28 | D29: 28 | E29: 0.0002057134492 | F29: 215.399
A30: 2002-03-01 | B30: 0.005468920469 | C30: 2002-03-31 | D30: 31 | E30: 0.0001759516139 | F30: 216.577
A31: 2002-04-01 | B31: 0.003282897076 | C31: 2002-04-30 | D31: 30 | E31: 0.0001092566392 | F31: 217.288
A32: 2002-05-01 | B32: 0.02533503921 | C32: 2002-05-31 | D32: 31 | E32: 0.0008074040561 | F32: 222.793
A33: 2002-06-01 | B33: 0.005659962387 | C33: 2002-06-30 | D33: 30 | E33: 0.0001881511977 | F33: 224.054
A34: 2002-07-01 | B34: 0.002936792023 | C34: 2002-07-31 | D34: 31 | E34: 9.460086387e-05 | F34: 224.712
A35: 2002-08-01 | B35: 0.01003951725 | C35: 2002-08-31 | D35: =(C35-A35)+1 -> 31 | E35: 0.0003222924437 | F35: 226.968
A36: 2002-09-01 | B36: 0.007084699165 | C36: 2002-09-30 | D36: 30 | E36: 0.0002353517106 | F36: 228.576
A37: 2002-10-01 | B37: 0.01133539829 | C37: 2002-10-31 | D37: 31 | E37: 0.0003636672101 | F37: 231.167
A38: 2002-11-01 | B38: 0.02449744124 | C38: 2002-11-30 | D38: 30 | E38: 0.0008070652063 | F38: 236.83
A39: 2002-12-01 | B39: 0.01702064772 | C39: 2002-12-31 | D39: 31 | E39: 0.0005445811156 | F39: 240.861
A40: 2003-01-01 | B40: 0.01506262948 | C40: 2003-01-31 | D40: 31 | E40: 0.0004823845202 | F40: 244.489
A41: 2003-02-01 | B41: 0.0139433676 | C41: 2003-02-28 | D41: 28 | E41: 0.000494659915 | F41: 247.898
A42: 2003-03-01 | B42: 0.01379599674 | C42: 2003-03-31 | D42: 31 | E42: 0.0004420879592 | F42: 251.318
A43: 2003-04-01 | B43: 0.009020444218 | C43: 2003-04-30 | D43: 30 | E43: 0.000299378239 | F43: 253.585
A44: 2003-05-01 | B44: 0.02836524242 | C44: 2003-05-31 | D44: 31 | E44: 0.0009026780759 | F44: 260.778
A45: 2003-06-01 | B45: 0.01049935194 | C45: 2003-06-30 | D45: 30 | E45: 0.0003482144971 | F45: 263.516
A46: 2003-07-01 | B46: 0.009927290942 | C46: 2003-07-31 | D46: 31 | E46: 0.0003187068761 | F46: 266.132
A47: 2003-08-01 | B47: 0.01441014234 | C47: 2003-08-31 | D47: 31 | E47: 0.000461632423 | F47: 269.967
A48: 2003-09-01 | B48: 0.002178043983 | C48: 2003-09-30 | D48: 30 | E48: 7.252514595e-05 | F48: 270.555
A49: 2003-10-01 | B49: 0.006542107889 | C49: 2003-10-31 | D49: 31 | E49: 0.0002103705499 | F49: 272.325
A50: 2003-11-01 | B50: 0.01038097861 | C50: 2003-11-30 | D50: 30 | E50: 0.0003443081362 | F50: 275.152
A51: 2003-12-01 | B51: 0.001606384835 | C51: 2003-12-31 | D51: 31 | E51: 5.17786301e-05 | F51: 275.594
A52: 2004-01-01 | B52: 0.003251159314 | C52: 2004-01-31 | D52: 31 | E52: 0.0001047114729 | F52: 276.49
A53: 2004-02-01 | B53: 0.009956960469 | C53: 2004-02-29 | D53: 29 | E53: 0.0003417037656 | F53: 279.243
A54: 2004-03-01 | B54: 0.01155624313 | C54: 2004-03-31 | D54: 31 | E54: 0.0003707132057 | F54: 282.47
A55: 2004-04-01 | B55: 0.005869649874 | C55: 2004-04-30 | D55: 30 | E55: 0.0001951020497 | F55: 284.128
A56: 2004-05-01 | B56: 0.0182628956 | C56: 2004-05-31 | D56: 31 | E56: 0.0005839811583 | F56: 289.317
A57: 2004-06-01 | B57: 0.007019981543 | C57: 2004-06-30 | D57: 30 | E57: 0.0002332090618 | F57: 291.348
A58: 2004-07-01 | B58: 0.01124771751 | C58: 2004-07-31 | D58: 31 | E58: 0.000360869365 | F58: 294.625
A59: 2004-08-01 | B59: 0.008071277047 | C59: 2004-08-31 | D59: 31 | E59: 0.0002593522875 | F59: 297.003
A60: 2004-09-01 | B60: 0.005787820325 | C60: 2004-09-30 | D60: 30 | E60: 0.0001923896793 | F60: 298.722
A61: 2004-10-01 | B61: 0.01189400178 | C61: 2004-10-31 | D61: 31 | E61: 0.0003814864267 | F61: 302.275
A62: 2004-11-01 | B62: 0.007125961459 | C62: 2004-11-30 | D62: 30 | E62: 0.0002367177389 | F62: 304.429
A63: 2004-12-01 | B63: 0.005075074976 | C63: 2004-12-31 | D63: 31 | E63: 0.0001633114045 | F63: 305.974
A64: 2005-01-01 | B64: 0.007549661082 | C64: 2005-01-31 | D64: 31 | E64: 0.0002426521779 | F64: 308.284
A65: 2005-02-01 | B65: 0.004418004178 | C65: 2005-02-28 | D65: 28 | E65: 0.0001574507315 | F65: 309.646
A66: 2005-03-01 | B66: 0.006739954658 | C66: 2005-03-31 | D66: 31 | E66: 0.0002167119531 | F66: 311.733
A67: 2005-04-01 | B67: 0.00719846792 | C67: 2005-04-30 | D67: =(C67-A67)+1 -> 30 | E67: 0.0002391180048 | F67: 313.977
A68: 2005-05-01 | B68: 0.02085184584 | C68: =(DATE(YEAR(A68),MONTH(A68)+1,DAY(A68)))-1 -> 2005-05-31 | D68: 31 | E68: 0.0006659449247 | F68: 320.524
A69: 2005-06-01 | B69: 0.007643733387 | C69: 2005-06-30 | D69: 30 | E69: =((1+B69)^(1/D69))-1 -> 0.0002538544847 | F69: 322.974
A70: 2005-07-01 | B70: 0.001108448358 | C70: 2005-07-31 | D70: 31 | E70: 3.573723478e-05 | F70: =F69*(1+B70) -> 323.332
A71: 2005-08-01 | B71: 0.0001546398129 | C71: 2005-08-31 | D71: 31 | E71: 4.988007841e-06 | F71: 323.382
A72: 2005-09-01 | B72: 0.002418192726 | C72: 2005-09-30 | D72: 30 | E72: 8.051236103e-05 | F72: 324.164
A73: 2005-10-01 | B73: 0.001906442418 | C73: 2005-10-31 | D73: 31 | E73: 6.144148303e-05 | F73: 324.782
A74: 2005-11-01 | B74: 0.002835748287 | C74: 2005-11-30 | D74: 30 | E74: 9.439562623e-05 | F74: 325.703
A75: 2005-12-01 | B75: 0.003721181567 | C75: 2005-12-31 | D75: 31 | E75: 0.0001198225039 | F75: 326.915
A76: 2006-01-01 | B76: 0.003447379288 | C76: 2006-01-31 | D76: 31 | E76: 0.000111020701 | F76: 328.042
A77: 2006-02-01 | B77: 0.001856469598 | C77: 2006-02-28 | D77: 28 | E77: 6.624321143e-05 | F77: 328.651
A78: 2006-03-01 | B78: 0.002035593989 | C78: 2006-03-31 | D78: 31 | E78: 6.559973139e-05 | F78: 329.32
A79: 2006-04-01 | B79: 0.003586177578 | C79: 2006-04-30 | D79: 30 | E79: =((1+B79)^(1/D79))-1 -> 0.0001193325387 | F79: 330.501
A80: 2006-05-01 | B80: 0.01321024747 | C80: 2006-05-31 | D80: 31 | E80: 0.0004234364969 | F80: 334.867
A81: 2006-06-01 | B81: 0.009033437156 | C81: 2006-06-30 | D81: 30 | E81: 0.0002998075909 | F81: 337.892
A82: 2006-07-01 | B82: 0.004711564642 | C82: 2006-07-31 | D82: 31 | E82: 0.0001516405273 | F82: 339.484
A83: 2006-08-01 | B83: 0.002353571891 | C83: 2006-08-31 | D83: 31 | E83: 7.583534565e-05 | F83: 340.283
A84: 2006-09-01 | B84: 0.001137288669 | C84: 2006-09-30 | D84: 30 | E84: 3.788879929e-05 | F84: 340.67
A85: 2006-10-01 | B85: 0.002051839023 | C85: 2006-10-31 | D85: 31 | E85: 6.612273041e-05 | F85: 341.369
A86: 2006-11-01 | B86: 0.002314211308 | C86: 2006-11-30 | D86: 30 | E86: 7.705422336e-05 | F86: 342.159
A87: 2006-12-01 | B87: 0.003629891366 | C87: 2006-12-31 | D87: 31 | E87: 0.0001168880957 | F87: 343.401
A88: 2007-01-01 | B88: 0.004490377139 | C88: 2007-01-31 | D88: 31 | E88: 0.0001445370727 | F88: 344.943
A89: 2007-02-01 | B89: 0.002142382944 | C89: 2007-02-28 | D89: 28 | E89: 7.643475365e-05 | F89: 345.682
A90: 2007-03-01 | B90: 0.002704798051 | C90: 2007-03-31 | D90: 31 | E90: 8.713755973e-05 | F90: 346.617
A91: 2007-04-01 | B91: 0.004549690292 | C91: 2007-04-30 | D91: 30 | E91: 0.0001513238395 | F91: 348.194
A92: 2007-05-01 | B92: 0.01151656835 | C92: 2007-05-31 | D92: 31 | E92: 0.0003694475022 | F92: 352.204
A93: 2007-06-01 | B93: 0.009233285255 | C93: 2007-06-30 | D93: 30 | E93: 0.000306410903 | F93: 355.456
A94: 2007-07-01 | B94: 0.003063670328 | C94: 2007-07-31 | D94: 31 | E94: 9.868186399e-05 | F94: 356.545
A95: 2007-08-01 | B95: 0.002585928845 | C95: 2007-08-31 | D95: 31 | E95: 8.331286012e-05 | F95: 357.467
A96: 2007-09-01 | B96: 0.005060606993 | C96: 2007-09-30 | D96: 30 | E96: 0.000168275662 | F96: 359.276
A97: 2007-10-01 | B97: 0.005082443581 | C97: 2007-10-31 | D97: 31 | E97: 0.000163547939 | F97: 361.102
A98: 2007-11-01 | B98: 0.003602860134 | C98: 2007-11-30 | D98: 30 | E98: 0.0001198866985 | F98: 362.403
A99: 2007-12-01 | B99: 0.005855359917 | C99: 2007-12-31 | D99: =(C99-A99)+1 -> 31 | E99: 0.000188349475 | F99: 364.525
A100: 2008-01-01 | B100: 0.003788491873 | C100: 2008-01-31 | D100: 31 | E100: 0.0001219859433 | F100: 365.906
A101: 2008-02-01 | B101: 0.004033822894 | C101: 2008-02-29 | D101: 29 | E101: 0.0001388271819 | F101: 367.382
A102: 2008-03-01 | B102: 0.006614368695 | C102: 2008-03-31 | D102: 31 | E102: 0.0002126867999 | F102: 369.812
A103: 2008-04-01 | B103: 0.008704422788 | C103: 2008-04-30 | D103: 30 | E103: 0.000288933657 | F103: 373.031
A104: 2008-05-01 | B104: 0.02024228549 | C104: 2008-05-31 | D104: 31 | E104: 0.0006466649295 | F104: 380.582
A105: 2008-06-01 | B105: 0.01924421018 | C105: 2008-06-30 | D105: 30 | E105: 0.000635581304 | F105: 387.906
A106: 2008-07-01 | B106: 0.0145653844 | C106: 2008-07-31 | D106: 31 | E106: 0.0004665710066 | F106: 393.556
A107: 2008-08-01 | B107: 0.01180518147 | C107: 2008-08-31 | D107: 31 | E107: 0.0003786537328 | F107: 398.202
A108: 2008-09-01 | B108: 0.009475090532 | C108: 2008-09-30 | D108: 30 | E108: 0.00031439886 | F108: 401.975
A109: 2008-10-01 | B109: 0.007749238137 | C109: 2008-10-31 | D109: 31 | E109: 0.0002490428451 | F109: 405.09
A110: 2008-11-01 | B110: 0.004984077612 | C110: 2008-11-30 | D110: 30 | E110: 0.0001657370067 | F110: 407.109
A111: 2008-12-01 | B111: 0.001714528541 | C111: 2008-12-31 | D111: 31 | E111: 5.526154026e-05 | F111: 407.807
A112: 2009-01-01 | B112: 0.003332458737 | C112: 2009-01-31 | D112: 31 | E112: 0.0001073257074 | F112: 409.166
A113: 2009-02-01 | B113: 0.002678619436 | C113: 2009-02-28 | D113: 28 | E113: 9.554164696e-05 | F113: 410.262
A114: 2009-03-01 | B114: -0.002549590262 | C114: 2009-03-31 | D114: 31 | E114: -8.234648038e-05 | F114: 409.216
A115: 2009-04-01 | B115: -0.0004252033156 | C115: 2009-04-30 | D115: 30 | E115: -1.417635752e-05 | F115: 409.042
A116: 2009-05-01 | C116: 2009-05-31 | D116: 31 | E116: 0 | F116: 409.042
A117: 2009-06-01 | C117: 2009-06-30 | D117: 30 | E117: 0 | F117: 409.042
A118: 2009-07-01 | C118: 2009-07-31 | D118: 31 | E118: 0 | F118: 409.042
A119: 2009-08-01 | C119: 2009-08-31 | D119: 31 | E119: 0 | F119: 409.042
A120: 2009-09-01 | C120: 2009-09-30 | D120: 30 | E120: 0 | F120: 409.042
A121: 2009-10-01 | C121: 2009-10-31 | D121: 31 | E121: 0 | F121: 409.042
A122: 2009-11-01 | C122: 2009-11-30 | D122: 30 | E122: 0 | F122: 409.042
A123: 2009-12-01 | C123: 2009-12-31 | D123: 31 | E123: 0 | F123: 409.042
A124: 2010-01-01 | C124: 2010-01-31 | D124: 31 | E124: 0 | F124: 409.042
A125: 2010-02-01 | C125: 2010-02-28 | D125: 28 | E125: 0 | F125: 409.042
A126: 2010-03-01 | C126: 2010-03-31 | D126: 31 | E126: 0 | F126: 409.042
A127: 2010-04-01 | C127: 2010-04-30 | D127: 30 | E127: 0 | F127: 409.042
A128: 2010-05-01 | C128: 2010-05-31 | D128: 31 | E128: 0 | F128: 409.042
A129: 2010-06-01 | C129: 2010-06-30 | D129: 30 | E129: 0 | F129: 409.042
A130: 2010-07-01 | C130: 2010-07-31 | D130: 31 | E130: 0 | F130: 409.042
A131: 2010-08-01 | C131: 2010-08-31 | D131: =(C131-A131)+1 -> 31 | E131: 0 | F131: 409.042
A132: 2010-09-01 | C132: =(DATE(YEAR(A132),MONTH(A132)+1,DAY(A132)))-1 -> 2010-09-30 | D132: 30 | E132: 0 | F132: 409.042
A133: 2010-10-01 | C133: 2010-10-31 | D133: 31 | E133: 0 | F133: 409.042
A134: 2010-11-01 | C134: 2010-11-30 | D134: 30 | E134: 0 | F134: =F133*(1+B134) -> 409.042
A135: 2010-12-01 | C135: 2010-12-31 | D135: 31 | E135: 0 | F135: 409.042
A136: 2011-01-01 | C136: 2011-01-31 | D136: 31 | E136: 0 | F136: 409.042
A137: 2011-02-01 | C137: 2011-02-28 | D137: 28 | E137: 0 | F137: 409.042
A138: 2011-03-01 | C138: 2011-03-31 | D138: 31 | E138: 0 | F138: 409.042
A139: 2011-04-01 | C139: 2011-04-30 | D139: 30 | E139: 0 | F139: 409.042
A140: 2011-05-01 | C140: 2011-05-31 | D140: 31 | E140: 0 | F140: 409.042
A141: 2011-06-01 | C141: 2011-06-30 | D141: 30 | E141: 0 | F141: 409.042
A142: 2011-07-01 | C142: 2011-07-31 | D142: 31 | E142: 0 | F142: 409.042
A143: 2011-08-01 | C143: 2011-08-31 | D143: 31 | E143: =((1+B143)^(1/D143))-1 -> 0 | F143: 409.042
A144: 2011-09-01 | C144: 2011-09-30 | D144: 30 | E144: 0 | F144: 409.042
A145: 2011-10-01 | C145: 2011-10-31 | D145: 31 | E145: 0 | F145: 409.042
A146: 2011-11-01 | C146: 2011-11-30 | D146: 30 | E146: 0 | F146: 409.042
A147: 2011-12-01 | C147: 2011-12-31 | D147: 31 | E147: 0 | F147: 409.042
A148: 2012-01-01 | C148: 2012-01-31 | D148: 31 | E148: 0 | F148: 409.042
A149: 2012-02-01 | C149: 2012-02-29 | D149: 29 | E149: 0 | F149: 409.042
A150: 2012-03-01 | C150: 2012-03-31 | D150: 31 | E150: 0 | F150: 409.042
A151: 2012-04-01 | C151: 2012-04-30 | D151: 30 | E151: 0 | F151: 409.042
A152: 2012-05-01 | C152: 2012-05-31 | D152: 31 | E152: 0 | F152: 409.042
A153: 2012-06-01 | C153: 2012-06-30 | D153: 30 | E153: 0 | F153: 409.042
A154: 2012-07-01 | C154: 2012-07-31 | D154: 31 | E154: 0 | F154: 409.042
A155: 2012-08-01 | C155: 2012-08-31 | D155: 31 | E155: 0 | F155: 409.042
A156: 2012-09-01 | C156: 2012-09-30 | D156: 30 | E156: 0 | F156: 409.042
A157: 2012-10-01 | C157: 2012-10-31 | D157: 31 | E157: 0 | F157: 409.042
A158: 2012-11-01 | C158: 2012-11-30 | D158: 30 | E158: 0 | F158: 409.042
A159: 2012-12-01 | C159: 2012-12-31 | D159: 31 | E159: 0 | F159: 409.042
A160: 2013-01-01 | C160: 2013-01-31 | D160: 31 | E160: 0 | F160: 409.042
A161: 2013-02-01 | C161: 2013-02-28 | D161: 28 | E161: 0 | F161: 409.042
A162: 2013-03-01 | C162: 2013-03-31 | D162: 31 | E162: 0 | F162: 409.042
A163: 2013-04-01 | C163: 2013-04-30 | D163: =(C163-A163)+1 -> 30 | E163: 0 | F163: 409.042
A164: 2013-05-01 | C164: 2013-05-31 | D164: 31 | E164: 0 | F164: 409.042
A165: 2013-06-01 | C165: 2013-06-30 | D165: 30 | E165: 0 | F165: 409.042
A166: 2013-07-01 | C166: 2013-07-31 | D166: 31 | E166: 0 | F166: 409.042
A167: 2013-08-01 | C167: 2013-08-31 | D167: 31 | E167: 0 | F167: 409.042
A168: 2013-09-01 | C168: 2013-09-30 | D168: 30 | E168: 0 | F168: 409.042
A169: 2013-10-01 | C169: 2013-10-31 | D169: 31 | E169: 0 | F169: 409.042
A170: 2013-11-01 | C170: 2013-11-30 | D170: 30 | E170: 0 | F170: 409.042
A171: 2013-12-01 | C171: 2013-12-31 | D171: =(C171-A171)+1 -> 31 | E171: =((1+B171)^(1/D171))-1 -> 0 | F171: =F170*(1+B171) -> 409.042
A172: 2014-01-01 | C172: 2014-01-31 | D172: 31 | E172: 0 | F172: 409.042
A173: 2014-02-01 | C173: 2014-02-28 | D173: 28 | E173: 0 | F173: 409.042
A174: 2014-03-01 | C174: 2014-03-31 | D174: 31 | E174: 0 | F174: 409.042
A175: 2014-04-01 | C175: 2014-04-30 | D175: 30 | E175: 0 | F175: 409.042
A176: 2014-05-01 | C176: 2014-05-31 | D176: 31 | E176: 0 | F176: 409.042
A177: 2014-06-01 | C177: 2014-06-30 | D177: 30 | E177: 0 | F177: 409.042
A178: 2014-07-01 | C178: 2014-07-31 | D178: 31 | E178: 0 | F178: 409.042
A179: 2014-08-01 | C179: 2014-08-31 | D179: 31 | E179: 0 | F179: 409.042
A180: 2014-09-01 | C180: 2014-09-30 | D180: 30 | E180: 0 | F180: 409.042
A181: 2014-10-01 | C181: 2014-10-31 | D181: 31 | E181: 0 | F181: 409.042
A182: 2014-11-01 | C182: 2014-11-30 | D182: 30 | E182: 0 | F182: 409.042
A183: 2014-12-01 | C183: 2014-12-31 | D183: 31 | E183: 0 | F183: 409.042
A184: 2015-01-01 | C184: 2015-01-31 | D184: 31 | E184: 0 | F184: 409.042
A185: 2015-02-01 | C185: 2015-02-28 | D185: 28 | E185: 0 | F185: 409.042
A186: 2015-03-01 | C186: 2015-03-31 | D186: 31 | E186: 0 | F186: 409.042
A187: 2015-04-01 | C187: 2015-04-30 | D187: 30 | E187: 0 | F187: 409.042
A188: 2015-05-01 | C188: 2015-05-31 | D188: 31 | E188: 0 | F188: 409.042
A189: 2015-06-01 | C189: 2015-06-30 | D189: 30 | E189: 0 | F189: 409.042
A190: 2015-07-01 | C190: 2015-07-31 | D190: 31 | E190: 0 | F190: 409.042
A191: 2015-08-01 | C191: 2015-08-31 | D191: 31 | E191: 0 | F191: 409.042
A192: 2015-09-01 | C192: 2015-09-30 | D192: 30 | E192: 0 | F192: 409.042
A193: 2015-10-01 | C193: 2015-10-31 | D193: 31 | E193: 0 | F193: 409.042
A194: 2015-11-01 | C194: 2015-11-30 | D194: 30 | E194: 0 | F194: 409.042
A195: 2015-12-01 | C195: 2015-12-31 | D195: 31 | E195: 0 | F195: 409.042

Sheet Dias360
A1: Primeiro dia | B1: Último dia | D1: Qtde Dias | F1: Data base | G1: dias | H1: mes | I1: Result/mes | J1: dias Falta | K1: Final
A2: 2008-01-01 | B2: =(DATE(YEAR(A2),MONTH(A2)+1,DAY(A2)))-1 -> 2008-01-31 | D2: =(B2-A2)+1 -> 31 | F2: 2015-01-01 | G2: 31 | H2: =INT(G2/30) -> 1 | I2: =(DATE(YEAR(F2),MONTH(F2)+H2,DAY(F2))) -> 2015-02-01 | J2: =G2-(H2*30) -> 1 | K2: =(DATE(YEAR(I2),MONTH(I2),DAY(I2)+J2)) -> 2015-02-02
A3: 2008-02-01 | B3: =(DATE(YEAR(A3),MONTH(A3)+1,DAY(A3)))-1 -> 2008-02-29 | D3: =(B3-A3)+1 -> 29
A4: 2008-03-01 | B4: 2008-03-31 | D4: 31
A5: 2008-04-01 | B5: =(DATE(YEAR(A5),MONTH(A5)+1,DAY(A5)))-1 -> 2008-04-30 | D5: 30
A6: 2008-05-01 | B6: 2008-05-31 | D6: 31
A7: 2008-06-01 | B7: 2008-06-30 | D7: 30
A8: 2008-07-01 | B8: 2008-07-31 | D8: 31
A9: 2008-08-01 | B9: 2008-08-31 | D9: 31
A10: 2008-09-01 | B10: 2008-09-30 | D10: 30
A11: 2008-10-01 | B11: 2008-10-31 | D11: 31
A12: 2008-11-01 | B12: 2008-11-30 | D12: 30
A13: 2008-12-01 | B13: 2008-12-31 | D13: 31

Sheet ProRata
E1: Dia
A2: Inicio de juros | D2: 2015-04-10 | E2: =DAY(D2) -> 10
A3: Últ. Dia mês juros | D3: =(DATE(YEAR(D2),MONTH(D2)+1,1))-1 -> 2015-04-30 | E3: =DAY(D3) -> 30
A4: Primeira Parcela | D4: 2015-05-15 | E4: =DAY(D4) -> 15
G5: =CONCATENATE("Juros pro rata no mês:", MONTH(D2)) -> Juros pro rata no mês:4
A6: Mês de juros | D6: =DATE(YEAR(D2),MONTH(D2),1) -> 2015-04-01 | G6: 1 | H6: 2 | I6: 3 | J6: 4 | K6: 5 | L6: 6 | M6: 7 | N6: 8 | O6: 9 | P6: 10 | Q6: 11 | R6: 12 | S6: 13 | T6: 14 | U6: 15 | V6: 16 | W6: 17 | X6: 18 | Y6: 19 | Z6: 20 | AA6: 21 | AB6: 22 | AC6: 23 | AD6: 24 | AE6: 25 | AF6: 26 | AG6: 27 | AH6: 28 | AI6: =IF($E$3>=29,29,"") -> 29 | AJ6: =IF($E$3>=30,30,"") -> 30 | AK6: =IF($E$3>=31,31,"") -> 
A7: Mês da parcela | D7: =DATE(YEAR(D4),MONTH(D4),1) -> 2015-05-01 | G7: =IF($D$8>=0,AND(G6>$E$2,G6<=IF($D$8>0,$E$3,$E$4)),FALSE) -> FALSE | H7: =IF($D$8>=0,AND(H6>$E$2,H6<=IF($D$8>0,$E$3,$E$4)),FALSE) -> FALSE | I7: FALSE | J7: FALSE | K7: FALSE | L7: FALSE | M7: FALSE | N7: FALSE | O7: FALSE | P7: FALSE | Q7: TRUE | R7: TRUE | S7: TRUE | T7: TRUE | U7: TRUE | V7: TRUE | W7: TRUE | X7: TRUE | Y7: TRUE | Z7: TRUE | AA7: TRUE | AB7: TRUE | AC7: TRUE | AD7: TRUE | AE7: TRUE | AF7: TRUE | AG7: TRUE | AH7: TRUE | AI7: TRUE | AJ7: TRUE | AK7: FALSE
A8: Dias entre juros e parcela | D8: =DAYS360(D6,D7,FALSE) -> 30

Sheet IndxMaisJuros
A1: Juros AA | B1: 0.1268250301 | C1: AA
A2: Juros AM | B2: =((1+B1)^(1/12))-1 -> 0.01 | M2: Teste | N2: 5000
A3: Data inicial | B3: Percentual | C3: 5% AA | D3: =CONCATENATE(B3," + ",C3) -> Percentual + 5% AA | E3: Calculo do juros aplicado | G3: Idx por valor | J3: Idx + Juros mensal | M3: % | N3: Valor
A4: 2000-01-01 | B4: 0.0124 | C4: =B2 -> 0.01 | D4: =((1+B4) * (1+C4))-1 -> 0.022524 | E4: =((1+D4)/(1+B4))-1 -> 0.01 | G4: 150 | H4: =(G4-G4)/G4 -> 0 | I4: =(1+H4)*(1+$B$2) -> 1.01 | J4: =G4*I4 -> 151.5
A5: 2000-02-01 | B5: 0.0035 | C5: =C4 -> 0.01 | D5: =((1+B5) * (1+C5))-1 -> 0.013535 | E5: =((1+D5)/(1+B5))-1 -> 0.01 | G5: =ROUND(G4*(1+B5),2) -> 150.53 | H5: =ROUND((G5-G4)/G5,4) -> 0.0035 | I5: =(1+H5)*(1+$B$2) -> 1.013535 | J5: =J4*I5 -> 153.5505525 | M5: =N2*(1+D5) -> 5067.675 | N5: =($N$2/J4)*J5 -> 5067.675
A6: 2000-03-01 | B6: 0.0015 | C6: =C5 -> 0.01 | D6: 0.011515 | E6: 0.01 | G6: =ROUND(G5*(1+B6),2) -> 150.76 | H6: =ROUND((G6-G5)/G6,4) -> 0.0015 | I6: =(1+H6)*(1+$B$2) -> 1.011515 | J6: =J5*I6 -> 155.3186871 | M6: =M5*(1+D6) -> 5126.029278 | N6: =($N$2/$J$4)*J6 -> 5126.029278
A7: 2000-04-01 | B7: 0.0023 | C7: 0.01 | D7: 0.012323 | E7: 0.01 | G7: 151.11 | H7: 0.0023 | I7: 1.012323 | J7: 157.2326793 | M7: =M6*(1+D7) -> 5189.197336 | N7: =($N$2/$J$4)*J7 -> 5189.197336
A8: 2000-05-01 | B8: 0.0031 | C8: 0.01 | D8: 0.013131 | E8: 0.01 | G8: 151.58 | H8: 0.0031 | I8: 1.013131 | J8: 159.2973016 | M8: 5257.336687 | N8: 5257.336687
A9: 2000-06-01 | B9: 0.0085 | C9: 0.01 | D9: 0.018585 | E9: 0.01 | G9: 152.87 | H9: 0.0084 | I9: 1.018484 | J9: =((((1+((G9-G8)/G9))*(1+$B$2))))*J8 -> 162.247954 | M9: 5355.044289 | N9: 5354.717955
A10: 2000-07-01 | B10: 0.0157 | C10: 0.01 | D10: 0.025857 | E10: 0.01 | G10: 155.27 | H10: 0.0155 | I10: 1.025655 | J10: 166.40337 | M10: 5493.509669 | N10: 5491.860397
A11: 2000-08-01 | B11: 0.0239 | C11: 0.01 | D11: 0.034139 | E11: 0.01 | G11: 158.98 | H11: 0.0233 | I11: 1.033533 | J11: 171.9894698 | M11: 5681.052596 | N11: 5676.220126
A12: 2000-09-01 | B12: 0.0116 | C12: 0.01 | D12: 0.021716 | E12: 0.01 | G12: 160.82 | H12: 0.0114 | I12: 1.021514 | J12: =((((1+((G12-G11)/G12))*(1+$B$2))))*J11 -> 175.6968364 | M12: =M11*(1+D12) -> 5804.422334 | N12: =($N$2/$J$4)*J12 -> 5798.575459
A13: 2000-10-01 | B13: 0.0038 | C13: 0.01 | D13: 0.013838 | E13: 0.01 | G13: 161.43 | H13: 0.0038 | I13: 1.013838 | J13: 178.1243544 | M13: 5884.74393 | N13: 5878.691564
A14: 2000-11-01 | B14: 0.0029 | C14: 0.01 | D14: 0.012929 | E14: 0.01 | G14: 161.9 | H14: 0.0029 | I14: 1.012929 | J14: 180.4278687 | M14: 5960.827784 | N14: 5954.715137
A15: 2000-12-01 | B15: 0.0063 | C15: 0.01 | D15: 0.016363 | E15: 0.01 | G15: 162.92 | H15: 0.0063 | I15: 1.016363 | J15: 183.3730557 | M15: 6058.364809 | N15: 6051.91603
A16: 2001-01-01 | B16: 0.0062 | C16: 0.01 | D16: 0.016262 | E16: 0.01 | G16: 163.93 | H16: 0.0062 | I16: 1.016262 | J16: 186.3478761 | M16: 6156.885938 | N16: 6150.09492
A17: 2001-02-01 | B17: 0.0023 | C17: 0.01 | D17: 0.012323 | E17: 0.01 | G17: 164.31 | H17: 0.0023 | I17: 1.012323 | J17: 188.6466315 | M17: 6232.757243 | N17: 6225.961437
A18: 2001-03-01 | B18: 0.0056 | C18: 0.01 | D18: 0.015656 | E18: 0.01 | G18: 165.23 | H18: 0.0056 | I18: 1.015656 | J18: 191.5939854 | M18: 6330.337291 | N18: 6323.233842
A19: 2001-04-01 | B19: 0.01 | C19: 0.01 | D19: 0.0201 | E19: 0.01 | G19: 166.88 | H19: 0.0099 | I19: 1.019999 | J19: 195.4232245 | M19: 6457.57707 | N19: 6449.611369
A20: 2001-05-01 | B20: 0.0086 | C20: 0.01 | D20: 0.018686 | E20: 0.01 | G20: 168.32 | H20: 0.0086 | I20: 1.018686 | J20: 199.0660471 | M20: 6578.243355 | N20: 6569.83654
A21: 2001-06-01 | B21: 0.0098 | C21: 0.01 | D21: 0.019898 | E21: 0.01 | G21: 169.97 | H21: 0.0097 | I21: 1.019797 | J21: 203.0084848 | M21: 6709.137242 | N21: 6699.949993
A22: 2001-07-01 | B22: 0.0148 | C22: 0.01 | D22: 0.024948 | E22: 0.01 | G22: 172.49 | H22: 0.0146 | I22: 1.024746 | J22: 208.0340894 | M22: 6876.516798 | N22: 6865.81153
A23: 2001-08-01 | B23: 0.0138 | C23: 0.01 | D23: 0.023938 | E23: 0.01 | G23: 174.87 | H23: 0.0136 | I23: 1.023736 | J23: 212.9741108 | M23: 7041.126857 | N23: 7028.848543
A24: 2001-09-01 | B24: 0.0031 | C24: 0.01 | D24: 0.013131 | E24: 0.01 | G24: 175.41 | H24: 0.0031 | I24: 1.013131 | J24: 215.7660495 | M24: 7133.583894 | N24: 7120.991734
A25: 2001-10-01 | B25: 0.0118 | C25: 0.01 | D25: 0.021918 | E25: 0.01 | G25: 177.48 | H25: 0.0117 | I25: 1.021817 | J25: 220.4654166 | M25: 7289.937785 | N25: 7276.086356
A26: 2001-11-01 | B26: 0.011 | C26: 0.01 | D26: 0.02111 | E26: 0.01 | G26: 179.43 | H26: 0.0109 | I26: 1.021009 | J26: 225.089993 | M26: 7443.828372 | N26: 7428.712639
A27: 2001-12-01 | B27: 0.0022 | C27: 0.01 | D27: 0.012222 | E27: 0.01 | G27: 179.82 | H27: 0.0022 | I27: 1.012222 | J27: 227.8339579 | M27: 7534.806842 | N27: 7519.272537
A28: 2002-01-01 | B28: 0.0036 | C28: 0.01 | D28: 0.013636 | E28: 0.01 | G28: 180.47 | H28: 0.0036 | I28: 1.013636 | J28: 230.9410945 | M28: 7637.551468 | N28: 7621.818299
A29: 2002-02-01 | B29: 0.0006 | C29: 0.01 | D29: 0.010606 | E29: 0.01 | G29: 180.58 | H29: 0.0006 | I29: 1.010606 | J29: 233.3925895 | M29: 7718.555339 | N29: 7702.725728
A30: 2002-03-01 | B30: 0.0009 | C30: 0.01 | D30: 0.010909 | E30: 0.01 | G30: 180.74 | H30: 0.0009 | I30: 1.010909 | J30: 235.9351922 | M30: 7802.75706 | N30: 7786.640008
A31: 2002-04-01 | B31: 0.0056 | C31: 0.01 | D31: 0.015656 | E31: 0.01 | G31: 181.75 | H31: 0.0056 | I31: 1.015656 | J31: 239.6187669 | M31: 7924.917024 | N31: 7908.21013
A32: 2002-05-01 | B32: 0.0083 | C32: 0.01 | D32: 0.018383 | E32: 0.01 | G32: 183.26 | H32: 0.0082 | I32: 1.018282 | J32: 244.0090754 | M32: 8070.600774 | N32: 8053.104799
A33: 2002-06-01 | B33: 0.0154 | C33: 0.01 | D33: 0.025554 | E33: 0.01 | G33: 186.08 | H33: 0.0152 | I33: 1.025352 | J33: 250.1840471 | M33: 8276.836906 | N33: 8256.899245
A34: 2002-07-01 | B34: 0.0195 | C34: 0.01 | D34: 0.029695 | E34: 0.01 | G34: 189.71 | H34: 0.0191 | I34: 1.029291 | J34: 257.5208977 | M34: 8522.617578 | N34: 8499.039529
A35: 2002-08-01 | B35: 0.0232 | C35: 0.01 | D35: 0.033432 | E35: 0.01 | G35: 194.11 | H35: 0.0227 | I35: 1.032927 | J35: 265.9918507 | M35: 8807.545729 | N35: 8778.608935
A36: 2002-09-01 | B36: 0.024 | C36: 0.01 | D36: 0.03424 | E36: 0.01 | G36: 198.77 | H36: 0.0234 | I36: 1.033634 | J36: 274.9500901 | M36: 9109.116094 | N36: 9074.2604
A37: 2002-10-01 | B37: 0.0387 | C37: 0.01 | D37: 0.049087 | E37: 0.01 | G37: 206.46 | H37: 0.0372 | I37: 1.047572 | J37: 288.0430467 | M37: 9556.255276 | N37: 9506.371178
A38: 2002-11-01 | B38: 0.0519 | C38: 0.01 | D38: 0.062419 | E38: 0.01 | G38: 217.18 | H38: 0.0494 | I38: 1.059894 | J38: 305.2834535 | M38: 10152.74717 | N38: 10075.3615
A39: 2002-12-01 | B39: 0.0375 | C39: 0.01 | D39: 0.047875 | E39: 0.01 | G39: 225.32 | H39: 0.0361 | I39: 1.046461 | J39: 319.4753675 | M39: 10638.80995 | N39: 10543.7415
A40: 2003-01-01 | B40: 0.0233 | C40: 0.01 | D40: 0.033533 | E40: 0.01 | G40: 230.57 | H40: 0.0228 | I40: 1.033028 | J40: 330.0172095 | M40: 10995.56116 | N40: 10891.65708
A41: 2003-02-01 | B41: 0.0228 | C41: 0.01 | D41: 0.033028 | E41: 0.01 | G41: 235.83 | H41: 0.0223 | I41: 1.032523 | J41: 340.7517598 | M41: 11358.72255 | N41: 11245.93267
A42: 2003-03-01 | B42: 0.0153 | C42: 0.01 | D42: 0.025453 | E42: 0.01 | G42: 239.44 | H42: 0.0151 | I42: 1.025251 | J42: 349.3481138 | M42: 11647.83612 | N42: 11529.64072
A43: 2003-04-01 | B43: 0.0092 | C43: 0.01 | D43: 0.019292 | E43: 0.01 | G43: 241.64 | H43: 0.0091 | I43: 1.019191 | J43: 356.0540247 | M43: 11872.54617 | N43: 11750.95791
A44: 2003-05-01 | B44: -0.0026 | C44: 0.01 | D44: 0.007374 | E44: 0.01 | G44: 241.01 | H44: -0.0026 | I44: 1.007374 | J44: 358.6745327 | M44: 11960.09433 | N44: 11837.44332
A45: 2003-06-01 | B45: -0.01 | C45: 0.01 | D45: -0.0001 | E45: 0.01 | G45: 238.6 | H45: -0.0101 | I45: 0.999799 | J45: 358.6022265 | M45: 11958.89832 | N45: 11835.05698
A46: 2003-07-01 | B46: -0.0042 | C46: 0.01 | D46: 0.005758 | E46: 0.01 | G46: 237.6 | H46: -0.0042 | I46: 1.005758 | J46: 360.6638875 | M46: 12027.75766 | N46: 11903.0986
A47: 2003-08-01 | B47: 0.0038 | C47: 0.01 | D47: 0.013838 | E47: 0.01 | G47: 238.5 | H47: 0.0038 | I47: 1.013838 | J47: 365.6451321 | M47: 12194.19777 | N47: 12067.49611
A48: 2003-09-01 | B48: 0.0118 | C48: 0.01 | D48: 0.021918 | E48: 0.01 | G48: 241.31 | H48: 0.0116 | I48: 1.021716 | J48: 373.6020163 | M48: 12461.47019 | N48: 12330.09955
A49: 2003-10-01 | B49: 0.0038 | C49: 0.01 | D49: 0.013838 | E49: 0.01 | G49: 242.23 | H49: 0.0038 | I49: 1.013838 | J49: 378.7711826 | M49: 12633.91202 | N49: 12500.69909
A50: 2003-11-01 | B50: 0.0049 | C50: 0.01 | D50: 0.014949 | E50: 0.01 | G50: 243.42 | H50: 0.0049 | I50: 1.014949 | J50: 384.4290985 | M50: 12822.77637 | N50: 12687.42899
A51: 2003-12-01 | B51: 0.0061 | C51: 0.01 | D51: 0.016161 | E51: 0.01 | G51: 244.9 | H51: 0.006 | I51: 1.01606 | J51: 390.6198355 | M51: 13030.00526 | N51: 12891.74374
A52: 2004-01-01 | B52: 0.0088 | C52: 0.01 | D52: 0.018888 | E52: 0.01 | G52: 247.06 | H52: 0.0087 | I52: 1.018787 | J52: 397.9753021 | M52: 13276.116 | N52: 13134.49842
A53: 2004-02-01 | B53: 0.0069 | C53: 0.01 | D53: 0.016969 | E53: 0.01 | G53: 248.76 | H53: 0.0068 | I53: 1.016868 | J53: 404.7019743 | M53: 13501.39841 | N53: 13356.5008
A54: 2004-03-01 | B54: 0.0113 | C54: 0.01 | D54: 0.021413 | E54: 0.01 | G54: 251.57 | H54: 0.0112 | I54: 1.021312 | J54: 413.3146603 | M54: 13790.50385 | N54: 13640.74787
A55: 2004-04-01 | B55: 0.0121 | C55: 0.01 | D55: 0.022221 | E55: 0.01 | G55: 254.61 | H55: 0.0119 | I55: 1.022019 | J55: 422.4320626 | M55: 14096.94264 | N55: 13941.65223
A56: 2004-05-01 | B56: 0.0131 | C56: 0.01 | D56: 0.023231 | E56: 0.01 | G56: 257.95 | H56: 0.0129 | I56: 1.023029 | J56: 432.1808349 | M56: 14424.42871 | N56: 14263.39389
A57: 2004-06-01 | B57: 0.0138 | C57: 0.01 | D57: 0.023938 | E57: 0.01 | G57: 261.51 | H57: 0.0136 | I57: 1.023736 | J57: 442.4448612 | M57: 14769.72069 | N57: 14602.14063
A58: 2004-07-01 | B58: 0.0131 | C58: 0.01 | D58: 0.023231 | E58: 0.01 | G58: 264.94 | H58: 0.0129 | I58: 1.023029 | J58: 452.6546262 | M58: 15112.83607 | N58: 14939.09657
A59: 2004-08-01 | B59: 0.0122 | C59: 0.01 | D59: 0.022322 | E59: 0.01 | G59: 268.17 | H59: 0.012 | I59: 1.02212 | J59: 462.6877362 | M59: 15450.1848 | N59: 15270.22232
A60: 2004-09-01 | B60: 0.0069 | C60: 0.01 | D60: 0.016969 | E60: 0.01 | G60: 270.02 | H60: 0.0069 | I60: 1.016969 | J60: 470.5163469 | M60: 15712.35898 | N60: 15528.59231
A61: 2004-10-01 | B61: 0.0039 | C61: 0.01 | D61: 0.013939 | E61: 0.01 | G61: 271.07 | H61: 0.0039 | I61: 1.013939 | J61: 477.062299 | M61: 15931.37355 | N61: 15744.63033
A62: 2004-11-01 | B62: 0.0082 | C62: 0.01 | D62: 0.018282 | E62: 0.01 | G62: 273.29 | H62: 0.0081 | I62: 1.018181 | J62: 485.746966 | M62: 16222.63092 | N62: 16031.253
A63: 2004-12-01 | B63: 0.0074 | C63: 0.01 | D63: 0.017474 | E63: 0.01 | G63: 275.31 | H63: 0.0073 | I63: 1.017373 | J63: 494.2040905 | M63: 16506.10518 | N63: 16310.36602
A64: 2005-01-01 | B64: 0.0039 | C64: 0.01 | D64: 0.013939 | E64: 0.01 | G64: 276.38 | H64: 0.0039 | I64: 1.013939 | J64: 501.0785663 | M64: 16736.18378 | N64: 16537.24641
A65: 2005-02-01 | B65: 0.003 | C65: 0.01 | D65: 0.01303 | E65: 0.01 | G65: 277.21 | H65: 0.003 | I65: 1.01303 | J65: 507.6046442 | M65: 16954.25625 | N65: 16752.62852
A66: 2005-03-01 | B66: 0.0085 | C66: 0.01 | D66: 0.018585 | E66: 0.01 | G66: 279.57 | H66: 0.0084 | I66: 1.018484 | J66: 517.0085027 | M66: 17269.3511 | N66: 17062.98689
A67: 2005-04-01 | B67: 0.0086 | C67: 0.01 | D67: 0.018686 | E67: 0.01 | G67: 281.97 | H67: 0.0085 | I67: 1.018585 | J67: 526.6231337 | M67: 17592.0462 | N67: 17380.30144
A68: 2005-05-01 | B68: -0.0022 | C68: 0.01 | D68: 0.007778 | E68: 0.01 | G68: 281.35 | H68: -0.0022 | I68: 1.007778 | J68: 530.7172612 | M68: 17728.87713 | N68: 17515.42116
A69: 2005-06-01 | B69: -0.0044 | C69: 0.01 | D69: =((1+B69) * (1+C69))-1 -> 0.005556 | E69: =((1+D69)/(1+B69))-1 -> 0.01 | G69: 280.11 | H69: -0.0044 | I69: 1.005556 | J69: 533.6515435 | M69: 17827.37878 | N69: 17612.26216
A70: 2005-07-01 | B70: -0.0034 | C70: =C69 -> 0.01 | D70: 0.006566 | E70: 0.01 | G70: =ROUND(G69*(1+B70),2) -> 279.16 | H70: =ROUND((G70-G69)/G70,4) -> -0.0034 | I70: =(1+H70)*(1+$B$2) -> 1.006566 | J70: 537.1538468 | M70: 17944.43334 | N70: 17727.84973
A71: 2005-08-01 | B71: -0.0065 | C71: 0.01 | D71: 0.003435 | E71: 0.01 | G71: 277.35 | H71: -0.0065 | I71: 1.003435 | J71: 538.9848375 | M71: 18006.07247 | N71: 17788.27846
A72: 2005-09-01 | B72: -0.0053 | C72: 0.01 | D72: 0.004647 | E72: 0.01 | G72: 275.88 | H72: -0.0053 | I72: 1.004647 | J72: 541.4740378 | M72: 18089.74669 | N72: 17870.43029
A73: 2005-10-01 | B73: 0.006 | C73: 0.01 | D73: 0.01606 | E73: 0.01 | G73: 277.54 | H73: 0.006 | I73: 1.01606 | J73: 550.1597855 | M73: 18380.26802 | N73: 18157.08863
A74: 2005-11-01 | B74: 0.004 | C74: 0.01 | D74: 0.01404 | E74: 0.01 | G74: 278.65 | H74: 0.004 | I74: 1.01404 | J74: 557.8748559 | M74: 18638.32699 | N74: 18411.71142
A75: 2005-12-01 | B75: -0.0001 | C75: 0.01 | D75: 0.009899 | E75: 0.01 | G75: 278.62 | H75: -0.0001 | I75: 1.009899 | J75: 563.3929354 | M75: 18822.82779 | N75: 18593.82625
A76: 2006-01-01 | B76: 0.0092 | C76: 0.01 | D76: 0.019292 | E76: 0.01 | G76: 281.18 | H76: 0.0091 | I76: 1.019191 | J76: =((((1+((G76-G75)/G76))*(1+$B$2))))*J75 -> 574.2075632 | M76: =M75*(1+D76) -> 19185.95778 | N76: =($N$2/$J$4)*J76 -> 18950.74466
A77: 2006-02-01 | B77: 0.0001 | C77: 0.01 | D77: 0.010101 | E77: 0.01 | G77: 281.21 | H77: 0.0001 | I77: 1.010101 | J77: 580.0115089 | M77: 19379.75514 | N77: 19142.29402
A78: 2006-03-01 | B78: -0.0023 | C78: 0.01 | D78: 0.007677 | E78: 0.01 | G78: 280.56 | H78: -0.0023 | I78: 1.007677 | J78: 584.4544185 | M78: 19528.53352 | N78: 19288.9247
A79: 2006-04-01 | B79: -0.0042 | C79: 0.01 | D79: 0.005758 | E79: 0.01 | G79: 279.38 | H79: -0.0042 | I79: 1.005758 | J79: 587.8057536 | M79: 19640.97881 | N79: 19399.52982
A80: 2006-05-01 | B80: 0.0038 | C80: 0.01 | D80: 0.013838 | E80: 0.01 | G80: 280.44 | H80: 0.0038 | I80: 1.013838 | J80: 595.9278021 | M80: 19912.77068 | N80: 19667.58423
A81: 2006-06-01 | B81: 0.0075 | C81: 0.01 | D81: 0.017575 | E81: 0.01 | G81: 282.54 | H81: 0.0074 | I81: 1.017474 | J81: 606.3606516 | M81: 20262.73762 | N81: 20011.90269
A82: 2006-07-01 | B82: 0.0018 | C82: 0.01 | D82: 0.011818 | E82: 0.01 | G82: 283.05 | H82: 0.0018 | I82: 1.011818 | J82: 613.5277252 | M82: 20502.20266 | N82: 20248.43978
A83: 2006-08-01 | B83: 0.0037 | C83: 0.01 | D83: 0.013737 | E83: 0.01 | G83: 284.1 | H83: 0.0037 | I83: 1.013737 | J83: 621.9532036 | M83: 20783.84142 | N83: 20526.50837
A84: 2006-09-01 | B84: 0.0029 | C84: 0.01 | D84: 0.012929 | E84: 0.01 | G84: 284.92 | H84: 0.0029 | I84: 1.012929 | J84: 629.9806173 | M84: 21052.5557 | N84: 20791.43952
A85: 2006-10-01 | B85: 0.0047 | C85: 0.01 | D85: 0.014747 | E85: 0.01 | G85: 286.26 | H85: 0.0047 | I85: 1.014747 | J85: 639.2588898 | M85: 21363.01774 | N85: 21097.65313
A86: 2006-11-01 | B86: 0.0075 | C86: 0.01 | D86: 0.017575 | E86: 0.01 | G86: 288.41 | H86: 0.0075 | I86: 1.017575 | J86: 650.4645943 | M86: 21738.47278 | N86: 21467.47836
A87: 2006-12-01 | B87: 0.0032 | C87: 0.01 | D87: 0.013232 | E87: 0.01 | G87: 289.33 | H87: 0.0032 | I87: 1.013232 | J87: 659.0582449 | M87: 22026.11625 | N87: 21751.09719
A88: 2007-01-01 | B88: 0.005 | C88: 0.01 | D88: 0.01505 | E88: 0.01 | G88: 290.78 | H88: 0.005 | I88: 1.01505 | J88: 668.9681437 | M88: 22357.6093 | N88: 22078.15656
A89: 2007-02-01 | B89: 0.0027 | C89: 0.01 | D89: 0.012727 | E89: 0.01 | G89: 291.57 | H89: 0.0027 | I89: 1.012727 | J89: 677.4884993 | M89: 22642.15459 | N89: 22359.35641
A90: 2007-03-01 | B90: 0.0034 | C90: 0.01 | D90: 0.013434 | E90: 0.01 | G90: 292.56 | H90: 0.0034 | I90: 1.013434 | J90: 686.5788777 | M90: 22946.3293 | N90: 22659.3689
A91: 2007-04-01 | B91: 0.0004 | C91: 0.01 | D91: 0.010404 | E91: 0.01 | G91: 292.68 | H91: 0.0004 | I91: 1.010404 | J91: 693.7289816 | M91: 23185.06291 | N91: 22895.34593
A92: 2007-05-01 | B92: 0.0004 | C92: 0.01 | D92: 0.010404 | E92: 0.01 | G92: 292.8 | H92: 0.0004 | I92: 1.010404 | J92: 700.9534298 | M92: 23426.2803 | N92: 23133.77656
A93: 2007-06-01 | B93: 0.0026 | C93: 0.01 | D93: 0.012626 | E93: 0.01 | G93: 293.56 | H93: 0.0026 | I93: 1.012626 | J93: 709.7958155 | M93: 23722.06052 | N93: 23425.60447
A94: 2007-07-01 | B94: 0.0028 | C94: 0.01 | D94: 0.012828 | E94: 0.01 | G94: 294.38 | H94: 0.0028 | I94: 1.012828 | J94: 718.8906922 | M94: 24026.36711 | N94: 23725.76542
A95: 2007-08-01 | B95: 0.0098 | C95: 0.01 | D95: 0.019898 | E95: 0.01 | G95: 297.26 | H95: 0.0097 | I95: 1.019797 | J95: 733.1142127 | M95: 24504.44376 | N95: 24195.18854
A96: 2007-09-01 | B96: 0.0129 | C96: 0.01 | D96: 0.023029 | E96: 0.01 | G96: 301.09 | H96: 0.0127 | I96: 1.022827 | J96: 749.8641523 | M96: 25068.7566 | N96: 24747.99182
A97: 2007-10-01 | B97: 0.0105 | C97: 0.01 | D97: 0.020605 | E97: 0.01 | G97: 304.25 | H97: 0.0104 | I97: 1.020504 | J97: 765.2289119 | M97: 25585.29833 | N97: 25255.0796
A98: 2007-11-01 | B98: 0.0069 | C98: 0.01 | D98: 0.016969 | E98: 0.01 | G98: 306.35 | H98: 0.0069 | I98: 1.016969 | J98: 778.1792278 | M98: 26019.45525 | N98: 25682.48277
A99: 2007-12-01 | B99: 0.0176 | C99: 0.01 | D99: 0.027776 | E99: 0.01 | G99: 311.74 | H99: 0.0173 | I99: 1.027473 | J99: 799.550325 | M99: 26742.17164 | N99: 26387.7995
A100: 2008-01-01 | B100: 0.0109 | C100: 0.01 | D100: 0.021009 | E100: 0.01 | G100: 315.14 | H100: 0.0108 | I100: 1.020908 | J100: 816.2583237 | M100: 27303.99793 | N100: 26939.2186
A101: 2008-02-01 | B101: 0.0053 | C101: 0.01 | D101: 0.015353 | E101: 0.01 | G101: 316.81 | H101: 0.0053 | I101: 1.015353 | J101: 828.7666754 | M101: 27723.19621 | N101: 27352.03549
A102: 2008-03-01 | B102: 0.0074 | C102: 0.01 | D102: 0.017474 | E102: 0.01 | G102: 319.15 | H102: 0.0073 | I102: 1.017373 | J102: 843.1916041 | M102: 28207.63134 | N102: 27828.10575
A103: 2008-04-01 | B103: 0.0069 | C103: 0.01 | D103: 0.016969 | E103: 0.01 | G103: 321.35 | H103: 0.0068 | I103: 1.016868 | J103: 857.4538352 | M103: 28686.28663 | N103: 28298.80644
A104: 2008-05-01 | B104: 0.0161 | C104: 0.01 | D104: 0.026261 | E104: 0.01 | G104: 326.52 | H104: 0.0158 | I104: 1.025958 | J104: 879.7407547 | M104: 29439.61721 | N104: 29034.34834
A105: 2008-06-01 | B105: 0.0198 | C105: 0.01 | D105: 0.029998 | E105: 0.01 | G105: 332.99 | H105: 0.0194 | I105: 1.029594 | J105: 905.8024703 | M105: 30322.74684 | N105: 29894.47097
A106: 2008-07-01 | B106: 0.0176 | C106: 0.01 | D106: 0.027776 | E106: 0.01 | G106: 338.85 | H106: 0.0173 | I106: 1.027473 | J106: 930.6818982 | M106: 31164.99146 | N106: 30715.5742
A107: 2008-08-01 | B107: -0.0032 | C107: 0.01 | D107: 0.006768 | E107: 0.01 | G107: 337.77 | H107: -0.0032 | I107: 1.006768 | J107: 936.9831578 | M107: 31375.91612 | N107: 30923.53656
A108: 2008-09-01 | B108: 0.0011 | C108: 0.01 | D108: 0.011111 | E108: 0.01 | G108: 338.14 | H108: 0.0011 | I108: 1.011111 | J108: 947.388509 | M108: 31724.53393 | N108: 31266.94749
A109: 2008-10-01 | B109: 0.0098 | C109: 0.01 | D109: 0.019898 | E109: 0.01 | G109: 341.45 | H109: 0.0097 | I109: 1.019797 | J109: 966.1381724 | M109: 32355.7887 | N109: 31885.74826
A110: 2008-11-01 | B110: 0.0038 | C110: 0.01 | D110: 0.013838 | E110: 0.01 | G110: 342.75 | H110: 0.0038 | I110: 1.013838 | J110: 979.5006174 | M110: 32803.52811 | N110: 32326.75305
A111: 2008-12-01 | B111: -0.0013 | C111: 0.01 | D111: 0.008687 | E111: 0.01 | G111: 342.3 | H111: -0.0013 | I111: 1.008687 | J111: 987.9950596 | M111: 33088.49235 | N111: 32607.09768
A112: 2009-01-01 | B112: -0.0044 | C112: 0.01 | D112: 0.005556 | E112: 0.01 | G112: 340.79 | H112: -0.0044 | I112: 1.005556 | J112: 993.4535446 | M112: 33272.33202 | N112: 32787.2457
A113: 2009-02-01 | B113: 0.0026 | C113: 0.01 | D113: 0.012626 | E113: 0.01 | G113: 341.68 | H113: 0.0026 | I113: 1.012626 | J113: 1006.001682 | M113: 33692.42848 | N113: 33201.37563
A114: 2009-03-01 | B114: -0.0074 | C114: 0.01 | D114: 0.002526 | E114: 0.01 | G114: 339.15 | H114: -0.0075 | I114: 1.002425 | J114: 1008.482055 | M114: 33777.53556 | N114: 33283.23614
A115: 2009-04-01 | B115: -0.0015 | C115: 0.01 | D115: 0.008485 | E115: 0.01 | G115: 338.64 | H115: -0.0015 | I115: 1.008485 | J115: 1017.032889 | M115: 34064.13795 | N115: 33565.44189
A116: 2009-05-01 | B116: -0.0007 | C116: 0.01 | D116: 0.009293 | E116: 0.01 | G116: 338.4 | H116: -0.0007 | I116: 1.009293 | J116: 1026.474705 | M116: 34380.69598 | N116: 33877.05298
A117: 2009-06-01 | B117: -0.001 | C117: 0.01 | D117: 0.00899 | E117: 0.01 | G117: 338.06 | H117: -0.001 | I117: 1.00899 | J117: 1035.696763 | M117: 34689.77844 | N117: 34181.41133
A118: 2009-07-01 | B118: -0.0043 | C118: 0.01 | D118: 0.005657 | E118: 0.01 | G118: 336.61 | H118: -0.0043 | I118: 1.005657 | J118: 1041.547692 | M118: 34886.01851 | N118: 34374.51127
A119: 2009-08-01 | B119: -0.0036 | C119: 0.01 | D119: 0.006364 | E119: 0.01 | G119: 335.4 | H119: -0.0036 | I119: 1.006364 | J119: 1048.168072 | M119: 35108.03314 | N119: 34593.00567
A120: 2009-09-01 | B120: 0.0042 | C120: 0.01 | D120: 0.014242 | E120: 0.01 | G120: 336.81 | H120: 0.0042 | I120: 1.014242 | J120: 1063.081617 | M120: 35608.04174 | N120: 35085.20187
A121: 2009-10-01 | B121: 0.0005 | C121: 0.01 | D121: 0.010505 | E121: 0.01 | G121: 336.98 | H121: 0.0005 | I121: 1.010505 | J121: 1074.2541 | M121: 35982.10422 | N121: 35453.9307
A122: 2009-11-01 | B122: 0.001 | C122: 0.01 | D122: 0.01101 | E122: 0.01 | G122: 337.32 | H122: 0.001 | I122: 1.01101 | J122: 1086.090258 | M122: 36378.26719 | N122: 35844.56298
A123: 2009-12-01 | B123: -0.0026 | C123: 0.01 | D123: 0.007374 | E123: 0.01 | G123: 336.44 | H123: -0.0026 | I123: 1.007374 | J123: 1094.081951 | M123: 36646.52053 | N123: 36108.31521
A124: 2010-01-01 | B124: 0.0063 | C124: 0.01 | D124: 0.016363 | E124: 0.01 | G124: 338.56 | H124: 0.0063 | I124: 1.016363 | J124: 1111.942218 | M124: 37246.16755 | N124: 36697.76298
A125: 2010-02-01 | B125: 0.0118 | C125: 0.01 | D125: 0.021918 | E125: 0.01 | G125: 342.56 | H125: 0.0117 | I125: 1.021817 | J125: 1136.175391 | M125: 38062.52905 | N125: 37497.53767
A126: 2010-03-01 | B126: 0.0094 | C126: 0.01 | D126: 0.019494 | E126: 0.01 | G126: 345.78 | H126: 0.0093 | I126: 1.019393 | J126: 1158.223332 | M126: 38804.51999 | N126: 38225.19247
A127: 2010-04-01 | B127: 0.0077 | C127: 0.01 | D127: 0.017777 | E127: 0.01 | G127: 348.44 | H127: 0.0076 | I127: 1.017676 | J127: 1178.735891 | M127: 39494.34794 | N127: 38902.17463
A128: 2010-05-01 | B128: 0.0119 | C128: 0.01 | D128: 0.022019 | E128: 0.01 | G128: 352.59 | H128: 0.0118 | I128: 1.021918 | J128: 1204.535762 | M128: 40363.97399 | N128: 39753.65551
A129: 2010-06-01 | B129: 0.0085 | C129: 0.01 | D129: 0.018585 | E129: 0.01 | G129: 355.59 | H129: 0.0084 | I129: 1.018484 | J129: 1226.845028 | M129: 41114.13844 | N129: 40489.93493
A130: 2010-07-01 | B130: 0.0015 | C130: 0.01 | D130: 0.011515 | E130: 0.01 | G130: 356.12 | H130: 0.0015 | I130: 1.011515 | J130: 1240.957605 | M130: 41587.56775 | N130: 40955.69652
A131: 2010-08-01 | B131: 0.0077 | C131: 0.01 | D131: 0.017777 | E131: 0.01 | G131: 358.86 | H131: 0.0076 | I131: 1.017676 | J131: 1262.937002 | M131: 42326.86994 | N131: 41681.08918
